Workbook

Sheet 2006
A1: Circulation | B1: Day | C1: Tue | D1: Wed | E1: Thu | F1: Fri | G1: Sat | H1: Mon | I1: Tue | J1: Wed | K1: Thu | L1: Fri | M1: Sat | N1: Mon | O1: Tue | P1: Wed | Q1: Thu | R1: Fri | S1: Sat | T1: Mon | U1: Tue | V1: Wed | W1: Thu | X1: Fri | Y1: Sat | Z1: Mon | AA1: Tue | AB1: Wed | AC1: Thu | AD1: Fri | AE1: Sat | AF1: Mon | AG1: Tue | AH1: Wed | AI1: Thu | AJ1: Fri | AK1: Sat | AL1: Mon | AM1: Tue | AN1: Wed | AO1: Thu | AP1: Fri | AQ1: Sat | AR1: Mon | AS1: Tue | AT1: Wed | AU1: Thu | AV1: Fri | AW1: Sat | AX1: Mon | AY1: Tue | AZ1: Wed | BA1: Thu | BB1: Fri | BC1: Sat | BD1: Mon | BE1: Tue | BF1: Wed | BG1: Thu | BH1: Fri | BI1: Sat | BJ1: Mon | BK1: Tue | BL1: Wed | BM1: Thu | BN1: Fri | BO1: Sat | BP1: Mon | BQ1: Tue | BR1: Wed | BS1: Thu | BT1: Fri | BU1: Sat | BV1: Mon | BW1: Tue | BX1: Wed | BY1: Thu | BZ1: Fri | CA1: Sat | CB1: Mon | CC1: Tue | CD1: Wed | CE1: Thu | CF1: Fri | CG1: Sat | CH1: Mon | CI1: Tue | CJ1: Wed | CK1: Thu | CL1: Fri | CM1: Sat | CN1: Mon | CO1: Tue | CP1: Wed | CQ1: Thu | CR1: Fri | CS1: Sat | CT1: Mon | CU1: Tue | CV1: Wed | CW1: Thu | CX1: Fri | CY1: Sat | CZ1: Mon | DA1: Tue | DB1: Wed | DC1: Thu | DD1: Fri | DE1: Sat | DF1: Mon | DG1: Tue | DH1: Wed | DI1: Thu | DJ1: Fri | DK1: Sat | DL1: Mon | DM1: Tue | DN1: Wed | DO1: Thu | DP1: Fri | DQ1: Sat | DR1: Mon | DS1: Tue | DT1: Wed | DU1: Thu | DV1: Fri | DW1: Sat | DX1: Mon | DY1: Tue | DZ1: Wed | EA1: Thu | EB1: Fri | EC1: Sat | ED1: Mon | EE1: Tue | EF1: Wed | EG1: Thu | EH1: Fri | EI1: Sat | EJ1: Mon | EK1: Tue | EL1: Wed | EM1: Thu | EN1: Fri | EO1: Sat | EP1: Mon | EQ1: Tue | ER1: Wed | ES1: Thu | ET1: Fri | EU1: Sat | EV1: Mon | EW1: Wed | EX1: Thu | EY1: Fri | EZ1: Sat | FA1: Mon | FB1: Tue | FC1: Wed | FD1: Thu | FE1: Fri | FF1: Sat | FG1: Mon | FH1: Tue | FI1: Wed | FJ1: Thu | FK1: Fri | FL1: Sat | FM1: Mon | FN1: Tue | FO1: Wed | FP1: Thu | FQ1: Fri | FR1: Sat | FS1: Mon | FT1: Tue | FU1: Wed | FV1: Thu | FW1: Fri | FX1: Sat | FY1: Mon | FZ1: Tue | GA1: Wed | GB1: Thu | GC1: Fri | GD1: Sat | GE1: Mon | GF1: Tue | GG1: Wed | GH1: Thu | GI1: Fri | GJ1: Sat | GK1: Mon | GL1: Tue | GM1: Wed | GN1: Thu | GO1: Fri | GP1: Sat | GQ1: Mon | GR1: Tue | GS1: Wed | GT1: Thu | GU1: September thru December are found Col C, Row 68.
A2: Items | B2: Date | C2: 2006-01-10 | D2: 2006-01-11 | E2: 2006-01-12 | F2: 2006-01-13 | G2: 2006-01-14 | H2: 2006-01-16 | I2: 2006-01-17 | J2: 2006-01-18 | K2: 2006-01-19 | L2: 2006-01-20 | M2: 2006-01-21 | N2: 2006-01-23 | O2: 2006-01-24 | P2: 2006-01-25 | Q2: 2006-01-26 | R2: 2006-01-27 | S2: 2006-01-28 | T2: 2006-01-30 | U2: 2006-01-31 | V2: 2006-02-01 | W2: 2006-02-02 | X2: 2006-02-03 | Y2: 2006-02-04 | Z2: 2006-02-06 | AA2: 2006-02-07 | AB2: 2006-02-08 | AC2: 2006-02-09 | AD2: 2006-02-10 | AE2: 2006-02-11 | AF2: 2006-02-13 | AG2: 2006-02-14 | AH2: 2006-02-15 | AI2: 2006-02-16 | AJ2: 2006-02-17 | AK2: 2006-02-18 | AL2: 2006-02-20 | AM2: 2006-02-21 | AN2: 2006-02-22 | AO2: 2006-02-23 | AP2: 2006-02-24 | AQ2: 2006-02-25 | AR2: 2006-02-27 | AS2: 2006-02-28 | AT2: 2006-03-01 | AU2: 2006-03-02 | AV2: 2006-03-03 | AW2: 2006-03-04 | AX2: 2006-03-06 | AY2: 2006-03-07 | AZ2: 2006-03-08 | BA2: 2006-03-09 | BB2: 2006-03-10 | BC2: 2006-03-11 | BD2: 2006-03-13 | BE2: 2006-03-14 | BF2: 2006-03-15 | BG2: 2006-03-16 | BH2: 2006-03-17 | BI2: 2006-03-18 | BJ2: 2006-03-20 | BK2: 2006-03-21 | BL2: 2006-03-22 | BM2: 2006-03-23 | BN2: 2006-03-24 | BO2: 2006-03-25 | BP2: 2006-03-27 | BQ2: 2006-03-28 | BR2: 2006-03-29 | BS2: 2006-03-30 | BT2: 2006-03-31 | BU2: 2006-04-01 | BV2: 2006-04-03 | BW2: 2006-04-04 | BX2: 2006-04-05 | BY2: 2006-04-06 | BZ2: 2006-04-07 | CA2: 2006-04-08 | CB2: 2006-04-10 | CC2: 2006-04-11 | CD2: 2006-04-12 | CE2: 2006-04-13 | CF2: 2006-04-14 | CG2: 2006-04-15 | CH2: 2006-04-17 | CI2: 2006-04-18 | CJ2: 2006-04-19 | CK2: 2006-04-20 | CL2: 2006-04-21 | CM2: 2006-04-22 | CN2: 2006-04-24 | CO2: 2006-04-25 | CP2: 2006-04-26 | CQ2: 2006-04-27 | CR2: 2006-04-28 | CS2: 2006-04-29 | CT2: 2006-05-01 | CU2: 2006-05-02 | CV2: 2006-05-03 | CW2: 2006-05-04 | CX2: 2006-05-05 | CY2: 2006-05-06 | CZ2: 2006-05-08 | DA2: 2006-05-09 | DB2: 2006-05-10 | DC2: 2006-05-11 | DD2: 2006-05-12 | DE2: 2006-05-13 | DF2: 2006-05-15 | DG2: 2006-05-16 | DH2: 2006-05-17 | DI2: 2006-05-18 | DJ2: 2006-05-19 | DK2: 2006-05-20 | DL2: 2006-05-22 | DM2: 2006-05-23 | DN2: 2006-05-24 | DO2: 2006-05-25 | DP2: 2006-05-26 | DQ2: 2006-05-27 | DR2: 2006-05-29 | DS2: 2006-05-30 | DT2: 2006-05-31 | DU2: 2006-06-01 | DV2: 2006-06-02 | DW2: 2006-06-03 | DX2: 2006-06-05 | DY2: 2006-06-06 | DZ2: 2006-06-07 | EA2: 2006-06-08 | EB2: 2006-06-09 | EC2: 2006-06-10 | ED2: 2006-06-12 | EE2: 2006-06-13 | EF2: 2006-06-14 | EG2: 2006-06-15 | EH2: 2006-06-16 | EI2: 2006-06-17 | EJ2: 2006-06-19 | EK2: 2006-06-20 | EL2: 2006-06-21 | EM2: 2006-06-22 | EN2: 2006-06-23 | EO2: 2006-06-24 | EP2: 2006-06-26 | EQ2: 2006-06-27 | ER2: 2006-06-28 | ES2: 2006-06-29 | ET2: 2006-06-30 | EU2: 2006-07-01 | EV2: 2006-07-03 | EW2: 2006-07-05 | EX2: 2006-07-06 | EY2: 2006-07-07 | EZ2: 2006-07-08 | FA2: 2006-07-10 | FB2: 2006-07-11 | FC2: 2006-07-12 | FD2: 2006-07-13 | FE2: 2006-07-14 | FF2: 2006-07-15 | FG2: 2006-07-17 | FH2: 2006-07-18 | FI2: 2006-07-19 | FJ2: 2006-07-20 | FK2: 2006-07-21 | FL2: 2006-07-22 | FM2: 2006-07-24 | FN2: 2006-07-25 | FO2: 2006-07-26 | FP2: 2006-07-27 | FQ2: 2006-07-28 | FR2: 2006-07-29 | FS2: 2006-07-31 | FT2: 2006-08-01 | FU2: 2006-08-02 | FV2: 2006-08-03 | FW2: 2006-08-04 | FX2: 2006-08-05 | FY2: 2006-08-07 | FZ2: 2006-08-08 | GA2: 2006-08-09 | GB2: 2006-08-10 | GC2: 2006-08-11 | GD2: 2006-08-12 | GE2: 2006-08-14 | GF2: 2006-08-15 | GG2: 2006-08-16 | GH2: 2006-08-17 | GI2: 2006-08-18 | GJ2: 2006-08-19 | GK2: 2006-08-21 | GL2: 2006-08-22 | GM2: 2006-08-23 | GN2: 2006-08-24 | GO2: 2006-08-25 | GP2: 2006-08-26 | GQ2: 2006-08-28 | GR2: 2006-08-29 | GS2: 2006-08-30 | GT2: 2006-08-31
A3: Hour | B3: 07:00:00 | C3: 17 | D3: 12 | E3: 17 | F3: 6 | I3: 13 | J3: 11 | K3: 6 | L3: 4 | N3: 34 | O3: 12 | P3: 11 | Q3: 11 | R3: 21 | T3: 23 | U3: 32 | V3: 11 | W3: 8 | X3: 11 | Z3: 11 | AA3: 9 | AB3: 5 | AC3: 16 | AD3: 7 | AF3: 25 | AG3: 16 | AH3: 10 | AI3: 9 | AJ3: 7 | AM3: 24 | AN3: 16 | AO3: 23 | AP3: 10 | AR3: 13 | AS3: 11 | AT3: 12 | AU3: 8 | AV3: 9 | AX3: 14 | AY3: 17 | AZ3: 12 | BA3: 10 | BB3: 7 | BD3: 28 | BE3: 7 | BF3: 23 | BG3: 14 | BH3: 13 | BJ3: 13 | BK3: 27 | BL3: 8 | BM3: 5 | BN3: 24 | BP3: 11 | BQ3: 21 | BR3: 15 | BS3: 14 | BT3: 18 | BV3: 6 | BW3: 9 | BX3: 15 | BY3: 10 | BZ3: 17 | CB3: 37 | CC3: 60 | CD3: 13 | CE3: 22 | CF3: 18 | CH3: 13 | CI3: 9 | CJ3: 12 | CK3: 13 | CL3: 8 | CN3: 12 | CO3: 5 | CP3: 5 | CU3: 5 | CV3: 5 | CW3: 4 | CX3: 2 | CZ3: 12 | DA3: 4 | DB3: 10 | DC3: 7 | DD3: 5 | DF3: 10 | DG3: 10 | DH3: 7 | DI3: 3 | DJ3: 5 | DL3: 10 | DM3: 3 | DN3: 1 | DP3: 7 | DS3: 8 | DT3: 30 | DU3: 5 | DV3: 13 | DX3: 31 | DY3: 5 | DZ3: 12 | EA3: 8 | EB3: 3 | ED3: 3 | EF3: 3 | EG3: 4 | EH3: 2 | EJ3: 13 | EL3: 6 | EM3: 2 | EP3: 12 | EQ3: 11 | ER3: 7 | ES3: 6 | ET3: 4 | EV3: 7 | EW3: 7 | EX3: 2 | EY3: 6 | FA3: 4 | FB3: 20 | FC3: 3 | FD3: 5 | FE3: 19 | FG3: 5 | FH3: 4 | FI3: 2 | FJ3: 2 | FK3: 5 | FN3: 13 | FO3: 3 | FP3: 10 | FQ3: 6 | FS3: 10 | FT3: 11 | FU3: 2 | FV3: 5 | FW3: 4 | FY3: 2 | FZ3: 4 | GA3: 5 | GB3: 4 | GC3: 3 | GE3: 8 | GF3: 1 | GG3: 1 | GH3: 3
B4: 08:00:00 | C4: 31 | D4: 92 | E4: 60 | F4: 31 | G4: 8 | I4: 31 | J4: 36 | K4: 27 | L4: 65 | M4: 5 | N4: 114 | O4: 36 | P4: 87 | Q4: 68 | R4: 60 | S4: 35 | T4: 59 | U4: 47 | V4: 64 | W4: 44 | X4: 81 | Y4: 1 | Z4: 83 | AA4: 38 | AB4: 74 | AC4: 65 | AD4: 48 | AE4: 2 | AF4: 84 | AG4: 45 | AH4: 93 | AI4: 90 | AJ4: 97 | AK4: 10 | AM4: 123 | AN4: 202 | AO4: 78 | AP4: 39 | AQ4: 4 | AR4: 90 | AS4: 51 | AT4: 91 | AU4: 38 | AV4: 64 | AW4: 7 | AX4: 84 | AY4: 51 | AZ4: 76 | BA4: 35 | BB4: 74 | BC4: 4 | BD4: 81 | BE4: 55 | BF4: 75 | BG4: 29 | BH4: 63 | BI4: 13 | BJ4: 109 | BK4: 41 | BL4: 118 | BM4: 35 | BN4: 100 | BO4: 10 | BP4: 142 | BQ4: 61 | BR4: 62 | BS4: 49 | BT4: 96 | BU4: 20 | BV4: 101 | BW4: 53 | BX4: 45 | BY4: 32 | BZ4: 85 | CA4: 11 | CB4: 89 | CC4: 53 | CD4: 41 | CE4: 27 | CF4: 42 | CG4: 10 | CH4: 81 | CI4: 110 | CJ4: 46 | CK4: 27 | CL4: 31 | CM4: 17 | CN4: 84 | CO4: 73 | CP4: 46 | CQ4: 55 | CR4: 14 | CS4: 1 | CT4: 17 | CU4: 26 | CV4: 72 | CW4: 15 | CX4: 27 | CY4: 2 | CZ4: 20 | DA4: 33 | DB4: 27 | DC4: 32 | DD4: 14 | DF4: 18 | DG4: 14 | DH4: 18 | DI4: 63 | DJ4: 38 | DK4: 3 | DL4: 55 | DM4: 22 | DN4: 28 | DO4: 24 | DP4: 19 | DQ4: 5 | DS4: 17 | DT4: 71 | DU4: 29 | DV4: 58 | DW4: 3 | DX4: 6 | DY4: 11 | DZ4: 47 | EA4: 15 | EB4: 11 | EC4: 1 | ED4: 16 | EE4: 18 | EF4: 28 | EG4: 13 | EH4: 9 | EI4: 1 | EJ4: 12 | EK4: 10 | EL4: 61 | EM4: 44 | EN4: 11 | EO4: 2 | EP4: 17 | EQ4: 26 | ER4: 20 | ES4: 21 | ET4: 23 | EU4: 6 | EV4: 23 | EW4: 27 | EX4: 19 | EY4: 23 | FA4: 28 | FB4: 11 | FC4: 141 | FD4: 36 | FE4: 33 | FF4: 10 | FG4: 15 | FH4: 19 | FI4: 15 | FJ4: 15 | FK4: 54 | FL4: 12 | FN4: 12 | FO4: 15 | FP4: 25 | FQ4: 25 | FR4: 3 | FS4: 16 | FT4: 8 | FU4: 20 | FV4: 33 | FW4: 27 | FX4: 1 | FY4: 16 | FZ4: 34 | GA4: 15 | GB4: 16 | GC4: 21 | GD4: 1 | GE4: 19 | GF4: 16 | GG4: 29 | GH4: 10 | GI4: 35 | GJ4: 5 | GK4: 20 | GL4: 23 | GM4: 5 | GN4: 2 | GO4: 14 | GQ4: 14 | GR4: 9 | GS4: 14 | GT4: 9
B5: 09:00:00 | C5: 72 | D5: 40 | E5: 109 | F5: 96 | G5: 17 | I5: 148 | J5: 145 | K5: 136 | L5: 178 | M5: 39 | N5: 141 | O5: 145 | P5: 125 | Q5: 138 | R5: 109 | S5: 14 | T5: 98 | U5: 189 | V5: 138 | W5: 160 | X5: 93 | Y5: 33 | Z5: 115 | AA5: 187 | AB5: 57 | AC5: 187 | AD5: 118 | AE5: 7 | AF5: 104 | AG5: 155 | AH5: 79 | AI5: 109 | AJ5: 92 | AK5: 34 | AM5: 90 | AN5: 82 | AO5: 147 | AP5: 127 | AQ5: 8 | AR5: 46 | AS5: 159 | AT5: 72 | AU5: 211 | AV5: 93 | AW5: 11 | AX5: 85 | AY5: 246 | AZ5: 90 | BA5: 185 | BB5: 115 | BC5: 24 | BD5: 112 | BE5: 136 | BF5: 75 | BG5: 187 | BH5: 122 | BI5: 43 | BJ5: 82 | BK5: 173 | BL5: 124 | BM5: 128 | BN5: 102 | BO5: 22 | BP5: 172 | BQ5: 147 | BR5: 120 | BS5: 144 | BT5: 126 | BU5: 51 | BV5: 86 | BW5: 153 | BX5: 149 | BY5: 127 | BZ5: 93 | CA5: 19 | CB5: 451 | CC5: 156 | CD5: 136 | CE5: 108 | CF5: 77 | CG5: 39 | CH5: 88 | CI5: 133 | CJ5: 38 | CK5: 83 | CL5: 79 | CM5: 22 | CN5: 99 | CO5: 106 | CP5: 101 | CQ5: 43 | CR5: 69 | CS5: 14 | CT5: 29 | CU5: 21 | CV5: 82 | CW5: 51 | CX5: 79 | CY5: 22 | CZ5: 102 | DA5: 59 | DB5: 127 | DC5: 39 | DD5: 129 | DE5: 4 | DF5: 118 | DG5: 94 | DH5: 85 | DI5: 36 | DJ5: 57 | DK5: 18 | DL5: 74 | DM5: 112 | DN5: 69 | DO5: 54 | DP5: 54 | DQ5: 18 | DS5: 95 | DT5: 51 | DU5: 85 | DV5: 57 | DW5: 12 | DX5: 112 | DY5: 156 | DZ5: 77 | EA5: 91 | EB5: 93 | EC5: 10 | ED5: 78 | EE5: 171 | EF5: 109 | EG5: 106 | EH5: 93 | EI5: 21 | EJ5: 74 | EK5: 86 | EL5: 47 | EM5: 48 | EN5: 72 | EO5: 5 | EP5: 38 | EQ5: 56 | ER5: 46 | ES5: 58 | ET5: 51 | EU5: 5 | EV5: 77 | EW5: 75 | EX5: 84 | EY5: 47 | EZ5: 14 | FA5: 53 | FB5: 76 | FC5: 90 | FD5: 101 | FE5: 87 | FF5: 19 | FG5: 57 | FH5: 119 | FI5: 72 | FJ5: 88 | FK5: 86 | FL5: 9 | FN5: 65 | FO5: 44 | FP5: 63 | FQ5: 95 | FR5: 8 | FS5: 98 | FT5: 164 | FU5: 82 | FV5: 113 | FW5: 123 | FX5: 13 | FY5: 85 | FZ5: 108 | GA5: 62 | GB5: 75 | GC5: 110 | GD5: 1 | GE5: 63 | GF5: 41 | GG5: 68 | GH5: 96 | GI5: 33 | GJ5: 3 | GK5: 45 | GL5: 41 | GM5: 61 | GN5: 37 | GO5: 44 | GP5: 15 | GQ5: 44 | GR5: 72 | GS5: 127 | GT5: 66
B6: 10:00:00 | C6: 350 | D6: 121 | E6: 188 | F6: 148 | G6: 18 | H6: 46 | I6: 124 | J6: 109 | K6: 196 | L6: 181 | M6: 60 | N6: 194 | O6: 146 | P6: 86 | Q6: 210 | R6: 162 | S6: 36 | T6: 168 | U6: 167 | V6: 114 | W6: 206 | X6: 161 | Y6: 34 | Z6: 151 | AA6: 176 | AB6: 145 | AC6: 208 | AD6: 141 | AE6: 29 | AF6: 134 | AG6: 116 | AH6: 122 | AI6: 159 | AJ6: 136 | AK6: 24 | AL6: 64 | AM6: 165 | AN6: 204 | AO6: 134 | AP6: 160 | AQ6: 46 | AR6: 169 | AS6: 240 | AT6: 161 | AU6: 127 | AV6: 241 | AW6: 42 | AX6: 192 | AY6: 94 | AZ6: 163 | BA6: 144 | BB6: 118 | BC6: 54 | BD6: 181 | BE6: 237 | BF6: 228 | BG6: 145 | BH6: 163 | BI6: 31 | BJ6: 121 | BK6: 221 | BL6: 175 | BM6: 203 | BN6: 300 | BO6: 28 | BP6: 158 | BQ6: 124 | BR6: 178 | BS6: 205 | BT6: 172 | BV6: 176 | BW6: 142 | BX6: 142 | BY6: 163 | BZ6: 143 | CA6: 34 | CB6: 234 | CC6: 152 | CD6: 190 | CE6: 135 | CF6: 123 | CG6: 52 | CH6: 132 | CI6: 72 | CJ6: 123 | CK6: 96 | CL6: 115 | CM6: 72 | CN6: 89 | CO6: 142 | CP6: 63 | CQ6: 66 | CR6: 47 | CS6: 23 | CT6: 75 | CU6: 143 | CV6: 81 | CW6: 122 | CX6: 79 | CY6: 44 | CZ6: 94 | DA6: 116 | DB6: 51 | DC6: 120 | DD6: 84 | DE6: 18 | DF6: 81 | DG6: 97 | DH6: 67 | DI6: 107 | DJ6: 108 | DK6: 9 | DL6: 71 | DM6: 57 | DN6: 62 | DO6: 98 | DP6: 55 | DQ6: 43 | DR6: 3 | DS6: 71 | DT6: 78 | DU6: 75 | DV6: 159 | DW6: 18 | DX6: 112 | DY6: 99 | DZ6: 40 | EA6: 111 | EB6: 75 | EC6: 12 | ED6: 51 | EE6: 94 | EF6: 116 | EG6: 66 | EH6: 66 | EI6: 33 | EJ6: 117 | EK6: 86 | EL6: 79 | EM6: 49 | EN6: 186 | EO6: 21 | EP6: 78 | EQ6: 44 | ER6: 108 | ES6: 42 | ET6: 73 | EU6: 14 | EV6: 98 | EW6: 66 | EX6: 31 | EY6: 135 | EZ6: 35 | FA6: 84 | FB6: 122 | FC6: 70 | FD6: 100 | FE6: 53 | FF6: 10 | FG6: 152 | FH6: 73 | FI6: 99 | FJ6: 80 | FK6: 53 | FL6: 11 | FM6: 20 | FN6: 80 | FO6: 88 | FP6: 57 | FQ6: 51 | FR6: 12 | FS6: 151 | FT6: 90 | FU6: 104 | FV6: 60 | FW6: 95 | FX6: 12 | FY6: 143 | FZ6: 44 | GA6: 160 | GB6: 50 | GC6: 51 | GD6: 16 | GE6: 74 | GF6: 119 | GG6: 74 | GH6: 57 | GI6: 63 | GJ6: 18 | GK6: 110 | GL6: 122 | GM6: 98 | GN6: 143 | GO6: 30 | GP6: 10 | GQ6: 89 | GR6: 118 | GS6: 31 | GT6: 63
B7: 11:00:00 | C7: 44 | D7: 169 | E7: 142 | F7: 141 | G7: 19 | H7: 79 | I7: 31 | J7: 236 | K7: 153 | L7: 243 | M7: 77 | N7: 123 | O7: 32 | P7: 145 | Q7: 127 | R7: 167 | S7: 54 | T7: 205 | U7: 58 | V7: 173 | W7: 157 | X7: 205 | Y7: 111 | Z7: 153 | AA7: 52 | AB7: 199 | AC7: 127 | AD7: 171 | AE7: 48 | AF7: 153 | AG7: 21 | AH7: 173 | AI7: 145 | AJ7: 208 | AK7: 52 | AL7: 85 | AM7: 150 | AN7: 194 | AO7: 201 | AP7: 181 | AQ7: 165 | AR7: 191 | AS7: 58 | AT7: 167 | AU7: 172 | AV7: 172 | AW7: 114 | AX7: 192 | AY7: 65 | AZ7: 193 | BA7: 148 | BB7: 172 | BC7: 45 | BD7: 169 | BE7: 41 | BF7: 178 | BG7: 233 | BH7: 197 | BI7: 103 | BJ7: 169 | BK7: 42 | BL7: 173 | BM7: 173 | BN7: 207 | BO7: 74 | BP7: 192 | BQ7: 75 | BR7: 207 | BS7: 207 | BT7: 244 | BU7: 1 | BV7: 142 | BW7: 60 | BX7: 199 | BY7: 145 | BZ7: 216 | CA7: 84 | CB7: 218 | CC7: 35 | CD7: 169 | CE7: 147 | CF7: 190 | CG7: 84 | CH7: 190 | CI7: 126 | CJ7: 98 | CK7: 108 | CL7: 153 | CM7: 78 | CN7: 109 | CO7: 130 | CP7: 126 | CQ7: 76 | CR7: 66 | CS7: 23 | CT7: 211 | CU7: 194 | CV7: 127 | CW7: 97 | CX7: 101 | CY7: 26 | CZ7: 127 | DA7: 54 | DB7: 157 | DC7: 85 | DD7: 150 | DE7: 43 | DF7: 120 | DG7: 45 | DH7: 100 | DI7: 96 | DJ7: 127 | DK7: 36 | DL7: 143 | DM7: 41 | DN7: 125 | DO7: 84 | DP7: 88 | DQ7: 41 | DR7: 33 | DS7: 14 | DT7: 86 | DU7: 123 | DV7: 114 | DW7: 33 | DX7: 153 | DY7: 7 | DZ7: 115 | EA7: 79 | EB7: 103 | EC7: 31 | ED7: 114 | EE7: 17 | EF7: 146 | EG7: 55 | EH7: 36 | EI7: 41 | EJ7: 94 | EK7: 43 | EL7: 43 | EM7: 71 | EN7: 57 | EO7: 28 | EP7: 215 | EQ7: 56 | ER7: 111 | ES7: 111 | ET7: 111 | EU7: 8 | EV7: 121 | EW7: 97 | EX7: 87 | EY7: 95 | EZ7: 43 | FA7: 242 | FB7: 48 | FC7: 148 | FD7: 59 | FE7: 52 | FF7: 13 | FG7: 96 | FH7: 34 | FI7: 94 | FJ7: 77 | FK7: 94 | FL7: 24 | FM7: 44 | FN7: 69 | FO7: 139 | FP7: 70 | FQ7: 66 | FR7: 19 | FS7: 145 | FT7: 32 | FU7: 145 | FV7: 93 | FW7: 84 | FX7: 22 | FY7: 132 | FZ7: 9 | GA7: 121 | GB7: 98 | GC7: 92 | GD7: 21 | GE7: 109 | GF7: 70 | GG7: 56 | GH7: 40 | GI7: 66 | GJ7: 25 | GK7: 85 | GL7: 23 | GM7: 130 | GN7: 74 | GO7: 109 | GP7: 65 | GQ7: 83 | GR7: 58 | GS7: 92 | GT7: 90
B8: 12:00:00 | C8: 144 | D8: 137 | E8: 122 | F8: 180 | G8: 52 | H8: 141 | I8: 164 | J8: 151 | K8: 156 | L8: 201 | M8: 59 | N8: 192 | O8: 185 | P8: 164 | Q8: 165 | R8: 161 | S8: 137 | T8: 256 | U8: 205 | V8: 106 | W8: 112 | X8: 159 | Y8: 136 | Z8: 248 | AA8: 147 | AB8: 135 | AC8: 185 | AD8: 155 | AE8: 105 | AF8: 193 | AG8: 133 | AH8: 120 | AI8: 138 | AJ8: 153 | AK8: 118 | AL8: 106 | AM8: 241 | AN8: 169 | AO8: 259 | AP8: 181 | AQ8: 97 | AR8: 158 | AS8: 169 | AT8: 167 | AU8: 143 | AV8: 190 | AW8: 163 | AX8: 229 | AY8: 170 | AZ8: 209 | BA8: 172 | BB8: 171 | BC8: 89 | BD8: 127 | BE8: 179 | BF8: 146 | BG8: 200 | BH8: 164 | BI8: 92 | BJ8: 203 | BK8: 139 | BL8: 180 | BM8: 147 | BN8: 294 | BO8: 119 | BP8: 222 | BQ8: 166 | BR8: 152 | BS8: 164 | BT8: 238 | BU8: 43 | BV8: 241 | BW8: 184 | BX8: 177 | BY8: 137 | BZ8: 181 | CA8: 96 | CB8: 176 | CC8: 154 | CD8: 187 | CE8: 148 | CF8: 148 | CG8: 87 | CH8: 180 | CI8: 130 | CJ8: 132 | CK8: 125 | CL8: 116 | CM8: 81 | CN8: 159 | CO8: 80 | CP8: 82 | CQ8: 81 | CR8: 48 | CS8: 11 | CT8: 121 | CU8: 143 | CV8: 138 | CW8: 106 | CX8: 107 | CY8: 53 | CZ8: 105 | DA8: 144 | DB8: 120 | DC8: 79 | DD8: 125 | DE8: 37 | DF8: 118 | DG8: 156 | DH8: 109 | DI8: 63 | DJ8: 74 | DK8: 65 | DL8: 99 | DM8: 145 | DN8: 185 | DO8: 67 | DP8: 161 | DQ8: 34 | DR8: 42 | DS8: 161 | DT8: 127 | DU8: 121 | DV8: 135 | DW8: 25 | DX8: 122 | DY8: 145 | DZ8: 133 | EA8: 68 | EB8: 100 | EC8: 23 | ED8: 71 | EE8: 97 | EF8: 78 | EG8: 76 | EH8: 67 | EI8: 57 | EJ8: 73 | EK8: 56 | EL8: 101 | EM8: 81 | EN8: 67 | EO8: 24 | EP8: 90 | EQ8: 124 | ER8: 96 | ES8: 70 | ET8: 97 | EU8: 37 | EV8: 152 | EW8: 103 | EX8: 124 | EY8: 112 | EZ8: 33 | FA8: 122 | FB8: 104 | FC8: 168 | FD8: 98 | FE8: 118 | FF8: 17 | FG8: 178 | FH8: 109 | FI8: 115 | FJ8: 108 | FK8: 151 | FL8: 30 | FM8: 30 | FN8: 179 | FO8: 119 | FP8: 130 | FQ8: 112 | FR8: 38 | FS8: 117 | FT8: 97 | FU8: 156 | FV8: 84 | FW8: 64 | FX8: 50 | FY8: 136 | FZ8: 102 | GA8: 102 | GB8: 91 | GC8: 96 | GD8: 34 | GE8: 108 | GF8: 100 | GG8: 105 | GH8: 73 | GI8: 72 | GJ8: 51 | GK8: 72 | GL8: 41 | GM8: 58 | GN8: 124 | GO8: 45 | GP8: 20 | GQ8: 91 | GR8: 62 | GS8: 94 | GT8: 103
B9: 13:00:00 | C9: 148 | D9: 126 | E9: 94 | F9: 212 | G9: 94 | H9: 67 | I9: 198 | J9: 143 | K9: 148 | L9: 184 | M9: 91 | N9: 118 | O9: 140 | P9: 133 | Q9: 153 | R9: 145 | S9: 87 | T9: 229 | U9: 203 | V9: 136 | W9: 153 | X9: 205 | Y9: 103 | Z9: 207 | AA9: 184 | AB9: 156 | AC9: 177 | AD9: 130 | AE9: 93 | AF9: 139 | AG9: 144 | AH9: 143 | AI9: 198 | AJ9: 159 | AK9: 115 | AL9: 101 | AM9: 213 | AN9: 164 | AO9: 162 | AP9: 261 | AQ9: 130 | AR9: 224 | AS9: 212 | AT9: 192 | AU9: 183 | AV9: 195 | AW9: 161 | AX9: 223 | AY9: 219 | AZ9: 167 | BA9: 229 | BB9: 259 | BC9: 121 | BD9: 280 | BE9: 219 | BF9: 130 | BG9: 152 | BH9: 185 | BI9: 151 | BJ9: 198 | BK9: 187 | BL9: 312 | BM9: 186 | BN9: 213 | BO9: 165 | BP9: 243 | BQ9: 271 | BR9: 233 | BS9: 166 | BT9: 214 | BU9: 90 | BV9: 222 | BW9: 220 | BX9: 181 | BY9: 206 | BZ9: 146 | CA9: 123 | CB9: 235 | CC9: 214 | CD9: 214 | CE9: 165 | CF9: 164 | CG9: 121 | CH9: 169 | CI9: 138 | CJ9: 122 | CK9: 84 | CL9: 156 | CM9: 70 | CN9: 159 | CO9: 142 | CP9: 130 | CQ9: 63 | CR9: 59 | CS9: 23 | CT9: 75 | CU9: 123 | CV9: 164 | CW9: 72 | CX9: 117 | CY9: 75 | CZ9: 166 | DA9: 128 | DB9: 145 | DC9: 87 | DD9: 148 | DE9: 38 | DF9: 128 | DG9: 122 | DH9: 135 | DI9: 99 | DJ9: 104 | DK9: 48 | DL9: 95 | DM9: 91 | DN9: 146 | DO9: 39 | DP9: 101 | DQ9: 34 | DR9: 69 | DS9: 136 | DT9: 146 | DU9: 121 | DV9: 101 | DW9: 59 | DX9: 107 | DY9: 132 | DZ9: 122 | EA9: 107 | EB9: 116 | EC9: 76 | ED9: 94 | EE9: 147 | EF9: 107 | EG9: 73 | EH9: 85 | EI9: 32 | EJ9: 89 | EK9: 82 | EL9: 87 | EM9: 46 | EN9: 78 | EO9: 23 | EP9: 118 | EQ9: 146 | ER9: 106 | ES9: 93 | ET9: 109 | EU9: 87 | EV9: 96 | EW9: 114 | EX9: 171 | EY9: 108 | EZ9: 40 | FA9: 92 | FB9: 119 | FC9: 166 | FD9: 94 | FE9: 93 | FF9: 25 | FG9: 106 | FH9: 86 | FI9: 120 | FJ9: 54 | FK9: 109 | FL9: 56 | FM9: 35 | FN9: 99 | FO9: 114 | FP9: 131 | FQ9: 99 | FR9: 46 | FS9: 161 | FT9: 88 | FU9: 81 | FV9: 123 | FW9: 179 | FX9: 36 | FY9: 59 | FZ9: 93 | GA9: 123 | GB9: 70 | GC9: 88 | GD9: 70 | GE9: 79 | GF9: 71 | GG9: 69 | GH9: 87 | GI9: 68 | GJ9: 26 | GK9: 82 | GL9: 49 | GM9: 58 | GN9: 59 | GO9: 88 | GP9: 41 | GQ9: 84 | GR9: 97 | GS9: 44 | GT9: 76
B10: 14:00:00 | C10: 153 | D10: 180 | E10: 209 | F10: 134 | G10: 62 | H10: 77 | I10: 187 | J10: 146 | K10: 185 | L10: 181 | M10: 99 | N10: 144 | O10: 160 | P10: 171 | Q10: 160 | R10: 199 | S10: 120 | T10: 194 | U10: 219 | V10: 123 | W10: 165 | X10: 159 | Y10: 134 | Z10: 186 | AA10: 122 | AB10: 161 | AC10: 234 | AD10: 163 | AE10: 138 | AF10: 154 | AG10: 104 | AH10: 219 | AI10: 224 | AJ10: 160 | AK10: 147 | AL10: 103 | AM10: 246 | AN10: 218 | AO10: 199 | AP10: 209 | AQ10: 162 | AR10: 191 | AS10: 208 | AT10: 219 | AU10: 241 | AV10: 284 | AW10: 79 | AX10: 165 | AY10: 201 | AZ10: 225 | BA10: 188 | BB10: 212 | BC10: 107 | BD10: 253 | BE10: 173 | BF10: 231 | BG10: 207 | BH10: 185 | BI10: 121 | BJ10: 205 | BK10: 234 | BL10: 197 | BM10: 203 | BN10: 312 | BO10: 183 | BP10: 239 | BQ10: 256 | BR10: 249 | BS10: 260 | BT10: 219 | BU10: 3 | BV10: 268 | BW10: 215 | BX10: 255 | BY10: 193 | BZ10: 196 | CA10: 126 | CB10: 193 | CC10: 241 | CD10: 205 | CE10: 165 | CF10: 163 | CG10: 222 | CH10: 147 | CI10: 120 | CJ10: 145 | CK10: 122 | CL10: 89 | CM10: 54 | CN10: 152 | CO10: 151 | CP10: 150 | CQ10: 135 | CR10: 82 | CS10: 46 | CT10: 91 | CU10: 120 | CV10: 124 | CW10: 89 | CX10: 138 | CY10: 68 | CZ10: 90 | DA10: 105 | DB10: 124 | DC10: 84 | DD10: 103 | DE10: 65 | DF10: 85 | DG10: 138 | DH10: 111 | DI10: 72 | DJ10: 107 | DK10: 55 | DL10: 91 | DM10: 106 | DN10: 152 | DO10: 128 | DP10: 125 | DQ10: 40 | DR10: 65 | DS10: 105 | DT10: 162 | DU10: 100 | DV10: 108 | DW10: 53 | DX10: 100 | DY10: 130 | DZ10: 102 | EA10: 100 | EB10: 134 | EC10: 47 | ED10: 90 | EE10: 106 | EF10: 91 | EG10: 110 | EH10: 88 | EI10: 62 | EJ10: 132 | EK10: 100 | EL10: 75 | EM10: 71 | EN10: 59 | EO10: 30 | EP10: 173 | EQ10: 96 | ER10: 83 | ES10: 110 | ET10: 51 | EU10: 44 | EV10: 104 | EW10: 94 | EX10: 87 | EY10: 84 | EZ10: 49 | FA10: 121 | FB10: 111 | FC10: 124 | FD10: 92 | FE10: 81 | FF10: 59 | FG10: 85 | FH10: 109 | FI10: 66 | FJ10: 105 | FK10: 118 | FL10: 57 | FM10: 65 | FN10: 103 | FO10: 95 | FP10: 96 | FQ10: 82 | FR10: 26 | FS10: 88 | FT10: 67 | FU10: 78 | FV10: 108 | FW10: 98 | FX10: 63 | FY10: 98 | FZ10: 150 | GA10: 77 | GB10: 60 | GC10: 56 | GD10: 61 | GE10: 82 | GF10: 74 | GG10: 62 | GH10: 50 | GI10: 71 | GJ10: 42 | GK10: 37 | GL10: 52 | GM10: 31 | GN10: 58 | GO10: 52 | GP10: 47 | GQ10: 56 | GR10: 52 | GS10: 67 | GT10: 91
B11: 15:00:00 | C11: 163 | D11: 167 | E11: 169 | F11: 239 | G11: 124 | H11: 49 | I11: 216 | J11: 142 | K11: 187 | L11: 132 | M11: 162 | N11: 214 | O11: 181 | P11: 131 | Q11: 198 | R11: 134 | S11: 98 | T11: 203 | U11: 142 | V11: 191 | W11: 234 | X11: 135 | Y11: 197 | Z11: 247 | AA11: 195 | AB11: 202 | AC11: 167 | AD11: 217 | AE11: 157 | AF11: 180 | AG11: 183 | AH11: 193 | AI11: 210 | AJ11: 155 | AK11: 86 | AL11: 101 | AM11: 192 | AN11: 290 | AO11: 287 | AP11: 199 | AQ11: 179 | AR11: 282 | AS11: 188 | AT11: 285 | AU11: 189 | AV11: 233 | AW11: 156 | AX11: 265 | AY11: 217 | AZ11: 177 | BA11: 211 | BB11: 192 | BC11: 198 | BD11: 240 | BE11: 241 | BF11: 241 | BG11: 223 | BH11: 221 | BI11: 174 | BJ11: 209 | BK11: 242 | BL11: 260 | BM11: 195 | BN11: 208 | BO11: 149 | BP11: 310 | BQ11: 215 | BR11: 271 | BS11: 219 | BT11: 265 | BU11: 8 | BV11: 285 | BW11: 286 | BX11: 284 | BY11: 211 | BZ11: 200 | CA11: 177 | CB11: 240 | CC11: 213 | CD11: 221 | CE11: 120 | CF11: 215 | CG11: 108 | CH11: 166 | CI11: 195 | CJ11: 181 | CK11: 115 | CL11: 98 | CM11: 88 | CN11: 151 | CO11: 93 | CP11: 129 | CQ11: 94 | CR11: 84 | CS11: 48 | CT11: 108 | CU11: 120 | CV11: 135 | CW11: 92 | CX11: 91 | CY11: 76 | CZ11: 158 | DA11: 116 | DB11: 141 | DC11: 119 | DD11: 49 | DE11: 77 | DF11: 171 | DG11: 104 | DH11: 109 | DI11: 129 | DJ11: 80 | DK11: 67 | DL11: 127 | DM11: 142 | DN11: 136 | DO11: 116 | DP11: 93 | DQ11: 57 | DR11: 71 | DS11: 92 | DT11: 164 | DU11: 150 | DV11: 53 | DW11: 73 | DX11: 93 | DY11: 108 | DZ11: 138 | EA11: 147 | EB11: 112 | EC11: 50 | ED11: 139 | EE11: 110 | EF11: 110 | EG11: 109 | EH11: 95 | EI11: 28 | EJ11: 103 | EK11: 106 | EL11: 106 | EM11: 92 | EN11: 54 | EO11: 35 | EP11: 71 | EQ11: 91 | ER11: 69 | ES11: 100 | ET11: 54 | EU11: 47 | EV11: 98 | EW11: 101 | EX11: 87 | EY11: 110 | EZ11: 30 | FA11: 139 | FB11: 146 | FC11: 98 | FD11: 95 | FE11: 59 | FF11: 54 | FG11: 109 | FH11: 94 | FI11: 88 | FJ11: 101 | FK11: 89 | FL11: 35 | FM11: 41 | FN11: 130 | FO11: 94 | FP11: 86 | FQ11: 120 | FR11: 99 | FS11: 120 | FT11: 117 | FU11: 103 | FV11: 87 | FW11: 100 | FX11: 61 | FY11: 129 | FZ11: 107 | GA11: 84 | GB11: 62 | GC11: 107 | GD11: 33 | GE11: 117 | GF11: 69 | GG11: 63 | GH11: 86 | GI11: 49 | GJ11: 10 | GK11: 39 | GL11: 71 | GM11: 52 | GN11: 83 | GO11: 36 | GP11: 28 | GQ11: 135 | GR11: 74 | GS11: 51 | GT11: 58
B12: 16:00:00 | C12: 200 | D12: 133 | E12: 187 | F12: 147 | G12: 93 | H12: 110 | I12: 188 | J12: 134 | K12: 185 | L12: 111 | M12: 148 | N12: 188 | O12: 200 | P12: 113 | Q12: 149 | R12: 169 | S12: 145 | T12: 188 | U12: 158 | V12: 183 | W12: 184 | X12: 142 | Y12: 111 | Z12: 201 | AA12: 213 | AB12: 157 | AC12: 144 | AD12: 83 | AE12: 95 | AF12: 158 | AG12: 153 | AH12: 190 | AI12: 159 | AJ12: 185 | AK12: 120 | AL12: 132 | AM12: 276 | AN12: 214 | AO12: 236 | AP12: 186 | AQ12: 132 | AR12: 180 | AS12: 231 | AT12: 229 | AU12: 173 | AV12: 182 | AW12: 160 | AX12: 232 | AY12: 249 | AZ12: 239 | BA12: 226 | BB12: 202 | BC12: 130 | BD12: 217 | BE12: 202 | BF12: 194 | BG12: 229 | BH12: 183 | BI12: 128 | BJ12: 187 | BK12: 233 | BL12: 251 | BM12: 162 | BN12: 172 | BO12: 182 | BP12: 246 | BQ12: 288 | BR12: 193 | BS12: 204 | BT12: 243 | BU12: 139 | BV12: 255 | BW12: 232 | BX12: 217 | BY12: 216 | BZ12: 183 | CA12: 237 | CB12: 201 | CC12: 264 | CD12: 151 | CE12: 137 | CF12: 193 | CG12: 187 | CH12: 172 | CI12: 210 | CJ12: 126 | CK12: 179 | CL12: 161 | CM12: 103 | CN12: 187 | CO12: 132 | CP12: 101 | CQ12: 98 | CR12: 83 | CS12: 44 | CT12: 101 | CU12: 97 | CV12: 156 | CW12: 117 | CX12: 91 | CY12: 75 | CZ12: 202 | DA12: 138 | DB12: 148 | DC12: 79 | DD12: 151 | DE12: 45 | DF12: 153 | DG12: 67 | DH12: 123 | DI12: 115 | DJ12: 146 | DK12: 96 | DL12: 98 | DM12: 83 | DN12: 87 | DO12: 129 | DP12: 65 | DQ12: 69 | DR12: 70 | DS12: 136 | DT12: 122 | DU12: 113 | DV12: 66 | DW12: 65 | DX12: 96 | DY12: 136 | DZ12: 132 | EA12: 72 | EB12: 72 | EC12: 68 | ED12: 79 | EE12: 92 | EF12: 89 | EG12: 107 | EH12: 147 | EI12: 63 | EJ12: 67 | EK12: 85 | EL12: 49 | EM12: 112 | EN12: 82 | EO12: 33 | EP12: 86 | EQ12: 62 | ER12: 103 | ES12: 76 | ET12: 109 | EU12: 26 | EV12: 144 | EW12: 113 | EX12: 136 | EY12: 123 | EZ12: 48 | FA12: 105 | FB12: 187 | FC12: 128 | FD12: 94 | FE12: 79 | FF12: 44 | FG12: 155 | FH12: 105 | FI12: 78 | FJ12: 74 | FK12: 108 | FL12: 39 | FM12: 56 | FN12: 94 | FO12: 116 | FP12: 53 | FQ12: 84 | FR12: 55 | FS12: 152 | FT12: 119 | FU12: 104 | FV12: 93 | FW12: 120 | FX12: 57 | FY12: 135 | FZ12: 112 | GA12: 101 | GB12: 65 | GC12: 82 | GD12: 70 | GE12: 81 | GF12: 64 | GG12: 60 | GH12: 48 | GI12: 60 | GJ12: 9 | GK12: 71 | GL12: 65 | GM12: 80 | GN12: 73 | GO12: 51 | GP12: 43 | GQ12: 105 | GR12: 104 | GS12: 74 | GT12: 132
B13: 17:00:00 | C13: 133 | D13: 128 | E13: 98 | F13: 131 | G13: 95 | H13: 90 | I13: 124 | J13: 133 | K13: 150 | L13: 168 | M13: 96 | N13: 178 | O13: 246 | P13: 125 | Q13: 124 | R13: 124 | S13: 149 | T13: 184 | U13: 135 | V13: 120 | W13: 174 | X13: 116 | Y13: 193 | Z13: 163 | AA13: 155 | AB13: 150 | AC13: 139 | AD13: 118 | AE13: 107 | AF13: 137 | AG13: 142 | AH13: 149 | AI13: 156 | AJ13: 95 | AK13: 127 | AL13: 112 | AM13: 160 | AN13: 280 | AO13: 154 | AP13: 140 | AQ13: 112 | AR13: 164 | AS13: 158 | AT13: 167 | AU13: 148 | AV13: 126 | AW13: 150 | AX13: 148 | AY13: 234 | AZ13: 215 | BA13: 196 | BB13: 161 | BC13: 199 | BD13: 164 | BE13: 210 | BF13: 159 | BG13: 163 | BH13: 193 | BI13: 219 | BJ13: 177 | BK13: 232 | BL13: 201 | BM13: 135 | BN13: 161 | BO13: 189 | BP13: 223 | BQ13: 214 | BR13: 194 | BS13: 170 | BT13: 159 | BU13: 87 | BV13: 225 | BW13: 185 | BX13: 179 | BY13: 93 | BZ13: 131 | CA13: 191 | CB13: 200 | CC13: 215 | CD13: 168 | CE13: 145 | CF13: 189 | CG13: 143 | CH13: 154 | CI13: 107 | CJ13: 99 | CK13: 100 | CL13: 75 | CM13: 82 | CN13: 126 | CO13: 83 | CP13: 152 | CQ13: 35 | CR13: 43 | CS13: 62 | CT13: 103 | CU13: 102 | CV13: 129 | CW13: 79 | CX13: 68 | CY13: 73 | CZ13: 152 | DA13: 139 | DB13: 114 | DC13: 98 | DD13: 131 | DE13: 50 | DF13: 122 | DG13: 117 | DH13: 111 | DI13: 173 | DJ13: 111 | DK13: 66 | DL13: 175 | DM13: 111 | DN13: 107 | DO13: 55 | DP13: 99 | DQ13: 63 | DR13: 43 | DS13: 110 | DT13: 110 | DU13: 87 | DV13: 57 | DW13: 90 | DX13: 97 | DY13: 75 | DZ13: 85 | EA13: 121 | EB13: 105 | EC13: 84 | ED13: 154 | EE13: 114 | EF13: 125 | EG13: 84 | EH13: 105 | EI13: 46 | EJ13: 91 | EK13: 105 | EL13: 101 | EM13: 48 | EN13: 62 | EO13: 50 | EP13: 138 | EQ13: 131 | ER13: 151 | ES13: 124 | ET13: 87 | EU13: 68 | EV13: 190 | EW13: 94 | EX13: 130 | EY13: 69 | EZ13: 50 | FA13: 117 | FB13: 141 | FC13: 151 | FD13: 71 | FE13: 131 | FF13: 61 | FG13: 128 | FH13: 132 | FI13: 88 | FJ13: 67 | FK13: 86 | FL13: 35 | FM13: 77 | FN13: 169 | FO13: 93 | FP13: 89 | FQ13: 65 | FR13: 87 | FS13: 161 | FT13: 153 | FU13: 105 | FV13: 80 | FW13: 94 | FX13: 72 | FY13: 123 | FZ13: 83 | GA13: 81 | GB13: 120 | GC13: 49 | GD13: 48 | GE13: 53 | GF13: 44 | GG13: 85 | GH13: 60 | GI13: 93 | GJ13: 45 | GK13: 70 | GL13: 62 | GM13: 50 | GN13: 76 | GO13: 46 | GP13: 63 | GQ13: 93 | GR13: 95 | GS13: 78 | GT13: 109
B14: 18:00:00 | C14: 125 | D14: 115 | E14: 97 | F14: 56 | G14: 72 | H14: 48 | I14: 111 | J14: 123 | K14: 113 | L14: 54 | M14: 120 | N14: 132 | O14: 65 | P14: 156 | Q14: 78 | R14: 48 | S14: 78 | T14: 130 | U14: 183 | V14: 151 | W14: 139 | X14: 64 | Y14: 80 | Z14: 185 | AA14: 157 | AB14: 107 | AC14: 107 | AD14: 62 | AE14: 105 | AF14: 98 | AG14: 132 | AH14: 100 | AI14: 75 | AJ14: 60 | AK14: 75 | AL14: 97 | AM14: 160 | AN14: 124 | AO14: 114 | AP14: 70 | AQ14: 90 | AR14: 121 | AS14: 149 | AT14: 162 | AU14: 105 | AV14: 123 | AW14: 150 | AX14: 136 | AY14: 198 | AZ14: 120 | BA14: 180 | BB14: 96 | BC14: 89 | BD14: 228 | BE14: 152 | BF14: 151 | BG14: 92 | BH14: 79 | BI14: 82 | BJ14: 165 | BK14: 177 | BL14: 234 | BM14: 111 | BN14: 111 | BO14: 77 | BP14: 210 | BQ14: 159 | BR14: 169 | BS14: 196 | BT14: 85 | BU14: 99 | BV14: 188 | BW14: 203 | BX14: 168 | BY14: 186 | BZ14: 132 | CA14: 106 | CB14: 143 | CC14: 143 | CD14: 124 | CE14: 120 | CF14: 83 | CG14: 157 | CH14: 119 | CI14: 100 | CJ14: 93 | CK14: 63 | CL14: 50 | CM14: 63 | CN14: 128 | CO14: 77 | CP14: 68 | CQ14: 25 | CU14: 70 | CV14: 82 | CW14: 65 | CX14: 39 | CY14: 47 | CZ14: 106 | DA14: 72 | DB14: 88 | DC14: 60 | DD14: 92 | DE14: 39 | DF14: 66 | DG14: 90 | DH14: 38 | DI14: 58 | DJ14: 42 | DK14: 45 | DL14: 96 | DM14: 42 | DN14: 90 | DO14: 67 | DP14: 73 | DQ14: 41 | DR14: 44 | DS14: 79 | DT14: 64 | DU14: 69 | DW14: 65 | DX14: 112 | DY14: 61 | DZ14: 114 | EA14: 85 | EB14: 46 | EC14: 44 | ED14: 84 | EE14: 63 | EF14: 64 | EG14: 66 | EH14: 30 | EI14: 33 | EJ14: 55 | EK14: 57 | EL14: 48 | EM14: 38 | EP14: 82 | EQ14: 29 | ER14: 68 | ES14: 51 | ET14: 34 | EU14: 42 | EV14: 94 | EW14: 63 | EX14: 61 | EY14: 44 | EZ14: 97 | FA14: 88 | FB14: 85 | FC14: 74 | FD14: 59 | FE14: 45 | FF14: 37 | FG14: 69 | FH14: 77 | FI14: 79 | FJ14: 56 | FK14: 77 | FL14: 34 | FM14: 33 | FN14: 75 | FO14: 91 | FP14: 37 | FQ14: 43 | FR14: 42 | FS14: 72 | FT14: 57 | FU14: 112 | FV14: 58 | FW14: 55 | FX14: 27 | FY14: 54 | FZ14: 76 | GA14: 56 | GB14: 40 | GC14: 31 | GD14: 46 | GE14: 68 | GF14: 48 | GG14: 58 | GH14: 13 | GL14: 16 | GM14: 18 | GN14: 38 | GP14: 4
B15: 19:00:00 | C15: 64 | D15: 67 | E15: 75 | F15: 45 | G15: 24 | H15: 21 | I15: 90 | J15: 60 | K15: 64 | L15: 34 | M15: 71 | N15: 58 | O15: 81 | P15: 99 | Q15: 66 | R15: 25 | S15: 73 | T15: 106 | U15: 100 | V15: 81 | W15: 97 | X15: 27 | Y15: 51 | Z15: 182 | AA15: 129 | AB15: 78 | AC15: 91 | AD15: 54 | AE15: 75 | AF15: 73 | AG15: 65 | AH15: 75 | AI15: 101 | AJ15: 24 | AK15: 37 | AL15: 53 | AM15: 109 | AN15: 78 | AO15: 95 | AP15: 60 | AQ15: 51 | AR15: 106 | AS15: 92 | AT15: 84 | AU15: 113 | AV15: 50 | AW15: 79 | AX15: 174 | AY15: 159 | AZ15: 104 | BA15: 114 | BB15: 40 | BC15: 86 | BD15: 102 | BE15: 136 | BF15: 120 | BG15: 82 | BH15: 48 | BI15: 80 | BJ15: 146 | BK15: 132 | BL15: 134 | BM15: 99 | BN15: 55 | BO15: 121 | BP15: 166 | BQ15: 155 | BR15: 121 | BS15: 109 | BT15: 45 | BU15: 59 | BV15: 157 | BW15: 157 | BX15: 171 | BY15: 93 | BZ15: 47 | CA15: 173 | CB15: 137 | CC15: 116 | CD15: 145 | CE15: 114 | CF15: 44 | CG15: 146 | CH15: 72 | CI15: 81 | CJ15: 115 | CK15: 98 | CL15: 43 | CM15: 46 | CN15: 96 | CO15: 40 | CP15: 55 | CQ15: 19 | CU15: 29 | CV15: 82 | CW15: 73 | CX15: 38 | CY15: 62 | CZ15: 43 | DA15: 61 | DB15: 52 | DC15: 51 | DD15: 19 | DE15: 43 | DF15: 44 | DG15: 64 | DH15: 32 | DI15: 41 | DJ15: 6 | DK15: 33 | DL15: 74 | DM15: 78 | DN15: 34 | DO15: 91 | DP15: 11 | DQ15: 51 | DR15: 28 | DS15: 82 | DT15: 83 | DU15: 21 | DW15: 31 | DX15: 40 | DY15: 30 | DZ15: 73 | EA15: 56 | EB15: 44 | EC15: 77 | ED15: 35 | EE15: 80 | EF15: 31 | EG15: 44 | EH15: 19 | EI15: 37 | EJ15: 64 | EK15: 29 | EL15: 57 | EM15: 19 | EP15: 86 | EQ15: 33 | ER15: 54 | ES15: 32 | ET15: 24 | EU15: 14 | EV15: 32 | EW15: 86 | EX15: 47 | EY15: 37 | EZ15: 53 | FA15: 72 | FB15: 45 | FC15: 74 | FD15: 56 | FE15: 21 | FF15: 21 | FG15: 59 | FH15: 87 | FI15: 46 | FJ15: 77 | FK15: 69 | FL15: 40 | FM15: 7 | FN15: 58 | FO15: 31 | FP15: 46 | FQ15: 15 | FR15: 42 | FS15: 80 | FT15: 28 | FU15: 54 | FV15: 43 | FW15: 28 | FX15: 55 | FY15: 51 | FZ15: 23 | GA15: 51 | GB15: 54 | GC15: 18 | GD15: 30 | GE15: 31 | GF15: 20 | GG15: 16 | GH15: 8 | GL15: 43 | GM15: 32 | GN15: 36
B16: 20:00:00 | C16: 69 | D16: 36 | E16: 46 | F16: 20 | G16: 17 | H16: 22 | I16: 65 | J16: 60 | K16: 93 | L16: 42 | M16: 24 | N16: 79 | O16: 77 | P16: 61 | Q16: 71 | R16: 63 | S16: 27 | T16: 68 | U16: 130 | V16: 73 | W16: 97 | X16: 49 | Y16: 21 | Z16: 88 | AA16: 128 | AB16: 53 | AC16: 82 | AD16: 42 | AE16: 65 | AF16: 136 | AG16: 58 | AH16: 67 | AI16: 77 | AJ16: 32 | AK16: 41 | AL16: 27 | AM16: 107 | AN16: 60 | AO16: 91 | AP16: 34 | AQ16: 96 | AR16: 112 | AS16: 88 | AT16: 117 | AU16: 82 | AV16: 28 | AW16: 70 | AX16: 102 | AY16: 112 | AZ16: 126 | BA16: 73 | BB16: 50 | BC16: 61 | BD16: 103 | BE16: 141 | BF16: 78 | BG16: 80 | BH16: 29 | BI16: 99 | BJ16: 77 | BK16: 114 | BL16: 108 | BM16: 127 | BN16: 71 | BO16: 54 | BP16: 162 | BQ16: 167 | BR16: 98 | BS16: 142 | BT16: 76 | BU16: 95 | BV16: 172 | BW16: 151 | BX16: 114 | BY16: 122 | BZ16: 42 | CA16: 92 | CB16: 133 | CC16: 130 | CD16: 103 | CE16: 68 | CF16: 70 | CG16: 105 | CH16: 102 | CI16: 82 | CJ16: 52 | CK16: 68 | CL16: 62 | CM16: 73 | CN16: 71 | CO16: 46 | CP16: 44 | CQ16: 23 | CU16: 52 | CV16: 36 | CW16: 16 | CX16: 33 | CY16: 20 | CZ16: 36 | DA16: 39 | DB16: 42 | DC16: 53 | DD16: 17 | DE16: 40 | DF16: 48 | DG16: 32 | DH16: 73 | DI16: 45 | DJ16: 29 | DK16: 65 | DL16: 38 | DM16: 62 | DN16: 24 | DO16: 47 | DP16: 32 | DQ16: 20 | DR16: 26 | DS16: 91 | DT16: 43 | DU16: 39 | DW16: 44 | DX16: 79 | DY16: 71 | DZ16: 67 | EA16: 32 | EB16: 28 | EC16: 44 | ED16: 52 | EE16: 31 | EF16: 52 | EG16: 36 | EH16: 23 | EI16: 36 | EJ16: 36 | EK16: 41 | EL16: 28 | EM16: 21 | EP16: 25 | EQ16: 25 | ER16: 38 | ES16: 9 | ET16: 27 | EU16: 24 | EV16: 50 | EW16: 59 | EX16: 33 | EY16: 21 | EZ16: 49 | FA16: 31 | FB16: 32 | FC16: 59 | FD16: 35 | FE16: 11 | FF16: 43 | FG16: 40 | FH16: 78 | FI16: 28 | FJ16: 33 | FK16: 16 | FL16: 12 | FM16: 44 | FN16: 83 | FO16: 37 | FP16: 39 | FQ16: 39 | FR16: 44 | FS16: 17 | FT16: 49 | FU16: 41 | FV16: 62 | FW16: 47 | FX16: 31 | FY16: 51 | FZ16: 68 | GA16: 51 | GB16: 37 | GC16: 22 | GD16: 26 | GE16: 19 | GF16: 36 | GG16: 11 | GL16: 67 | GM16: 12 | GN16: 27
B17: 21:00:00 | C17: 46 | D17: 28 | E17: 68 | F17: 36 | G17: 48 | H17: 24 | I17: 92 | J17: 51 | K17: 37 | L17: 12 | M17: 89 | N17: 71 | O17: 86 | P17: 101 | Q17: 79 | R17: 19 | S17: 62 | T17: 86 | U17: 126 | V17: 105 | W17: 92 | X17: 27 | Y17: 46 | Z17: 99 | AA17: 134 | AB17: 71 | AC17: 48 | AD17: 40 | AE17: 51 | AF17: 78 | AG17: 70 | AH17: 45 | AI17: 55 | AJ17: 33 | AK17: 77 | AL17: 49 | AM17: 106 | AN17: 120 | AO17: 50 | AP17: 23 | AQ17: 62 | AR17: 72 | AS17: 80 | AT17: 76 | AU17: 65 | AV17: 35 | AW17: 106 | AX17: 128 | AY17: 176 | AZ17: 99 | BA17: 58 | BB17: 42 | BC17: 74 | BD17: 146 | BE17: 136 | BF17: 110 | BG17: 92 | BH17: 51 | BI17: 81 | BJ17: 139 | BK17: 116 | BL17: 122 | BM17: 121 | BN17: 55 | BO17: 126 | BP17: 95 | BQ17: 145 | BR17: 118 | BS17: 127 | BT17: 54 | BU17: 117 | BV17: 155 | BW17: 168 | BX17: 177 | BY17: 136 | BZ17: 66 | CA17: 125 | CB17: 119 | CC17: 157 | CD17: 161 | CE17: 86 | CF17: 68 | CG17: 116 | CH17: 125 | CI17: 101 | CJ17: 89 | CK17: 52 | CL17: 25 | CM17: 48 | CN17: 51 | CO17: 53 | CP17: 83 | CQ17: 34 | CU17: 88 | CV17: 59 | CW17: 28 | CX17: 16 | CY17: 57 | CZ17: 135 | DA17: 69 | DB17: 52 | DC17: 41 | DD17: 22 | DE17: 49 | DF17: 68 | DG17: 86 | DH17: 40 | DI17: 48 | DJ17: 10 | DK17: 55 | DL17: 75 | DM17: 61 | DN17: 71 | DO17: 65 | DP17: 67 | DQ17: 41 | DR17: 26 | DS17: 84 | DT17: 32 | DU17: 57 | DW17: 69 | DX17: 58 | DY17: 118 | DZ17: 75 | EA17: 58 | EB17: 35 | EC17: 64 | ED17: 80 | EE17: 41 | EF17: 25 | EG17: 48 | EH17: 69 | EI17: 10 | EJ17: 35 | EK17: 30 | EL17: 34 | EM17: 25 | EP17: 69 | EQ17: 68 | ER17: 41 | ES17: 28 | ET17: 54 | EU17: 5 | EV17: 38 | EW17: 48 | EX17: 55 | EY17: 42 | EZ17: 38 | FA17: 39 | FB17: 85 | FC17: 51 | FD17: 86 | FE17: 27 | FF17: 37 | FG17: 58 | FH17: 29 | FI17: 38 | FJ17: 56 | FK17: 30 | FL17: 26 | FM17: 24 | FN17: 115 | FO17: 41 | FP17: 38 | FQ17: 33 | FR17: 52 | FS17: 41 | FT17: 84 | FU17: 64 | FV17: 70 | FW17: 44 | FX17: 69 | FY17: 43 | FZ17: 50 | GA17: 35 | GB17: 25 | GC17: 15 | GD17: 65 | GE17: 23 | GF17: 41 | GG17: 13 | GL17: 20 | GM17: 11 | GN17: 37
B18: 22:00:00 | C18: 20 | D18: 15 | E18: 31 | F18: 1 | G18: 22 | I18: 35 | J18: 23 | K18: 36 | L18: 45 | M18: 57 | N18: 70 | O18: 66 | P18: 64 | Q18: 51 | R18: 22 | S18: 68 | T18: 55 | U18: 88 | V18: 29 | W18: 41 | X18: 12 | Y18: 51 | Z18: 117 | AA18: 34 | AB18: 61 | AC18: 54 | AD18: 36 | AE18: 49 | AF18: 54 | AG18: 46 | AH18: 47 | AI18: 32 | AJ18: 38 | AK18: 34 | AM18: 83 | AN18: 97 | AO18: 92 | AP18: 43 | AQ18: 51 | AR18: 56 | AS18: 82 | AT18: 66 | AU18: 47 | AV18: 51 | AW18: 45 | AX18: 102 | AY18: 85 | AZ18: 95 | BA18: 89 | BB18: 9 | BC18: 60 | BD18: 93 | BE18: 103 | BF18: 52 | BG18: 93 | BH18: 63 | BI18: 45 | BJ18: 165 | BK18: 118 | BL18: 74 | BM18: 63 | BN18: 57 | BO18: 92 | BP18: 112 | BQ18: 116 | BR18: 100 | BS18: 110 | BT18: 72 | BU18: 57 | BV18: 158 | BW18: 185 | BX18: 165 | BY18: 79 | BZ18: 51 | CA18: 80 | CB18: 104 | CC18: 122 | CD18: 88 | CE18: 61 | CF18: 50 | CG18: 121 | CH18: 100 | CI18: 54 | CJ18: 85 | CK18: 68 | CL18: 55 | CM18: 43 | CN18: 69 | CO18: 65 | ED18: 26 | EE18: 39 | EF18: 16 | EG18: 42 | EH18: 8 | EI18: 17 | EJ18: 34 | EK18: 17 | EL18: 5 | FY18: 10 | FZ18: 34 | GA18: 12 | GB18: 16 | GC18: 11 | GD18: 14 | GE18: 8 | GF18: 5 | GG18: 24
B19: 23:00:00 | C19: 7 | D19: 7 | E19: 19 | F19: 19 | G19: 27 | I19: 38 | J19: 18 | K19: 35 | L19: 16 | M19: 44 | N19: 41 | O19: 40 | P19: 39 | Q19: 31 | R19: 18 | S19: 23 | T19: 70 | U19: 21 | V19: 36 | W19: 66 | X19: 55 | Y19: 45 | Z19: 51 | AA19: 95 | AB19: 43 | AC19: 64 | AD19: 31 | AE19: 43 | AF19: 26 | AG19: 37 | AH19: 61 | AI19: 28 | AJ19: 9 | AK19: 32 | AM19: 69 | AN19: 55 | AO19: 54 | AP19: 37 | AQ19: 112 | AR19: 87 | AS19: 62 | AT19: 57 | AU19: 66 | AV19: 21 | AW19: 52 | AX19: 82 | AY19: 77 | AZ19: 109 | BA19: 55 | BB19: 40 | BC19: 47 | BD19: 102 | BE19: 89 | BF19: 45 | BG19: 68 | BH19: 33 | BI19: 58 | BJ19: 71 | BK19: 91 | BL19: 84 | BM19: 83 | BN19: 32 | BO19: 64 | BP19: 119 | BQ19: 126 | BR19: 88 | BS19: 138 | BT19: 84 | BU19: 39 | BV19: 190 | BW19: 143 | BX19: 118 | BY19: 67 | BZ19: 27 | CA19: 96 | CB19: 141 | CC19: 90 | CD19: 82 | CE19: 92 | CF19: 68 | CG19: 194 | CH19: 64 | CI19: 51 | CJ19: 49 | CK19: 35 | CL19: 21 | CM19: 75 | CN19: 24 | CO19: 36 | ED19: 15 | EE19: 8 | EF19: 13 | EG19: 17 | EH19: 25 | EI19: 18 | EJ19: 25 | EK19: 15 | EL19: 6 | FY19: 8 | FZ19: 26 | GA19: 21 | GB19: 9 | GC19: 8 | GD19: 30 | GE19: 7 | GF19: 8 | GG19: 4
B20: 1 | CB20: 5 | CC20: 30 | CD20: 24 | CE20: 20 | CF20: 38 | CH20: 51 | CI20: 13 | CJ20: 16 | CK20: 24 | CL20: 30 | CN20: 18 | CO20: 40
B21: 1.041666667 | CC21: 13 | CD21: 29 | CE21: 29 | CF21: 10 | CH21: 36 | CI21: 18 | CJ21: 26 | CK21: 17 | CL21: 32 | CN21: 22 | CO21: 14
B22: Total | C22: =SUM(C3:C21) -> 1786 | D22: 1573 | E22: 1731 | F22: 1642 | G22: 792 | H22: 774 | I22: 1855 | J22: 1721 | K22: 1907 | L22: 1851 | M22: 1241 | N22: 2091 | O22: 1898 | P22: 1811 | Q22: 1879 | R22: 1646 | S22: 1206 | T22: 2322 | U22: 2203 | V22: 1834 | W22: 2129 | X22: 1701 | Y22: 1347 | Z22: 2487 | AA22: 2155 | AB22: 1854 | AC22: 2095 | AD22: 1616 | AE22: 1169 | AF22: 1926 | AG22: 1620 | AH22: 1886 | AI22: =SUM(AI3:AI21) -> 1965 | AJ22: 1643 | AK22: 1129 | AL22: 1030 | AM22: 2514 | AN22: 2567 | AO22: 2376 | AP22: 1960 | AQ22: 1497 | AR22: 2262 | AS22: 2238 | AT22: 2324 | AU22: 2111 | AV22: 2097 | AW22: 1545 | AX22: 2553 | AY22: 2570 | AZ22: 2419 | BA22: 2313 | BB22: 1960 | BC22: 1388 | BD22: 2626 | BE22: 2457 | BF22: 2236 | BG22: 2289 | BH22: 1992 | BI22: 1520 | BJ22: 2436 | BK22: 2519 | BL22: 2755 | BM22: 2176 | BN22: 2474 | BO22: =SUM(BO3:BO21) -> 1655 | BP22: 3022 | BQ22: 2706 | BR22: 2568 | BS22: 2624 | BT22: 2410 | BU22: 908 | BV22: 3027 | BW22: 2746 | BX22: 2756 | BY22: 2216 | BZ22: 1956 | CA22: 1770 | CB22: 3056 | CC22: 2558 | CD22: 2451 | CE22: 1909 | CF22: 1953 | CG22: 1892 | CH22: 2161 | CI22: 1850 | CJ22: 1647 | CK22: 1477 | CL22: 1399 | CM22: 1015 | CN22: 1806 | CO22: 1508 | CP22: 1335 | CQ22: 847 | CR22: 595 | CS22: 295 | CT22: 931 | CU22: 1333 | CV22: 1472 | CW22: 1026 | CX22: 1026 | CY22: 700 | CZ22: 1548 | DA22: 1277 | DB22: 1398 | DC22: 1034 | DD22: 1239 | DE22: 548 | DF22: 1350 | DG22: 1236 | DH22: 1158 | DI22: 1148 | DJ22: 1044 | DK22: 661 | DL22: 1321 | DM22: 1156 | DN22: 1317 | DO22: 1064 | DP22: 1050 | DQ22: 557 | DR22: 520 | DS22: 1281 | DT22: 1369 | DU22: 1195 | DV22: 921 | DW22: 640 | DX22: 1318 | DY22: 1284 | DZ22: 1332 | EA22: 1150 | EB22: 1077 | EC22: 631 | ED22: 1181 | EE22: 1228 | EF22: 1203 | EG22: 1056 | EH22: 967 | EI22: =SUM(EI3:EI21) -> 535 | EJ22: =SUM(EJ3:EJ21) -> 1114 | EK22: 948 | EL22: 933 | EM22: 767 | EN22: 728 | EO22: 251 | EP22: 1298 | EQ22: 998 | ER22: 1101 | ES22: 931 | ET22: 908 | EU22: 427 | EV22: 1324 | EW22: 1147 | EX22: 1154 | EY22: 1056 | EZ22: 579 | FA22: 1337 | FB22: 1332 | FC22: 1545 | FD22: 1081 | FE22: 909 | FF22: 450 | FG22: 1312 | FH22: 1155 | FI22: =SUM(FI3:FI21) -> 1028 | FJ22: =SUM(FJ3:FJ21) -> 993 | FK22: 1145 | FL22: 420 | FM22: 476 | FN22: 1344 | FO22: 1120 | FP22: 970 | FQ22: 935 | FR22: 573 | FS22: 1429 | FT22: =SUM(FT3:FT21) -> 1164 | FU22: =SUM(FU3:FU21) -> 1251 | FV22: 1112 | FW22: 1162 | FX22: 569 | FY22: 1275 | FZ22: 1123 | GA22: 1157 | GB22: 892 | GC22: 860 | GD22: 566 | GE22: 949 | GF22: 827 | GG22: 798 | GH22: 631 | GI22: 610 | GJ22: 234 | GK22: 631 | GL22: 695 | GM22: 696 | GN22: 867 | GO22: 515 | GP22: 336 | GQ22: 794 | GR22: 741 | GS22: 672 | GT22: 797
A24: Patrons
A25: Hour | B25: 07:00:00 | C25: 5 | D25: 10 | E25: 16 | F25: 6 | I25: 7 | J25: 9 | K25: 5 | L25: 4 | N25: 15 | O25: 8 | P25: 8 | Q25: 7 | R25: 4 | T25: 9 | U25: 13 | V25: 9 | W25: 7 | X25: 7 | Z25: 7 | AA25: 8 | AB25: 5 | AC25: 12 | AD25: 5 | AF25: 14 | AG25: 11 | AH25: 7 | AI25: 6 | AJ25: 5 | AM25: 12 | AN25: 14 | AO25: 14 | AP25: 9 | AR25: 11 | AS25: 11 | AT25: 9 | AU25: 7 | AV25: 6 | AX25: 12 | AY25: 11 | AZ25: 8 | BA25: 9 | BB25: 6 | BD25: 21 | BE25: 7 | BF25: 10 | BG25: 11 | BH25: 5 | BJ25: 10 | BK25: 15 | BL25: 4 | BM25: 4 | BN25: 10 | BP25: 11 | BQ25: 11 | BR25: 12 | BS25: 8 | BT25: 7 | BV25: 6 | BW25: 8 | BX25: 9 | BY25: 9 | BZ25: 5 | CB25: 13 | CC25: 27 | CD25: 7 | CE25: 10 | CF25: 5 | CH25: 11 | CI25: 4 | CJ25: 1 | CK25: 4 | CL25: 7 | CN25: 9 | CO25: 5 | CP25: 4 | CU25: 4 | CV25: 2 | CW25: 4 | CX25: 2 | CZ25: 8 | DA25: 4 | DB25: 5 | DC25: 5 | DD25: 2 | DF25: 7 | DG25: 8 | DH25: 6 | DI25: 3 | DJ25: 4 | DL25: 2 | DM25: 3 | DN25: 1 | DP25: 3 | DS25: 6 | DT25: 15 | DU25: 5 | DV25: 7 | DX25: 12 | DY25: 4 | DZ25: 5 | EA25: 4 | EB25: 3 | ED25: 2 | EF25: 3 | EG25: 3 | EH25: 2 | EJ25: 8 | EL25: 2 | EM25: 2 | EP25: 10 | EQ25: 6 | ER25: 3 | ES25: 4 | ET25: 2 | EV25: 5 | EW25: 7 | EX25: 2 | EY25: 3 | FA25: 1 | FB25: 4 | FC25: 3 | FD25: 4 | FE25: 7 | FG25: 5 | FH25: 2 | FI25: 2 | FJ25: 2 | FK25: 4 | FN25: 5 | FO25: 3 | FP25: 4 | FQ25: 6 | FS25: 7 | FT25: 4 | FU25: 2 | FV25: 4 | FW25: 3 | FY25: 2 | FZ25: 3 | GA25: 3 | GB25: 4 | GC25: 2 | GE25: 5 | GF25: 1 | GG25: 1 | GH25: 3
B26: 08:00:00 | C26: 24 | D26: 39 | E26: 26 | F26: 20 | G26: 3 | I26: 24 | J26: 25 | K26: 18 | L26: 32 | M26: 3 | N26: 40 | O26: 22 | P26: 28 | Q26: 27 | R26: 27 | S26: 7 | T26: 26 | U26: 27 | V26: 29 | W26: 19 | X26: 23 | Y26: 1 | Z26: 34 | AA26: 28 | AB26: 28 | AC26: 23 | AD26: 24 | AE26: 2 | AF26: 16 | AG26: 25 | AH26: 27 | AI26: 25 | AJ26: 20 | AK26: 2 | AM26: 23 | AN26: 31 | AO26: 21 | AP26: 21 | AQ26: 4 | AR26: 31 | AS26: 31 | AT26: 30 | AU26: 25 | AV26: 29 | AW26: 5 | AX26: 24 | AY26: 26 | AZ26: 23 | BA26: 17 | BB26: 20 | BC26: 4 | BD26: 26 | BE26: 31 | BF26: 23 | BG26: 21 | BH26: 28 | BI26: 8 | BJ26: 37 | BK26: 21 | BL26: 23 | BM26: 19 | BN26: 23 | BO26: 8 | BP26: 49 | BQ26: 21 | BR26: 40 | BS26: 25 | BT26: 27 | BU26: 6 | BV26: 29 | BW26: 27 | BX26: 31 | BY26: 16 | BZ26: 30 | CA26: 7 | CB26: 39 | CC26: 23 | CD26: 21 | CE26: 19 | CF26: 18 | CG26: 5 | CH26: 24 | CI26: 21 | CJ26: 12 | CK26: 15 | CL26: 19 | CM26: 9 | CN26: 25 | CO26: 25 | CP26: 21 | CQ26: 11 | CR26: 6 | CS26: 1 | CT26: 12 | CU26: 11 | CV26: 9 | CW26: 10 | CX26: 12 | CY26: 2 | CZ26: 13 | DA26: 9 | DB26: 14 | DC26: 17 | DD26: 10 | DF26: 12 | DG26: 12 | DH26: 13 | DI26: 17 | DJ26: 9 | DK26: 2 | DL26: 20 | DM26: 8 | DN26: 18 | DO26: 5 | DP26: 7 | DQ26: 3 | DS26: 8 | DT26: 16 | DU26: 9 | DV26: 13 | DW26: 2 | DX26: 6 | DY26: 5 | DZ26: 12 | EA26: 9 | EB26: 8 | EC26: 1 | ED26: 7 | EE26: 14 | EF26: 16 | EG26: 7 | EH26: 6 | EI26: 1 | EJ26: 9 | EK26: 6 | EL26: 16 | EM26: 11 | EN26: 5 | EO26: 1 | EP26: 10 | EQ26: 5 | ER26: 9 | ES26: 12 | ET26: 8 | EU26: 5 | EV26: 11 | EW26: 14 | EX26: 8 | EY26: 9 | FA26: 17 | FB26: 10 | FC26: 16 | FD26: 11 | FE26: 10 | FF26: 1 | FG26: 13 | FH26: 9 | FI26: 9 | FJ26: 11 | FK26: 24 | FL26: 1 | FN26: 9 | FO26: 9 | FP26: 8 | FQ26: 12 | FR26: 3 | FS26: 10 | FT26: 6 | FU26: 10 | FV26: 16 | FW26: 18 | FX26: 1 | FY26: 9 | FZ26: 15 | GA26: 9 | GB26: 8 | GC26: 7 | GD26: 1 | GE26: 11 | GF26: 6 | GG26: 15 | GH26: 5 | GI26: 13 | GJ26: 2 | GK26: 12 | GL26: 13 | GM26: 1 | GN26: 1 | GO26: 3 | GQ26: 3 | GR26: 6 | GS26: 7 | GT26: 7
B27: 09:00:00 | C27: 38 | D27: 29 | E27: 57 | F27: 39 | G27: 7 | I27: 61 | J27: 53 | K27: 53 | L27: 51 | M27: 12 | N27: 53 | O27: 41 | P27: 58 | Q27: 48 | R27: 49 | S27: 9 | T27: 60 | U27: 53 | V27: 50 | W27: 55 | X27: 47 | Y27: 12 | Z27: 49 | AA27: 51 | AB27: 41 | AC27: 57 | AD27: 43 | AE27: 3 | AF27: 53 | AG27: 36 | AH27: 31 | AI27: 47 | AJ27: 46 | AK27: 10 | AM27: 43 | AN27: 48 | AO27: 68 | AP27: 40 | AQ27: 4 | AR27: 36 | AS27: 46 | AT27: 40 | AU27: 53 | AV27: 48 | AW27: 5 | AX27: 53 | AY27: 74 | AZ27: 44 | BA27: 47 | BB27: 42 | BC27: 11 | BD27: 51 | BE27: 47 | BF27: 40 | BG27: 46 | BH27: 46 | BI27: 18 | BJ27: 46 | BK27: 55 | BL27: 52 | BM27: 51 | BN27: 61 | BO27: 11 | BP27: 65 | BQ27: 44 | BR27: 49 | BS27: 60 | BT27: 65 | BU27: 13 | BV27: 45 | BW27: 40 | BX27: 46 | BY27: 39 | BZ27: 41 | CA27: 11 | CB27: 57 | CC27: 44 | CD27: 49 | CE27: 44 | CF27: 37 | CG27: 13 | CH27: 43 | CI27: 43 | CJ27: 24 | CK27: 29 | CL27: 33 | CM27: 15 | CN27: 42 | CO27: 40 | CP27: 38 | CQ27: 20 | CR27: 14 | CS27: 6 | CT27: 12 | CU27: 13 | CV27: 37 | CW27: 34 | CX27: 26 | CY27: 6 | CZ27: 33 | DA27: 16 | DB27: 43 | DC27: 25 | DD27: 46 | DE27: 3 | DF27: 30 | DG27: 20 | DH27: 20 | DI27: 14 | DJ27: 16 | DK27: 8 | DL27: 26 | DM27: 29 | DN27: 32 | DO27: 19 | DP27: 24 | DQ27: 5 | DS27: 29 | DT27: 26 | DU27: 23 | DV27: 25 | DW27: 5 | DX27: 28 | DY27: 25 | DZ27: 26 | EA27: 14 | EB27: 27 | EC27: 6 | ED27: 18 | EE27: 28 | EF27: 27 | EG27: 32 | EH27: 24 | EI27: 8 | EJ27: 25 | EK27: 22 | EL27: 24 | EM27: 24 | EN27: 14 | EO27: 2 | EP27: 25 | EQ27: 14 | ER27: 29 | ES27: 28 | ET27: 17 | EU27: 3 | EV27: 43 | EW27: 40 | EX27: 18 | EY27: 18 | EZ27: 5 | FA27: 26 | FB27: 20 | FC27: 17 | FD27: 22 | FE27: 16 | FF27: 4 | FG27: 34 | FH27: 28 | FI27: 14 | FJ27: 18 | FK27: 23 | FL27: 5 | FN27: 32 | FO27: 23 | FP27: 20 | FQ27: 31 | FR27: 4 | FS27: 32 | FT27: 23 | FU27: 32 | FV27: 28 | FW27: 32 | FX27: 3 | FY27: 32 | FZ27: 29 | GA27: 39 | GB27: 20 | GC27: 28 | GD27: 1 | GE27: 34 | GF27: 16 | GG27: 27 | GH27: 16 | GI27: 10 | GJ27: 3 | GK27: 23 | GL27: 18 | GM27: 21 | GN27: 18 | GO27: 21 | GP27: 1 | GQ27: 16 | GR27: 16 | GS27: 25 | GT27: 11
B28: 10:00:00 | C28: 74 | D28: 68 | E28: 67 | F28: 82 | G28: 13 | H28: 13 | I28: 54 | J28: 67 | K28: 54 | L28: 58 | M28: 23 | N28: 68 | O28: 63 | P28: 51 | Q28: 74 | R28: 61 | S28: 18 | T28: 55 | U28: 59 | V28: 53 | W28: 90 | X28: 80 | Y28: 16 | Z28: 81 | AA28: 42 | AB28: 71 | AC28: 66 | AD28: 63 | AE28: 15 | AF28: 75 | AG28: 44 | AH28: 60 | AI28: 69 | AJ28: 52 | AK28: 12 | AL28: 25 | AM28: 74 | AN28: 84 | AO28: 60 | AP28: 75 | AQ28: 18 | AR28: 70 | AS28: 65 | AT28: 77 | AU28: 59 | AV28: 82 | AW28: 24 | AX28: 71 | AY28: 50 | AZ28: 78 | BA28: 61 | BB28: 62 | BC28: 22 | BD28: 74 | BE28: 65 | BF28: 73 | BG28: 51 | BH28: 77 | BI28: 17 | BJ28: 68 | BK28: 53 | BL28: 77 | BM28: 65 | BN28: 86 | BO28: 12 | BP28: 72 | BQ28: 51 | BR28: 78 | BS28: 69 | BT28: 72 | BV28: 82 | BW28: 49 | BX28: 63 | BY28: 53 | BZ28: 59 | CA28: 13 | CB28: 62 | CC28: 66 | CD28: 56 | CE28: 50 | CF28: 66 | CG28: 21 | CH28: 73 | CI28: 31 | CJ28: 44 | CK28: 21 | CL28: 54 | CM28: 35 | CN28: 37 | CO28: 47 | CP28: 32 | CQ28: 22 | CR28: 17 | CS28: 8 | CT28: 24 | CU28: 46 | CV28: 36 | CW28: 49 | CX28: 34 | CY28: 15 | CZ28: 39 | DA28: 46 | DB28: 24 | DC28: 29 | DD28: 34 | DE28: 8 | DF28: 35 | DG28: 32 | DH28: 37 | DI28: 31 | DJ28: 37 | DK28: 8 | DL28: 44 | DM28: 31 | DN28: 28 | DO28: 39 | DP28: 26 | DQ28: 12 | DR28: 2 | DS28: 29 | DT28: 21 | DU28: 32 | DV28: 34 | DW28: 11 | DX28: 35 | DY28: 37 | DZ28: 17 | EA28: 35 | EB28: 31 | EC28: 9 | ED28: 21 | EE28: 29 | EF28: 43 | EG28: 35 | EH28: 21 | EI28: 12 | EJ28: 30 | EK28: 29 | EL28: 27 | EM28: 27 | EN28: 21 | EO28: 8 | EP28: 33 | EQ28: 19 | ER28: 29 | ES28: 25 | ET28: 29 | EU28: 9 | EV28: 30 | EW28: 19 | EX28: 19 | EY28: 33 | EZ28: 10 | FA28: 25 | FB28: 39 | FC28: 32 | FD28: 45 | FE28: 23 | FF28: 6 | FG28: 38 | FH28: 30 | FI28: 40 | FJ28: 26 | FK28: 24 | FL28: 6 | FM28: 10 | FN28: 22 | FO28: 44 | FP28: 24 | FQ28: 22 | FR28: 5 | FS28: 39 | FT28: 32 | FU28: 32 | FV28: 34 | FW28: 38 | FX28: 7 | FY28: 47 | FZ28: 17 | GA28: 43 | GB28: 26 | GC28: 28 | GD28: 7 | GE28: 26 | GF28: 33 | GG28: 27 | GH28: 25 | GI28: 15 | GJ28: 10 | GK28: 32 | GL28: 39 | GM28: 21 | GN28: 33 | GO28: 17 | GP28: 7 | GQ28: 26 | GR28: 28 | GS28: 19 | GT28: 16
B29: 11:00:00 | C29: 16 | D29: 71 | E29: 75 | F29: 84 | G29: 11 | H29: 27 | I29: 18 | J29: 79 | K29: 82 | L29: 101 | M29: 33 | N29: 62 | O29: 18 | P29: 68 | Q29: 62 | R29: 69 | S29: 30 | T29: 86 | U29: 25 | V29: 79 | W29: 70 | X29: 80 | Y29: 38 | Z29: 69 | AA29: 26 | AB29: 84 | AC29: 70 | AD29: 66 | AE29: 19 | AF29: 73 | AG29: 11 | AH29: 68 | AI29: 69 | AJ29: 88 | AK29: 25 | AL29: 38 | AM29: 77 | AN29: 97 | AO29: 82 | AP29: 83 | AQ29: 51 | AR29: 84 | AS29: 22 | AT29: 91 | AU29: 88 | AV29: 72 | AW29: 29 | AX29: 84 | AY29: 24 | AZ29: 79 | BA29: 78 | BB29: 78 | BC29: 19 | BD29: 77 | BE29: 27 | BF29: 69 | BG29: 106 | BH29: 77 | BI29: 32 | BJ29: 79 | BK29: 14 | BL29: 83 | BM29: 70 | BN29: 95 | BO29: 33 | BP29: 83 | BQ29: 21 | BR29: 87 | BS29: 71 | BT29: 80 | BU29: 1 | BV29: 73 | BW29: 19 | BX29: 83 | BY29: 63 | BZ29: 80 | CA29: 28 | CB29: 78 | CC29: 12 | CD29: 69 | CE29: 68 | CF29: 70 | CG29: 26 | CH29: 75 | CI29: 57 | CJ29: 40 | CK29: 56 | CL29: 54 | CM29: 29 | CN29: 48 | CO29: 51 | CP29: 47 | CQ29: 28 | CR29: 28 | CS29: 9 | CT29: 37 | CU29: 61 | CV29: 51 | CW29: 42 | CX29: 39 | CY29: 17 | CZ29: 47 | DA29: 20 | DB29: 56 | DC29: 28 | DD29: 48 | DE29: 10 | DF29: 51 | DG29: 16 | DH29: 43 | DI29: 46 | DJ29: 38 | DK29: 8 | DL29: 56 | DM29: 11 | DN29: 41 | DO29: 32 | DP29: 28 | DQ29: 10 | DR29: 16 | DS29: 4 | DT29: 39 | DU29: 33 | DV29: 36 | DW29: 12 | DX29: 52 | DY29: 5 | DZ29: 58 | EA29: 36 | EB29: 37 | EC29: 12 | ED29: 47 | EE29: 8 | EF29: 46 | EG29: 26 | EH29: 16 | EI29: 15 | EJ29: 36 | EK29: 19 | EL29: 18 | EM29: 25 | EN29: 22 | EO29: 11 | EP29: 52 | EQ29: 5 | ER29: 45 | ES29: 31 | ET29: 31 | EU29: 6 | EV29: 41 | EW29: 40 | EX29: 40 | EY29: 24 | EZ29: 14 | FA29: 69 | FB29: 14 | FC29: 46 | FD29: 31 | FE29: 18 | FF29: 7 | FG29: 47 | FH29: 11 | FI29: 38 | FJ29: 34 | FK29: 30 | FL29: 9 | FM29: 15 | FN29: 7 | FO29: 44 | FP29: 31 | FQ29: 36 | FR29: 6 | FS29: 45 | FT29: 7 | FU29: 47 | FV29: 36 | FW29: 26 | FX29: 11 | FY29: 44 | FZ29: 4 | GA29: 39 | GB29: 39 | GC29: 30 | GD29: 10 | GE29: 33 | GF29: 36 | GG29: 29 | GH29: 17 | GI29: 23 | GJ29: 6 | GK29: 31 | GL29: 6 | GM29: 29 | GN29: 15 | GO29: 30 | GP29: 12 | GQ29: 37 | GR29: 26 | GS29: 37 | GT29: 33
B30: 12:00:00 | C30: 72 | D30: 71 | E30: 61 | F30: 80 | G30: 27 | H30: 44 | I30: 99 | J30: 61 | K30: 82 | L30: 99 | M30: 30 | N30: 82 | O30: 88 | P30: 69 | Q30: 80 | R30: 77 | S30: 52 | T30: 95 | U30: 91 | V30: 68 | W30: 59 | X30: 65 | Y30: 45 | Z30: 96 | AA30: 69 | AB30: 71 | AC30: 75 | AD30: 70 | AE30: 35 | AF30: 81 | AG30: 57 | AH30: 77 | AI30: 58 | AJ30: 72 | AK30: 35 | AL30: 37 | AM30: 114 | AN30: 76 | AO30: 86 | AP30: 85 | AQ30: 44 | AR30: 76 | AS30: 76 | AT30: 75 | AU30: 71 | AV30: 86 | AW30: 50 | AX30: 88 | AY30: 82 | AZ30: 89 | BA30: 82 | BB30: 83 | BC30: 35 | BD30: 63 | BE30: 79 | BF30: 65 | BG30: 92 | BH30: 71 | BI30: 32 | BJ30: 91 | BK30: 69 | BL30: 73 | BM30: 67 | BN30: 106 | BO30: 39 | BP30: 97 | BQ30: 76 | BR30: 78 | BS30: 68 | BT30: 100 | BU30: 16 | BV30: 98 | BW30: 80 | BX30: 76 | BY30: 63 | BZ30: 72 | CA30: 40 | CB30: 64 | CC30: 78 | CD30: 79 | CE30: 61 | CF30: 64 | CG30: 42 | CH30: 74 | CI30: 61 | CJ30: 54 | CK30: 61 | CL30: 60 | CM30: 44 | CN30: 59 | CO30: 39 | CP30: 46 | CQ30: 32 | CR30: 24 | CS30: 8 | CT30: 46 | CU30: 48 | CV30: 53 | CW30: 52 | CX30: 52 | CY30: 19 | CZ30: 61 | DA30: 62 | DB30: 48 | DC30: 39 | DD30: 37 | DE30: 15 | DF30: 50 | DG30: 55 | DH30: 39 | DI30: 32 | DJ30: 35 | DK30: 25 | DL30: 42 | DM30: 49 | DN30: 53 | DO30: 38 | DP30: 57 | DQ30: 17 | DR30: 14 | DS30: 63 | DT30: 50 | DU30: 55 | DV30: 47 | DW30: 17 | DX30: 41 | DY30: 49 | DZ30: 39 | EA30: 28 | EB30: 38 | EC30: 10 | ED30: 35 | EE30: 44 | EF30: 32 | EG30: 34 | EH30: 28 | EI30: 28 | EJ30: 38 | EK30: 35 | EL30: 41 | EM30: 38 | EN30: 26 | EO30: 12 | EP30: 42 | EQ30: 48 | ER30: 39 | ES30: 28 | ET30: 36 | EU30: 12 | EV30: 56 | EW30: 46 | EX30: 34 | EY30: 41 | EZ30: 14 | FA30: 54 | FB30: 49 | FC30: 54 | FD30: 41 | FE30: 49 | FF30: 10 | FG30: 53 | FH30: 46 | FI30: 53 | FJ30: 30 | FK30: 66 | FL30: 8 | FM30: 10 | FN30: 62 | FO30: 52 | FP30: 43 | FQ30: 40 | FR30: 12 | FS30: 46 | FT30: 36 | FU30: 48 | FV30: 27 | FW30: 27 | FX30: 15 | FY30: 51 | FZ30: 44 | GA30: 45 | GB30: 45 | GC30: 27 | GD30: 16 | GE30: 40 | GF30: 31 | GG30: 46 | GH30: 33 | GI30: 21 | GJ30: 15 | GK30: 27 | GL30: 25 | GM30: 25 | GN30: 36 | GO30: 21 | GP30: 9 | GQ30: 33 | GR30: 35 | GS30: 32 | GT30: 38
B31: 13:00:00 | C31: 73 | D31: 72 | E31: 62 | F31: 78 | G31: 33 | H31: 29 | I31: 84 | J31: 80 | K31: 79 | L31: 85 | M31: 38 | N31: 66 | O31: 81 | P31: 63 | Q31: 86 | R31: 79 | S31: 38 | T31: 84 | U31: 78 | V31: 78 | W31: 74 | X31: 84 | Y31: 35 | Z31: 104 | AA31: 87 | AB31: 63 | AC31: 89 | AD31: 70 | AE31: 41 | AF31: 63 | AG31: 83 | AH31: 69 | AI31: 72 | AJ31: 70 | AK31: 36 | AL31: 36 | AM31: 87 | AN31: 79 | AO31: 74 | AP31: 84 | AQ31: 48 | AR31: 87 | AS31: 93 | AT31: 71 | AU31: 79 | AV31: 86 | AW31: 50 | AX31: 92 | AY31: 75 | AZ31: 68 | BA31: 88 | BB31: 80 | BC31: 49 | BD31: 111 | BE31: 99 | BF31: 62 | BG31: 72 | BH31: 80 | BI31: 45 | BJ31: 66 | BK31: 84 | BL31: 98 | BM31: 78 | BN31: 93 | BO31: 49 | BP31: 106 | BQ31: 102 | BR31: 106 | BS31: 82 | BT31: 98 | BU31: 32 | BV31: 91 | BW31: 84 | BX31: 78 | BY31: 90 | BZ31: 58 | CA31: 39 | CB31: 77 | CC31: 79 | CD31: 88 | CE31: 74 | CF31: 82 | CG31: 40 | CH31: 86 | CI31: 70 | CJ31: 60 | CK31: 53 | CL31: 65 | CM31: 31 | CN31: 63 | CO31: 57 | CP31: 49 | CQ31: 23 | CR31: 21 | CS31: 12 | CT31: 32 | CU31: 55 | CV31: 59 | CW31: 44 | CX31: 52 | CY31: 21 | CZ31: 65 | DA31: 36 | DB31: 46 | DC31: 40 | DD31: 37 | DE31: 14 | DF31: 52 | DG31: 44 | DH31: 34 | DI31: 38 | DJ31: 41 | DK31: 13 | DL31: 42 | DM31: 40 | DN31: 53 | DO31: 18 | DP31: 41 | DQ31: 13 | DR31: 14 | DS31: 48 | DT31: 45 | DU31: 44 | DV31: 33 | DW31: 23 | DX31: 55 | DY31: 43 | DZ31: 47 | EA31: 36 | EB31: 46 | EC31: 27 | ED31: 40 | EE31: 42 | EF31: 43 | EG31: 26 | EH31: 36 | EI31: 19 | EJ31: 42 | EK31: 34 | EL31: 33 | EM31: 19 | EN31: 36 | EO31: 16 | EP31: 38 | EQ31: 46 | ER31: 50 | ES31: 37 | ET31: 40 | EU31: 22 | EV31: 39 | EW31: 41 | EX31: 44 | EY31: 30 | EZ31: 19 | FA31: 45 | FB31: 44 | FC31: 44 | FD31: 38 | FE31: 35 | FF31: 14 | FG31: 43 | FH31: 32 | FI31: 49 | FJ31: 28 | FK31: 35 | FL31: 18 | FM31: 13 | FN31: 43 | FO31: 42 | FP31: 48 | FQ31: 39 | FR31: 22 | FS31: 51 | FT31: 29 | FU31: 42 | FV31: 38 | FW31: 41 | FX31: 13 | FY31: 35 | FZ31: 41 | GA31: 57 | GB31: 34 | GC31: 32 | GD31: 22 | GE31: 41 | GF31: 34 | GG31: 24 | GH31: 33 | GI31: 24 | GJ31: 11 | GK31: 24 | GL31: 20 | GM31: 26 | GN31: 23 | GO31: 36 | GP31: 15 | GQ31: 36 | GR31: 37 | GS31: 23 | GT31: 38
B32: 14:00:00 | C32: 79 | D32: 89 | E32: 91 | F32: 82 | G32: 34 | H32: 40 | I32: 92 | J32: 90 | K32: 81 | L32: 80 | M32: 53 | N32: 74 | O32: 86 | P32: 98 | Q32: 75 | R32: 90 | S32: 34 | T32: 95 | U32: 95 | V32: 73 | W32: 70 | X32: 76 | Y32: 43 | Z32: 82 | AA32: 72 | AB32: 67 | AC32: 105 | AD32: 70 | AE32: 46 | AF32: 83 | AG32: 65 | AH32: 72 | AI32: 102 | AJ32: 69 | AK32: 39 | AL32: 46 | AM32: 81 | AN32: 92 | AO32: 84 | AP32: 82 | AQ32: 50 | AR32: 89 | AS32: 97 | AT32: 83 | AU32: 85 | AV32: 90 | AW32: 34 | AX32: 59 | AY32: 101 | AZ32: 97 | BA32: 63 | BB32: 80 | BC32: 34 | BD32: 85 | BE32: 87 | BF32: 92 | BG32: 78 | BH32: 77 | BI32: 47 | BJ32: 91 | BK32: 91 | BL32: 95 | BM32: 79 | BN32: 107 | BO32: 54 | BP32: 111 | BQ32: 90 | BR32: 91 | BS32: 97 | BT32: 83 | BU32: 2 | BV32: 105 | BW32: 95 | BX32: 87 | BY32: 57 | BZ32: 75 | CA32: 42 | CB32: 81 | CC32: 88 | CD32: 78 | CE32: 67 | CF32: 77 | CG32: 74 | CH32: 81 | CI32: 60 | CJ32: 64 | CK32: 56 | CL32: 50 | CM32: 31 | CN32: 58 | CO32: 55 | CP32: 63 | CQ32: 40 | CR32: 18 | CS32: 16 | CT32: 29 | CU32: 51 | CV32: 53 | CW32: 40 | CX32: 43 | CY32: 21 | CZ32: 42 | DA32: 42 | DB32: 49 | DC32: 46 | DD32: 34 | DE32: 27 | DF32: 41 | DG32: 46 | DH32: 43 | DI32: 27 | DJ32: 43 | DK32: 18 | DL32: 35 | DM32: 41 | DN32: 45 | DO32: 59 | DP32: 45 | DQ32: 17 | DR32: 22 | DS32: 50 | DT32: 49 | DU32: 33 | DV32: 32 | DW32: 22 | DX32: 48 | DY32: 47 | DZ32: 42 | EA32: 42 | EB32: 38 | EC32: 18 | ED32: 42 | EE32: 55 | EF32: 33 | EG32: 40 | EH32: 29 | EI32: 20 | EJ32: 43 | EK32: 42 | EL32: 23 | EM32: 42 | EN32: 28 | EO32: 10 | EP32: 56 | EQ32: 44 | ER32: 51 | ES32: 42 | ET32: 30 | EU32: 15 | EV32: 38 | EW32: 40 | EX32: 37 | EY32: 38 | EZ32: 21 | FA32: 37 | FB32: 32 | FC32: 46 | FD32: 36 | FE32: 28 | FF32: 20 | FG32: 36 | FH32: 39 | FI32: 30 | FJ32: 35 | FK32: 37 | FL32: 16 | FM32: 21 | FN32: 39 | FO32: 35 | FP32: 40 | FQ32: 40 | FR32: 14 | FS32: 35 | FT32: 36 | FU32: 35 | FV32: 44 | FW32: 33 | FX32: 19 | FY32: 36 | FZ32: 57 | GA32: 39 | GB32: 28 | GC32: 26 | GD32: 23 | GE32: 32 | GF32: 29 | GG32: 28 | GH32: 25 | GI32: 29 | GJ32: 15 | GK32: 19 | GL32: 23 | GM32: 19 | GN32: 27 | GO32: 20 | GP32: 14 | GQ32: 22 | GR32: 24 | GS32: 23 | GT32: 34
B33: 15:00:00 | C33: 85 | D33: 86 | E33: 76 | F33: 87 | G33: 38 | H33: 28 | I33: 118 | J33: 72 | K33: 95 | L33: 83 | M33: 60 | N33: 93 | O33: 85 | P33: 73 | Q33: 96 | R33: 68 | S33: 42 | T33: 91 | U33: 84 | V33: 81 | W33: 107 | X33: 73 | Y33: 63 | Z33: 95 | AA33: 84 | AB33: 97 | AC33: 91 | AD33: 85 | AE33: 52 | AF33: 83 | AG33: 73 | AH33: 75 | AI33: 97 | AJ33: 66 | AK33: 41 | AL33: 49 | AM33: 98 | AN33: 98 | AO33: 106 | AP33: 68 | AQ33: 48 | AR33: 120 | AS33: 85 | AT33: 102 | AU33: 81 | AV33: 78 | AW33: 54 | AX33: 104 | AY33: 95 | AZ33: 81 | BA33: 81 | BB33: 69 | BC33: 64 | BD33: 92 | BE33: 109 | BF33: 92 | BG33: 89 | BH33: 78 | BI33: 60 | BJ33: 95 | BK33: 105 | BL33: 94 | BM33: 77 | BN33: 75 | BO33: 56 | BP33: 119 | BQ33: 89 | BR33: 108 | BS33: 91 | BT33: 80 | BU33: 2 | BV33: 87 | BW33: 106 | BX33: 101 | BY33: 81 | BZ33: 77 | CA33: 55 | CB33: 100 | CC33: 88 | CD33: 87 | CE33: 58 | CF33: 62 | CG33: 38 | CH33: 69 | CI33: 80 | CJ33: 75 | CK33: 55 | CL33: 39 | CM33: 41 | CN33: 52 | CO33: 41 | CP33: 49 | CQ33: 26 | CR33: 21 | CS33: 13 | CT33: 38 | CU33: 44 | CV33: 50 | CW33: 42 | CX33: 41 | CY33: 27 | CZ33: 53 | DA33: 44 | DB33: 61 | DC33: 47 | DD33: 21 | DE33: 27 | DF33: 57 | DG33: 36 | DH33: 46 | DI33: 45 | DJ33: 40 | DK33: 24 | DL33: 53 | DM33: 63 | DN33: 53 | DO33: 50 | DP33: 39 | DQ33: 18 | DR33: 19 | DS33: 43 | DT33: 60 | DU33: 55 | DV33: 30 | DW33: 25 | DX33: 41 | DY33: 41 | DZ33: 54 | EA33: 60 | EB33: 35 | EC33: 16 | ED33: 61 | EE33: 39 | EF33: 55 | EG33: 35 | EH33: 40 | EI33: 12 | EJ33: 44 | EK33: 41 | EL33: 50 | EM33: 37 | EN33: 20 | EO33: 8 | EP33: 34 | EQ33: 48 | ER33: 41 | ES33: 39 | ET33: 32 | EU33: 23 | EV33: 39 | EW33: 45 | EX33: 36 | EY33: 32 | EZ33: 15 | FA33: 54 | FB33: 33 | FC33: 41 | FD33: 28 | FE33: 29 | FF33: 17 | FG33: 49 | FH33: 40 | FI33: 35 | FJ33: 34 | FK33: 33 | FL33: 14 | FM33: 16 | FN33: 45 | FO33: 40 | FP33: 35 | FQ33: 47 | FR33: 17 | FS33: 46 | FT33: 46 | FU33: 43 | FV33: 37 | FW33: 42 | FX33: 20 | FY33: 44 | FZ33: 43 | GA33: 33 | GB33: 26 | GC33: 33 | GD33: 14 | GE33: 42 | GF33: 26 | GG33: 31 | GH33: 36 | GI33: 23 | GJ33: 4 | GK33: 19 | GL33: 25 | GM33: 23 | GN33: 26 | GO33: 20 | GP33: 14 | GQ33: 47 | GR33: 34 | GS33: 27 | GT33: 23
B34: 16:00:00 | C34: 68 | D34: 75 | E34: 91 | F34: 61 | G34: 40 | H34: 45 | I34: 91 | J34: 65 | K34: 81 | L34: 52 | M34: 58 | N34: 84 | O34: 91 | P34: 55 | Q34: 65 | R34: 78 | S34: 43 | T34: 91 | U34: 70 | V34: 82 | W34: 88 | X34: 58 | Y34: 46 | Z34: 85 | AA34: 90 | AB34: 74 | AC34: 64 | AD34: 44 | AE34: 42 | AF34: 65 | AG34: 75 | AH34: 73 | AI34: 62 | AJ34: 66 | AK34: 49 | AL34: 49 | AM34: 95 | AN34: 82 | AO34: 84 | AP34: 59 | AQ34: 50 | AR34: 75 | AS34: 108 | AT34: 76 | AU34: 66 | AV34: 67 | AW34: 55 | AX34: 80 | AY34: 92 | AZ34: 90 | BA34: 73 | BB34: 72 | BC34: 49 | BD34: 87 | BE34: 99 | BF34: 74 | BG34: 77 | BH34: 64 | BI34: 49 | BJ34: 83 | BK34: 93 | BL34: 87 | BM34: 68 | BN34: 52 | BO34: 61 | BP34: 85 | BQ34: 105 | BR34: 68 | BS34: 77 | BT34: 81 | BU34: 33 | BV34: 88 | BW34: 82 | BX34: 68 | BY34: 74 | BZ34: 65 | CA34: 66 | CB34: 85 | CC34: 98 | CD34: 69 | CE34: 61 | CF34: 56 | CG34: 67 | CH34: 61 | CI34: 79 | CJ34: 62 | CK34: 65 | CL34: 55 | CM34: 49 | CN34: 67 | CO34: 52 | CP34: 43 | CQ34: 27 | CR34: 19 | CS34: 12 | CT34: 35 | CU34: 46 | CV34: 58 | CW34: 52 | CX34: 37 | CY34: 29 | CZ34: 66 | DA34: 42 | DB34: 51 | DC34: 35 | DD34: 41 | DE34: 19 | DF34: 54 | DG34: 40 | DH34: 30 | DI34: 36 | DJ34: 42 | DK34: 27 | DL34: 45 | DM34: 41 | DN34: 37 | DO34: 43 | DP34: 30 | DQ34: 24 | DR34: 24 | DS34: 62 | DT34: 45 | DU34: 39 | DV34: 30 | DW34: 28 | DX34: 39 | DY34: 45 | DZ34: 52 | EA34: 35 | EB34: 37 | EC34: 18 | ED34: 31 | EE34: 31 | EF34: 46 | EG34: 44 | EH34: 53 | EI34: 21 | EJ34: 35 | EK34: 37 | EL34: 30 | EM34: 39 | EN34: 32 | EO34: 14 | EP34: 42 | EQ34: 34 | ER34: 44 | ES34: 33 | ET34: 43 | EU34: 12 | EV34: 55 | EW34: 51 | EX34: 39 | EY34: 37 | EZ34: 18 | FA34: 54 | FB34: 47 | FC34: 40 | FD34: 37 | FE34: 35 | FF34: 12 | FG34: 63 | FH34: 44 | FI34: 31 | FJ34: 36 | FK34: 42 | FL34: 18 | FM34: 15 | FN34: 41 | FO34: 41 | FP34: 31 | FQ34: 30 | FR34: 20 | FS34: 57 | FT34: 42 | FU34: 40 | FV34: 35 | FW34: 46 | FX34: 17 | FY34: 56 | FZ34: 35 | GA34: 43 | GB34: 26 | GC34: 32 | GD34: 21 | GE34: 34 | GF34: 30 | GG34: 28 | GH34: 19 | GI34: 26 | GJ34: 6 | GK34: 28 | GL34: 31 | GM34: 21 | GN34: 30 | GO34: 29 | GP34: 15 | GQ34: 37 | GR34: 50 | GS34: 36 | GT34: 46
B35: 17:00:00 | C35: 68 | D35: 60 | E35: 48 | F35: 58 | G35: 36 | H35: 48 | I35: 61 | J35: 56 | K35: 63 | L35: 72 | M35: 46 | N35: 77 | O35: 98 | P35: 60 | Q35: 47 | R35: 43 | S35: 43 | T35: 80 | U35: 72 | V35: 58 | W35: 62 | X35: 43 | Y35: 53 | Z35: 74 | AA35: 68 | AB35: 66 | AC35: 57 | AD35: 55 | AE35: 39 | AF35: 65 | AG35: 53 | AH35: 69 | AI35: 61 | AJ35: 39 | AK35: 30 | AL35: 48 | AM35: 64 | AN35: 78 | AO35: 75 | AP35: 62 | AQ35: 38 | AR35: 81 | AS35: 68 | AT35: 68 | AU35: 67 | AV35: 52 | AW35: 61 | AX35: 70 | AY35: 87 | AZ35: 70 | BA35: 61 | BB35: 61 | BC35: 59 | BD35: 61 | BE35: 95 | BF35: 70 | BG35: 60 | BH35: 72 | BI35: 61 | BJ35: 80 | BK35: 96 | BL35: 76 | BM35: 50 | BN35: 63 | BO35: 52 | BP35: 88 | BQ35: 86 | BR35: 76 | BS35: 73 | BT35: 66 | BU35: 24 | BV35: 82 | BW35: 92 | BX35: 74 | BY35: 50 | BZ35: 53 | CA35: 61 | CB35: 69 | CC35: 73 | CD35: 72 | CE35: 63 | CF35: 59 | CG35: 50 | CH35: 58 | CI35: 52 | CJ35: 42 | CK35: 43 | CL35: 40 | CM35: 35 | CN35: 58 | CO35: 39 | CP35: 46 | CQ35: 16 | CR35: 21 | CS35: 19 | CT35: 33 | CU35: 40 | CV35: 53 | CW35: 30 | CX35: 27 | CY35: 28 | CZ35: 51 | DA35: 47 | DB35: 38 | DC35: 41 | DD35: 44 | DE35: 18 | DF35: 41 | DG35: 31 | DH35: 34 | DI35: 56 | DJ35: 35 | DK35: 21 | DL35: 45 | DM35: 45 | DN35: 37 | DO35: 33 | DP35: 25 | DQ35: 18 | DR35: 17 | DS35: 49 | DT35: 36 | DU35: 33 | DV35: 22 | DW35: 18 | DX35: 35 | DY35: 32 | DZ35: 38 | EA35: 46 | EB35: 37 | EC35: 23 | ED35: 57 | EE35: 36 | EF35: 38 | EG35: 36 | EH35: 36 | EI35: 19 | EJ35: 37 | EK35: 38 | EL35: 41 | EM35: 26 | EN35: 28 | EO35: 18 | EP35: 54 | EQ35: 40 | ER35: 45 | ES35: 37 | ET35: 34 | EU35: 17 | EV35: 48 | EW35: 43 | EX35: 44 | EY35: 31 | EZ35: 17 | FA35: 40 | FB35: 37 | FC35: 46 | FD35: 34 | FE35: 34 | FF35: 14 | FG35: 45 | FH35: 42 | FI35: 32 | FJ35: 28 | FK35: 26 | FL35: 15 | FM35: 22 | FN35: 63 | FO35: 41 | FP35: 35 | FQ35: 29 | FR35: 26 | FS35: 37 | FT35: 32 | FU35: 39 | FV35: 30 | FW35: 32 | FX35: 19 | FY35: 48 | FZ35: 37 | GA35: 35 | GB35: 41 | GC35: 25 | GD35: 22 | GE35: 25 | GF35: 23 | GG35: 32 | GH35: 23 | GI35: 26 | GJ35: 15 | GK35: 28 | GL35: 24 | GM35: 20 | GN35: 29 | GO35: 23 | GP35: 17 | GQ35: 41 | GR35: 30 | GS35: 38 | GT35: 41
B36: 18:00:00 | C36: 61 | D36: 56 | E36: 34 | F36: 30 | G36: 18 | H36: 22 | I36: 70 | J36: 52 | K36: 49 | L36: 21 | M36: 31 | N36: 58 | O36: 34 | P36: 72 | Q36: 35 | R36: 20 | S36: 26 | T36: 58 | U36: 66 | V36: 59 | W36: 58 | X36: 30 | Y36: 25 | Z36: 66 | AA36: 57 | AB36: 54 | AC36: 49 | AD36: 27 | AE36: 31 | AF36: 40 | AG36: 52 | AH36: 51 | AI36: 32 | AJ36: 25 | AK36: 30 | AL36: 36 | AM36: 65 | AN36: 55 | AO36: 51 | AP36: 35 | AQ36: 35 | AR36: 55 | AS36: 56 | AT36: 67 | AU36: 47 | AV36: 35 | AW36: 44 | AX36: 67 | AY36: 81 | AZ36: 50 | BA36: 53 | BB36: 36 | BC36: 30 | BD36: 78 | BE36: 62 | BF36: 54 | BG36: 44 | BH36: 31 | BI36: 30 | BJ36: 76 | BK36: 76 | BL36: 68 | BM36: 45 | BN36: 37 | BO36: 34 | BP36: 71 | BQ36: 57 | BR36: 51 | BS36: 72 | BT36: 28 | BU36: 19 | BV36: 64 | BW36: 77 | BX36: 64 | BY36: 52 | BZ36: 42 | CA36: 45 | CB36: 56 | CC36: 62 | CD36: 58 | CE36: 42 | CF36: 31 | CG36: 44 | CH36: 47 | CI36: 40 | CJ36: 33 | CK36: 32 | CL36: 26 | CM36: 25 | CN36: 52 | CO36: 44 | CP36: 22 | CQ36: 11 | CU36: 34 | CV36: 33 | CW36: 27 | CX36: 19 | CY36: 19 | CZ36: 38 | DA36: 23 | DB36: 28 | DC36: 28 | DD36: 14 | DE36: 22 | DF36: 28 | DG36: 34 | DH36: 20 | DI36: 24 | DJ36: 15 | DK36: 13 | DL36: 36 | DM36: 23 | DN36: 26 | DO36: 24 | DP36: 21 | DQ36: 17 | DR36: 12 | DS36: 24 | DT36: 25 | DU36: 27 | DW36: 19 | DX36: 44 | DY36: 31 | DZ36: 41 | EA36: 29 | EB36: 16 | EC36: 22 | ED36: 32 | EE36: 27 | EF36: 25 | EG36: 30 | EH36: 10 | EI36: 13 | EJ36: 23 | EK36: 20 | EL36: 26 | EM36: 18 | EP36: 33 | EQ36: 22 | ER36: 26 | ES36: 22 | ET36: 14 | EU36: 10 | EV36: 27 | EW36: 28 | EX36: 26 | EY36: 13 | EZ36: 21 | FA36: 31 | FB36: 33 | FC36: 25 | FD36: 31 | FE36: 14 | FF36: 19 | FG36: 27 | FH36: 26 | FI36: 22 | FJ36: 23 | FK36: 19 | FL36: 18 | FM36: 6 | FN36: 31 | FO36: 27 | FP36: 16 | FQ36: 18 | FR36: 16 | FS36: 26 | FT36: 30 | FU36: 26 | FV36: 24 | FW36: 16 | FX36: 9 | FY36: 23 | FZ36: 36 | GA36: 28 | GB36: 17 | GC36: 16 | GD36: 20 | GE36: 25 | GF36: 20 | GG36: 20 | GH36: 10 | GL36: 8 | GM36: 11 | GN36: 12 | GP36: 1
B37: 19:00:00 | C37: 33 | D37: 37 | E37: 32 | F37: 11 | G37: 7 | H37: 13 | I37: 53 | J37: 31 | K37: 35 | L37: 16 | M37: 30 | N37: 27 | O37: 42 | P37: 42 | Q37: 24 | R37: 11 | S37: 24 | T37: 39 | U37: 57 | V37: 41 | W37: 39 | X37: 11 | Y37: 15 | Z37: 38 | AA37: 51 | AB37: 37 | AC37: 41 | AD37: 18 | AE37: 27 | AF37: 31 | AG37: 27 | AH37: 36 | AI37: 43 | AJ37: 13 | AK37: 20 | AL37: 21 | AM37: 40 | AN37: 47 | AO37: 43 | AP37: 21 | AQ37: 26 | AR37: 51 | AS37: 45 | AT37: 34 | AU37: 43 | AV37: 14 | AW37: 26 | AX37: 49 | AY37: 59 | AZ37: 46 | BA37: 44 | BB37: 18 | BC37: 26 | BD37: 41 | BE37: 59 | BF37: 50 | BG37: 37 | BH37: 21 | BI37: 23 | BJ37: 46 | BK37: 55 | BL37: 43 | BM37: 44 | BN37: 16 | BO37: 37 | BP37: 62 | BQ37: 62 | BR37: 51 | BS37: 43 | BT37: 17 | BU37: 16 | BV37: 50 | BW37: 55 | BX37: 54 | BY37: 39 | BZ37: 13 | CA37: 47 | CB37: 42 | CC37: 48 | CD37: 47 | CE37: 34 | CF37: 20 | CG37: 35 | CH37: 32 | CI37: 40 | CJ37: 38 | CK37: 36 | CL37: 18 | CM37: 19 | CN37: 36 | CO37: 19 | CP37: 20 | CQ37: 9 | CU37: 13 | CV37: 23 | CW37: 24 | CX37: 13 | CY37: 16 | CZ37: 13 | DA37: 27 | DB37: 18 | DC37: 20 | DD37: 10 | DE37: 15 | DF37: 15 | DG37: 25 | DH37: 14 | DI37: 14 | DJ37: 5 | DK37: 13 | DL37: 19 | DM37: 25 | DN37: 14 | DO37: 36 | DP37: 7 | DQ37: 11 | DR37: 8 | DS37: 32 | DT37: 32 | DU37: 13 | DW37: 13 | DX37: 17 | DY37: 12 | DZ37: 22 | EA37: 18 | EB37: 15 | EC37: 18 | ED37: 16 | EE37: 26 | EF37: 15 | EG37: 15 | EH37: 7 | EI37: 9 | EJ37: 19 | EK37: 10 | EL37: 18 | EM37: 11 | EP37: 19 | EQ37: 17 | ER37: 23 | ES37: 20 | ET37: 7 | EU37: 9 | EV37: 17 | EW37: 40 | EX37: 14 | EY37: 12 | EZ37: 13 | FA37: 24 | FB37: 25 | FC37: 23 | FD37: 15 | FE37: 12 | FF37: 7 | FG37: 22 | FH37: 24 | FI37: 15 | FJ37: 18 | FK37: 13 | FL37: 9 | FM37: 4 | FN37: 22 | FO37: 14 | FP37: 27 | FQ37: 9 | FR37: 10 | FS37: 20 | FT37: 16 | FU37: 18 | FV37: 17 | FW37: 12 | FX37: 15 | FY37: 24 | FZ37: 17 | GA37: 22 | GB37: 15 | GC37: 8 | GD37: 9 | GE37: 14 | GF37: 14 | GG37: 10 | GH37: 4 | GL37: 14 | GM37: 9 | GN37: 14
B38: 20:00:00 | C38: 37 | D38: 21 | E38: 22 | F38: 7 | G38: 10 | H38: 18 | I38: 27 | J38: 27 | K38: 35 | L38: 18 | M38: 8 | N38: 33 | O38: 42 | P38: 29 | Q38: 30 | R38: 22 | S38: 14 | T38: 30 | U38: 43 | V38: 35 | W38: 44 | X38: 20 | Y38: 14 | Z38: 37 | AA38: 55 | AB38: 32 | AC38: 38 | AD38: 18 | AE38: 20 | AF38: 41 | AG38: 31 | AH38: 46 | AI38: 36 | AJ38: 16 | AK38: 15 | AL38: 16 | AM38: 48 | AN38: 35 | AO38: 35 | AP38: 13 | AQ38: 30 | AR38: 45 | AS38: 38 | AT38: 45 | AU38: 34 | AV38: 13 | AW38: 21 | AX38: 34 | AY38: 52 | AZ38: 45 | BA38: 35 | BB38: 19 | BC38: 28 | BD38: 42 | BE38: 53 | BF38: 32 | BG38: 38 | BH38: 9 | BI38: 41 | BJ38: 37 | BK38: 54 | BL38: 42 | BM38: 42 | BN38: 21 | BO38: 19 | BP38: 50 | BQ38: 56 | BR38: 40 | BS38: 42 | BT38: 16 | BU38: 25 | BV38: 52 | BW38: 58 | BX38: 46 | BY38: 46 | BZ38: 14 | CA38: 27 | CB38: 45 | CC38: 55 | CD38: 42 | CE38: 36 | CF38: 18 | CG38: 33 | CH38: 40 | CI38: 33 | CJ38: 29 | CK38: 32 | CL38: 25 | CM38: 24 | CN38: 33 | CO38: 26 | CP38: 18 | CQ38: 8 | CU38: 13 | CV38: 21 | CW38: 14 | CX38: 10 | CY38: 9 | CZ38: 14 | DA38: 21 | DB38: 20 | DC38: 23 | DD38: 6 | DE38: 11 | DF38: 19 | DG38: 22 | DH38: 24 | DI38: 16 | DJ38: 13 | DK38: 20 | DL38: 15 | DM38: 18 | DN38: 14 | DO38: 21 | DP38: 8 | DQ38: 9 | DR38: 7 | DS38: 35 | DT38: 19 | DU38: 15 | DW38: 23 | DX38: 17 | DY38: 24 | DZ38: 25 | EA38: 16 | EB38: 11 | EC38: 12 | ED38: 16 | EE38: 16 | EF38: 18 | EG38: 18 | EH38: 14 | EI38: 11 | EJ38: 10 | EK38: 13 | EL38: 12 | EM38: 11 | EP38: 6 | EQ38: 13 | ER38: 18 | ES38: 8 | ET38: 9 | EU38: 10 | EV38: 16 | EW38: 18 | EX38: 13 | EY38: 7 | EZ38: 14 | FA38: 16 | FB38: 12 | FC38: 24 | FD38: 12 | FE38: 4 | FF38: 12 | FG38: 11 | FH38: 29 | FI38: 12 | FJ38: 16 | FK38: 5 | FL38: 6 | FM38: 8 | FN38: 23 | FO38: 13 | FP38: 17 | FQ38: 13 | FR38: 17 | FS38: 8 | FT38: 27 | FU38: 14 | FV38: 19 | FW38: 17 | FX38: 14 | FY38: 16 | FZ38: 25 | GA38: 14 | GB38: 13 | GC38: 10 | GD38: 14 | GE38: 9 | GF38: 11 | GG38: 5 | GL38: 11 | GM38: 7 | GN38: 8
B39: 21:00:00 | C39: 27 | D39: 23 | E39: 26 | F39: 12 | G39: 15 | H39: 13 | I39: 35 | J39: 24 | K39: 24 | L39: 6 | M39: 26 | N39: 29 | O39: 31 | P39: 39 | Q39: 36 | R39: 10 | S39: 19 | T39: 38 | U39: 62 | V39: 46 | W39: 35 | X39: 12 | Y39: 21 | Z39: 32 | AA39: 47 | AB39: 35 | AC39: 29 | AD39: 13 | AE39: 14 | AF39: 42 | AG39: 23 | AH39: 20 | AI39: 20 | AJ39: 13 | AK39: 18 | AL39: 17 | AM39: 53 | AN39: 45 | AO39: 29 | AP39: 15 | AQ39: 21 | AR39: 38 | AS39: 37 | AT39: 32 | AU39: 33 | AV39: 12 | AW39: 24 | AX39: 52 | AY39: 48 | AZ39: 50 | BA39: 26 | BB39: 14 | BC39: 28 | BD39: 46 | BE39: 55 | BF39: 41 | BG39: 25 | BH39: 17 | BI39: 24 | BJ39: 44 | BK39: 47 | BL39: 49 | BM39: 28 | BN39: 15 | BO39: 33 | BP39: 44 | BQ39: 52 | BR39: 39 | BS39: 43 | BT39: 17 | BU39: 27 | BV39: 48 | BW39: 65 | BX39: 57 | BY39: 48 | BZ39: 25 | CA39: 31 | CB39: 50 | CC39: 59 | CD39: 44 | CE39: 32 | CF39: 27 | CG39: 32 | CH39: 47 | CI39: 42 | CJ39: 32 | CK39: 30 | CL39: 15 | CM39: 14 | CN39: 23 | CO39: 27 | CP39: 17 | CQ39: 9 | CU39: 27 | CV39: 20 | CW39: 13 | CX39: 9 | CY39: 15 | CZ39: 34 | DA39: 25 | DB39: 20 | DC39: 12 | DD39: 9 | DE39: 14 | DF39: 29 | DG39: 23 | DH39: 14 | DI39: 19 | DJ39: 6 | DK39: 11 | DL39: 21 | DM39: 19 | DN39: 18 | DO39: 14 | DP39: 17 | DQ39: 9 | DR39: 11 | DS39: 23 | DT39: 15 | DU39: 20 | DW39: 20 | DX39: 17 | DY39: 41 | DZ39: 26 | EA39: 22 | EB39: 12 | EC39: 20 | ED39: 23 | EE39: 15 | EF39: 18 | EG39: 18 | EH39: 14 | EI39: 6 | EJ39: 14 | EK39: 10 | EL39: 12 | EM39: 11 | EP39: 16 | EQ39: 19 | ER39: 14 | ES39: 17 | ET39: 11 | EU39: 3 | EV39: 9 | EW39: 19 | EX39: 13 | EY39: 10 | EZ39: 14 | FA39: 17 | FB39: 23 | FC39: 19 | FD39: 19 | FE39: 9 | FF39: 13 | FG39: 21 | FH39: 9 | FI39: 16 | FJ39: 22 | FK39: 9 | FL39: 9 | FM39: 8 | FN39: 28 | FO39: 17 | FP39: 15 | FQ39: 13 | FR39: 18 | FS39: 16 | FT39: 25 | FU39: 23 | FV39: 18 | FW39: 12 | FX39: 17 | FY39: 24 | FZ39: 17 | GA39: 14 | GB39: 13 | GC39: 5 | GD39: 15 | GE39: 14 | GF39: 12 | GG39: 10 | GL39: 6 | GM39: 7 | GN39: 14
B40: 22:00:00 | C40: 11 | D40: 11 | E40: 11 | F40: 1 | G40: 8 | I40: 21 | J40: 10 | K40: 18 | L40: 9 | M40: 19 | N40: 29 | O40: 36 | P40: 27 | Q40: 21 | R40: 10 | S40: 11 | T40: 19 | U40: 33 | V40: 20 | W40: 17 | X40: 6 | Y40: 14 | Z40: 30 | AA40: 18 | AB40: 23 | AC40: 23 | AD40: 13 | AE40: 19 | AF40: 27 | AG40: 17 | AH40: 21 | AI40: 21 | AJ40: 11 | AK40: 12 | AM40: 37 | AN40: 34 | AO40: 34 | AP40: 13 | AQ40: 23 | AR40: 22 | AS40: 26 | AT40: 32 | AU40: 24 | AV40: 20 | AW40: 18 | AX40: 37 | AY40: 34 | AZ40: 32 | BA40: 31 | BB40: 5 | BC40: 16 | BD40: 36 | BE40: 41 | BF40: 23 | BG40: 23 | BH40: 21 | BI40: 15 | BJ40: 40 | BK40: 45 | BL40: 33 | BM40: 23 | BN40: 15 | BO40: 27 | BP40: 40 | BQ40: 47 | BR40: 30 | BS40: 30 | BT40: 24 | BU40: 22 | BV40: 58 | BW40: 56 | BX40: 42 | BY40: 29 | BZ40: 23 | CA40: 23 | CB40: 50 | CC40: 43 | CD40: 33 | CE40: 24 | CF40: 22 | CG40: 34 | CH40: 37 | CI40: 22 | CJ40: 24 | CK40: 26 | CL40: 26 | CM40: 17 | CN40: 27 | CO40: 25 | ED40: 9 | EE40: 12 | EF40: 8 | EG40: 13 | EH40: 5 | EI40: 7 | EJ40: 16 | EK40: 11 | EL40: 3 | FY40: 4 | FZ40: 11 | GA40: 5 | GB40: 7 | GC40: 5 | GD40: 7 | GE40: 5 | GF40: 2 | GG40: 6
B41: 23:00:00 | C41: 4 | D41: 4 | E41: 7 | F41: 8 | G41: 7 | I41: 10 | J41: 4 | K41: 9 | L41: 6 | M41: 15 | N41: 16 | O41: 14 | P41: 13 | Q41: 9 | R41: 8 | S41: 10 | T41: 17 | U41: 14 | V41: 19 | W41: 19 | X41: 12 | Y41: 13 | Z41: 20 | AA41: 20 | AB41: 14 | AC41: 19 | AD41: 11 | AE41: 18 | AF41: 15 | AG41: 11 | AH41: 13 | AI41: 11 | AJ41: 5 | AK41: 7 | AM41: 29 | AN41: 21 | AO41: 16 | AP41: 11 | AQ41: 19 | AR41: 31 | AS41: 20 | AT41: 21 | AU41: 31 | AV41: 10 | AW41: 18 | AX41: 28 | AY41: 31 | AZ41: 34 | BA41: 12 | BB41: 12 | BC41: 13 | BD41: 29 | BE41: 21 | BF41: 18 | BG41: 18 | BH41: 13 | BI41: 16 | BJ41: 30 | BK41: 36 | BL41: 28 | BM41: 26 | BN41: 11 | BO41: 20 | BP41: 29 | BQ41: 36 | BR41: 26 | BS41: 35 | BT41: 22 | BU41: 15 | BV41: 48 | BW41: 44 | BX41: 37 | BY41: 20 | BZ41: 10 | CA41: 25 | CB41: 50 | CC41: 24 | CD41: 27 | CE41: 29 | CF41: 18 | CG41: 44 | CH41: 25 | CI41: 19 | CJ41: 15 | CK41: 17 | CL41: 14 | CM41: 23 | CN41: 12 | CO41: 10 | ED41: 7 | EE41: 4 | EF41: 6 | EG41: 5 | EH41: 7 | EI41: 7 | EJ41: 6 | EK41: 5 | EL41: 3 | FY41: 4 | FZ41: 8 | GA41: 7 | GB41: 4 | GC41: 2 | GD41: 9 | GE41: 3 | GF41: 3 | GG41: 3
B42: 1 | CB42: 3 | CC42: 11 | CD42: 9 | CE42: 8 | CF42: 12 | CH42: 20 | CI42: 5 | CJ42: 9 | CK42: 9 | CL42: 4 | CN42: 9 | CO42: 8
B43: 1.041666667 | CC43: 8 | CD43: 8 | CE43: 12 | CF43: 5 | CH43: 14 | CI43: 9 | CJ43: 8 | CK43: 7 | CL43: 9 | CN43: 7 | CO43: 5
B44: Total | C44: =SUM(C25:C43) -> 775 | D44: 822 | E44: 802 | F44: 746 | G44: 307 | H44: 340 | I44: 925 | J44: 805 | K44: 863 | L44: 793 | M44: 485 | N44: 906 | O44: 880 | P44: 853 | Q44: 822 | R44: 726 | S44: 420 | T44: 973 | U44: 942 | V44: 880 | W44: 913 | X44: 727 | Y44: 454 | Z44: 999 | AA44: 873 | AB44: 862 | AC44: 908 | AD44: 695 | AE44: 423 | AF44: 867 | AG44: 694 | AH44: 815 | AI44: =SUM(AI25:AI43) -> 831 | AJ44: 676 | AK44: 381 | AL44: 418 | AM44: 1040 | AN44: 1016 | AO44: 962 | AP44: 776 | AQ44: 509 | AR44: 1002 | AS44: 924 | AT44: 953 | AU44: 893 | AV44: 800 | AW44: 518 | AX44: 1004 | AY44: 1022 | AZ44: 984 | BA44: 861 | BB44: 757 | BC44: 487 | BD44: 1020 | BE44: 1036 | BF44: 888 | BG44: 888 | BH44: 787 | BI44: 518 | BJ44: 1019 | BK44: 1009 | BL44: 1025 | BM44: 836 | BN44: 886 | BO44: =SUM(BO25:BO43) -> 545 | BP44: 1182 | BQ44: 1006 | BR44: 1030 | BS44: 986 | BT44: 883 | BU44: 253 | BV44: 1106 | BW44: 1037 | BX44: 1016 | BY44: 829 | BZ44: 742 | CA44: 560 | CB44: 1021 | CC44: 986 | CD44: 943 | CE44: 792 | CF44: 749 | CG44: 598 | CH44: 917 | CI44: 768 | CJ44: 666 | CK44: 647 | CL44: 613 | CM44: 441 | CN44: 717 | CO44: 615 | CP44: 515 | CQ44: 282 | CR44: 189 | CS44: 104 | CT44: 298 | CU44: 506 | CV44: 558 | CW44: 477 | CX44: 416 | CY44: 244 | CZ44: 577 | DA44: 464 | DB44: 521 | DC44: 435 | DD44: 393 | DE44: 203 | DF44: 521 | DG44: 444 | DH44: 417 | DI44: 418 | DJ44: 379 | DK44: 211 | DL44: 501 | DM44: 446 | DN44: 470 | DO44: 431 | DP44: 378 | DQ44: 183 | DR44: 166 | DS44: 505 | DT44: 493 | DU44: 436 | DV44: 309 | DW44: 238 | DX44: 487 | DY44: 441 | DZ44: 504 | EA44: 430 | EB44: 391 | EC44: 212 | ED44: 464 | EE44: 426 | EF44: 472 | EG44: 417 | EH44: 348 | EI44: 208 | EJ44: 435 | EK44: 372 | EL44: 379 | EM44: 341 | EN44: 232 | EO44: 100 | EP44: 470 | EQ44: 380 | ER44: 466 | ES44: 383 | ET44: 343 | EU44: 156 | EV44: 474 | EW44: 491 | EX44: 387 | EY44: 338 | EZ44: 195 | FA44: 510 | FB44: 422 | FC44: 476 | FD44: 404 | FE44: 323 | FF44: 156 | FG44: 507 | FH44: 411 | FI44: 398 | FJ44: 361 | FK44: 390 | FL44: 152 | FM44: 148 | FN44: 472 | FO44: 445 | FP44: 394 | FQ44: 385 | FR44: 190 | FS44: 475 | FT44: =SUM(FT25:FT43) -> 391 | FU44: =SUM(FU25:FU43) -> 451 | FV44: 407 | FW44: 395 | FX44: 180 | FY44: 499 | FZ44: 439 | GA44: 475 | GB44: 366 | GC44: 316 | GD44: 211 | GE44: 393 | GF44: 327 | GG44: 342 | GH44: 249 | GI44: 210 | GJ44: 87 | GK44: 243 | GL44: 263 | GM44: 240 | GN44: 286 | GO44: 220 | GP44: 105 | GQ44: 298 | GR44: 286 | GS44: 267 | GT44: 287
A46: Items/Patron
A47: Hour | B47: 07:00:00 | C47: =IF(C3=0," ",C3/C25) -> 3.4 | D47: 1.2 | E47: 1.0625 | F47: 1 | I47: 1.857142857 | J47: 1.222222222 | K47: 1.2 | L47: 1 | N47: 2.266666667 | O47: 1.5 | P47: 1.375 | Q47: 1.571428571 | R47: 5.25 | T47: 2.555555556 | U47: 2.461538462 | V47: 1.222222222 | W47: 1.142857143 | X47: 1.571428571 | Z47: 1.571428571 | AA47: 1.125 | AB47: 1 | AC47: 1.333333333 | AD47: 1.4 | AF47: 1.785714286 | AG47: 1.454545455 | AH47: 1.428571429 | AI47: =IF(AI3=0," ",AI3/AI25) -> 1.5 | AJ47: 1.4 | AM47: 2 | AN47: 1.142857143 | AO47: 1.642857143 | AP47: 1.111111111 | AR47: 1.181818182 | AS47: 1 | AT47: 1.333333333 | AU47: 1.142857143 | AV47: 1.5 | AX47: 1.166666667 | AY47: 1.545454545 | AZ47: 1.5 | BA47: 1.111111111 | BB47: 1.166666667 | BD47: 1.333333333 | BE47: 1 | BF47: 2.3 | BG47: 1.272727273 | BH47: 2.6 | BJ47: 1.3 | BK47: 1.8 | BL47: 2 | BM47: 1.25 | BN47: 2.4 | BO47: =IF(BO3=0," ",BO3/BO25) ->  | BP47: 1 | BQ47: 1.909090909 | BR47: 1.25 | BS47: 1.75 | BT47: 2.571428571 | BV47: 1 | BW47: 1.125 | BX47: 1.666666667 | BY47: 1.111111111 | BZ47: 3.4 | CB47: 2.846153846 | CC47: 2.222222222 | CD47: 1.857142857 | CE47: 2.2 | CF47: 3.6 | CH47: 1.181818182 | CI47: 2.25 | CJ47: 12 | CK47: 3.25 | CL47: 1.142857143 | CN47: 1.333333333 | CO47: 1 | CP47: 1.25 | CT47: =IF(CT3=0," ",CT3/CT25) ->  | CU47: 1.25 | CV47: 2.5 | CW47: 1 | CX47: 1 | CZ47: 1.5 | DA47: 1 | DB47: 2 | DC47: 1.4 | DD47: 2.5 | DF47: 1.428571429 | DG47: 1.25 | DH47: 1.166666667 | DI47: 1 | DJ47: 1.25 | DL47: 5 | DM47: 1 | DN47: 1 | DP47: 2.333333333 | DS47: 1.333333333 | DT47: 2 | DU47: 1 | DV47: 1.857142857 | DX47: 2.583333333 | DY47: 1.25 | DZ47: 2.4 | EA47: 2 | EB47: 1 | ED47: 1.5 | EF47: 1 | EG47: 1.333333333 | EH47: 1 | EJ47: 1.625 | EL47: 3 | EM47: 1 | EP47: 1.2 | EQ47: 1.833333333 | ER47: 2.333333333 | ES47: 1.5 | ET47: 2 | EV47: 1.4 | EW47: 1 | EX47: 1 | EY47: 2 | FA47: 4 | FB47: 5 | FC47: 1 | FD47: 1.25 | FE47: 2.714285714 | FF47: =IF(FF3=0," ",FF3/FF25) ->  | FG47: 1 | FH47: 2 | FI47: 1 | FJ47: 1 | FK47: 1.25 | FN47: 2.6 | FO47: 1 | FP47: 2.5 | FQ47: 1 | FS47: 1.428571429 | FT47: 2.75 | FU47: 1 | FV47: 1.25 | FW47: 1.333333333 | FY47: 1 | FZ47: 1.333333333 | GA47: 1.666666667 | GB47: 1 | GC47: 1.5 | GE47: 1.6 | GF47: 1 | GG47: 1 | GH47: 1
B48: 08:00:00 | C48: =IF(C4=0," ",C4/C26) -> 1.291666667 | D48: 2.358974359 | E48: 2.307692308 | F48: 1.55 | G48: 2.666666667 | I48: 1.291666667 | J48: 1.44 | K48: 1.5 | L48: 2.03125 | M48: 1.666666667 | N48: 2.85 | O48: 1.636363636 | P48: 3.107142857 | Q48: 2.518518519 | R48: 2.222222222 | S48: 5 | T48: 2.269230769 | U48: 1.740740741 | V48: 2.206896552 | W48: 2.315789474 | X48: 3.52173913 | Y48: 1 | Z48: 2.441176471 | AA48: 1.357142857 | AB48: 2.642857143 | AC48: 2.826086957 | AD48: 2 | AE48: 1 | AF48: 5.25 | AG48: 1.8 | AH48: 3.444444444 | AI48: =IF(AI4=0," ",AI4/AI26) -> 3.6 | AJ48: 4.85 | AK48: 5 | AM48: 5.347826087 | AN48: 6.516129032 | AO48: 3.714285714 | AP48: 1.857142857 | AQ48: 1 | AR48: 2.903225806 | AS48: 1.64516129 | AT48: 3.033333333 | AU48: 1.52 | AV48: 2.206896552 | AW48: 1.4 | AX48: 3.5 | AY48: 1.961538462 | AZ48: 3.304347826 | BA48: 2.058823529 | BB48: 3.7 | BC48: 1 | BD48: 3.115384615 | BE48: 1.774193548 | BF48: 3.260869565 | BG48: 1.380952381 | BH48: 2.25 | BI48: 1.625 | BJ48: 2.945945946 | BK48: 1.952380952 | BL48: 5.130434783 | BM48: 1.842105263 | BN48: 4.347826087 | BO48: =IF(BO4=0," ",BO4/BO26) -> 1.25 | BP48: 2.897959184 | BQ48: 2.904761905 | BR48: 1.55 | BS48: 1.96 | BT48: 3.555555556 | BU48: 3.333333333 | BV48: 3.482758621 | BW48: 1.962962963 | BX48: 1.451612903 | BY48: 2 | BZ48: 2.833333333 | CA48: 1.571428571 | CB48: 2.282051282 | CC48: 2.304347826 | CD48: 1.952380952 | CE48: 1.421052632 | CF48: 2.333333333 | CG48: 2 | CH48: 3.375 | CI48: 5.238095238 | CJ48: 3.833333333 | CK48: 1.8 | CL48: 1.631578947 | CM48: 1.888888889 | CN48: 3.36 | CO48: 2.92 | CP48: 2.19047619 | CQ48: 5 | CR48: 2.333333333 | CS48: 1 | CT48: =IF(CT4=0," ",CT4/CT26) -> 1.416666667 | CU48: 2.363636364 | CV48: 8 | CW48: 1.5 | CX48: 2.25 | CY48: 1 | CZ48: 1.538461538 | DA48: 3.666666667 | DB48: 1.928571429 | DC48: 1.882352941 | DD48: 1.4 | DF48: 1.5 | DG48: 1.166666667 | DH48: 1.384615385 | DI48: 3.705882353 | DJ48: 4.222222222 | DK48: 1.5 | DL48: 2.75 | DM48: 2.75 | DN48: 1.555555556 | DO48: 4.8 | DP48: 2.714285714 | DQ48: 1.666666667 | DS48: 2.125 | DT48: 4.4375 | DU48: 3.222222222 | DV48: 4.461538462 | DW48: 1.5 | DX48: 1 | DY48: 2.2 | DZ48: 3.916666667 | EA48: 1.666666667 | EB48: 1.375 | EC48: 1 | ED48: 2.285714286 | EE48: 1.285714286 | EF48: 1.75 | EG48: 1.857142857 | EH48: 1.5 | EI48: 1 | EJ48: 1.333333333 | EK48: 1.666666667 | EL48: 3.8125 | EM48: 4 | EN48: 2.2 | EO48: 2 | EP48: 1.7 | EQ48: 5.2 | ER48: 2.222222222 | ES48: 1.75 | ET48: 2.875 | EU48: 1.2 | EV48: 2.090909091 | EW48: 1.928571429 | EX48: 2.375 | EY48: 2.555555556 | FA48: 1.647058824 | FB48: 1.1 | FC48: 8.8125 | FD48: 3.272727273 | FE48: 3.3 | FF48: =IF(FF4=0," ",FF4/FF26) -> 10 | FG48: 1.153846154 | FH48: 2.111111111 | FI48: 1.666666667 | FJ48: 1.363636364 | FK48: 2.25 | FL48: 12 | FN48: 1.333333333 | FO48: 1.666666667 | FP48: 3.125 | FQ48: 2.083333333 | FR48: 1 | FS48: 1.6 | FT48: 1.333333333 | FU48: 2 | FV48: 2.0625 | FW48: 1.5 | FX48: 1 | FY48: 1.777777778 | FZ48: 2.266666667 | GA48: 1.666666667 | GB48: 2 | GC48: 3 | GD48: 1 | GE48: 1.727272727 | GF48: 2.666666667 | GG48: 1.933333333 | GH48: 2 | GI48: 2.692307692 | GJ48: 2.5 | GK48: 1.666666667 | GL48: 1.769230769 | GM48: 5 | GN48: 2 | GO48: 4.666666667 | GQ48: 4.666666667 | GR48: 1.5 | GS48: 2 | GT48: 1.285714286
B49: 09:00:00 | C49: =IF(C5=0," ",C5/C27) -> 1.894736842 | D49: 1.379310345 | E49: 1.912280702 | F49: 2.461538462 | G49: 2.428571429 | I49: 2.426229508 | J49: 2.735849057 | K49: 2.566037736 | L49: 3.490196078 | M49: 3.25 | N49: 2.660377358 | O49: 3.536585366 | P49: 2.155172414 | Q49: 2.875 | R49: 2.224489796 | S49: 1.555555556 | T49: 1.633333333 | U49: 3.566037736 | V49: 2.76 | W49: 2.909090909 | X49: 1.978723404 | Y49: 2.75 | Z49: 2.346938776 | AA49: 3.666666667 | AB49: 1.390243902 | AC49: 3.280701754 | AD49: 2.744186047 | AE49: 2.333333333 | AF49: 1.962264151 | AG49: 4.305555556 | AH49: 2.548387097 | AI49: =IF(AI5=0," ",AI5/AI27) -> 2.319148936 | AJ49: 2 | AK49: 3.4 | AM49: 2.093023256 | AN49: 1.708333333 | AO49: 2.161764706 | AP49: 3.175 | AQ49: 2 | AR49: 1.277777778 | AS49: 3.456521739 | AT49: 1.8 | AU49: 3.981132075 | AV49: 1.9375 | AW49: 2.2 | AX49: 1.603773585 | AY49: 3.324324324 | AZ49: 2.045454545 | BA49: 3.936170213 | BB49: 2.738095238 | BC49: 2.181818182 | BD49: 2.196078431 | BE49: 2.893617021 | BF49: 1.875 | BG49: 4.065217391 | BH49: 2.652173913 | BI49: 2.388888889 | BJ49: 1.782608696 | BK49: 3.145454545 | BL49: 2.384615385 | BM49: 2.509803922 | BN49: 1.672131148 | BO49: =IF(BO5=0," ",BO5/BO27) -> 2 | BP49: 2.646153846 | BQ49: 3.340909091 | BR49: 2.448979592 | BS49: 2.4 | BT49: 1.938461538 | BU49: 3.923076923 | BV49: 1.911111111 | BW49: 3.825 | BX49: 3.239130435 | BY49: 3.256410256 | BZ49: 2.268292683 | CA49: 1.727272727 | CB49: 7.912280702 | CC49: 3.545454545 | CD49: 2.775510204 | CE49: 2.454545455 | CF49: 2.081081081 | CG49: 3 | CH49: 2.046511628 | CI49: 3.093023256 | CJ49: 1.583333333 | CK49: 2.862068966 | CL49: 2.393939394 | CM49: 1.466666667 | CN49: 2.357142857 | CO49: 2.65 | CP49: 2.657894737 | CQ49: 2.15 | CR49: 4.928571429 | CS49: 2.333333333 | CT49: =IF(CT5=0," ",CT5/CT27) -> 2.416666667 | CU49: 1.615384615 | CV49: 2.216216216 | CW49: 1.5 | CX49: 3.038461538 | CY49: 3.666666667 | CZ49: 3.090909091 | DA49: 3.6875 | DB49: 2.953488372 | DC49: 1.56 | DD49: 2.804347826 | DE49: 1.333333333 | DF49: 3.933333333 | DG49: 4.7 | DH49: 4.25 | DI49: 2.571428571 | DJ49: 3.5625 | DK49: 2.25 | DL49: 2.846153846 | DM49: 3.862068966 | DN49: 2.15625 | DO49: 2.842105263 | DP49: 2.25 | DQ49: 3.6 | DS49: 3.275862069 | DT49: 1.961538462 | DU49: 3.695652174 | DV49: 2.28 | DW49: 2.4 | DX49: 4 | DY49: 6.24 | DZ49: 2.961538462 | EA49: 6.5 | EB49: 3.444444444 | EC49: 1.666666667 | ED49: 4.333333333 | EE49: 6.107142857 | EF49: 4.037037037 | EG49: 3.3125 | EH49: 3.875 | EI49: 2.625 | EJ49: 2.96 | EK49: 3.909090909 | EL49: 1.958333333 | EM49: 2 | EN49: 5.142857143 | EO49: 2.5 | EP49: 1.52 | EQ49: 4 | ER49: 1.586206897 | ES49: 2.071428571 | ET49: 3 | EU49: 1.666666667 | EV49: 1.790697674 | EW49: 1.875 | EX49: 4.666666667 | EY49: 2.611111111 | EZ49: 2.8 | FA49: 2.038461538 | FB49: 3.8 | FC49: 5.294117647 | FD49: 4.590909091 | FE49: 5.4375 | FF49: =IF(FF5=0," ",FF5/FF27) -> 4.75 | FG49: 1.676470588 | FH49: 4.25 | FI49: 5.142857143 | FJ49: 4.888888889 | FK49: 3.739130435 | FL49: 1.8 | FN49: 2.03125 | FO49: 1.913043478 | FP49: 3.15 | FQ49: 3.064516129 | FR49: 2 | FS49: 3.0625 | FT49: 7.130434783 | FU49: 2.5625 | FV49: 4.035714286 | FW49: 3.84375 | FX49: 4.333333333 | FY49: 2.65625 | FZ49: 3.724137931 | GA49: 1.58974359 | GB49: 3.75 | GC49: 3.928571429 | GD49: 1 | GE49: 1.852941176 | GF49: 2.5625 | GG49: 2.518518519 | GH49: 6 | GI49: 3.3 | GJ49: 1 | GK49: 1.956521739 | GL49: 2.277777778 | GM49: 2.904761905 | GN49: 2.055555556 | GO49: 2.095238095 | GP49: 15 | GQ49: 2.75 | GR49: 4.5 | GS49: 5.08 | GT49: 6
B50: 10:00:00 | C50: =IF(C6=0," ",C6/C28) -> 4.72972973 | D50: 1.779411765 | E50: 2.805970149 | F50: 1.804878049 | G50: 1.384615385 | H50: 3.538461538 | I50: 2.296296296 | J50: 1.626865672 | K50: 3.62962963 | L50: 3.120689655 | M50: 2.608695652 | N50: 2.852941176 | O50: 2.317460317 | P50: 1.68627451 | Q50: 2.837837838 | R50: 2.655737705 | S50: 2 | T50: 3.054545455 | U50: 2.830508475 | V50: 2.150943396 | W50: 2.288888889 | X50: 2.0125 | Y50: 2.125 | Z50: 1.864197531 | AA50: 4.19047619 | AB50: 2.042253521 | AC50: 3.151515152 | AD50: 2.238095238 | AE50: 1.933333333 | AF50: 1.786666667 | AG50: 2.636363636 | AH50: 2.033333333 | AI50: =IF(AI6=0," ",AI6/AI28) -> 2.304347826 | AJ50: 2.615384615 | AK50: 2 | AL50: 2.56 | AM50: 2.22972973 | AN50: 2.428571429 | AO50: 2.233333333 | AP50: 2.133333333 | AQ50: 2.555555556 | AR50: 2.414285714 | AS50: 3.692307692 | AT50: 2.090909091 | AU50: 2.152542373 | AV50: 2.93902439 | AW50: 1.75 | AX50: 2.704225352 | AY50: 1.88 | AZ50: 2.08974359 | BA50: 2.360655738 | BB50: 1.903225806 | BC50: 2.454545455 | BD50: 2.445945946 | BE50: 3.646153846 | BF50: 3.123287671 | BG50: 2.843137255 | BH50: 2.116883117 | BI50: 1.823529412 | BJ50: 1.779411765 | BK50: 4.169811321 | BL50: 2.272727273 | BM50: 3.123076923 | BN50: 3.488372093 | BO50: =IF(BO6=0," ",BO6/BO28) -> 2.333333333 | BP50: 2.194444444 | BQ50: 2.431372549 | BR50: 2.282051282 | BS50: 2.971014493 | BT50: 2.388888889 | BV50: 2.146341463 | BW50: 2.897959184 | BX50: 2.253968254 | BY50: 3.075471698 | BZ50: 2.423728814 | CA50: 2.615384615 | CB50: 3.774193548 | CC50: 2.303030303 | CD50: 3.392857143 | CE50: 2.7 | CF50: 1.863636364 | CG50: 2.476190476 | CH50: 1.808219178 | CI50: 2.322580645 | CJ50: 2.795454545 | CK50: 4.571428571 | CL50: 2.12962963 | CM50: 2.057142857 | CN50: 2.405405405 | CO50: 3.021276596 | CP50: 1.96875 | CQ50: 3 | CR50: 2.764705882 | CS50: 2.875 | CT50: =IF(CT6=0," ",CT6/CT28) -> 3.125 | CU50: 3.108695652 | CV50: 2.25 | CW50: 2.489795918 | CX50: 2.323529412 | CY50: 2.933333333 | CZ50: 2.41025641 | DA50: 2.52173913 | DB50: 2.125 | DC50: 4.137931034 | DD50: 2.470588235 | DE50: 2.25 | DF50: 2.314285714 | DG50: 3.03125 | DH50: 1.810810811 | DI50: 3.451612903 | DJ50: 2.918918919 | DK50: 1.125 | DL50: 1.613636364 | DM50: 1.838709677 | DN50: 2.214285714 | DO50: 2.512820513 | DP50: 2.115384615 | DQ50: 3.583333333 | DR50: 1.5 | DS50: 2.448275862 | DT50: 3.714285714 | DU50: 2.34375 | DV50: 4.676470588 | DW50: 1.636363636 | DX50: 3.2 | DY50: 2.675675676 | DZ50: 2.352941176 | EA50: 3.171428571 | EB50: 2.419354839 | EC50: 1.333333333 | ED50: 2.428571429 | EE50: 3.24137931 | EF50: 2.697674419 | EG50: 1.885714286 | EH50: 3.142857143 | EI50: 2.75 | EJ50: 3.9 | EK50: 2.965517241 | EL50: 2.925925926 | EM50: 1.814814815 | EN50: 8.857142857 | EO50: 2.625 | EP50: 2.363636364 | EQ50: 2.315789474 | ER50: 3.724137931 | ES50: 1.68 | ET50: 2.517241379 | EU50: 1.555555556 | EV50: 3.266666667 | EW50: 3.473684211 | EX50: 1.631578947 | EY50: 4.090909091 | EZ50: 3.5 | FA50: 3.36 | FB50: 3.128205128 | FC50: 2.1875 | FD50: 2.222222222 | FE50: 2.304347826 | FF50: =IF(FF6=0," ",FF6/FF28) -> 1.666666667 | FG50: 4 | FH50: 2.433333333 | FI50: 2.475 | FJ50: 3.076923077 | FK50: 2.208333333 | FL50: 1.833333333 | FM50: 2 | FN50: 3.636363636 | FO50: 2 | FP50: 2.375 | FQ50: 2.318181818 | FR50: 2.4 | FS50: 3.871794872 | FT50: 2.8125 | FU50: 3.25 | FV50: 1.764705882 | FW50: 2.5 | FX50: 1.714285714 | FY50: 3.042553191 | FZ50: 2.588235294 | GA50: 3.720930233 | GB50: 1.923076923 | GC50: 1.821428571 | GD50: 2.285714286 | GE50: 2.846153846 | GF50: 3.606060606 | GG50: 2.740740741 | GH50: 2.28 | GI50: 4.2 | GJ50: 1.8 | GK50: 3.4375 | GL50: 3.128205128 | GM50: 4.666666667 | GN50: 4.333333333 | GO50: 1.764705882 | GP50: 1.428571429 | GQ50: 3.423076923 | GR50: 4.214285714 | GS50: 1.631578947 | GT50: 3.9375
B51: 11:00:00 | C51: =IF(C7=0," ",C7/C29) -> 2.75 | D51: 2.38028169 | E51: 1.893333333 | F51: 1.678571429 | G51: 1.727272727 | H51: 2.925925926 | I51: 1.722222222 | J51: 2.987341772 | K51: 1.865853659 | L51: 2.405940594 | M51: 2.333333333 | N51: 1.983870968 | O51: 1.777777778 | P51: 2.132352941 | Q51: 2.048387097 | R51: 2.420289855 | S51: 1.8 | T51: 2.38372093 | U51: 2.32 | V51: 2.189873418 | W51: 2.242857143 | X51: 2.5625 | Y51: 2.921052632 | Z51: 2.217391304 | AA51: 2 | AB51: 2.369047619 | AC51: 1.814285714 | AD51: 2.590909091 | AE51: 2.526315789 | AF51: 2.095890411 | AG51: 1.909090909 | AH51: 2.544117647 | AI51: =IF(AI7=0," ",AI7/AI29) -> 2.101449275 | AJ51: 2.363636364 | AK51: 2.08 | AL51: 2.236842105 | AM51: 1.948051948 | AN51: 2 | AO51: 2.451219512 | AP51: 2.180722892 | AQ51: 3.235294118 | AR51: 2.273809524 | AS51: 2.636363636 | AT51: 1.835164835 | AU51: 1.954545455 | AV51: 2.388888889 | AW51: 3.931034483 | AX51: 2.285714286 | AY51: 2.708333333 | AZ51: 2.443037975 | BA51: 1.897435897 | BB51: 2.205128205 | BC51: 2.368421053 | BD51: 2.194805195 | BE51: 1.518518519 | BF51: 2.579710145 | BG51: 2.198113208 | BH51: 2.558441558 | BI51: 3.21875 | BJ51: 2.139240506 | BK51: 3 | BL51: 2.084337349 | BM51: 2.471428571 | BN51: 2.178947368 | BO51: =IF(BO7=0," ",BO7/BO29) -> 2.242424242 | BP51: 2.313253012 | BQ51: 3.571428571 | BR51: 2.379310345 | BS51: 2.915492958 | BT51: 3.05 | BU51: 1 | BV51: 1.945205479 | BW51: 3.157894737 | BX51: 2.397590361 | BY51: 2.301587302 | BZ51: 2.7 | CA51: 3 | CB51: 2.794871795 | CC51: 2.916666667 | CD51: 2.449275362 | CE51: 2.161764706 | CF51: 2.714285714 | CG51: 3.230769231 | CH51: 2.533333333 | CI51: 2.210526316 | CJ51: 2.45 | CK51: 1.928571429 | CL51: 2.833333333 | CM51: 2.689655172 | CN51: 2.270833333 | CO51: 2.549019608 | CP51: 2.680851064 | CQ51: 2.714285714 | CR51: 2.357142857 | CS51: 2.555555556 | CT51: =IF(CT7=0," ",CT7/CT29) -> 5.702702703 | CU51: 3.180327869 | CV51: 2.490196078 | CW51: 2.30952381 | CX51: 2.58974359 | CY51: 1.529411765 | CZ51: 2.70212766 | DA51: 2.7 | DB51: 2.803571429 | DC51: 3.035714286 | DD51: 3.125 | DE51: 4.3 | DF51: 2.352941176 | DG51: 2.8125 | DH51: 2.325581395 | DI51: 2.086956522 | DJ51: 3.342105263 | DK51: 4.5 | DL51: 2.553571429 | DM51: 3.727272727 | DN51: 3.048780488 | DO51: 2.625 | DP51: 3.142857143 | DQ51: 4.1 | DR51: 2.0625 | DS51: 3.5 | DT51: 2.205128205 | DU51: 3.727272727 | DV51: 3.166666667 | DW51: 2.75 | DX51: 2.942307692 | DY51: 1.4 | DZ51: 1.982758621 | EA51: 2.194444444 | EB51: 2.783783784 | EC51: 2.583333333 | ED51: 2.425531915 | EE51: 2.125 | EF51: 3.173913043 | EG51: 2.115384615 | EH51: 2.25 | EI51: 2.733333333 | EJ51: 2.611111111 | EK51: 2.263157895 | EL51: 2.388888889 | EM51: 2.84 | EN51: 2.590909091 | EO51: 2.545454545 | EP51: 4.134615385 | EQ51: 11.2 | ER51: 2.466666667 | ES51: 3.580645161 | ET51: 3.580645161 | EU51: 1.333333333 | EV51: 2.951219512 | EW51: 2.425 | EX51: 2.175 | EY51: 3.958333333 | EZ51: 3.071428571 | FA51: 3.507246377 | FB51: 3.428571429 | FC51: 3.217391304 | FD51: 1.903225806 | FE51: 2.888888889 | FF51: =IF(FF7=0," ",FF7/FF29) -> 1.857142857 | FG51: 2.042553191 | FH51: 3.090909091 | FI51: 2.473684211 | FJ51: 2.264705882 | FK51: 3.133333333 | FL51: 2.666666667 | FM51: 2.933333333 | FN51: 9.857142857 | FO51: 3.159090909 | FP51: 2.258064516 | FQ51: 1.833333333 | FR51: 3.166666667 | FS51: 3.222222222 | FT51: 4.571428571 | FU51: 3.085106383 | FV51: 2.583333333 | FW51: 3.230769231 | FX51: 2 | FY51: 3 | FZ51: 2.25 | GA51: 3.102564103 | GB51: 2.512820513 | GC51: 3.066666667 | GD51: 2.1 | GE51: 3.303030303 | GF51: 1.944444444 | GG51: 1.931034483 | GH51: 2.352941176 | GI51: 2.869565217 | GJ51: 4.166666667 | GK51: 2.741935484 | GL51: 3.833333333 | GM51: 4.482758621 | GN51: 4.933333333 | GO51: 3.633333333 | GP51: 5.416666667 | GQ51: 2.243243243 | GR51: 2.230769231 | GS51: 2.486486486 | GT51: 2.727272727
B52: 12:00:00 | C52: =IF(C8=0," ",C8/C30) -> 2 | D52: 1.929577465 | E52: 2 | F52: 2.25 | G52: 1.925925926 | H52: 3.204545455 | I52: 1.656565657 | J52: 2.475409836 | K52: 1.902439024 | L52: 2.03030303 | M52: 1.966666667 | N52: 2.341463415 | O52: 2.102272727 | P52: 2.376811594 | Q52: 2.0625 | R52: 2.090909091 | S52: 2.634615385 | T52: 2.694736842 | U52: 2.252747253 | V52: 1.558823529 | W52: 1.898305085 | X52: 2.446153846 | Y52: 3.022222222 | Z52: 2.583333333 | AA52: 2.130434783 | AB52: 1.901408451 | AC52: 2.466666667 | AD52: 2.214285714 | AE52: 3 | AF52: 2.382716049 | AG52: 2.333333333 | AH52: 1.558441558 | AI52: =IF(AI8=0," ",AI8/AI30) -> 2.379310345 | AJ52: 2.125 | AK52: 3.371428571 | AL52: 2.864864865 | AM52: 2.114035088 | AN52: 2.223684211 | AO52: 3.011627907 | AP52: 2.129411765 | AQ52: 2.204545455 | AR52: 2.078947368 | AS52: 2.223684211 | AT52: 2.226666667 | AU52: 2.014084507 | AV52: 2.209302326 | AW52: 3.26 | AX52: 2.602272727 | AY52: 2.073170732 | AZ52: 2.348314607 | BA52: 2.097560976 | BB52: 2.060240964 | BC52: 2.542857143 | BD52: 2.015873016 | BE52: 2.265822785 | BF52: 2.246153846 | BG52: 2.173913043 | BH52: 2.309859155 | BI52: 2.875 | BJ52: 2.230769231 | BK52: 2.014492754 | BL52: 2.465753425 | BM52: 2.194029851 | BN52: 2.773584906 | BO52: =IF(BO8=0," ",BO8/BO30) -> 3.051282051 | BP52: 2.288659794 | BQ52: 2.184210526 | BR52: 1.948717949 | BS52: 2.411764706 | BT52: 2.38 | BU52: 2.6875 | BV52: 2.459183673 | BW52: 2.3 | BX52: 2.328947368 | BY52: 2.174603175 | BZ52: 2.513888889 | CA52: 2.4 | CB52: 2.75 | CC52: 1.974358974 | CD52: 2.367088608 | CE52: 2.426229508 | CF52: 2.3125 | CG52: 2.071428571 | CH52: 2.432432432 | CI52: 2.131147541 | CJ52: 2.444444444 | CK52: 2.049180328 | CL52: 1.933333333 | CM52: 1.840909091 | CN52: 2.694915254 | CO52: 2.051282051 | CP52: 1.782608696 | CQ52: 2.53125 | CR52: 2 | CS52: 1.375 | CT52: =IF(CT8=0," ",CT8/CT30) -> 2.630434783 | CU52: 2.979166667 | CV52: 2.603773585 | CW52: 2.038461538 | CX52: 2.057692308 | CY52: 2.789473684 | CZ52: 1.721311475 | DA52: 2.322580645 | DB52: 2.5 | DC52: 2.025641026 | DD52: 3.378378378 | DE52: 2.466666667 | DF52: 2.36 | DG52: 2.836363636 | DH52: 2.794871795 | DI52: 1.96875 | DJ52: 2.114285714 | DK52: 2.6 | DL52: 2.357142857 | DM52: 2.959183673 | DN52: 3.490566038 | DO52: 1.763157895 | DP52: 2.824561404 | DQ52: 2 | DR52: 3 | DS52: 2.555555556 | DT52: 2.54 | DU52: 2.2 | DV52: 2.872340426 | DW52: 1.470588235 | DX52: 2.975609756 | DY52: 2.959183673 | DZ52: 3.41025641 | EA52: 2.428571429 | EB52: 2.631578947 | EC52: 2.3 | ED52: 2.028571429 | EE52: 2.204545455 | EF52: 2.4375 | EG52: 2.235294118 | EH52: 2.392857143 | EI52: 2.035714286 | EJ52: 1.921052632 | EK52: 1.6 | EL52: 2.463414634 | EM52: 2.131578947 | EN52: 2.576923077 | EO52: 2 | EP52: 2.142857143 | EQ52: 2.583333333 | ER52: 2.461538462 | ES52: 2.5 | ET52: 2.694444444 | EU52: 3.083333333 | EV52: 2.714285714 | EW52: 2.239130435 | EX52: 3.647058824 | EY52: 2.731707317 | EZ52: 2.357142857 | FA52: 2.259259259 | FB52: 2.12244898 | FC52: 3.111111111 | FD52: 2.390243902 | FE52: 2.408163265 | FF52: =IF(FF8=0," ",FF8/FF30) -> 1.7 | FG52: 3.358490566 | FH52: 2.369565217 | FI52: 2.169811321 | FJ52: 3.6 | FK52: 2.287878788 | FL52: 3.75 | FM52: 3 | FN52: 2.887096774 | FO52: 2.288461538 | FP52: 3.023255814 | FQ52: 2.8 | FR52: 3.166666667 | FS52: 2.543478261 | FT52: 2.694444444 | FU52: 3.25 | FV52: 3.111111111 | FW52: 2.37037037 | FX52: 3.333333333 | FY52: 2.666666667 | FZ52: 2.318181818 | GA52: 2.266666667 | GB52: 2.022222222 | GC52: 3.555555556 | GD52: 2.125 | GE52: 2.7 | GF52: 3.225806452 | GG52: 2.282608696 | GH52: 2.212121212 | GI52: 3.428571429 | GJ52: 3.4 | GK52: 2.666666667 | GL52: 1.64 | GM52: 2.32 | GN52: 3.444444444 | GO52: 2.142857143 | GP52: 2.222222222 | GQ52: 2.757575758 | GR52: 1.771428571 | GS52: 2.9375 | GT52: 2.710526316
B53: 13:00:00 | C53: =IF(C9=0," ",C9/C31) -> 2.02739726 | D53: 1.75 | E53: 1.516129032 | F53: 2.717948718 | G53: 2.848484848 | H53: 2.310344828 | I53: 2.357142857 | J53: 1.7875 | K53: 1.873417722 | L53: 2.164705882 | M53: 2.394736842 | N53: 1.787878788 | O53: 1.728395062 | P53: 2.111111111 | Q53: 1.779069767 | R53: 1.835443038 | S53: 2.289473684 | T53: 2.726190476 | U53: 2.602564103 | V53: 1.743589744 | W53: 2.067567568 | X53: 2.44047619 | Y53: 2.942857143 | Z53: 1.990384615 | AA53: 2.114942529 | AB53: 2.476190476 | AC53: 1.988764045 | AD53: 1.857142857 | AE53: 2.268292683 | AF53: 2.206349206 | AG53: 1.734939759 | AH53: 2.072463768 | AI53: =IF(AI9=0," ",AI9/AI31) -> 2.75 | AJ53: 2.271428571 | AK53: 3.194444444 | AL53: 2.805555556 | AM53: 2.448275862 | AN53: 2.075949367 | AO53: 2.189189189 | AP53: 3.107142857 | AQ53: 2.708333333 | AR53: 2.574712644 | AS53: 2.279569892 | AT53: 2.704225352 | AU53: 2.316455696 | AV53: 2.26744186 | AW53: 3.22 | AX53: 2.423913043 | AY53: 2.92 | AZ53: 2.455882353 | BA53: 2.602272727 | BB53: 3.2375 | BC53: 2.469387755 | BD53: 2.522522523 | BE53: 2.212121212 | BF53: 2.096774194 | BG53: 2.111111111 | BH53: 2.3125 | BI53: 3.355555556 | BJ53: 3 | BK53: 2.226190476 | BL53: 3.183673469 | BM53: 2.384615385 | BN53: 2.290322581 | BO53: =IF(BO9=0," ",BO9/BO31) -> 3.367346939 | BP53: 2.29245283 | BQ53: 2.656862745 | BR53: 2.198113208 | BS53: 2.024390244 | BT53: 2.183673469 | BU53: 2.8125 | BV53: 2.43956044 | BW53: 2.619047619 | BX53: 2.320512821 | BY53: 2.288888889 | BZ53: 2.517241379 | CA53: 3.153846154 | CB53: 3.051948052 | CC53: 2.708860759 | CD53: 2.431818182 | CE53: 2.22972973 | CF53: 2 | CG53: 3.025 | CH53: 1.965116279 | CI53: 1.971428571 | CJ53: 2.033333333 | CK53: 1.58490566 | CL53: 2.4 | CM53: 2.258064516 | CN53: 2.523809524 | CO53: 2.49122807 | CP53: 2.653061224 | CQ53: 2.739130435 | CR53: 2.80952381 | CS53: 1.916666667 | CT53: =IF(CT9=0," ",CT9/CT31) -> 2.34375 | CU53: 2.236363636 | CV53: 2.779661017 | CW53: 1.636363636 | CX53: 2.25 | CY53: 3.571428571 | CZ53: 2.553846154 | DA53: 3.555555556 | DB53: 3.152173913 | DC53: 2.175 | DD53: 4 | DE53: 2.714285714 | DF53: 2.461538462 | DG53: 2.772727273 | DH53: 3.970588235 | DI53: 2.605263158 | DJ53: 2.536585366 | DK53: 3.692307692 | DL53: 2.261904762 | DM53: 2.275 | DN53: 2.754716981 | DO53: 2.166666667 | DP53: 2.463414634 | DQ53: 2.615384615 | DR53: 4.928571429 | DS53: 2.833333333 | DT53: 3.244444444 | DU53: 2.75 | DV53: 3.060606061 | DW53: 2.565217391 | DX53: 1.945454545 | DY53: 3.069767442 | DZ53: 2.595744681 | EA53: 2.972222222 | EB53: 2.52173913 | EC53: 2.814814815 | ED53: 2.35 | EE53: 3.5 | EF53: 2.488372093 | EG53: 2.807692308 | EH53: 2.361111111 | EI53: 1.684210526 | EJ53: 2.119047619 | EK53: 2.411764706 | EL53: 2.636363636 | EM53: 2.421052632 | EN53: 2.166666667 | EO53: 1.4375 | EP53: 3.105263158 | EQ53: 3.173913043 | ER53: 2.12 | ES53: 2.513513514 | ET53: 2.725 | EU53: 3.954545455 | EV53: 2.461538462 | EW53: 2.780487805 | EX53: 3.886363636 | EY53: 3.6 | EZ53: 2.105263158 | FA53: 2.044444444 | FB53: 2.704545455 | FC53: 3.772727273 | FD53: 2.473684211 | FE53: 2.657142857 | FF53: =IF(FF9=0," ",FF9/FF31) -> 1.785714286 | FG53: 2.465116279 | FH53: 2.6875 | FI53: 2.448979592 | FJ53: 1.928571429 | FK53: 3.114285714 | FL53: 3.111111111 | FM53: 2.692307692 | FN53: 2.302325581 | FO53: 2.714285714 | FP53: 2.729166667 | FQ53: 2.538461538 | FR53: 2.090909091 | FS53: 3.156862745 | FT53: 3.034482759 | FU53: 1.928571429 | FV53: 3.236842105 | FW53: 4.365853659 | FX53: 2.769230769 | FY53: 1.685714286 | FZ53: 2.268292683 | GA53: 2.157894737 | GB53: 2.058823529 | GC53: 2.75 | GD53: 3.181818182 | GE53: 1.926829268 | GF53: 2.088235294 | GG53: 2.875 | GH53: 2.636363636 | GI53: 2.833333333 | GJ53: 2.363636364 | GK53: 3.416666667 | GL53: 2.45 | GM53: 2.230769231 | GN53: 2.565217391 | GO53: 2.444444444 | GP53: 2.733333333 | GQ53: 2.333333333 | GR53: 2.621621622 | GS53: 1.913043478 | GT53: 2
B54: 14:00:00 | C54: =IF(C10=0," ",C10/C32) -> 1.936708861 | D54: 2.02247191 | E54: 2.296703297 | F54: 1.634146341 | G54: 1.823529412 | H54: 1.925 | I54: 2.032608696 | J54: 1.622222222 | K54: 2.283950617 | L54: 2.2625 | M54: 1.867924528 | N54: 1.945945946 | O54: 1.860465116 | P54: 1.744897959 | Q54: 2.133333333 | R54: 2.211111111 | S54: 3.529411765 | T54: 2.042105263 | U54: 2.305263158 | V54: 1.684931507 | W54: 2.357142857 | X54: 2.092105263 | Y54: 3.11627907 | Z54: 2.268292683 | AA54: 1.694444444 | AB54: 2.402985075 | AC54: 2.228571429 | AD54: 2.328571429 | AE54: 3 | AF54: 1.855421687 | AG54: 1.6 | AH54: 3.041666667 | AI54: =IF(AI10=0," ",AI10/AI32) -> 2.196078431 | AJ54: 2.31884058 | AK54: 3.769230769 | AL54: 2.239130435 | AM54: 3.037037037 | AN54: 2.369565217 | AO54: 2.369047619 | AP54: 2.548780488 | AQ54: 3.24 | AR54: 2.146067416 | AS54: 2.144329897 | AT54: 2.638554217 | AU54: 2.835294118 | AV54: 3.155555556 | AW54: 2.323529412 | AX54: 2.796610169 | AY54: 1.99009901 | AZ54: 2.319587629 | BA54: 2.984126984 | BB54: 2.65 | BC54: 3.147058824 | BD54: 2.976470588 | BE54: 1.988505747 | BF54: 2.510869565 | BG54: 2.653846154 | BH54: 2.402597403 | BI54: 2.574468085 | BJ54: 2.252747253 | BK54: 2.571428571 | BL54: 2.073684211 | BM54: 2.569620253 | BN54: 2.91588785 | BO54: =IF(BO10=0," ",BO10/BO32) -> 3.388888889 | BP54: 2.153153153 | BQ54: 2.844444444 | BR54: 2.736263736 | BS54: 2.680412371 | BT54: 2.638554217 | BU54: 1.5 | BV54: 2.552380952 | BW54: 2.263157895 | BX54: 2.931034483 | BY54: 3.385964912 | BZ54: 2.613333333 | CA54: 3 | CB54: 2.382716049 | CC54: 2.738636364 | CD54: 2.628205128 | CE54: 2.462686567 | CF54: 2.116883117 | CG54: 3 | CH54: 1.814814815 | CI54: 2 | CJ54: 2.265625 | CK54: 2.178571429 | CL54: 1.78 | CM54: 1.741935484 | CN54: 2.620689655 | CO54: 2.745454545 | CP54: 2.380952381 | CQ54: 3.375 | CR54: 4.555555556 | CS54: 2.875 | CT54: =IF(CT10=0," ",CT10/CT32) -> 3.137931034 | CU54: 2.352941176 | CV54: 2.339622642 | CW54: 2.225 | CX54: 3.209302326 | CY54: 3.238095238 | CZ54: 2.142857143 | DA54: 2.5 | DB54: 2.530612245 | DC54: 1.826086957 | DD54: 3.029411765 | DE54: 2.407407407 | DF54: 2.073170732 | DG54: 3 | DH54: 2.581395349 | DI54: 2.666666667 | DJ54: 2.488372093 | DK54: 3.055555556 | DL54: 2.6 | DM54: 2.585365854 | DN54: 3.377777778 | DO54: 2.169491525 | DP54: 2.777777778 | DQ54: 2.352941176 | DR54: 2.954545455 | DS54: 2.1 | DT54: 3.306122449 | DU54: 3.03030303 | DV54: 3.375 | DW54: 2.409090909 | DX54: 2.083333333 | DY54: 2.765957447 | DZ54: 2.428571429 | EA54: 2.380952381 | EB54: 3.526315789 | EC54: 2.611111111 | ED54: 2.142857143 | EE54: 1.927272727 | EF54: 2.757575758 | EG54: 2.75 | EH54: 3.034482759 | EI54: 3.1 | EJ54: 3.069767442 | EK54: 2.380952381 | EL54: 3.260869565 | EM54: 1.69047619 | EN54: 2.107142857 | EO54: 3 | EP54: 3.089285714 | EQ54: 2.181818182 | ER54: 1.62745098 | ES54: 2.619047619 | ET54: 1.7 | EU54: 2.933333333 | EV54: 2.736842105 | EW54: 2.35 | EX54: 2.351351351 | EY54: 2.210526316 | EZ54: 2.333333333 | FA54: 3.27027027 | FB54: 3.46875 | FC54: 2.695652174 | FD54: 2.555555556 | FE54: 2.892857143 | FF54: =IF(FF10=0," ",FF10/FF32) -> 2.95 | FG54: 2.361111111 | FH54: 2.794871795 | FI54: 2.2 | FJ54: 3 | FK54: 3.189189189 | FL54: 3.5625 | FM54: 3.095238095 | FN54: 2.641025641 | FO54: 2.714285714 | FP54: 2.4 | FQ54: 2.05 | FR54: 1.857142857 | FS54: 2.514285714 | FT54: 1.861111111 | FU54: 2.228571429 | FV54: 2.454545455 | FW54: 2.96969697 | FX54: 3.315789474 | FY54: 2.722222222 | FZ54: 2.631578947 | GA54: 1.974358974 | GB54: 2.142857143 | GC54: 2.153846154 | GD54: 2.652173913 | GE54: 2.5625 | GF54: 2.551724138 | GG54: 2.214285714 | GH54: 2 | GI54: 2.448275862 | GJ54: 2.8 | GK54: 1.947368421 | GL54: 2.260869565 | GM54: 1.631578947 | GN54: 2.148148148 | GO54: 2.6 | GP54: 3.357142857 | GQ54: 2.545454545 | GR54: 2.166666667 | GS54: 2.913043478 | GT54: 2.676470588
B55: 15:00:00 | C55: =IF(C11=0," ",C11/C33) -> 1.917647059 | D55: 1.941860465 | E55: 2.223684211 | F55: 2.747126437 | G55: 3.263157895 | H55: 1.75 | I55: 1.830508475 | J55: 1.972222222 | K55: 1.968421053 | L55: 1.590361446 | M55: 2.7 | N55: 2.301075269 | O55: 2.129411765 | P55: 1.794520548 | Q55: 2.0625 | R55: 1.970588235 | S55: 2.333333333 | T55: 2.230769231 | U55: 1.69047619 | V55: 2.358024691 | W55: 2.186915888 | X55: 1.849315068 | Y55: 3.126984127 | Z55: 2.6 | AA55: 2.321428571 | AB55: 2.082474227 | AC55: 1.835164835 | AD55: 2.552941176 | AE55: 3.019230769 | AF55: 2.168674699 | AG55: 2.506849315 | AH55: 2.573333333 | AI55: =IF(AI11=0," ",AI11/AI33) -> 2.164948454 | AJ55: 2.348484848 | AK55: 2.097560976 | AL55: 2.06122449 | AM55: 1.959183673 | AN55: 2.959183673 | AO55: 2.70754717 | AP55: 2.926470588 | AQ55: 3.729166667 | AR55: 2.35 | AS55: 2.211764706 | AT55: 2.794117647 | AU55: 2.333333333 | AV55: 2.987179487 | AW55: 2.888888889 | AX55: 2.548076923 | AY55: 2.284210526 | AZ55: 2.185185185 | BA55: 2.604938272 | BB55: 2.782608696 | BC55: 3.09375 | BD55: 2.608695652 | BE55: 2.211009174 | BF55: 2.619565217 | BG55: 2.505617978 | BH55: 2.833333333 | BI55: 2.9 | BJ55: 2.2 | BK55: 2.304761905 | BL55: 2.765957447 | BM55: 2.532467532 | BN55: 2.773333333 | BO55: =IF(BO11=0," ",BO11/BO33) -> 2.660714286 | BP55: 2.605042017 | BQ55: 2.415730337 | BR55: 2.509259259 | BS55: 2.406593407 | BT55: 3.3125 | BU55: 4 | BV55: 3.275862069 | BW55: 2.698113208 | BX55: 2.811881188 | BY55: 2.604938272 | BZ55: 2.597402597 | CA55: 3.218181818 | CB55: 2.4 | CC55: 2.420454545 | CD55: 2.540229885 | CE55: 2.068965517 | CF55: 3.467741935 | CG55: 2.842105263 | CH55: 2.405797101 | CI55: 2.4375 | CJ55: 2.413333333 | CK55: 2.090909091 | CL55: 2.512820513 | CM55: 2.146341463 | CN55: 2.903846154 | CO55: 2.268292683 | CP55: 2.632653061 | CQ55: 3.615384615 | CR55: 4 | CS55: 3.692307692 | CT55: =IF(CT11=0," ",CT11/CT33) -> 2.842105263 | CU55: 2.727272727 | CV55: 2.7 | CW55: 2.19047619 | CX55: 2.219512195 | CY55: 2.814814815 | CZ55: 2.981132075 | DA55: 2.636363636 | DB55: 2.31147541 | DC55: 2.531914894 | DD55: 2.333333333 | DE55: 2.851851852 | DF55: 3 | DG55: 2.888888889 | DH55: 2.369565217 | DI55: 2.866666667 | DJ55: 2 | DK55: 2.791666667 | DL55: 2.396226415 | DM55: 2.253968254 | DN55: 2.566037736 | DO55: 2.32 | DP55: 2.384615385 | DQ55: 3.166666667 | DR55: 3.736842105 | DS55: 2.139534884 | DT55: 2.733333333 | DU55: 2.727272727 | DV55: 1.766666667 | DW55: 2.92 | DX55: 2.268292683 | DY55: 2.634146341 | DZ55: 2.555555556 | EA55: 2.45 | EB55: 3.2 | EC55: 3.125 | ED55: 2.278688525 | EE55: 2.820512821 | EF55: 2 | EG55: 3.114285714 | EH55: 2.375 | EI55: 2.333333333 | EJ55: 2.340909091 | EK55: 2.585365854 | EL55: 2.12 | EM55: 2.486486486 | EN55: 2.7 | EO55: 4.375 | EP55: 2.088235294 | EQ55: 1.895833333 | ER55: 1.682926829 | ES55: 2.564102564 | ET55: 1.6875 | EU55: 2.043478261 | EV55: 2.512820513 | EW55: 2.244444444 | EX55: 2.416666667 | EY55: 3.4375 | EZ55: 2 | FA55: 2.574074074 | FB55: 4.424242424 | FC55: 2.390243902 | FD55: 3.392857143 | FE55: 2.034482759 | FF55: =IF(FF11=0," ",FF11/FF33) -> 3.176470588 | FG55: 2.224489796 | FH55: 2.35 | FI55: 2.514285714 | FJ55: 2.970588235 | FK55: 2.696969697 | FL55: 2.5 | FM55: 2.5625 | FN55: 2.888888889 | FO55: 2.35 | FP55: 2.457142857 | FQ55: 2.553191489 | FR55: 5.823529412 | FS55: 2.608695652 | FT55: 2.543478261 | FU55: 2.395348837 | FV55: 2.351351351 | FW55: 2.380952381 | FX55: 3.05 | FY55: 2.931818182 | FZ55: 2.488372093 | GA55: 2.545454545 | GB55: 2.384615385 | GC55: 3.242424242 | GD55: 2.357142857 | GE55: 2.785714286 | GF55: 2.653846154 | GG55: 2.032258065 | GH55: 2.388888889 | GI55: 2.130434783 | GJ55: 2.5 | GK55: 2.052631579 | GL55: 2.84 | GM55: 2.260869565 | GN55: 3.192307692 | GO55: 1.8 | GP55: 2 | GQ55: 2.872340426 | GR55: 2.176470588 | GS55: 1.888888889 | GT55: 2.52173913
B56: 16:00:00 | C56: =IF(C12=0," ",C12/C34) -> 2.941176471 | D56: 1.773333333 | E56: 2.054945055 | F56: 2.409836066 | G56: 2.325 | H56: 2.444444444 | I56: 2.065934066 | J56: 2.061538462 | K56: 2.283950617 | L56: 2.134615385 | M56: 2.551724138 | N56: 2.238095238 | O56: 2.197802198 | P56: 2.054545455 | Q56: 2.292307692 | R56: 2.166666667 | S56: 3.372093023 | T56: 2.065934066 | U56: 2.257142857 | V56: 2.231707317 | W56: 2.090909091 | X56: 2.448275862 | Y56: 2.413043478 | Z56: 2.364705882 | AA56: 2.366666667 | AB56: 2.121621622 | AC56: 2.25 | AD56: 1.886363636 | AE56: 2.261904762 | AF56: 2.430769231 | AG56: 2.04 | AH56: 2.602739726 | AI56: =IF(AI12=0," ",AI12/AI34) -> 2.564516129 | AJ56: 2.803030303 | AK56: 2.448979592 | AL56: 2.693877551 | AM56: 2.905263158 | AN56: 2.609756098 | AO56: 2.80952381 | AP56: 3.152542373 | AQ56: 2.64 | AR56: 2.4 | AS56: 2.138888889 | AT56: 3.013157895 | AU56: 2.621212121 | AV56: 2.71641791 | AW56: 2.909090909 | AX56: 2.9 | AY56: 2.706521739 | AZ56: 2.655555556 | BA56: 3.095890411 | BB56: 2.805555556 | BC56: 2.653061224 | BD56: 2.494252874 | BE56: 2.04040404 | BF56: 2.621621622 | BG56: 2.974025974 | BH56: 2.859375 | BI56: 2.612244898 | BJ56: 2.253012048 | BK56: 2.505376344 | BL56: 2.885057471 | BM56: 2.382352941 | BN56: 3.307692308 | BO56: =IF(BO12=0," ",BO12/BO34) -> 2.983606557 | BP56: 2.894117647 | BQ56: 2.742857143 | BR56: 2.838235294 | BS56: 2.649350649 | BT56: 3 | BU56: 4.212121212 | BV56: 2.897727273 | BW56: 2.829268293 | BX56: 3.191176471 | BY56: 2.918918919 | BZ56: 2.815384615 | CA56: 3.590909091 | CB56: 2.364705882 | CC56: 2.693877551 | CD56: 2.188405797 | CE56: 2.245901639 | CF56: 3.446428571 | CG56: 2.791044776 | CH56: 2.819672131 | CI56: 2.658227848 | CJ56: 2.032258065 | CK56: 2.753846154 | CL56: 2.927272727 | CM56: 2.102040816 | CN56: 2.791044776 | CO56: 2.538461538 | CP56: 2.348837209 | CQ56: 3.62962963 | CR56: 4.368421053 | CS56: 3.666666667 | CT56: =IF(CT12=0," ",CT12/CT34) -> 2.885714286 | CU56: 2.108695652 | CV56: 2.689655172 | CW56: 2.25 | CX56: 2.459459459 | CY56: 2.586206897 | CZ56: 3.060606061 | DA56: 3.285714286 | DB56: 2.901960784 | DC56: 2.257142857 | DD56: 3.682926829 | DE56: 2.368421053 | DF56: 2.833333333 | DG56: 1.675 | DH56: 4.1 | DI56: 3.194444444 | DJ56: 3.476190476 | DK56: 3.555555556 | DL56: 2.177777778 | DM56: 2.024390244 | DN56: 2.351351351 | DO56: 3 | DP56: 2.166666667 | DQ56: 2.875 | DR56: 2.916666667 | DS56: 2.193548387 | DT56: 2.711111111 | DU56: 2.897435897 | DV56: 2.2 | DW56: 2.321428571 | DX56: 2.461538462 | DY56: 3.022222222 | DZ56: 2.538461538 | EA56: 2.057142857 | EB56: 1.945945946 | EC56: 3.777777778 | ED56: 2.548387097 | EE56: 2.967741935 | EF56: 1.934782609 | EG56: 2.431818182 | EH56: 2.773584906 | EI56: 3 | EJ56: 1.914285714 | EK56: 2.297297297 | EL56: 1.633333333 | EM56: 2.871794872 | EN56: 2.5625 | EO56: 2.357142857 | EP56: 2.047619048 | EQ56: 1.823529412 | ER56: 2.340909091 | ES56: 2.303030303 | ET56: 2.534883721 | EU56: 2.166666667 | EV56: 2.618181818 | EW56: 2.215686275 | EX56: 3.487179487 | EY56: 3.324324324 | EZ56: 2.666666667 | FA56: 1.944444444 | FB56: 3.978723404 | FC56: 3.2 | FD56: 2.540540541 | FE56: 2.257142857 | FF56: =IF(FF12=0," ",FF12/FF34) -> 3.666666667 | FG56: 2.46031746 | FH56: 2.386363636 | FI56: 2.516129032 | FJ56: 2.055555556 | FK56: 2.571428571 | FL56: 2.166666667 | FM56: 3.733333333 | FN56: 2.292682927 | FO56: 2.829268293 | FP56: 1.709677419 | FQ56: 2.8 | FR56: 2.75 | FS56: 2.666666667 | FT56: 2.833333333 | FU56: 2.6 | FV56: 2.657142857 | FW56: 2.608695652 | FX56: 3.352941176 | FY56: 2.410714286 | FZ56: 3.2 | GA56: 2.348837209 | GB56: 2.5 | GC56: 2.5625 | GD56: 3.333333333 | GE56: 2.382352941 | GF56: 2.133333333 | GG56: 2.142857143 | GH56: 2.526315789 | GI56: 2.307692308 | GJ56: 1.5 | GK56: 2.535714286 | GL56: 2.096774194 | GM56: 3.80952381 | GN56: 2.433333333 | GO56: 1.75862069 | GP56: 2.866666667 | GQ56: 2.837837838 | GR56: 2.08 | GS56: 2.055555556 | GT56: 2.869565217
B57: 17:00:00 | C57: =IF(C13=0," ",C13/C35) -> 1.955882353 | D57: 2.133333333 | E57: 2.041666667 | F57: 2.25862069 | G57: 2.638888889 | H57: 1.875 | I57: 2.032786885 | J57: 2.375 | K57: 2.380952381 | L57: 2.333333333 | M57: 2.086956522 | N57: 2.311688312 | O57: 2.510204082 | P57: 2.083333333 | Q57: 2.638297872 | R57: 2.88372093 | S57: 3.465116279 | T57: 2.3 | U57: 1.875 | V57: 2.068965517 | W57: 2.806451613 | X57: 2.697674419 | Y57: 3.641509434 | Z57: 2.202702703 | AA57: 2.279411765 | AB57: 2.272727273 | AC57: 2.438596491 | AD57: 2.145454545 | AE57: 2.743589744 | AF57: 2.107692308 | AG57: 2.679245283 | AH57: 2.15942029 | AI57: =IF(AI13=0," ",AI13/AI35) -> 2.557377049 | AJ57: 2.435897436 | AK57: 4.233333333 | AL57: 2.333333333 | AM57: 2.5 | AN57: 3.58974359 | AO57: 2.053333333 | AP57: 2.258064516 | AQ57: 2.947368421 | AR57: 2.024691358 | AS57: 2.323529412 | AT57: 2.455882353 | AU57: 2.208955224 | AV57: 2.423076923 | AW57: 2.459016393 | AX57: 2.114285714 | AY57: 2.689655172 | AZ57: 3.071428571 | BA57: 3.213114754 | BB57: 2.639344262 | BC57: 3.372881356 | BD57: 2.68852459 | BE57: 2.210526316 | BF57: 2.271428571 | BG57: 2.716666667 | BH57: 2.680555556 | BI57: 3.590163934 | BJ57: 2.2125 | BK57: 2.416666667 | BL57: 2.644736842 | BM57: 2.7 | BN57: 2.555555556 | BO57: =IF(BO13=0," ",BO13/BO35) -> 3.634615385 | BP57: 2.534090909 | BQ57: 2.488372093 | BR57: 2.552631579 | BS57: 2.328767123 | BT57: 2.409090909 | BU57: 3.625 | BV57: 2.743902439 | BW57: 2.010869565 | BX57: 2.418918919 | BY57: 1.86 | BZ57: 2.471698113 | CA57: 3.131147541 | CB57: 2.898550725 | CC57: 2.945205479 | CD57: 2.333333333 | CE57: 2.301587302 | CF57: 3.203389831 | CG57: 2.86 | CH57: 2.655172414 | CI57: 2.057692308 | CJ57: 2.357142857 | CK57: 2.325581395 | CL57: 1.875 | CM57: 2.342857143 | CN57: 2.172413793 | CO57: 2.128205128 | CP57: 3.304347826 | CQ57: 2.1875 | CR57: 2.047619048 | CS57: 3.263157895 | CT57: =IF(CT13=0," ",CT13/CT35) -> 3.121212121 | CU57: 2.55 | CV57: 2.433962264 | CW57: 2.633333333 | CX57: 2.518518519 | CY57: 2.607142857 | CZ57: 2.980392157 | DA57: 2.957446809 | DB57: 3 | DC57: 2.390243902 | DD57: 2.977272727 | DE57: 2.777777778 | DF57: 2.975609756 | DG57: 3.774193548 | DH57: 3.264705882 | DI57: 3.089285714 | DJ57: 3.171428571 | DK57: 3.142857143 | DL57: 3.888888889 | DM57: 2.466666667 | DN57: 2.891891892 | DO57: 1.666666667 | DP57: 3.96 | DQ57: 3.5 | DR57: 2.529411765 | DS57: 2.244897959 | DT57: 3.055555556 | DU57: 2.636363636 | DV57: 2.590909091 | DW57: 5 | DX57: 2.771428571 | DY57: 2.34375 | DZ57: 2.236842105 | EA57: 2.630434783 | EB57: 2.837837838 | EC57: 3.652173913 | ED57: 2.701754386 | EE57: 3.166666667 | EF57: 3.289473684 | EG57: 2.333333333 | EH57: 2.916666667 | EI57: 2.421052632 | EJ57: 2.459459459 | EK57: 2.763157895 | EL57: 2.463414634 | EM57: 1.846153846 | EN57: 2.214285714 | EO57: 2.777777778 | EP57: 2.555555556 | EQ57: 3.275 | ER57: 3.355555556 | ES57: 3.351351351 | ET57: 2.558823529 | EU57: 4 | EV57: 3.958333333 | EW57: 2.186046512 | EX57: 2.954545455 | EY57: 2.225806452 | EZ57: 2.941176471 | FA57: 2.925 | FB57: 3.810810811 | FC57: 3.282608696 | FD57: 2.088235294 | FE57: 3.852941176 | FF57: =IF(FF13=0," ",FF13/FF35) -> 4.357142857 | FG57: 2.844444444 | FH57: 3.142857143 | FI57: 2.75 | FJ57: 2.392857143 | FK57: 3.307692308 | FL57: 2.333333333 | FM57: 3.5 | FN57: 2.682539683 | FO57: 2.268292683 | FP57: 2.542857143 | FQ57: 2.24137931 | FR57: 3.346153846 | FS57: 4.351351351 | FT57: 4.78125 | FU57: 2.692307692 | FV57: 2.666666667 | FW57: 2.9375 | FX57: 3.789473684 | FY57: 2.5625 | FZ57: 2.243243243 | GA57: 2.314285714 | GB57: 2.926829268 | GC57: 1.96 | GD57: 2.181818182 | GE57: 2.12 | GF57: 1.913043478 | GG57: 2.65625 | GH57: 2.608695652 | GI57: 3.576923077 | GJ57: 3 | GK57: 2.5 | GL57: 2.583333333 | GM57: 2.5 | GN57: 2.620689655 | GO57: 2 | GP57: 3.705882353 | GQ57: 2.268292683 | GR57: 3.166666667 | GS57: 2.052631579 | GT57: 2.658536585
B58: 18:00:00 | C58: =IF(C14=0," ",C14/C36) -> 2.049180328 | D58: 2.053571429 | E58: 2.852941176 | F58: 1.866666667 | G58: 4 | H58: 2.181818182 | I58: 1.585714286 | J58: 2.365384615 | K58: 2.306122449 | L58: 2.571428571 | M58: 3.870967742 | N58: 2.275862069 | O58: 1.911764706 | P58: 2.166666667 | Q58: 2.228571429 | R58: 2.4 | S58: 3 | T58: 2.24137931 | U58: 2.772727273 | V58: 2.559322034 | W58: 2.396551724 | X58: 2.133333333 | Y58: 3.2 | Z58: 2.803030303 | AA58: 2.754385965 | AB58: 1.981481481 | AC58: 2.183673469 | AD58: 2.296296296 | AE58: 3.387096774 | AF58: 2.45 | AG58: 2.538461538 | AH58: 1.960784314 | AI58: =IF(AI14=0," ",AI14/AI36) -> 2.34375 | AJ58: 2.4 | AK58: 2.5 | AL58: 2.694444444 | AM58: 2.461538462 | AN58: 2.254545455 | AO58: 2.235294118 | AP58: 2 | AQ58: 2.571428571 | AR58: 2.2 | AS58: 2.660714286 | AT58: 2.417910448 | AU58: 2.234042553 | AV58: 3.514285714 | AW58: 3.409090909 | AX58: 2.029850746 | AY58: 2.444444444 | AZ58: 2.4 | BA58: 3.396226415 | BB58: 2.666666667 | BC58: 2.966666667 | BD58: 2.923076923 | BE58: 2.451612903 | BF58: 2.796296296 | BG58: 2.090909091 | BH58: 2.548387097 | BI58: 2.733333333 | BJ58: 2.171052632 | BK58: 2.328947368 | BL58: 3.441176471 | BM58: 2.466666667 | BN58: 3 | BO58: =IF(BO14=0," ",BO14/BO36) -> 2.264705882 | BP58: 2.957746479 | BQ58: 2.789473684 | BR58: 3.31372549 | BS58: 2.722222222 | BT58: 3.035714286 | BU58: 5.210526316 | BV58: 2.9375 | BW58: 2.636363636 | BX58: 2.625 | BY58: 3.576923077 | BZ58: 3.142857143 | CA58: 2.355555556 | CB58: 2.553571429 | CC58: 2.306451613 | CD58: 2.137931034 | CE58: 2.857142857 | CF58: 2.677419355 | CG58: 3.568181818 | CH58: 2.531914894 | CI58: 2.5 | CJ58: 2.818181818 | CK58: 1.96875 | CL58: 1.923076923 | CM58: 2.52 | CN58: 2.461538462 | CO58: 1.75 | CP58: 3.090909091 | CQ58: 2.272727273 | CT58: =IF(CT14=0," ",CT14/CT36) ->  | CU58: 2.058823529 | CV58: 2.484848485 | CW58: 2.407407407 | CX58: 2.052631579 | CY58: 2.473684211 | CZ58: 2.789473684 | DA58: 3.130434783 | DB58: 3.142857143 | DC58: 2.142857143 | DD58: 6.571428571 | DE58: 1.772727273 | DF58: 2.357142857 | DG58: 2.647058824 | DH58: 1.9 | DI58: 2.416666667 | DJ58: 2.8 | DK58: 3.461538462 | DL58: 2.666666667 | DM58: 1.826086957 | DN58: 3.461538462 | DO58: 2.791666667 | DP58: 3.476190476 | DQ58: 2.411764706 | DR58: 3.666666667 | DS58: 3.291666667 | DT58: 2.56 | DU58: 2.555555556 | DW58: 3.421052632 | DX58: 2.545454545 | DY58: 1.967741935 | DZ58: 2.780487805 | EA58: 2.931034483 | EB58: 2.875 | EC58: 2 | ED58: 2.625 | EE58: 2.333333333 | EF58: 2.56 | EG58: 2.2 | EH58: 3 | EI58: 2.538461538 | EJ58: 2.391304348 | EK58: 2.85 | EL58: 1.846153846 | EM58: 2.111111111 | EP58: 2.484848485 | EQ58: 1.318181818 | ER58: 2.615384615 | ES58: 2.318181818 | ET58: 2.428571429 | EU58: 4.2 | EV58: 3.481481481 | EW58: 2.25 | EX58: 2.346153846 | EY58: 3.384615385 | EZ58: 4.619047619 | FA58: 2.838709677 | FB58: 2.575757576 | FC58: 2.96 | FD58: 1.903225806 | FE58: 3.214285714 | FF58: =IF(FF14=0," ",FF14/FF36) -> 1.947368421 | FG58: 2.555555556 | FH58: 2.961538462 | FI58: 3.590909091 | FJ58: 2.434782609 | FK58: 4.052631579 | FL58: 1.888888889 | FM58: 5.5 | FN58: 2.419354839 | FO58: 3.37037037 | FP58: 2.3125 | FQ58: 2.388888889 | FR58: 2.625 | FS58: 2.769230769 | FT58: 1.9 | FU58: 4.307692308 | FV58: 2.416666667 | FW58: 3.4375 | FX58: 3 | FY58: 2.347826087 | FZ58: 2.111111111 | GA58: 2 | GB58: 2.352941176 | GC58: 1.9375 | GD58: 2.3 | GE58: 2.72 | GF58: 2.4 | GG58: 2.9 | GH58: 1.3 | GL58: 2 | GM58: 1.636363636 | GN58: 3.166666667 | GP58: 4
B59: 19:00:00 | C59: =IF(C15=0," ",C15/C37) -> 1.939393939 | D59: 1.810810811 | E59: 2.34375 | F59: 4.090909091 | G59: 3.428571429 | H59: 1.615384615 | I59: 1.698113208 | J59: 1.935483871 | K59: 1.828571429 | L59: 2.125 | M59: 2.366666667 | N59: 2.148148148 | O59: 1.928571429 | P59: 2.357142857 | Q59: 2.75 | R59: 2.272727273 | S59: 3.041666667 | T59: 2.717948718 | U59: 1.754385965 | V59: 1.975609756 | W59: 2.487179487 | X59: 2.454545455 | Y59: 3.4 | Z59: 4.789473684 | AA59: 2.529411765 | AB59: 2.108108108 | AC59: 2.219512195 | AD59: 3 | AE59: 2.777777778 | AF59: 2.35483871 | AG59: 2.407407407 | AH59: 2.083333333 | AI59: =IF(AI15=0," ",AI15/AI37) -> 2.348837209 | AJ59: 1.846153846 | AK59: 1.85 | AL59: 2.523809524 | AM59: 2.725 | AN59: 1.659574468 | AO59: 2.209302326 | AP59: 2.857142857 | AQ59: 1.961538462 | AR59: 2.078431373 | AS59: 2.044444444 | AT59: 2.470588235 | AU59: 2.627906977 | AV59: 3.571428571 | AW59: 3.038461538 | AX59: 3.551020408 | AY59: 2.694915254 | AZ59: 2.260869565 | BA59: 2.590909091 | BB59: 2.222222222 | BC59: 3.307692308 | BD59: 2.487804878 | BE59: 2.305084746 | BF59: 2.4 | BG59: 2.216216216 | BH59: 2.285714286 | BI59: 3.47826087 | BJ59: 3.173913043 | BK59: 2.4 | BL59: 3.11627907 | BM59: 2.25 | BN59: 3.4375 | BO59: =IF(BO15=0," ",BO15/BO37) -> 3.27027027 | BP59: 2.677419355 | BQ59: 2.5 | BR59: 2.37254902 | BS59: 2.534883721 | BT59: 2.647058824 | BU59: 3.6875 | BV59: 3.14 | BW59: 2.854545455 | BX59: 3.166666667 | BY59: 2.384615385 | BZ59: 3.615384615 | CA59: 3.680851064 | CB59: 3.261904762 | CC59: 2.416666667 | CD59: 3.085106383 | CE59: 3.352941176 | CF59: 2.2 | CG59: 4.171428571 | CH59: 2.25 | CI59: 2.025 | CJ59: 3.026315789 | CK59: 2.722222222 | CL59: 2.388888889 | CM59: 2.421052632 | CN59: 2.666666667 | CO59: 2.105263158 | CP59: 2.75 | CQ59: 2.111111111 | CT59: =IF(CT15=0," ",CT15/CT37) ->  | CU59: 2.230769231 | CV59: 3.565217391 | CW59: 3.041666667 | CX59: 2.923076923 | CY59: 3.875 | CZ59: 3.307692308 | DA59: 2.259259259 | DB59: 2.888888889 | DC59: 2.55 | DD59: 1.9 | DE59: 2.866666667 | DF59: 2.933333333 | DG59: 2.56 | DH59: 2.285714286 | DI59: 2.928571429 | DJ59: 1.2 | DK59: 2.538461538 | DL59: 3.894736842 | DM59: 3.12 | DN59: 2.428571429 | DO59: 2.527777778 | DP59: 1.571428571 | DQ59: 4.636363636 | DR59: 3.5 | DS59: 2.5625 | DT59: 2.59375 | DU59: 1.615384615 | DW59: 2.384615385 | DX59: 2.352941176 | DY59: 2.5 | DZ59: 3.318181818 | EA59: 3.111111111 | EB59: 2.933333333 | EC59: 4.277777778 | ED59: 2.1875 | EE59: 3.076923077 | EF59: 2.066666667 | EG59: 2.933333333 | EH59: 2.714285714 | EI59: 4.111111111 | EJ59: 3.368421053 | EK59: 2.9 | EL59: 3.166666667 | EM59: 1.727272727 | EP59: 4.526315789 | EQ59: 1.941176471 | ER59: 2.347826087 | ES59: 1.6 | ET59: 3.428571429 | EU59: 1.555555556 | EV59: 1.882352941 | EW59: 2.15 | EX59: 3.357142857 | EY59: 3.083333333 | EZ59: 4.076923077 | FA59: 3 | FB59: 1.8 | FC59: 3.217391304 | FD59: 3.733333333 | FE59: 1.75 | FF59: =IF(FF15=0," ",FF15/FF37) -> 3 | FG59: 2.681818182 | FH59: 3.625 | FI59: 3.066666667 | FJ59: 4.277777778 | FK59: 5.307692308 | FL59: 4.444444444 | FM59: 1.75 | FN59: 2.636363636 | FO59: 2.214285714 | FP59: 1.703703704 | FQ59: 1.666666667 | FR59: 4.2 | FS59: 4 | FT59: 1.75 | FU59: 3 | FV59: 2.529411765 | FW59: 2.333333333 | FX59: 3.666666667 | FY59: 2.125 | FZ59: 1.352941176 | GA59: 2.318181818 | GB59: 3.6 | GC59: 2.25 | GD59: 3.333333333 | GE59: 2.214285714 | GF59: 1.428571429 | GG59: 1.6 | GH59: 2 | GL59: 3.071428571 | GM59: 3.555555556 | GN59: 2.571428571
B60: 20:00:00 | C60: =IF(C16=0," ",C16/C38) -> 1.864864865 | D60: 1.714285714 | E60: 2.090909091 | F60: 2.857142857 | G60: 1.7 | H60: 1.222222222 | I60: 2.407407407 | J60: 2.222222222 | K60: 2.657142857 | L60: 2.333333333 | M60: 3 | N60: 2.393939394 | O60: 1.833333333 | P60: 2.103448276 | Q60: 2.366666667 | R60: 2.863636364 | S60: 1.928571429 | T60: 2.266666667 | U60: 3.023255814 | V60: 2.085714286 | W60: 2.204545455 | X60: 2.45 | Y60: 1.5 | Z60: 2.378378378 | AA60: 2.327272727 | AB60: 1.65625 | AC60: 2.157894737 | AD60: 2.333333333 | AE60: 3.25 | AF60: 3.317073171 | AG60: 1.870967742 | AH60: 1.456521739 | AI60: =IF(AI16=0," ",AI16/AI38) -> 2.138888889 | AJ60: 2 | AK60: 2.733333333 | AL60: 1.6875 | AM60: 2.229166667 | AN60: 1.714285714 | AO60: 2.6 | AP60: 2.615384615 | AQ60: 3.2 | AR60: 2.488888889 | AS60: 2.315789474 | AT60: 2.6 | AU60: 2.411764706 | AV60: 2.153846154 | AW60: 3.333333333 | AX60: 3 | AY60: 2.153846154 | AZ60: 2.8 | BA60: 2.085714286 | BB60: 2.631578947 | BC60: 2.178571429 | BD60: 2.452380952 | BE60: 2.660377358 | BF60: 2.4375 | BG60: 2.105263158 | BH60: 3.222222222 | BI60: 2.414634146 | BJ60: 2.081081081 | BK60: 2.111111111 | BL60: 2.571428571 | BM60: 3.023809524 | BN60: 3.380952381 | BO60: =IF(BO16=0," ",BO16/BO38) -> 2.842105263 | BP60: 3.24 | BQ60: 2.982142857 | BR60: 2.45 | BS60: 3.380952381 | BT60: 4.75 | BU60: 3.8 | BV60: 3.307692308 | BW60: 2.603448276 | BX60: 2.47826087 | BY60: 2.652173913 | BZ60: 3 | CA60: 3.407407407 | CB60: 2.955555556 | CC60: 2.363636364 | CD60: 2.452380952 | CE60: 1.888888889 | CF60: 3.888888889 | CG60: 3.181818182 | CH60: 2.55 | CI60: 2.484848485 | CJ60: 1.793103448 | CK60: 2.125 | CL60: 2.48 | CM60: 3.041666667 | CN60: 2.151515152 | CO60: 1.769230769 | CP60: 2.444444444 | CQ60: 2.875 | CT60: =IF(CT16=0," ",CT16/CT38) ->  | CU60: 4 | CV60: 1.714285714 | CW60: 1.142857143 | CX60: 3.3 | CY60: 2.222222222 | CZ60: 2.571428571 | DA60: 1.857142857 | DB60: 2.1 | DC60: 2.304347826 | DD60: 2.833333333 | DE60: 3.636363636 | DF60: 2.526315789 | DG60: 1.454545455 | DH60: 3.041666667 | DI60: 2.8125 | DJ60: 2.230769231 | DK60: 3.25 | DL60: 2.533333333 | DM60: 3.444444444 | DN60: 1.714285714 | DO60: 2.238095238 | DP60: 4 | DQ60: 2.222222222 | DR60: 3.714285714 | DS60: 2.6 | DT60: 2.263157895 | DU60: 2.6 | DW60: 1.913043478 | DX60: 4.647058824 | DY60: 2.958333333 | DZ60: 2.68 | EA60: 2 | EB60: 2.545454545 | EC60: 3.666666667 | ED60: 3.25 | EE60: 1.9375 | EF60: 2.888888889 | EG60: 2 | EH60: 1.642857143 | EI60: 3.272727273 | EJ60: 3.6 | EK60: 3.153846154 | EL60: 2.333333333 | EM60: 1.909090909 | EP60: 4.166666667 | EQ60: 1.923076923 | ER60: 2.111111111 | ES60: 1.125 | ET60: 3 | EU60: 2.4 | EV60: 3.125 | EW60: 3.277777778 | EX60: 2.538461538 | EY60: 3 | EZ60: 3.5 | FA60: 1.9375 | FB60: 2.666666667 | FC60: 2.458333333 | FD60: 2.916666667 | FE60: 2.75 | FF60: =IF(FF16=0," ",FF16/FF38) -> 3.583333333 | FG60: 3.636363636 | FH60: 2.689655172 | FI60: 2.333333333 | FJ60: 2.0625 | FK60: 3.2 | FL60: 2 | FM60: 5.5 | FN60: 3.608695652 | FO60: 2.846153846 | FP60: 2.294117647 | FQ60: 3 | FR60: 2.588235294 | FS60: 2.125 | FT60: 1.814814815 | FU60: 2.928571429 | FV60: 3.263157895 | FW60: 2.764705882 | FX60: 2.214285714 | FY60: 3.1875 | FZ60: 2.72 | GA60: 3.642857143 | GB60: 2.846153846 | GC60: 2.2 | GD60: 1.857142857 | GE60: 2.111111111 | GF60: 3.272727273 | GG60: 2.2 | GL60: 6.090909091 | GM60: 1.714285714 | GN60: 3.375
B61: 21:00:00 | C61: =IF(C17=0," ",C17/C39) -> 1.703703704 | D61: 1.217391304 | E61: 2.615384615 | F61: 3 | G61: 3.2 | H61: 1.846153846 | I61: 2.628571429 | J61: 2.125 | K61: 1.541666667 | L61: 2 | M61: 3.423076923 | N61: 2.448275862 | O61: 2.774193548 | P61: 2.58974359 | Q61: 2.194444444 | R61: 1.9 | S61: 3.263157895 | T61: 2.263157895 | U61: 2.032258065 | V61: 2.282608696 | W61: 2.628571429 | X61: 2.25 | Y61: 2.19047619 | Z61: 3.09375 | AA61: 2.85106383 | AB61: 2.028571429 | AC61: 1.655172414 | AD61: 3.076923077 | AE61: 3.642857143 | AF61: 1.857142857 | AG61: 3.043478261 | AH61: 2.25 | AI61: =IF(AI17=0," ",AI17/AI39) -> 2.75 | AJ61: 2.538461538 | AK61: 4.277777778 | AL61: 2.882352941 | AM61: 2 | AN61: 2.666666667 | AO61: 1.724137931 | AP61: 1.533333333 | AQ61: 2.952380952 | AR61: 1.894736842 | AS61: 2.162162162 | AT61: 2.375 | AU61: 1.96969697 | AV61: 2.916666667 | AW61: 4.416666667 | AX61: 2.461538462 | AY61: 3.666666667 | AZ61: 1.98 | BA61: 2.230769231 | BB61: 3 | BC61: 2.642857143 | BD61: 3.173913043 | BE61: 2.472727273 | BF61: 2.682926829 | BG61: 3.68 | BH61: 3 | BI61: 3.375 | BJ61: 3.159090909 | BK61: 2.468085106 | BL61: 2.489795918 | BM61: 4.321428571 | BN61: 3.666666667 | BO61: =IF(BO17=0," ",BO17/BO39) -> 3.818181818 | BP61: 2.159090909 | BQ61: 2.788461538 | BR61: 3.025641026 | BS61: 2.953488372 | BT61: 3.176470588 | BU61: 4.333333333 | BV61: 3.229166667 | BW61: 2.584615385 | BX61: 3.105263158 | BY61: 2.833333333 | BZ61: 2.64 | CA61: 4.032258065 | CB61: 2.38 | CC61: 2.661016949 | CD61: 3.659090909 | CE61: 2.6875 | CF61: 2.518518519 | CG61: 3.625 | CH61: 2.659574468 | CI61: 2.404761905 | CJ61: 2.78125 | CK61: 1.733333333 | CL61: 1.666666667 | CM61: 3.428571429 | CN61: 2.217391304 | CO61: 1.962962963 | CP61: 4.882352941 | CQ61: 3.777777778 | CT61: =IF(CT17=0," ",CT17/CT39) ->  | CU61: 3.259259259 | CV61: 2.95 | CW61: 2.153846154 | CX61: 1.777777778 | CY61: 3.8 | CZ61: 3.970588235 | DA61: 2.76 | DB61: 2.6 | DC61: 3.416666667 | DD61: 2.444444444 | DE61: 3.5 | DF61: 2.344827586 | DG61: 3.739130435 | DH61: 2.857142857 | DI61: 2.526315789 | DJ61: 1.666666667 | DK61: 5 | DL61: 3.571428571 | DM61: 3.210526316 | DN61: 3.944444444 | DO61: 4.642857143 | DP61: 3.941176471 | DQ61: 4.555555556 | DR61: 2.363636364 | DS61: 3.652173913 | DT61: 2.133333333 | DU61: 2.85 | DW61: 3.45 | DX61: 3.411764706 | DY61: 2.87804878 | DZ61: 2.884615385 | EA61: 2.636363636 | EB61: 2.916666667 | EC61: 3.2 | ED61: 3.47826087 | EE61: 2.733333333 | EF61: 1.388888889 | EG61: 2.666666667 | EH61: 4.928571429 | EI61: 1.666666667 | EJ61: 2.5 | EK61: 3 | EL61: 2.833333333 | EM61: 2.272727273 | EP61: 4.3125 | EQ61: 3.578947368 | ER61: 2.928571429 | ES61: 1.647058824 | ET61: 4.909090909 | EU61: 1.666666667 | EV61: 4.222222222 | EW61: 2.526315789 | EX61: 4.230769231 | EY61: 4.2 | EZ61: 2.714285714 | FA61: 2.294117647 | FB61: 3.695652174 | FC61: 2.684210526 | FD61: 4.526315789 | FE61: 3 | FF61: =IF(FF17=0," ",FF17/FF39) -> 2.846153846 | FG61: 2.761904762 | FH61: 3.222222222 | FI61: 2.375 | FJ61: 2.545454545 | FK61: 3.333333333 | FL61: 2.888888889 | FM61: 3 | FN61: 4.107142857 | FO61: 2.411764706 | FP61: 2.533333333 | FQ61: 2.538461538 | FR61: 2.888888889 | FS61: 2.5625 | FT61: 3.36 | FU61: 2.782608696 | FV61: 3.888888889 | FW61: 3.666666667 | FX61: 4.058823529 | FY61: 1.791666667 | FZ61: 2.941176471 | GA61: 2.5 | GB61: 1.923076923 | GC61: 3 | GD61: 4.333333333 | GE61: 1.642857143 | GF61: 3.416666667 | GG61: 1.3 | GL61: 3.333333333 | GM61: 1.571428571 | GN61: 2.642857143
B62: 22:00:00 | C62: =IF(C18=0," ",C18/C40) -> 1.818181818 | D62: 1.363636364 | E62: 2.818181818 | F62: 1 | G62: 2.75 | I62: 1.666666667 | J62: 2.3 | K62: 2 | L62: 5 | M62: 3 | N62: 2.413793103 | O62: 1.833333333 | P62: 2.37037037 | Q62: 2.428571429 | R62: 2.2 | S62: 6.181818182 | T62: 2.894736842 | U62: 2.666666667 | V62: 1.45 | W62: 2.411764706 | X62: 2 | Y62: 3.642857143 | Z62: 3.9 | AA62: 1.888888889 | AB62: 2.652173913 | AC62: 2.347826087 | AD62: 2.769230769 | AE62: 2.578947368 | AF62: 2 | AG62: 2.705882353 | AH62: 2.238095238 | AI62: =IF(AI18=0," ",AI18/AI40) -> 1.523809524 | AJ62: 3.454545455 | AK62: 2.833333333 | AM62: 2.243243243 | AN62: 2.852941176 | AO62: 2.705882353 | AP62: 3.307692308 | AQ62: 2.217391304 | AR62: 2.545454545 | AS62: 3.153846154 | AT62: 2.0625 | AU62: 1.958333333 | AV62: 2.55 | AW62: 2.5 | AX62: 2.756756757 | AY62: 2.5 | AZ62: 2.96875 | BA62: 2.870967742 | BB62: 1.8 | BC62: 3.75 | BD62: 2.583333333 | BE62: 2.512195122 | BF62: 2.260869565 | BG62: 4.043478261 | BH62: 3 | BI62: 3 | BJ62: 4.125 | BK62: 2.622222222 | BL62: 2.242424242 | BM62: 2.739130435 | BN62: 3.8 | BO62: =IF(BO18=0," ",BO18/BO40) -> 3.407407407 | BP62: 2.8 | BQ62: 2.468085106 | BR62: 3.333333333 | BS62: 3.666666667 | BT62: 3 | BU62: 2.590909091 | BV62: 2.724137931 | BW62: 3.303571429 | BX62: 3.928571429 | BY62: 2.724137931 | BZ62: 2.217391304 | CA62: 3.47826087 | CB62: 2.08 | CC62: 2.837209302 | CD62: 2.666666667 | CE62: 2.541666667 | CF62: 2.272727273 | CG62: 3.558823529 | CH62: 2.702702703 | CI62: 2.454545455 | CJ62: 3.541666667 | CK62: 2.615384615 | CL62: 2.115384615 | CM62: 2.529411765 | CN62: 2.555555556 | CO62: 2.6 | CT62: =IF(CT18=0," ",CT18/CT40) ->  | ED62: 2.888888889 | EE62: 3.25 | EF62: 2 | EG62: 3.230769231 | EH62: 1.6 | EI62: 2.428571429 | EJ62: 2.125 | EK62: 1.545454545 | EL62: 1.666666667 | FF62: =IF(FF18=0," ",FF18/FF40) ->  | FY62: 2.5 | FZ62: 3.090909091 | GA62: 2.4 | GB62: 2.285714286 | GC62: 2.2 | GD62: 2 | GE62: 1.6 | GF62: 2.5 | GG62: 4
B63: 23:00:00 | C63: =IF(C19=0," ",C19/C41) -> 1.75 | D63: 1.75 | E63: 2.714285714 | F63: 2.375 | G63: 3.857142857 | I63: 3.8 | J63: 4.5 | K63: 3.888888889 | L63: 2.666666667 | M63: 2.933333333 | N63: 2.5625 | O63: 2.857142857 | P63: 3 | Q63: 3.444444444 | R63: 2.25 | S63: 2.3 | T63: 4.117647059 | U63: 1.5 | V63: 1.894736842 | W63: 3.473684211 | X63: 4.583333333 | Y63: 3.461538462 | Z63: 2.55 | AA63: 4.75 | AB63: 3.071428571 | AC63: 3.368421053 | AD63: 2.818181818 | AE63: 2.388888889 | AF63: 1.733333333 | AG63: 3.363636364 | AH63: 4.692307692 | AI63: =IF(AI19=0," ",AI19/AI41) -> 2.545454545 | AJ63: 1.8 | AK63: 4.571428571 | AM63: 2.379310345 | AN63: 2.619047619 | AO63: 3.375 | AP63: 3.363636364 | AQ63: 5.894736842 | AR63: 2.806451613 | AS63: 3.1 | AT63: 2.714285714 | AU63: 2.129032258 | AV63: 2.1 | AW63: 2.888888889 | AX63: 2.928571429 | AY63: 2.483870968 | AZ63: 3.205882353 | BA63: 4.583333333 | BB63: 3.333333333 | BC63: 3.615384615 | BD63: 3.517241379 | BE63: 4.238095238 | BF63: 2.5 | BG63: 3.777777778 | BH63: 2.538461538 | BI63: 3.625 | BJ63: 2.366666667 | BK63: 2.527777778 | BL63: 3 | BM63: 3.192307692 | BN63: 2.909090909 | BO63: =IF(BO19=0," ",BO19/BO41) -> 3.2 | BP63: 4.103448276 | BQ63: 3.5 | BR63: 3.384615385 | BS63: 3.942857143 | BT63: 3.818181818 | BU63: 2.6 | BV63: 3.958333333 | BW63: 3.25 | BX63: 3.189189189 | BY63: 3.35 | BZ63: 2.7 | CA63: 3.84 | CB63: 2.82 | CC63: 3.75 | CD63: 3.037037037 | CE63: 3.172413793 | CF63: 3.777777778 | CG63: 4.409090909 | CH63: 2.56 | CI63: 2.684210526 | CJ63: 3.266666667 | CK63: 2.058823529 | CL63: 1.5 | CM63: 3.260869565 | CN63: 2 | CO63: 3.6 | CT63: =IF(CT19=0," ",CT19/CT41) ->  | ED63: 2.142857143 | EE63: 2 | EF63: 2.166666667 | EG63: 3.4 | EH63: 3.571428571 | EI63: 2.571428571 | EJ63: 4.166666667 | EK63: 3 | EL63: 2 | FF63: =IF(FF19=0," ",FF19/FF41) ->  | FY63: 2 | FZ63: 3.25 | GA63: 3 | GB63: 2.25 | GC63: 4 | GD63: 3.333333333 | GE63: 2.333333333 | GF63: 2.666666667 | GG63: 1.333333333
B64: 1 | C64: =IF(C20=0," ",C20/C42) ->  | AI64: =IF(AI20=0," ",AI20/AI42) ->  | BO64: =IF(BO20=0," ",BO20/BO42) ->  | CB64: 1.666666667 | CC64: 2.727272727 | CD64: 2.666666667 | CE64: 2.5 | CF64: 3.166666667 | CH64: 2.55 | CI64: 2.6 | CJ64: 1.777777778 | CK64: 2.666666667 | CL64: 7.5 | CN64: 2 | CO64: 5 | CT64: =IF(CT20=0," ",CT20/CT42) ->  | FF64: =IF(FF20=0," ",FF20/FF42) -> 
B65: 1.041666667 | C65: =IF(C21=0," ",C21/C43) ->  | AI65: =IF(AI21=0," ",AI21/AI43) ->  | BO65: =IF(BO21=0," ",BO21/BO43) ->  | CC65: 1.625 | CD65: 3.625 | CE65: 2.416666667 | CF65: 2 | CH65: 2.571428571 | CI65: 2 | CJ65: 3.25 | CK65: 2.428571429 | CL65: 3.555555556 | CN65: 3.142857143 | CO65: 2.8 | CT65: =IF(CT21=0," ",CT21/CT43) ->  | FF65: =IF(FF21=0," ",FF21/FF43) -> 
B66: Average | C66: =IF(C22=0," ",C22/C44) -> 2.304516129 | D66: 1.913625304 | E66: 2.158354115 | F66: 2.201072386 | G66: 2.57980456 | H66: 2.276470588 | I66: 2.005405405 | J66: 2.137888199 | K66: 2.209733488 | L66: 2.334174023 | M66: 2.558762887 | N66: 2.30794702 | O66: 2.156818182 | P66: 2.123094959 | Q66: 2.285888078 | R66: 2.267217631 | S66: 2.871428571 | T66: 2.38643371 | U66: 2.338641189 | V66: 2.084090909 | W66: 2.331872946 | X66: 2.339752407 | Y66: 2.966960352 | Z66: 2.489489489 | AA66: 2.468499427 | AB66: 2.150812065 | AC66: 2.307268722 | AD66: 2.325179856 | AE66: 2.763593381 | AF66: 2.221453287 | AG66: 2.334293948 | AH66: 2.314110429 | AI66: =IF(AI22=0," ",AI22/AI44) -> 2.364620939 | AJ66: 2.430473373 | AK66: 2.963254593 | AL66: 2.464114833 | AM66: 2.417307692 | AN66: 2.526574803 | AO66: 2.46985447 | AP66: 2.525773196 | AQ66: 2.941060904 | AR66: 2.25748503 | AS66: 2.422077922 | AT66: 2.4386149 | AU66: 2.363941769 | AV66: 2.62125 | AW66: 2.982625483 | AX66: 2.542828685 | AY66: 2.514677104 | AZ66: 2.458333333 | BA66: 2.68641115 | BB66: 2.589167768 | BC66: 2.850102669 | BD66: 2.574509804 | BE66: 2.371621622 | BF66: 2.518018018 | BG66: 2.577702703 | BH66: 2.531130877 | BI66: 2.934362934 | BJ66: 2.390578999 | BK66: 2.496531219 | BL66: 2.687804878 | BM66: 2.602870813 | BN66: 2.792325056 | BO66: =IF(BO22=0," ",BO22/BO44) -> 3.036697248 | BP66: 2.556683587 | BQ66: 2.689860835 | BR66: 2.493203883 | BS66: 2.661257606 | BT66: 2.729331823 | BU66: 3.588932806 | BV66: 2.736889693 | BW66: 2.648023144 | BX66: 2.712598425 | BY66: 2.673100121 | BZ66: 2.636118598 | CA66: 3.160714286 | CB66: 2.993143976 | CC66: 2.594320487 | CD66: 2.599151644 | CE66: 2.410353535 | CF66: 2.607476636 | CG66: 3.163879599 | CH66: 2.356597601 | CI66: 2.408854167 | CJ66: 2.472972973 | CK66: 2.282843895 | CL66: 2.282218597 | CM66: 2.301587302 | CN66: 2.518828452 | CO66: 2.45203252 | CP66: 2.59223301 | CQ66: 3.003546099 | CR66: 3.148148148 | CS66: 2.836538462 | CT66: =IF(CT22=0," ",CT22/CT44) -> 3.124161074 | CU66: 2.634387352 | CV66: 2.637992832 | CW66: 2.150943396 | CX66: 2.466346154 | CY66: 2.868852459 | CZ66: 2.682842288 | DA66: 2.752155172 | DB66: 2.683301344 | DC66: 2.377011494 | DD66: 3.152671756 | DE66: 2.699507389 | DF66: 2.591170825 | DG66: 2.783783784 | DH66: 2.776978417 | DI66: 2.746411483 | DJ66: 2.754617414 | DK66: 3.132701422 | DL66: 2.636726547 | DM66: 2.591928251 | DN66: 2.80212766 | DO66: 2.468677494 | DP66: 2.777777778 | DQ66: 3.043715847 | DR66: 3.13253012 | DS66: 2.536633663 | DT66: 2.776876268 | DU66: 2.740825688 | DV66: 2.980582524 | DW66: 2.68907563 | DX66: 2.706365503 | DY66: 2.911564626 | DZ66: 2.642857143 | EA66: 2.674418605 | EB66: 2.754475703 | EC66: 2.976415094 | ED66: 2.545258621 | EE66: 2.882629108 | EF66: 2.548728814 | EG66: 2.532374101 | EH66: 2.778735632 | EI66: 2.572115385 | EJ66: 2.56091954 | EK66: 2.548387097 | EL66: 2.461741425 | EM66: 2.249266862 | EN66: 3.137931034 | EO66: 2.51 | EP66: 2.761702128 | EQ66: 2.626315789 | ER66: 2.362660944 | ES66: 2.430809399 | ET66: 2.647230321 | EU66: 2.737179487 | EV66: 2.793248945 | EW66: 2.33604888 | EX66: 2.981912145 | EY66: 3.124260355 | EZ66: 2.969230769 | FA66: 2.621568627 | FB66: 3.156398104 | FC66: 3.245798319 | FD66: 2.675742574 | FE66: 2.814241486 | FF66: =IF(FF22=0," ",FF22/FF44) -> 2.884615385 | FG66: 2.587771203 | FH66: 2.810218978 | FI66: 2.582914573 | FJ66: 2.750692521 | FK66: 2.935897436 | FL66: 2.763157895 | FM66: 3.216216216 | FN66: 2.847457627 | FO66: 2.516853933 | FP66: 2.461928934 | FQ66: 2.428571429 | FR66: 3.015789474 | FS66: 3.008421053 | FT66: 2.976982097 | FU66: 2.77383592 | FV66: 2.732186732 | FW66: 2.941772152 | FX66: 3.161111111 | FY66: 2.55511022 | FZ66: 2.55808656 | GA66: 2.435789474 | GB66: 2.43715847 | GC66: 2.721518987 | GD66: 2.682464455 | GE66: 2.41475827 | GF66: 2.529051988 | GG66: 2.333333333 | GH66: 2.534136546 | GI66: 2.904761905 | GJ66: 2.689655172 | GK66: 2.596707819 | GL66: 2.642585551 | GM66: 2.9 | GN66: 3.031468531 | GO66: 2.340909091 | GP66: 3.2 | GQ66: 2.66442953 | GR66: 2.590909091 | GS66: 2.516853933 | GT66: 2.777003484
C68: Fri | D68: Sat | E68: Tue | F68: Wed | G68: Thu | H68: Fri | I68: Sat | J68: Mon | K68: Tue | L68: Wed | M68: Thu | N68: Fri | O68: Sat | P68: Mon | Q68: Tue | R68: Wed | S68: Thu | T68: Fri | U68: Sat | V68: Mon | W68: Tue | X68: Wed | Y68: Thu | Z68: Fri | AA68: Sat | AB68: Mon | AC68: Tue | AD68: Wed | AE68: Thu | AF68: Fri | AG68: Sat | AH68: Mon | AI68: Tue | AJ68: Wed | AK68: Thu | AL68: Fri | AM68: Sat | AN68: Mon | AO68: Tue | AP68: Wed | AQ68: Thu | AR68: Fri | AS68: Sat | AT68: Mon | AU68: Tue | AV68: Wed | AW68: Thu | AX68: Fri | AY68: Sat | AZ68: Mon | BA68: Tue | BB68: Wed | BC68: Thu | BD68: Fri | BE68: Sat | BF68: Mon | BG68: Tue | BH68: Wed | BI68: Thu | BJ68: Fri | BK68: Sat | BL68: Mon | BM68: Tue | BN68: Wed | BO68: Thu | BP68: Fri | BQ68: Sat | BR68: Mon | BS68: Tue | BT68: Wed | BU68: Fri | BV68: Sat | BW68: Mon | BX68: Tue | BY68: Wed | BZ68: Thu | CA68: Fri | CB68: Sat | CC68: Mon | CD68: Tue | CE68: Wed | CF68: Thu | CG68: Fri | CH68: Sat | CI68: Mon | CJ68: Tue | CK68: Wed | CL68: Thu | CM68: Fri | CN68: Sat | CO68: Mon | CP68: Tue | CQ68: Wed | CR68: Thu | CS68: Fri | CT68: Tue | CU68: Wed | CV68: Thu | CW68: Fri
A69: Patrons | C69: 2006-09-01 | D69: 2006-09-02 | E69: 2006-09-05 | F69: 2006-09-06 | G69: 2006-09-07 | H69: 2006-09-08 | I69: 2006-09-09 | J69: 2006-09-11 | K69: 2006-09-12 | L69: 2006-09-13 | M69: 2006-09-14 | N69: 2006-09-15 | O69: 2006-09-16 | P69: 2006-09-18 | Q69: 2006-09-19 | R69: 2006-09-20 | S69: 2006-09-21 | T69: 2006-09-22 | U69: 2006-09-23 | V69: 2006-09-25 | W69: 2006-09-26 | X69: 2006-09-27 | Y69: 2006-09-28 | Z69: 2006-09-29 | AA69: 2006-09-30 | AB69: 2006-10-02 | AC69: 2006-10-03 | AD69: 2006-10-04 | AE69: 2006-10-05 | AF69: 2006-10-06 | AG69: 2006-10-07 | AH69: 2006-10-09 | AI69: 2006-10-10 | AJ69: 2006-10-11 | AK69: 2006-10-12 | AL69: 2006-10-13 | AM69: 2006-10-14 | AN69: 2006-10-16 | AO69: 2006-10-17 | AP69: 2006-10-18 | AQ69: 2006-10-19 | AR69: 2006-10-20 | AS69: 2006-10-21 | AT69: 2006-10-23 | AU69: 2006-10-24 | AV69: 2006-10-25 | AW69: 2006-10-26 | AX69: 2006-10-27 | AY69: 2006-10-28 | AZ69: 2006-10-30 | BA69: 2006-10-31 | BB69: 2006-11-01 | BC69: 2006-11-02 | BD69: 2006-11-03 | BE69: 2006-11-04 | BF69: 2006-11-06 | BG69: 2006-11-07 | BH69: 2006-11-08 | BI69: 2006-11-09 | BJ69: 2006-11-10 | BK69: 2006-11-11 | BL69: 2006-11-13 | BM69: 2006-11-14 | BN69: 2006-11-15 | BO69: 2006-11-16 | BP69: 2006-11-17 | BQ69: 2006-11-18 | BR69: 2006-11-20 | BS69: 2006-11-21 | BT69: 2006-11-22 | BU69: 2006-11-24 | BV69: 2006-11-25 | BW69: 2006-11-27 | BX69: 2006-11-28 | BY69: 2006-11-29 | BZ69: 2006-11-30 | CA69: 2006-12-01 | CB69: 2006-12-02 | CC69: 2006-12-04 | CD69: 2006-12-05 | CE69: 2006-12-06 | CF69: 2006-12-07 | CG69: 2006-12-08 | CH69: 2006-12-09 | CI69: 2006-12-11 | CJ69: 2006-12-12 | CK69: 2006-12-13 | CL69: 2006-12-14 | CM69: 2006-12-15 | CN69: 2006-12-16 | CO69: 2006-12-18 | CP69: 2006-12-19 | CQ69: 2006-12-20 | CR69: 2006-12-21 | CS69: 2006-12-22 | CT69: 2006-12-26 | CU69: 2006-12-27 | CV69: 2006-12-28 | CW69: 2006-12-29
A70: Hour | B70: 07:00:00 | E70: 17 | F70: 9 | G70: 22 | H70: 4 | J70: 26 | K70: 7 | L70: 9 | M70: 9 | N70: 4 | P70: 12 | Q70: 8 | R70: 11 | S70: 21 | T70: 8 | V70: 16 | W70: 19 | X70: 11 | Y70: 18 | Z70: 9 | AB70: 25 | AC70: 20 | AD70: 18 | AE70: 6 | AF70: 24 | AH70: 18 | AI70: 17 | AJ70: 3 | AK70: 7 | AL70: 3 | AN70: 14 | AO70: 15 | AP70: 11 | AQ70: 15 | AR70: 5 | AT70: 16 | AU70: 15 | AV70: 12 | AW70: 12 | AX70: 5 | AZ70: 33 | BA70: 2 | BB70: 10 | BC70: 7 | BD70: 5 | BF70: 7 | BG70: 6 | BH70: 9 | BI70: 2 | BJ70: 17 | BL70: 21 | BM70: 12 | BN70: 7 | BO70: 11 | BP70: 3 | BR70: 18 | BS70: 10 | BW70: 28 | BX70: 25 | BY70: 8 | BZ70: 5 | CA70: 9 | CC70: 11 | CD70: 4 | CE70: 14 | CF70: 3 | CG70: 8 | CI70: 25 | CJ70: 13 | CK70: 21 | CL70: 9 | CM70: 1 | CO70: 5 | CP70: 11 | CQ70: 7 | CR70: 5
B71: 08:00:00 | C71: 26 | D71: 4 | E71: 39 | F71: 109 | G71: 23 | H71: 41 | I71: 9 | J71: 53 | K71: 41 | L71: 50 | M71: 23 | N71: 48 | O71: 6 | P71: 34 | Q71: 41 | R71: 76 | S71: 42 | T71: 24 | U71: 10 | V71: 46 | W71: 39 | X71: 32 | Y71: 37 | Z71: 43 | AA71: 7 | AB71: 33 | AC71: 26 | AD71: 65 | AE71: 47 | AF71: 30 | AG71: 2 | AH71: 74 | AI71: 31 | AJ71: 36 | AK71: 44 | AL71: 28 | AM71: 11 | AN71: 47 | AO71: 25 | AP71: 31 | AQ71: 31 | AR71: 43 | AS71: 14 | AT71: 51 | AU71: 61 | AV71: 46 | AW71: 47 | AX71: 23 | AY71: 17 | AZ71: 71 | BA71: 91 | BB71: 125 | BC71: 17 | BD71: 81 | BE71: 17 | BF71: 80 | BG71: 93 | BH71: 58 | BI71: 43 | BJ71: 69 | BK71: 5 | BL71: 70 | BM71: 106 | BN71: 24 | BO71: 41 | BP71: 35 | BQ71: 5 | BR71: 63 | BS71: 52 | BW71: 44 | BX71: 22 | BY71: 50 | BZ71: 96 | CA71: 37 | CB71: 14 | CC71: 38 | CD71: 77 | CE71: 27 | CF71: 47 | CG71: 34 | CH71: 14 | CI71: 55 | CJ71: 84 | CK71: 40 | CL71: 25 | CM71: 34 | CN71: 11 | CO71: 30 | CP71: 65 | CQ71: 29 | CR71: 39 | CS71: 9 | CT71: 7 | CU71: 4 | CV71: 92 | CW71: 13
B72: 09:00:00 | C72: 43 | D72: 17 | E72: 90 | F72: 175 | G72: 103 | H72: 94 | I72: 10 | J72: 122 | K72: 132 | L72: 113 | M72: 117 | N72: 111 | O72: 21 | P72: 75 | Q72: 142 | R72: 95 | S72: 77 | T72: 82 | U72: 19 | V72: 68 | W72: 138 | X72: 79 | Y72: 95 | Z72: 62 | AA72: 25 | AB72: 94 | AC72: 167 | AD72: 114 | AE72: 72 | AF72: 121 | AG72: 15 | AH72: 86 | AI72: 215 | AJ72: 80 | AK72: 103 | AL72: 92 | AM72: 14 | AN72: 105 | AO72: 127 | AP72: 95 | AQ72: 104 | AR72: 144 | AS72: 17 | AT72: 124 | AU72: 121 | AV72: 108 | AW72: 84 | AX72: 93 | AY72: 7 | AZ72: 137 | BA72: 136 | BB72: 84 | BC72: 88 | BD72: 70 | BE72: 2 | BF72: 88 | BG72: 139 | BH72: 137 | BI72: 111 | BJ72: 92 | BK72: 15 | BL72: 98 | BM72: 126 | BN72: 122 | BO72: 90 | BP72: 120 | BQ72: 13 | BR72: 104 | BS72: 207 | BW72: 94 | BX72: 166 | BY72: 88 | BZ72: 115 | CA72: 79 | CB72: 14 | CC72: 61 | CD72: 90 | CE72: 153 | CF72: 88 | CG72: 75 | CH72: 17 | CI72: 110 | CJ72: 117 | CK72: 98 | CL72: 47 | CM72: 95 | CN72: 23 | CO72: 65 | CP72: 61 | CQ72: 112 | CR72: 55 | CS72: 23 | CU72: 2 | CV72: 79 | CW72: 40
B73: 10:00:00 | C73: 94 | D73: 20 | E73: 137 | F73: 125 | G73: 224 | H73: 252 | I73: 16 | J73: 188 | K73: 129 | L73: 203 | M73: 207 | N73: 175 | O73: 53 | P73: 173 | Q73: 119 | R73: 148 | S73: 218 | T73: 144 | U73: 38 | V73: 187 | W73: 195 | X73: 180 | Y73: 139 | Z73: 142 | AB73: 164 | AC73: 201 | AD73: 200 | AE73: 150 | AF73: 173 | AG73: 57 | AH73: 176 | AI73: 160 | AJ73: 172 | AK73: 134 | AL73: 139 | AM73: 26 | AN73: 214 | AO73: 142 | AP73: 225 | AQ73: 155 | AR73: 132 | AS73: 73 | AT73: 189 | AU73: 132 | AV73: 171 | AW73: 214 | AX73: 210 | AY73: 57 | AZ73: 178 | BA73: 139 | BB73: 169 | BC73: 146 | BD73: 195 | BE73: 43 | BF73: 239 | BG73: 170 | BH73: 238 | BI73: 264 | BJ73: 254 | BK73: 51 | BL73: 146 | BM73: 170 | BN73: 209 | BO73: 192 | BP73: 204 | BQ73: 46 | BR73: 277 | BS73: 279 | BU73: 46 | BV73: 13 | BW73: 262 | BX73: 101 | BY73: 163 | BZ73: 111 | CA73: 216 | CB73: 63 | CC73: 277 | CD73: 100 | CE73: 193 | CF73: 180 | CG73: 178 | CH73: 43 | CI73: 165 | CJ73: 129 | CK73: 185 | CL73: 125 | CM73: 81 | CN73: 39 | CO73: 182 | CP73: 147 | CQ73: 130 | CR73: 95 | CS73: 70 | CT73: 35 | CU73: 51 | CV73: 21 | CW73: 17
B74: 11:00:00 | C74: 96 | D74: 41 | E74: 224 | F74: 107 | G74: 218 | H74: 124 | I74: 61 | J74: 192 | K74: 17 | L74: 139 | M74: 164 | N74: 119 | O74: 59 | P74: 179 | Q74: 58 | R74: 126 | S74: 163 | T74: 169 | U74: 66 | V74: 227 | W74: 29 | X74: 205 | Y74: 159 | Z74: 170 | AA74: 2 | AB74: 183 | AC74: 32 | AD74: 230 | AE74: 168 | AF74: 178 | AG74: 38 | AH74: 190 | AI74: 39 | AJ74: 170 | AK74: 175 | AL74: 246 | AM74: 29 | AN74: 135 | AO74: 26 | AP74: 131 | AQ74: 148 | AR74: 153 | AS74: 35 | AT74: 156 | AU74: 57 | AV74: 158 | AW74: 155 | AX74: 144 | AY74: 33 | AZ74: 251 | BA74: 5 | BB74: 218 | BC74: 215 | BD74: 213 | BE74: 58 | BF74: 190 | BG74: 46 | BH74: 175 | BI74: 165 | BJ74: 183 | BK74: 50 | BL74: 180 | BM74: 15 | BN74: 169 | BO74: 186 | BP74: 306 | BQ74: 84 | BR74: 202 | BS74: 235 | BT74: 54 | BU74: 75 | BV74: 23 | BW74: 209 | BX74: 24 | BY74: 193 | BZ74: 165 | CA74: 199 | CB74: 106 | CC74: 202 | CD74: 22 | CE74: 165 | CF74: 164 | CG74: 142 | CH74: 69 | CI74: 181 | CJ74: 41 | CK74: 120 | CL74: 183 | CM74: 125 | CN74: 57 | CO74: 91 | CP74: 95 | CQ74: 69 | CR74: 116 | CS74: 19 | CT74: 40 | CU74: 37 | CV74: 254 | CW74: 26
B75: 12:00:00 | C75: 76 | D75: 51 | E75: 155 | F75: 136 | G75: 105 | H75: 153 | I75: 75 | J75: 168 | K75: 130 | L75: 107 | M75: 154 | N75: 179 | O75: 91 | P75: 145 | Q75: 126 | R75: 169 | S75: 173 | T75: 153 | U75: 79 | V75: 171 | W75: 152 | X75: 169 | Y75: 195 | Z75: 138 | AA75: 52 | AB75: 239 | AC75: 136 | AD75: 140 | AE75: 126 | AF75: 178 | AG75: 59 | AH75: 124 | AI75: 153 | AJ75: 142 | AK75: 154 | AL75: 190 | AM75: 87 | AN75: 93 | AO75: 128 | AP75: 142 | AQ75: 158 | AR75: 134 | AS75: 75 | AT75: 108 | AU75: 147 | AV75: 127 | AW75: 140 | AX75: 124 | AY75: 110 | AZ75: 202 | BA75: 150 | BB75: 154 | BC75: 210 | BD75: 178 | BE75: 103 | BF75: 223 | BG75: 212 | BH75: 182 | BI75: 201 | BJ75: 150 | BK75: 128 | BL75: 147 | BM75: 132 | BN75: 200 | BO75: 152 | BP75: 206 | BQ75: 161 | BR75: 233 | BS75: 225 | BT75: 277 | BU75: 67 | BV75: 56 | BW75: 147 | BX75: 232 | BY75: 170 | BZ75: 118 | CA75: 143 | CB75: 107 | CC75: 181 | CD75: 148 | CE75: 133 | CF75: 135 | CG75: 149 | CH75: 154 | CI75: 200 | CJ75: 170 | CK75: 150 | CL75: 94 | CM75: 106 | CN75: 81 | CO75: 99 | CP75: 87 | CQ75: 145 | CR75: 104 | CS75: 71 | CT75: 51 | CU75: 48 | CV75: 30 | CW75: 49
B76: 13:00:00 | C76: 69 | D76: 61 | E76: 145 | F76: 184 | G76: 111 | H76: 169 | I76: 69 | J76: 166 | K76: 181 | L76: 261 | M76: 139 | N76: 229 | O76: 59 | P76: 183 | Q76: 249 | R76: 182 | S76: 129 | T76: 152 | U76: 68 | V76: 134 | W76: 197 | X76: 142 | Y76: 122 | Z76: 238 | AA76: 77 | AB76: 250 | AC76: 181 | AD76: 188 | AE76: 138 | AF76: 153 | AG76: 96 | AH76: 175 | AI76: 164 | AJ76: 193 | AK76: 149 | AL76: 177 | AM76: 87 | AN76: 202 | AO76: 156 | AP76: 158 | AQ76: 139 | AR76: 167 | AS76: 66 | AT76: 169 | AU76: 191 | AV76: 102 | AW76: 160 | AX76: 162 | AY76: 119 | AZ76: 211 | BA76: 141 | BB76: 228 | BC76: 234 | BD76: 206 | BE76: 122 | BF76: 185 | BG76: 203 | BH76: 184 | BI76: 113 | BJ76: 165 | BK76: 103 | BL76: 147 | BM76: 146 | BN76: 232 | BO76: 148 | BP76: 197 | BQ76: 66 | BR76: 226 | BS76: 235 | BT76: 90 | BU76: 39 | BV76: 57 | BW76: 159 | BX76: 209 | BY76: 188 | BZ76: 175 | CA76: 157 | CB76: 131 | CC76: 227 | CD76: 195 | CE76: 208 | CF76: 155 | CG76: 185 | CH76: 127 | CI76: 157 | CJ76: 155 | CK76: 187 | CL76: 145 | CM76: 146 | CN76: 71 | CO76: 133 | CP76: 157 | CQ76: 157 | CR76: 84 | CS76: 39 | CT76: 9 | CU76: 17 | CV76: 73 | CW76: 39
B77: 14:00:00 | C77: 84 | D77: 53 | E77: 134 | F77: 130 | G77: 105 | H77: 164 | I77: 120 | J77: 173 | K77: 159 | L77: 173 | M77: 234 | N77: 162 | O77: 80 | P77: 190 | Q77: 149 | R77: 159 | S77: 146 | T77: 180 | U77: 83 | V77: 175 | W77: 224 | X77: 162 | Y77: 182 | Z77: 195 | AB77: 195 | AC77: 206 | AD77: 159 | AE77: 153 | AF77: 242 | AG77: 96 | AH77: 192 | AI77: 212 | AJ77: 120 | AK77: 174 | AL77: 131 | AM77: 149 | AN77: 150 | AO77: 234 | AP77: 164 | AQ77: 177 | AR77: 146 | AS77: 88 | AT77: 181 | AU77: 145 | AV77: 163 | AW77: 196 | AX77: 130 | AY77: 89 | AZ77: 201 | BA77: 193 | BB77: 210 | BC77: 141 | BD77: 235 | BE77: 125 | BF77: 202 | BG77: 184 | BH77: 203 | BI77: 188 | BJ77: 209 | BK77: 94 | BL77: 177 | BM77: 164 | BN77: 217 | BO77: 219 | BP77: 218 | BQ77: 92 | BR77: 192 | BS77: 208 | BT77: 169 | BU77: 37 | BV77: 36 | BW77: 214 | BX77: 223 | BY77: 157 | BZ77: 187 | CA77: 268 | CB77: 128 | CC77: 306 | CD77: 192 | CE77: 192 | CF77: 217 | CG77: 167 | CH77: 138 | CI77: 235 | CJ77: 261 | CK77: 167 | CL77: 138 | CM77: 124 | CN77: 98 | CO77: 125 | CP77: 80 | CQ77: 104 | CR77: 110 | CS77: 77 | CT77: 7 | CU77: 22 | CV77: 30 | CW77: 65
B78: 15:00:00 | C78: 96 | D78: 104 | E78: 216 | F78: 213 | G78: 110 | H78: 135 | I78: 76 | J78: 145 | K78: 226 | L78: 169 | M78: 152 | N78: 175 | O78: 85 | P78: 189 | Q78: 165 | R78: 181 | S78: 178 | T78: 176 | U78: 121 | V78: 168 | W78: 157 | X78: 148 | Y78: 129 | Z78: 124 | AA78: 4 | AB78: 235 | AC78: 198 | AD78: 172 | AE78: 201 | AF78: 172 | AG78: 85 | AH78: 178 | AI78: 279 | AJ78: 194 | AK78: 196 | AL78: 149 | AM78: 220 | AN78: 204 | AO78: 222 | AP78: 247 | AQ78: 137 | AR78: 163 | AS78: 90 | AT78: 204 | AU78: 197 | AV78: 178 | AW78: 178 | AX78: 168 | AY78: 134 | AZ78: 244 | BA78: 231 | BB78: 224 | BC78: 185 | BD78: 179 | BE78: 214 | BF78: 199 | BG78: 190 | BH78: 187 | BI78: 242 | BJ78: 233 | BK78: 167 | BL78: 245 | BM78: 258 | BN78: 197 | BO78: 225 | BP78: 238 | BQ78: 77 | BR78: 231 | BS78: 222 | BT78: 165 | BU78: 64 | BV78: 65 | BW78: 288 | BX78: 215 | BY78: 179 | BZ78: 216 | CA78: 207 | CB78: 165 | CC78: 262 | CD78: 227 | CE78: 198 | CF78: 169 | CG78: 191 | CH78: 163 | CI78: 240 | CJ78: 221 | CK78: 175 | CL78: 121 | CM78: 155 | CN78: 83 | CO78: 166 | CP78: 109 | CQ78: 87 | CR78: 112 | CS78: 132 | CT78: 39 | CU78: 18 | CV78: 55 | CW78: 80
B79: 16:00:00 | C79: 66 | D79: 41 | E79: 165 | F79: 205 | G79: 156 | H79: 82 | I79: 86 | J79: 124 | K79: 179 | L79: 142 | M79: 153 | N79: 142 | O79: 113 | P79: 187 | Q79: 197 | R79: 132 | S79: 141 | T79: 199 | U79: 127 | V79: 166 | W79: 168 | X79: 147 | Y79: 109 | Z79: 155 | AA79: 57 | AB79: 220 | AC79: 161 | AD79: 163 | AE79: 193 | AF79: 128 | AG79: 130 | AH79: 242 | AI79: 235 | AJ79: 214 | AK79: 161 | AL79: 194 | AM79: 161 | AN79: 219 | AO79: 179 | AP79: 228 | AQ79: 136 | AR79: 133 | AS79: 59 | AT79: 181 | AU79: 195 | AV79: 191 | AW79: 161 | AX79: 137 | AY79: 172 | AZ79: 227 | BA79: 182 | BB79: 241 | BC79: 199 | BD79: 235 | BE79: 143 | BF79: 195 | BG79: 225 | BH79: 188 | BI79: 203 | BJ79: 189 | BK79: 93 | BL79: 231 | BM79: 238 | BN79: 238 | BO79: 212 | BP79: 222 | BQ79: 201 | BR79: 312 | BS79: 273 | BT79: 93 | BU79: 83 | BV79: 104 | BW79: 326 | BX79: 224 | BY79: 159 | BZ79: 173 | CA79: 190 | CB79: 152 | CC79: 242 | CD79: 208 | CE79: 220 | CF79: 255 | CG79: 203 | CH79: 180 | CI79: 271 | CJ79: 186 | CK79: 188 | CL79: 137 | CM79: 137 | CN79: 102 | CO79: 138 | CP79: 200 | CQ79: 100 | CR79: 93 | CS79: 54 | CT79: 20 | CU79: 48 | CV79: 41 | CW79: 88
B80: 17:00:00 | C80: 95 | D80: 81 | E80: 122 | F80: 120 | G80: 123 | H80: 126 | I80: 41 | J80: 135 | K80: 141 | L80: 176 | M80: 151 | N80: 126 | O80: 97 | P80: 145 | Q80: 134 | R80: 205 | S80: 142 | T80: 116 | U80: 74 | V80: 127 | W80: 145 | X80: 149 | Y80: 111 | Z80: 91 | AA80: 65 | AB80: 204 | AC80: 194 | AD80: 113 | AE80: 127 | AF80: 96 | AG80: 115 | AH80: 184 | AI80: 144 | AJ80: 165 | AK80: 183 | AL80: 120 | AM80: 108 | AN80: 148 | AO80: 116 | AP80: 160 | AQ80: 122 | AR80: 130 | AS80: 118 | AT80: 123 | AU80: 158 | AV80: 203 | AW80: 123 | AX80: 96 | AY80: 143 | AZ80: 203 | BA80: 151 | BB80: 185 | BC80: 138 | BD80: 171 | BE80: 133 | BF80: 266 | BG80: 159 | BH80: 104 | BI80: 133 | BJ80: 114 | BK80: 181 | BL80: 215 | BM80: 197 | BN80: 204 | BO80: 233 | BP80: 200 | BQ80: 116 | BR80: 344 | BS80: 214 | BT80: 237 | BU80: 187 | BV80: 151 | BW80: 265 | BX80: 181 | BY80: 196 | BZ80: 145 | CA80: 205 | CB80: 235 | CC80: 206 | CD80: 162 | CE80: 189 | CF80: 154 | CG80: 156 | CH80: 178 | CI80: 255 | CJ80: 153 | CK80: 167 | CL80: 133 | CM80: 148 | CN80: 101 | CO80: 138 | CP80: 108 | CQ80: 111 | CR80: 125 | CS80: 95 | CT80: 18 | CU80: 41 | CV80: 53 | CW80: 66
B81: 18:00:00 | E81: 116 | F81: 106 | G81: 78 | H81: 122 | I81: 66 | J81: 99 | K81: 101 | L81: 108 | M81: 93 | N81: 58 | O81: 77 | P81: 102 | Q81: 61 | R81: 97 | S81: 110 | T81: 96 | U81: 77 | V81: 101 | W81: 154 | X81: 164 | Y81: 45 | Z81: 77 | AA81: 28 | AB81: 104 | AC81: 112 | AD81: 104 | AE81: 117 | AF81: 80 | AG81: 131 | AH81: 159 | AI81: 145 | AJ81: 102 | AK81: 112 | AL81: 42 | AM81: 100 | AN81: 106 | AO81: 125 | AP81: 130 | AQ81: 107 | AR81: 85 | AS81: 102 | AT81: 130 | AU81: 142 | AV81: 147 | AW81: 145 | AX81: 88 | AY81: 63 | AZ81: 139 | BA81: 104 | BB81: 160 | BC81: 124 | BD81: 78 | BE81: 128 | BF81: 157 | BG81: 127 | BH81: 108 | BI81: 85 | BJ81: 80 | BK81: 104 | BL81: 172 | BM81: 165 | BN81: 130 | BO81: 124 | BP81: 93 | BQ81: 127 | BR81: 189 | BS81: 191 | BW81: 265 | BX81: 162 | BY81: 119 | BZ81: 105 | CA81: 86 | CB81: 126 | CC81: 216 | CD81: 175 | CE81: 128 | CF81: 158 | CG81: 79 | CH81: 159 | CI81: 144 | CJ81: 188 | CK81: 137 | CL81: 86 | CM81: 49 | CN81: 99 | CO81: 96 | CP81: 43 | CQ81: 44 | CR81: 51
B82: 19:00:00 | E82: 55 | F82: 55 | G82: 68 | H82: 23 | I82: 39 | J82: 50 | K82: 95 | L82: 70 | M82: 108 | N82: 48 | O82: 71 | P82: 52 | Q82: 80 | R82: 85 | S82: 80 | T82: 69 | U82: 74 | V82: 60 | W82: 93 | X82: 92 | Y82: 54 | Z82: 60 | AA82: 29 | AB82: 107 | AC82: 100 | AD82: 73 | AE82: 66 | AF82: 37 | AG82: 53 | AH82: 145 | AI82: 75 | AJ82: 92 | AK82: 108 | AL82: 88 | AM82: 93 | AN82: 81 | AO82: 106 | AP82: 78 | AQ82: 66 | AR82: 80 | AS82: 105 | AT82: 79 | AU82: 102 | AV82: 141 | AW82: 41 | AX82: 41 | AY82: 78 | AZ82: 88 | BA82: 55 | BB82: 132 | BC82: 112 | BD82: 51 | BE82: 94 | BF82: 72 | BG82: 137 | BH82: 126 | BI82: 50 | BJ82: 58 | BK82: 65 | BL82: 123 | BM82: 167 | BN82: 59 | BO82: 132 | BP82: 36 | BQ82: 59 | BR82: 80 | BS82: 106 | BW82: 167 | BX82: 160 | BY82: 154 | BZ82: 156 | CA82: 63 | CB82: 82 | CC82: 148 | CD82: 141 | CE82: 103 | CF82: 102 | CG82: 60 | CH82: 161 | CI82: 65 | CJ82: 148 | CK82: 80 | CL82: 74 | CM82: 33 | CN82: 56 | CO82: 73 | CP82: 62 | CQ82: 70 | CR82: 35
B83: 20:00:00 | E83: 74 | F83: 50 | G83: 75 | H83: 22 | I83: 16 | J83: 38 | K83: 77 | L83: 74 | M83: 96 | N83: 11 | O83: 51 | P83: 70 | Q83: 103 | R83: 82 | S83: 67 | T83: 46 | U83: 43 | V83: 52 | W83: 94 | X83: 95 | Y83: 39 | Z83: 31 | AA83: 36 | AB83: 76 | AC83: 101 | AD83: 108 | AE83: 58 | AF83: 43 | AG83: 70 | AH83: 84 | AI83: 84 | AJ83: 83 | AK83: 68 | AL83: 44 | AM83: 51 | AN83: 79 | AO83: 102 | AP83: 96 | AQ83: 65 | AR83: 63 | AS83: 39 | AT83: 108 | AU83: 131 | AV83: 99 | AW83: 71 | AX83: 32 | AY83: 88 | AZ83: 76 | BA83: 44 | BB83: 90 | BC83: 90 | BD83: 36 | BE83: 68 | BF83: 109 | BG83: 131 | BH83: 57 | BI83: 96 | BJ83: 39 | BK83: 125 | BL83: 130 | BM83: 155 | BN83: 99 | BO83: 161 | BP83: 80 | BQ83: 97 | BR83: 125 | BS83: 72 | BW83: 98 | BX83: 119 | BY83: 126 | BZ83: 115 | CA83: 59 | CB83: 153 | CC83: 103 | CD83: 125 | CE83: 116 | CF83: 96 | CG83: 37 | CH83: 88 | CI83: 114 | CJ83: 108 | CK83: 85 | CL83: 72 | CM83: 28 | CN83: 47 | CO83: 71 | CP83: 51 | CQ83: 40 | CR83: 32
B84: 21:00:00 | E84: 44 | F84: 37 | G84: 54 | H84: 46 | I84: 56 | J84: 76 | K84: 85 | L84: 69 | M84: 76 | N84: 12 | O84: 45 | P84: 44 | Q84: 75 | R84: 93 | S84: 83 | T84: 19 | U84: 29 | V84: 72 | W84: 87 | X84: 43 | Y84: 42 | Z84: 29 | AA84: 36 | AB84: 66 | AC84: 97 | AD84: 112 | AE84: 103 | AF84: 24 | AG84: 53 | AH84: 69 | AI84: 78 | AJ84: 78 | AK84: 63 | AL84: 44 | AM84: 67 | AN84: 70 | AO84: 128 | AP84: 86 | AQ84: 50 | AR84: 37 | AS84: 39 | AT84: 87 | AU84: 123 | AV84: 71 | AW84: 98 | AX84: 39 | AY84: 51 | AZ84: 106 | BA84: 38 | BB84: 85 | BC84: 108 | BD84: 51 | BE84: 56 | BF84: 97 | BG84: 99 | BH84: 105 | BI84: 79 | BJ84: 30 | BK84: 76 | BL84: 127 | BM84: 154 | BN84: 151 | BO84: 135 | BP84: 59 | BQ84: 71 | BR84: 115 | BS84: 82 | BW84: 171 | BX84: 133 | BY84: 86 | BZ84: 72 | CA84: 57 | CB84: 68 | CC84: 108 | CD84: 167 | CE84: 110 | CF84: 117 | CG84: 53 | CH84: 152 | CI84: 114 | CJ84: 116 | CK84: 75 | CL84: 70 | CM84: 42 | CN84: 44 | CO84: 66 | CP84: 85 | CQ84: 53 | CR84: 25
B85: 22:00:00 | E85: 24 | F85: 29 | G85: 37 | H85: 25 | I85: 23 | J85: 58 | K85: 29 | L85: 68 | M85: 49 | N85: 30 | O85: 22 | P85: 78 | Q85: 57 | R85: 69 | S85: 58 | T85: 42 | U85: 43 | V85: 42 | W85: 55 | X85: 82 | Y85: 50 | Z85: 25 | AA85: 56 | AB85: 43 | AC85: 44 | AD85: 99 | AE85: 37 | AF85: 17 | AG85: 93 | AH85: 89 | AI85: 35 | AJ85: 65 | AK85: 23 | AL85: 31 | AM85: 37 | AN85: 69 | AO85: 91 | AP85: 78 | AQ85: 44 | AR85: 39 | AS85: 96 | AT85: 50 | AU85: 82 | AV85: 77 | AW85: 39 | AX85: 19 | AY85: 37 | AZ85: 78 | BA85: 35 | BB85: 82 | BC85: 63 | BD85: 35 | BE85: 60 | BF85: 95 | BG85: 128 | BH85: 76 | BI85: 86 | BJ85: 44 | BK85: 88 | BL85: 125 | BM85: 90 | BN85: 110 | BO85: 109 | BP85: 88 | BQ85: 50 | BR85: 99 | BS85: 56 | BW85: 109 | BX85: 59 | BY85: 125 | BZ85: 61 | CA85: 24 | CB85: 56 | CC85: 124 | CD85: 85 | CE85: 105 | CF85: 52 | CG85: 56 | CH85: 66 | CI85: 68 | CJ85: 97 | CK85: 69 | CL85: 39 | CM85: 33 | CN85: 84 | CO85: 66 | CP85: 37 | CQ85: 16
B86: 23:00:00 | E86: 10 | F86: 6 | G86: 2 | H86: 12 | I86: 2 | J86: 37 | K86: 30 | L86: 52 | M86: 24 | N86: 4 | O86: 34 | P86: 43 | Q86: 29 | R86: 24 | S86: 24 | T86: 21 | U86: 22 | V86: 109 | W86: 24 | X86: 79 | Y86: 37 | Z86: 44 | AA86: 51 | AB86: 41 | AC86: 45 | AD86: 37 | AE86: 34 | AF86: 43 | AG86: 21 | AH86: 67 | AI86: 50 | AJ86: 40 | AK86: 51 | AL86: 18 | AM86: 68 | AN86: 76 | AO86: 68 | AP86: 59 | AQ86: 60 | AR86: 18 | AS86: 66 | AT86: 25 | AU86: 77 | AV86: 47 | AW86: 25 | AX86: 24 | AY86: 39 | AZ86: 59 | BA86: 15 | BB86: 53 | BC86: 31 | BD86: 31 | BE86: 108 | BF86: 100 | BG86: 68 | BH86: 64 | BI86: 50 | BJ86: 13 | BK86: 104 | BL86: 107 | BM86: 94 | BN86: 84 | BO86: 121 | BP86: 42 | BQ86: 86 | BR86: 98 | BS86: 44 | BW86: 137 | BX86: 76 | BY86: 53 | BZ86: 78 | CA86: 56 | CB86: 72 | CC86: 96 | CD86: 84 | CE86: 72 | CF86: 47 | CG86: 15 | CH86: 157 | CI86: 81 | CJ86: 100 | CK86: 79 | CL86: 33 | CM86: 15 | CN86: 76 | CO86: 46 | CP86: 18 | CQ86: 18
B87: 1 | CC87: 34 | CD87: 43 | CE87: 60 | CF87: 43 | CG87: 17 | CI87: 43 | CJ87: 46 | CK87: 23 | CL87: 8 | CM87: 8 | CO87: 42 | CP87: 28 | CQ87: 19
B88: 1.041666667 | CC88: 17 | CD88: 15 | CE88: 14 | CF88: 24 | CG88: 19 | CI88: 33 | CJ88: 61 | CK88: 17 | CL88: 8 | CM88: 8 | CO88: 13 | CP88: 20 | CQ88: 17
B89: Total | C89: =SUM(C70:C88) -> 745 | D89: 473 | E89: 1767 | F89: 1796 | G89: 1614 | H89: 1594 | I89: 765 | J89: 1850 | K89: 1759 | L89: 1983 | M89: 1949 | N89: 1633 | O89: 964 | P89: 1901 | Q89: 1793 | R89: 1934 | S89: 1852 | T89: 1696 | U89: 973 | V89: 1921 | W89: 1970 | X89: 1979 | Y89: 1563 | Z89: 1633 | AA89: 525 | AB89: 2279 | AC89: 2021 | AD89: 2095 | AE89: 1796 | AF89: 1739 | AG89: 1114 | AH89: 2252 | AI89: =SUM(AI70:AI88) -> 2116 | AJ89: 1949 | AK89: 1905 | AL89: 1736 | AM89: 1308 | AN89: 2012 | AO89: 1990 | AP89: 2119 | AQ89: 1714 | AR89: 1672 | AS89: 1082 | AT89: 1981 | AU89: 2076 | AV89: 2041 | AW89: 1889 | AX89: 1535 | AY89: 1237 | AZ89: 2504 | BA89: 1712 | BB89: =SUM(BB70:BB88) -> 2450 | BC89: 2108 | BD89: 2050 | BE89: 1474 | BF89: 2504 | BG89: 2317 | BH89: 2201 | BI89: 2111 | BJ89: 1939 | BK89: 1449 | BL89: 2461 | BM89: 2389 | BN89: 2452 | BO89: 2491 | BP89: 2347 | BQ89: 1351 | BR89: 2908 | BS89: 2711 | BT89: 1085 | BU89: 598 | BV89: 505 | BW89: 2983 | BX89: 2331 | BY89: 2214 | BZ89: 2093 | CA89: 2055 | CB89: 1672 | CC89: 2859 | CD89: 2260 | CE89: 2400 | CF89: 2206 | CG89: 1824 | CH89: 1866 | CI89: 2556 | CJ89: 2394 | CK89: 2063 | CL89: 1547 | CM89: 1368 | CN89: 1072 | CO89: 1645 | CP89: =SUM(CP70:CP88) -> 1464 | CQ89: 1328 | CR89: 1081 | CS89: 589 | CT89: 226 | CU89: 288 | CV89: 728 | CW89: 483
A91: Patrons
A92: Hour | B92: 07:00:00 | E92: 7 | F92: 9 | G92: 14 | H92: 4 | J92: 23 | K92: 7 | L92: 7 | M92: 8 | N92: 4 | P92: 12 | Q92: 8 | R92: 11 | S92: 9 | T92: 6 | V92: 8 | W92: 9 | X92: 7 | Y92: 11 | Z92: 8 | AB92: 15 | AC92: 8 | AD92: 13 | AE92: 5 | AF92: 10 | AH92: 8 | AI92: 10 | AJ92: 3 | AK92: 7 | AL92: 3 | AN92: 10 | AO92: 11 | AP92: 9 | AQ92: 6 | AR92: 3 | AT92: 12 | AU92: 8 | AV92: 10 | AW92: 9 | AX92: 4 | AZ92: 23 | BA92: 2 | BB92: 5 | BC92: 5 | BD92: 4 | BF92: 7 | BG92: 5 | BH92: 6 | BI92: 2 | BJ92: 8 | BL92: 4 | BM92: 9 | BN92: 7 | BO92: 9 | BP92: 3 | BR92: 12 | BS92: 4 | BW92: 12 | BX92: 6 | BY92: 7 | BZ92: 4 | CA92: 6 | CC92: 5 | CD92: 3 | CE92: 10 | CF92: 3 | CG92: 7 | CI92: 17 | CJ92: 7 | CK92: 14 | CL92: 7 | CM92: 1 | CO92: 5 | CP92: 9 | CQ92: 1 | CR92: 4
B93: 08:00:00 | C93: 10 | D93: 3 | E93: 26 | F93: 31 | G93: 20 | H93: 19 | I93: 4 | J93: 35 | K93: 24 | L93: 30 | M93: 17 | N93: 29 | O93: 5 | P93: 27 | Q93: 26 | R93: 27 | S93: 23 | T93: 15 | U93: 5 | V93: 28 | W93: 29 | X93: 23 | Y93: 24 | Z93: 25 | AA93: 4 | AB93: 23 | AC93: 21 | AD93: 40 | AE93: 25 | AF93: 18 | AG93: 2 | AH93: 35 | AI93: 19 | AJ93: 24 | AK93: 26 | AL93: 17 | AM93: 4 | AN93: 30 | AO93: 16 | AP93: 20 | AQ93: 21 | AR93: 29 | AS93: 10 | AT93: 33 | AU93: 29 | AV93: 33 | AW93: 29 | AX93: 18 | AY93: 3 | AZ93: 37 | BA93: 22 | BB93: 32 | BC93: 15 | BD93: 30 | BE93: 8 | BF93: 48 | BG93: 24 | BH93: 35 | BI93: 26 | BJ93: 23 | BK93: 3 | BL93: 34 | BM93: 20 | BN93: 19 | BO93: 30 | BP93: 25 | BQ93: 4 | BR93: 32 | BS93: 30 | BW93: 25 | BX93: 21 | BY93: 28 | BZ93: 25 | CA93: 22 | CB93: 7 | CC93: 26 | CD93: 22 | CE93: 18 | CF93: 22 | CG93: 24 | CH93: 4 | CI93: 23 | CJ93: 37 | CK93: 29 | CL93: 17 | CM93: 13 | CN93: 7 | CO93: 25 | CP93: 20 | CQ93: 19 | CR93: 17 | CS93: 6 | CT93: 2 | CU93: 3 | CV93: 24 | CW93: 7
B94: 09:00:00 | C94: 23 | D94: 10 | E94: 50 | F94: 53 | G94: 61 | H94: 46 | I94: 7 | J94: 66 | K94: 57 | L94: 59 | M94: 53 | N94: 64 | O94: 13 | P94: 51 | Q94: 47 | R94: 46 | S94: 46 | T94: 47 | U94: 11 | V94: 40 | W94: 61 | X94: 44 | Y94: 47 | Z94: 28 | AA94: 9 | AB94: 58 | AC94: 73 | AD94: 61 | AE94: 41 | AF94: 49 | AG94: 7 | AH94: 63 | AI94: 62 | AJ94: 43 | AK94: 57 | AL94: 38 | AM94: 4 | AN94: 54 | AO94: 39 | AP94: 64 | AQ94: 60 | AR94: 52 | AS94: 9 | AT94: 52 | AU94: 39 | AV94: 59 | AW94: 34 | AX94: 39 | AY94: 4 | AZ94: 78 | BA94: 51 | BB94: 48 | BC94: 63 | BD94: 32 | BE94: 2 | BF94: 47 | BG94: 63 | BH94: 65 | BI94: 47 | BJ94: 43 | BK94: 9 | BL94: 44 | BM94: 49 | BN94: 51 | BO94: 50 | BP94: 51 | BQ94: 6 | BR94: 64 | BS94: 65 | BW94: 44 | BX94: 41 | BY94: 46 | BZ94: 52 | CA94: 44 | CB94: 10 | CC94: 47 | CD94: 41 | CE94: 48 | CF94: 47 | CG94: 40 | CH94: 7 | CI94: 42 | CJ94: 49 | CK94: 43 | CL94: 32 | CM94: 38 | CN94: 12 | CO94: 32 | CP94: 37 | CQ94: 34 | CR94: 32 | CS94: 9 | CU94: 1 | CV94: 39 | CW94: 8
B95: 10:00:00 | C95: 23 | D95: 11 | E95: 61 | F95: 66 | G95: 78 | H95: 99 | I95: 11 | J95: 73 | K95: 69 | L95: 87 | M95: 68 | N95: 61 | O95: 19 | P95: 63 | Q95: 50 | R95: 74 | S95: 66 | T95: 54 | U95: 21 | V95: 72 | W95: 59 | X95: 64 | Y95: 64 | Z95: 67 | AB95: 60 | AC95: 58 | AD95: 73 | AE95: 48 | AF95: 60 | AG95: 17 | AH95: 67 | AI95: 57 | AJ95: 63 | AK95: 61 | AL95: 72 | AM95: 15 | AN95: 84 | AO95: 50 | AP95: 68 | AQ95: 57 | AR95: 63 | AS95: 24 | AT95: 77 | AU95: 62 | AV95: 63 | AW95: 84 | AX95: 77 | AY95: 25 | AZ95: 87 | BA95: 40 | BB95: 88 | BC95: 50 | BD95: 65 | BE95: 16 | BF95: 80 | BG95: 54 | BH95: 76 | BI95: 84 | BJ95: 86 | BK95: 14 | BL95: 63 | BM95: 55 | BN95: 59 | BO95: 74 | BP95: 74 | BQ95: 18 | BR95: 101 | BS95: 95 | BU95: 9 | BV95: 8 | BW95: 91 | BX95: 40 | BY95: 70 | BZ95: 36 | CA95: 77 | CB95: 27 | CC95: 95 | CD95: 51 | CE95: 72 | CF95: 74 | CG95: 57 | CH95: 20 | CI95: 59 | CJ95: 64 | CK95: 68 | CL95: 54 | CM95: 29 | CN95: 20 | CO95: 55 | CP95: 53 | CQ95: 58 | CR95: 41 | CS95: 18 | CT95: 5 | CU95: 7 | CV95: 8 | CW95: 6
B96: 11:00:00 | C96: 36 | D96: 23 | E96: 102 | F96: 66 | G96: 97 | H96: 77 | I96: 32 | J96: 93 | K96: 12 | L96: 80 | M96: 81 | N96: 64 | O96: 31 | P96: 99 | Q96: 21 | R96: 70 | S96: 76 | T96: 84 | U96: 28 | V96: 91 | W96: 14 | X96: 83 | Y96: 67 | Z96: 59 | AA96: 1 | AB96: 78 | AC96: 17 | AD96: 69 | AE96: 67 | AF96: 69 | AG96: 20 | AH96: 90 | AI96: 15 | AJ96: 65 | AK96: 80 | AL96: 74 | AM96: 18 | AN96: 63 | AO96: 15 | AP96: 71 | AQ96: 67 | AR96: 68 | AS96: 18 | AT96: 65 | AU96: 27 | AV96: 68 | AW96: 68 | AX96: 61 | AY96: 17 | AZ96: 77 | BA96: 3 | BB96: 73 | BC96: 73 | BD96: 88 | BE96: 28 | BF96: 80 | BG96: 20 | BH96: 70 | BI96: 77 | BJ96: 76 | BK96: 23 | BL96: 68 | BM96: 6 | BN96: 83 | BO96: 88 | BP96: 96 | BQ96: 36 | BR96: 86 | BS96: 83 | BT96: 1 | BU96: 14 | BV96: 11 | BW96: 95 | BX96: 13 | BY96: 94 | BZ96: 64 | CA96: 55 | CB96: 42 | CC96: 80 | CD96: 13 | CE96: 81 | CF96: 87 | CG96: 63 | CH96: 34 | CI96: 67 | CJ96: 22 | CK96: 57 | CL96: 68 | CM96: 45 | CN96: 33 | CO96: 48 | CP96: 42 | CQ96: 43 | CR96: 48 | CS96: 12 | CT96: 3 | CU96: 10 | CV96: 9 | CW96: 10
B97: 12:00:00 | C97: 31 | D97: 22 | E97: 75 | F97: 68 | G97: 66 | H97: 78 | I97: 32 | J97: 92 | K97: 75 | L97: 62 | M97: 64 | N97: 95 | O97: 33 | P97: 81 | Q97: 80 | R97: 70 | S97: 79 | T97: 98 | U97: 31 | V97: 79 | W97: 84 | X97: 90 | Y97: 75 | Z97: 79 | AA97: 17 | AB97: 111 | AC97: 83 | AD97: 80 | AE97: 59 | AF97: 85 | AG97: 23 | AH97: 80 | AI97: 71 | AJ97: 74 | AK97: 57 | AL97: 79 | AM97: 40 | AN97: 50 | AO97: 63 | AP97: 74 | AQ97: 53 | AR97: 61 | AS97: 20 | AT97: 53 | AU97: 68 | AV97: 69 | AW97: 64 | AX97: 62 | AY97: 32 | AZ97: 86 | BA97: 59 | BB97: 81 | BC97: 65 | BD97: 80 | BE97: 32 | BF97: 96 | BG97: 93 | BH97: 85 | BI97: 73 | BJ97: 74 | BK97: 47 | BL97: 70 | BM97: 59 | BN97: 78 | BO97: 55 | BP97: 76 | BQ97: 45 | BR97: 96 | BS97: 91 | BT97: 83 | BU97: 18 | BV97: 20 | BW97: 82 | BX97: 93 | BY97: 88 | BZ97: 51 | CA97: 70 | CB97: 32 | CC97: 86 | CD97: 74 | CE97: 69 | CF97: 51 | CG97: 70 | CH97: 53 | CI97: 78 | CJ97: 73 | CK97: 54 | CL97: 49 | CM97: 54 | CN97: 33 | CO97: 54 | CP97: 47 | CQ97: 56 | CR97: 54 | CS97: 26 | CT97: 9 | CU97: 14 | CV97: 14 | CW97: 14
B98: 13:00:00 | C98: 35 | D98: 23 | E98: 87 | F98: 85 | G98: 65 | H98: 86 | I98: 27 | J98: 70 | K98: 87 | L98: 90 | M98: 70 | N98: 111 | O98: 36 | P98: 83 | Q98: 111 | R98: 84 | S98: 80 | T98: 81 | U98: 27 | V98: 74 | W98: 69 | X98: 63 | Y98: 69 | Z98: 93 | AA98: 28 | AB98: 73 | AC98: 71 | AD98: 85 | AE98: 78 | AF98: 78 | AG98: 32 | AH98: 76 | AI98: 62 | AJ98: 72 | AK98: 69 | AL98: 79 | AM98: 30 | AN98: 75 | AO98: 81 | AP98: 68 | AQ98: 69 | AR98: 73 | AS98: 31 | AT98: 84 | AU98: 81 | AV98: 56 | AW98: 62 | AX98: 78 | AY98: 36 | AZ98: 85 | BA98: 63 | BB98: 97 | BC98: 86 | BD98: 73 | BE98: 44 | BF98: 76 | BG98: 86 | BH98: 87 | BI98: 60 | BJ98: 83 | BK98: 34 | BL98: 62 | BM98: 67 | BN98: 69 | BO98: 77 | BP98: 92 | BQ98: 24 | BR98: 87 | BS98: 80 | BT98: 31 | BU98: 17 | BV98: 23 | BW98: 85 | BX98: 102 | BY98: 98 | BZ98: 60 | CA98: 68 | CB98: 47 | CC98: 84 | CD98: 88 | CE98: 86 | CF98: 68 | CG98: 92 | CH98: 46 | CI98: 81 | CJ98: 80 | CK98: 65 | CL98: 50 | CM98: 55 | CN98: 36 | CO98: 68 | CP98: 51 | CQ98: 56 | CR98: 39 | CS98: 15 | CT98: 7 | CU98: 10 | CV98: 19 | CW98: 15
B99: 14:00:00 | C99: 44 | D99: 25 | E99: 69 | F99: 79 | G99: 68 | H99: 80 | I99: 37 | J99: 88 | K99: 81 | L99: 73 | M99: 77 | N99: 88 | O99: 34 | P99: 82 | Q99: 70 | R99: 83 | S99: 78 | T99: 89 | U99: 33 | V99: 79 | W99: 81 | X99: 75 | Y99: 84 | Z99: 74 | AB99: 87 | AC99: 75 | AD99: 61 | AE99: 72 | AF99: 89 | AG99: 33 | AH99: 82 | AI99: 89 | AJ99: 64 | AK99: 70 | AL99: 60 | AM99: 52 | AN99: 74 | AO99: 78 | AP99: 73 | AQ99: 80 | AR99: 65 | AS99: 28 | AT99: 80 | AU99: 70 | AV99: 74 | AW99: 77 | AX99: 69 | AY99: 36 | AZ99: 81 | BA99: 62 | BB99: 90 | BC99: 67 | BD99: 81 | BE99: 50 | BF99: 69 | BG99: 83 | BH99: 89 | BI99: 89 | BJ99: 102 | BK99: 35 | BL99: 71 | BM99: 74 | BN99: 89 | BO99: 90 | BP99: 91 | BQ99: 31 | BR99: 89 | BS99: 85 | BT99: 37 | BU99: 18 | BV99: 16 | BW99: 87 | BX99: 97 | BY99: 80 | BZ99: 88 | CA99: 93 | CB99: 47 | CC99: 116 | CD99: 78 | CE99: 91 | CF99: 74 | CG99: 70 | CH99: 51 | CI99: 95 | CJ99: 106 | CK99: 64 | CL99: 65 | CM99: 51 | CN99: 45 | CO99: 63 | CP99: 46 | CQ99: 48 | CR99: 45 | CS99: 24 | CT99: 6 | CU99: 10 | CV99: 9 | CW99: 19
B100: 15:00:00 | C100: 30 | D100: 25 | E100: 89 | F100: 96 | G100: 58 | H100: 59 | I100: 33 | J100: 80 | K100: 101 | L100: 91 | M100: 83 | N100: 74 | O100: 38 | P100: 96 | Q100: 67 | R100: 79 | S100: 82 | T100: 63 | U100: 37 | V100: 83 | W100: 82 | X100: 74 | Y100: 60 | Z100: 61 | AA100: 3 | AB100: 108 | AC100: 84 | AD100: 83 | AE100: 88 | AF100: 81 | AG100: 32 | AH100: 82 | AI100: 101 | AJ100: 80 | AK100: 76 | AL100: 66 | AM100: 54 | AN100: 81 | AO100: 91 | AP100: 94 | AQ100: 67 | AR100: 75 | AS100: 33 | AT100: 100 | AU100: 97 | AV100: 88 | AW100: 75 | AX100: 83 | AY100: 53 | AZ100: 112 | BA100: 70 | BB100: 101 | BC100: 79 | BD100: 76 | BE100: 65 | BF100: 81 | BG100: 85 | BH100: 84 | BI100: 81 | BJ100: 80 | BK100: 53 | BL100: 110 | BM100: 90 | BN100: 77 | BO100: 83 | BP100: 85 | BQ100: 32 | BR100: 84 | BS100: 86 | BT100: 36 | BU100: 20 | BV100: 21 | BW100: 120 | BX100: 82 | BY100: 79 | BZ100: 84 | CA100: 75 | CB100: 60 | CC100: 95 | CD100: 95 | CE100: 93 | CF100: 80 | CG100: 64 | CH100: 57 | CI100: 88 | CJ100: 97 | CK100: 76 | CL100: 52 | CM100: 55 | CN100: 35 | CO100: 69 | CP100: 42 | CQ100: 42 | CR100: 37 | CS100: 54 | CT100: 7 | CU100: 8 | CV100: 17 | CW100: 19
B101: 16:00:00 | C101: 33 | D101: 16 | E101: 53 | F101: 82 | G101: 75 | H101: 40 | I101: 27 | J101: 80 | K101: 95 | L101: 75 | M101: 75 | N101: 62 | O101: 41 | P101: 84 | Q101: 89 | R101: 84 | S101: 85 | T101: 76 | U101: 49 | V101: 77 | W101: 94 | X101: 70 | Y101: 57 | Z101: 58 | AA101: 18 | AB101: 83 | AC101: 75 | AD101: 78 | AE101: 67 | AF101: 61 | AG101: 42 | AH101: 93 | AI101: 106 | AJ101: 84 | AK101: 67 | AL101: 72 | AM101: 50 | AN101: 87 | AO101: 79 | AP101: 92 | AQ101: 62 | AR101: 53 | AS101: 27 | AT101: 79 | AU101: 81 | AV101: 73 | AW101: 59 | AX101: 58 | AY101: 65 | AZ101: 85 | BA101: 78 | BB101: 97 | BC101: 78 | BD101: 82 | BE101: 49 | BF101: 78 | BG101: 89 | BH101: 81 | BI101: 73 | BJ101: 68 | BK101: 39 | BL101: 96 | BM101: 93 | BN101: 99 | BO101: 76 | BP101: 78 | BQ101: 44 | BR101: 104 | BS101: 92 | BT101: 32 | BU101: 25 | BV101: 30 | BW101: 114 | BX101: 99 | BY101: 74 | BZ101: 81 | CA101: 66 | CB101: 61 | CC101: 93 | CD101: 87 | CE101: 98 | CF101: 98 | CG101: 69 | CH101: 62 | CI101: 104 | CJ101: 96 | CK101: 72 | CL101: 62 | CM101: 50 | CN101: 42 | CO101: 71 | CP101: 64 | CQ101: 47 | CR101: 46 | CS101: 174 | CT101: 4 | CU101: 11 | CV101: 13 | CW101: 19
B102: 17:00:00 | C102: 36 | D102: 30 | E102: 60 | F102: 60 | G102: 67 | H102: 57 | I102: 22 | J102: 82 | K102: 73 | L102: 87 | M102: 70 | N102: 55 | O102: 38 | P102: 62 | Q102: 58 | R102: 86 | S102: 66 | T102: 49 | U102: 19 | V102: 70 | W102: 68 | X102: 74 | Y102: 45 | Z102: 41 | AA102: 19 | AB102: 90 | AC102: 80 | AD102: 46 | AE102: 57 | AF102: 46 | AG102: 41 | AH102: 80 | AI102: 71 | AJ102: 82 | AK102: 66 | AL102: 64 | AM102: 40 | AN102: 64 | AO102: 59 | AP102: 67 | AQ102: 63 | AR102: 39 | AS102: 37 | AT102: 72 | AU102: 72 | AV102: 79 | AW102: 64 | AX102: 48 | AY102: 42 | AZ102: 72 | BA102: 47 | BB102: 72 | BC102: 60 | BD102: 60 | BE102: 42 | BF102: 106 | BG102: 73 | BH102: 59 | BI102: 55 | BJ102: 52 | BK102: 54 | BL102: 82 | BM102: 94 | BN102: 83 | BO102: 88 | BP102: 71 | BQ102: 36 | BR102: 87 | BS102: 73 | BT102: 59 | BU102: 47 | BV102: 42 | BW102: 89 | BX102: 73 | BY102: 68 | BZ102: 57 | CA102: 70 | CB102: 75 | CC102: 89 | CD102: 72 | CE102: 67 | CF102: 61 | CG102: 57 | CH102: 69 | CI102: 85 | CJ102: 68 | CK102: 68 | CL102: 42 | CM102: 52 | CN102: 36 | CO102: 52 | CP102: 46 | CQ102: 51 | CR102: 52 | CS102: 17 | CT102: 4 | CU102: 14 | CV102: 15 | CW102: 16
B103: 18:00:00 | E103: 45 | F103: 42 | G103: 41 | H103: 33 | I103: 24 | J103: 47 | K103: 43 | L103: 49 | M103: 43 | N103: 26 | O103: 30 | P103: 49 | Q103: 40 | R103: 62 | S103: 45 | T103: 36 | U103: 21 | V103: 47 | W103: 55 | X103: 62 | Y103: 22 | Z103: 25 | AA103: 12 | AB103: 52 | AC103: 57 | AD103: 55 | AE103: 59 | AF103: 27 | AG103: 44 | AH103: 69 | AI103: 54 | AJ103: 48 | AK103: 49 | AL103: 20 | AM103: 39 | AN103: 51 | AO103: 60 | AP103: 56 | AQ103: 51 | AR103: 28 | AS103: 30 | AT103: 53 | AU103: 46 | AV103: 69 | AW103: 55 | AX103: 31 | AY103: 25 | AZ103: 55 | BA103: 49 | BB103: 57 | BC103: 51 | BD103: 35 | BE103: 33 | BF103: 66 | BG103: 60 | BH103: 53 | BI103: 35 | BJ103: 30 | BK103: 38 | BL103: 66 | BM103: 54 | BN103: 53 | BO103: 52 | BP103: 37 | BQ103: 33 | BR103: 55 | BS103: 51 | BW103: 80 | BX103: 65 | BY103: 52 | BZ103: 49 | CA103: 42 | CB103: 41 | CC103: 71 | CD103: 66 | CE103: 47 | CF103: 55 | CG103: 35 | CH103: 52 | CI103: 66 | CJ103: 68 | CK103: 43 | CL103: 35 | CM103: 17 | CN103: 36 | CO103: 38 | CP103: 27 | CQ103: 31 | CR103: 15
B104: 19:00:00 | E104: 30 | F104: 34 | G104: 48 | H104: 14 | I104: 24 | J104: 32 | K104: 48 | L104: 42 | M104: 41 | N104: 20 | O104: 24 | P104: 27 | Q104: 45 | R104: 32 | S104: 36 | T104: 30 | U104: 23 | V104: 34 | W104: 48 | X104: 44 | Y104: 26 | Z104: 18 | AA104: 9 | AB104: 41 | AC104: 48 | AD104: 41 | AE104: 35 | AF104: 20 | AG104: 22 | AH104: 57 | AI104: 39 | AJ104: 46 | AK104: 44 | AL104: 24 | AM104: 34 | AN104: 34 | AO104: 47 | AP104: 34 | AQ104: 24 | AR104: 22 | AS104: 25 | AT104: 37 | AU104: 41 | AV104: 45 | AW104: 15 | AX104: 14 | AY104: 29 | AZ104: 36 | BA104: 28 | BB104: 49 | BC104: 45 | BD104: 24 | BE104: 25 | BF104: 31 | BG104: 55 | BH104: 55 | BI104: 24 | BJ104: 20 | BK104: 19 | BL104: 42 | BM104: 59 | BN104: 37 | BO104: 46 | BP104: 17 | BQ104: 25 | BR104: 35 | BS104: 32 | BW104: 60 | BX104: 64 | BY104: 53 | BZ104: 46 | CA104: 18 | CB104: 29 | CC104: 48 | CD104: 64 | CE104: 38 | CF104: 45 | CG104: 24 | CH104: 31 | CI104: 32 | CJ104: 59 | CK104: 39 | CL104: 29 | CM104: 12 | CN104: 24 | CO104: 34 | CP104: 32 | CQ104: 34 | CR104: 10
B105: 20:00:00 | E105: 31 | F105: 30 | G105: 38 | H105: 10 | I105: 12 | J105: 27 | K105: 43 | L105: 37 | M105: 31 | N105: 8 | O105: 14 | P105: 30 | Q105: 38 | R105: 42 | S105: 26 | T105: 16 | U105: 17 | V105: 25 | W105: 34 | X105: 46 | Y105: 21 | Z105: 13 | AA105: 19 | AB105: 38 | AC105: 39 | AD105: 52 | AE105: 25 | AF105: 18 | AG105: 29 | AH105: 31 | AI105: 53 | AJ105: 45 | AK105: 31 | AL105: 15 | AM105: 20 | AN105: 30 | AO105: 43 | AP105: 36 | AQ105: 32 | AR105: 18 | AS105: 19 | AT105: 38 | AU105: 46 | AV105: 44 | AW105: 30 | AX105: 17 | AY105: 21 | AZ105: 27 | BA105: 22 | BB105: 41 | BC105: 40 | BD105: 17 | BE105: 23 | BF105: 39 | BG105: 51 | BH105: 34 | BI105: 31 | BJ105: 14 | BK105: 33 | BL105: 39 | BM105: 47 | BN105: 42 | BO105: 58 | BP105: 22 | BQ105: 27 | BR105: 43 | BS105: 22 | BW105: 37 | BX105: 51 | BY105: 46 | BZ105: 42 | CA105: 17 | CB105: 39 | CC105: 37 | CD105: 46 | CE105: 44 | CF105: 42 | CG105: 15 | CH105: 32 | CI105: 49 | CJ105: 53 | CK105: 40 | CL105: 33 | CM105: 18 | CN105: 21 | CO105: 27 | CP105: 23 | CQ105: 24 | CR105: 15
B106: 21:00:00 | E106: 21 | F106: 24 | G106: 23 | H106: 13 | I106: 16 | J106: 37 | K106: 33 | L106: 27 | M106: 24 | N106: 5 | O106: 16 | P106: 24 | Q106: 36 | R106: 38 | S106: 31 | T106: 13 | U106: 13 | V106: 31 | W106: 36 | X106: 23 | Y106: 24 | Z106: 9 | AA106: 17 | AB106: 28 | AC106: 52 | AD106: 43 | AE106: 30 | AF106: 8 | AG106: 20 | AH106: 29 | AI106: 38 | AJ106: 35 | AK106: 30 | AL106: 12 | AM106: 19 | AN106: 39 | AO106: 40 | AP106: 32 | AQ106: 21 | AR106: 18 | AS106: 14 | AT106: 40 | AU106: 37 | AV106: 38 | AW106: 31 | AX106: 15 | AY106: 19 | AZ106: 30 | BA106: 13 | BB106: 42 | BC106: 42 | BD106: 19 | BE106: 20 | BF106: 35 | BG106: 53 | BH106: 36 | BI106: 26 | BJ106: 12 | BK106: 25 | BL106: 35 | BM106: 55 | BN106: 49 | BO106: 43 | BP106: 16 | BQ106: 22 | BR106: 42 | BS106: 28 | BW106: 54 | BX106: 56 | BY106: 39 | BZ106: 27 | CA106: 19 | CB106: 21 | CC106: 41 | CD106: 65 | CE106: 35 | CF106: 50 | CG106: 20 | CH106: 39 | CI106: 37 | CJ106: 55 | CK106: 35 | CL106: 24 | CM106: 23 | CN106: 17 | CO106: 32 | CP106: 38 | CQ106: 21 | CR106: 10
B107: 22:00:00 | E107: 10 | F107: 16 | G107: 12 | H107: 8 | I107: 15 | J107: 26 | K107: 16 | L107: 23 | M107: 19 | N107: 8 | O107: 11 | P107: 29 | Q107: 28 | R107: 31 | S107: 27 | T107: 11 | U107: 18 | V107: 22 | W107: 26 | X107: 34 | Y107: 17 | Z107: 7 | AA107: 17 | AB107: 22 | AC107: 23 | AD107: 32 | AE107: 18 | AF107: 10 | AG107: 25 | AH107: 37 | AI107: 21 | AJ107: 25 | AK107: 13 | AL107: 6 | AM107: 17 | AN107: 23 | AO107: 38 | AP107: 29 | AQ107: 22 | AR107: 14 | AS107: 25 | AT107: 27 | AU107: 35 | AV107: 32 | AW107: 18 | AX107: 11 | AY107: 14 | AZ107: 33 | BA107: 11 | BB107: 29 | BC107: 25 | BD107: 13 | BE107: 22 | BF107: 32 | BG107: 49 | BH107: 24 | BI107: 28 | BJ107: 14 | BK107: 25 | BL107: 45 | BM107: 31 | BN107: 37 | BO107: 30 | BP107: 22 | BQ107: 23 | BR107: 36 | BS107: 15 | BW107: 40 | BX107: 27 | BY107: 41 | BZ107: 20 | CA107: 11 | CB107: 23 | CC107: 40 | CD107: 34 | CE107: 35 | CF107: 23 | CG107: 18 | CH107: 32 | CI107: 40 | CJ107: 39 | CK107: 26 | CL107: 13 | CM107: 12 | CN107: 23 | CO107: 25 | CP107: 18 | CQ107: 8
B108: 23:00:00 | E108: 5 | F108: 3 | G108: 2 | H108: 4 | I108: 2 | J108: 11 | K108: 8 | L108: 15 | M108: 10 | N108: 3 | O108: 12 | P108: 14 | Q108: 12 | R108: 12 | S108: 9 | T108: 4 | U108: 11 | V108: 26 | W108: 11 | X108: 16 | Y108: 13 | Z108: 14 | AA108: 12 | AB108: 15 | AC108: 14 | AD108: 12 | AE108: 15 | AF108: 14 | AG108: 14 | AH108: 22 | AI108: 18 | AJ108: 18 | AK108: 20 | AL108: 8 | AM108: 20 | AN108: 27 | AO108: 25 | AP108: 21 | AQ108: 22 | AR108: 6 | AS108: 23 | AT108: 16 | AU108: 22 | AV108: 17 | AW108: 13 | AX108: 9 | AY108: 13 | AZ108: 21 | BA108: 10 | BB108: 19 | BC108: 14 | BD108: 11 | BE108: 15 | BF108: 29 | BG108: 27 | BH108: 22 | BI108: 20 | BJ108: 5 | BK108: 22 | BL108: 37 | BM108: 37 | BN108: 33 | BO108: 33 | BP108: 12 | BQ108: 26 | BR108: 34 | BS108: 13 | BW108: 38 | BX108: 24 | BY108: 22 | BZ108: 23 | CA108: 15 | CB108: 16 | CC108: 32 | CD108: 31 | CE108: 23 | CF108: 21 | CG108: 8 | CH108: 37 | CI108: 39 | CJ108: 33 | CK108: 25 | CL108: 16 | CM108: 6 | CN108: 20 | CO108: 18 | CP108: 11 | CQ108: 8
B109: 1 | CC109: 9 | CD109: 11 | CE109: 20 | CF109: 12 | CG109: 6 | CJ109: 19 | CK109: 12 | CL109: 3 | CM109: 4 | CO109: 18 | CP109: 10 | CQ109: 7
B110: 1.041666667 | CC110: 4 | CD110: 8 | CE110: 7 | CF110: 7 | CG110: 6 | CJ110: 20 | CK110: 5 | CL110: 4 | CM110: 3 | CO110: 7 | CP110: 6 | CQ110: 5
B111: Total | C111: =SUM(C92:C110) -> 301 | D111: 188 | E111: 821 | F111: 844 | G111: 833 | H111: 727 | I111: 325 | J111: 962 | K111: 872 | L111: 934 | M111: 834 | N111: 777 | O111: 395 | P111: 913 | Q111: 826 | R111: 931 | S111: 864 | T111: 772 | U111: 364 | V111: 886 | W111: 860 | X111: 892 | Y111: 726 | Z111: 679 | AA111: 185 | AB111: 982 | AC111: 878 | AD111: 924 | AE111: 789 | AF111: 743 | AG111: 403 | AH111: 1001 | AI111: =SUM(AI92:AI110) -> 886 | AJ111: 871 | AK111: 823 | AL111: 709 | AM111: 456 | AN111: 876 | AO111: 835 | AP111: 908 | AQ111: 777 | AR111: 687 | AS111: 373 | AT111: 918 | AU111: 861 | AV111: 917 | AW111: 787 | AX111: 694 | AY111: 434 | AZ111: 1025 | BA111: 630 | BB111: =SUM(BB92:BB110) -> 1021 | BC111: 858 | BD111: 790 | BE111: 474 | BF111: 1000 | BG111: 970 | BH111: 961 | BI111: 831 | BJ111: 790 | BK111: 473 | BL111: 968 | BM111: 899 | BN111: 965 | BO111: 982 | BP111: 868 | BQ111: 432 | BR111: 1087 | BS111: 945 | BT111: 279 | BU111: 168 | BV111: 171 | BW111: 1153 | BX111: 954 | BY111: 985 | BZ111: 809 | CA111: 768 | CB111: 577 | CC111: 1098 | CD111: 949 | CE111: 982 | CF111: 920 | CG111: 745 | CH111: 626 | CI111: 1002 | CJ111: 1045 | CK111: 835 | CL111: 655 | CM111: 538 | CN111: 440 | CO111: 741 | CP111: =SUM(CP92:CP110) -> 622 | CQ111: 593 | CR111: 465 | CS111: 355 | CT111: 47 | CU111: 88 | CV111: 167 | CW111: 133
A113: Items/Patron
A114: Hour | B114: 07:00:00 | C114: =IF(C70=0," ",C70/C92) ->  | E114: 2.428571429 | F114: 1 | G114: 1.571428571 | H114: 1 | J114: 1.130434783 | K114: 1 | L114: 1.285714286 | M114: 1.125 | N114: 1 | P114: 1 | Q114: 1 | R114: 1 | S114: 2.333333333 | T114: 1.333333333 | V114: 2 | W114: 2.111111111 | X114: 1.571428571 | Y114: 1.636363636 | Z114: 1.125 | AB114: =IF(AB70=0," ",AB70/AB92) -> 1.666666667 | AC114: 2.5 | AD114: 1.384615385 | AE114: 1.2 | AF114: 2.4 | AH114: 2.25 | AI114: 1.7 | AJ114: 1 | AK114: 1 | AL114: 1 | AN114: 1.4 | AO114: 1.363636364 | AP114: 1.222222222 | AQ114: 2.5 | AR114: 1.666666667 | AT114: 1.333333333 | AU114: 1.875 | AV114: 1.2 | AW114: 1.333333333 | AX114: 1.25 | AZ114: 1.434782609 | BA114: 1 | BB114: =IF(BB70=0," ",BB70/BB92) -> 2 | BC114: 1.4 | BD114: 1.25 | BF114: 1 | BG114: 1.2 | BH114: 1.5 | BI114: 1 | BJ114: 2.125 | BL114: 5.25 | BM114: 1.333333333 | BN114: 1 | BO114: 1.222222222 | BP114: 1 | BR114: =IF(BR70=0," ",BR70/BR92) -> 1.5 | BS114: 2.5 | BW114: 2.333333333 | BX114: 4.166666667 | BY114: 1.142857143 | BZ114: 1.25 | CA114: 1.5 | CC114: 2.2 | CD114: 1.333333333 | CE114: 1.4 | CF114: 1 | CG114: 1.142857143 | CI114: 1.470588235 | CJ114: 1.857142857 | CK114: 1.5 | CL114: 1.285714286 | CM114: 1 | CO114: 1 | CP114: 1.222222222 | CQ114: 7 | CR114: 1.25
B115: 08:00:00 | C115: =IF(C71=0," ",C71/C93) -> 2.6 | D115: 1.333333333 | E115: 1.5 | F115: 3.516129032 | G115: 1.15 | H115: 2.157894737 | I115: 2.25 | J115: 1.514285714 | K115: 1.708333333 | L115: 1.666666667 | M115: 1.352941176 | N115: 1.655172414 | O115: 1.2 | P115: 1.259259259 | Q115: 1.576923077 | R115: 2.814814815 | S115: 1.826086957 | T115: 1.6 | U115: 2 | V115: 1.642857143 | W115: 1.344827586 | X115: 1.391304348 | Y115: 1.541666667 | Z115: 1.72 | AA115: 1.75 | AB115: =IF(AB71=0," ",AB71/AB93) -> 1.434782609 | AC115: 1.238095238 | AD115: 1.625 | AE115: 1.88 | AF115: 1.666666667 | AG115: 1 | AH115: 2.114285714 | AI115: 1.631578947 | AJ115: 1.5 | AK115: 1.692307692 | AL115: 1.647058824 | AM115: 2.75 | AN115: 1.566666667 | AO115: 1.5625 | AP115: 1.55 | AQ115: 1.476190476 | AR115: 1.482758621 | AS115: 1.4 | AT115: 1.545454545 | AU115: 2.103448276 | AV115: 1.393939394 | AW115: 1.620689655 | AX115: 1.277777778 | AY115: 5.666666667 | AZ115: 1.918918919 | BA115: 4.136363636 | BB115: =IF(BB71=0," ",BB71/BB93) -> 3.90625 | BC115: 1.133333333 | BD115: 2.7 | BE115: 2.125 | BF115: 1.666666667 | BG115: 3.875 | BH115: 1.657142857 | BI115: 1.653846154 | BJ115: 3 | BK115: 1.666666667 | BL115: 2.058823529 | BM115: 5.3 | BN115: 1.263157895 | BO115: 1.366666667 | BP115: 1.4 | BQ115: 1.25 | BR115: 1.96875 | BS115: 1.733333333 | BW115: 1.76 | BX115: 1.047619048 | BY115: 1.785714286 | BZ115: 3.84 | CA115: 1.681818182 | CB115: 2 | CC115: 1.461538462 | CD115: 3.5 | CE115: 1.5 | CF115: 2.136363636 | CG115: 1.416666667 | CH115: 3.5 | CI115: 2.391304348 | CJ115: 2.27027027 | CK115: 1.379310345 | CL115: 1.470588235 | CM115: 2.615384615 | CN115: 1.571428571 | CO115: 1.2 | CP115: 3.25 | CQ115: 1.526315789 | CR115: 2.294117647 | CS115: 1.5 | CT115: 3.5 | CU115: 1.333333333 | CV115: 3.833333333 | CW115: 1.857142857
B116: 09:00:00 | C116: =IF(C72=0," ",C72/C94) -> 1.869565217 | D116: 1.7 | E116: 1.8 | F116: 3.301886792 | G116: 1.68852459 | H116: 2.043478261 | I116: 1.428571429 | J116: 1.848484848 | K116: 2.315789474 | L116: 1.915254237 | M116: 2.20754717 | N116: 1.734375 | O116: 1.615384615 | P116: 1.470588235 | Q116: 3.021276596 | R116: 2.065217391 | S116: 1.673913043 | T116: 1.744680851 | U116: 1.727272727 | V116: 1.7 | W116: 2.262295082 | X116: 1.795454545 | Y116: 2.021276596 | Z116: 2.214285714 | AA116: 2.777777778 | AB116: =IF(AB72=0," ",AB72/AB94) -> 1.620689655 | AC116: 2.287671233 | AD116: 1.868852459 | AE116: 1.756097561 | AF116: 2.469387755 | AG116: 2.142857143 | AH116: 1.365079365 | AI116: 3.467741935 | AJ116: 1.860465116 | AK116: 1.807017544 | AL116: 2.421052632 | AM116: 3.5 | AN116: 1.944444444 | AO116: 3.256410256 | AP116: 1.484375 | AQ116: 1.733333333 | AR116: 2.769230769 | AS116: 1.888888889 | AT116: 2.384615385 | AU116: 3.102564103 | AV116: 1.830508475 | AW116: 2.470588235 | AX116: 2.384615385 | AY116: 1.75 | AZ116: 1.756410256 | BA116: 2.666666667 | BB116: 1.75 | BC116: 1.396825397 | BD116: 2.1875 | BE116: 1 | BF116: 1.872340426 | BG116: 2.206349206 | BH116: 2.107692308 | BI116: 2.361702128 | BJ116: 2.139534884 | BK116: 1.666666667 | BL116: 2.227272727 | BM116: 2.571428571 | BN116: 2.392156863 | BO116: 1.8 | BP116: 2.352941176 | BQ116: 2.166666667 | BR116: 1.625 | BS116: 3.184615385 | BW116: 2.136363636 | BX116: 4.048780488 | BY116: 1.913043478 | BZ116: 2.211538462 | CA116: 1.795454545 | CB116: 1.4 | CC116: 1.29787234 | CD116: 2.195121951 | CE116: 3.1875 | CF116: 1.872340426 | CG116: 1.875 | CH116: 2.428571429 | CI116: 2.619047619 | CJ116: 2.387755102 | CK116: 2.279069767 | CL116: 1.46875 | CM116: 2.5 | CN116: 1.916666667 | CO116: 2.03125 | CP116: 1.648648649 | CQ116: 3.294117647 | CR116: 1.71875 | CS116: 2.555555556 | CU116: 2 | CV116: 2.025641026 | CW116: 5
B117: 10:00:00 | C117: =IF(C73=0," ",C73/C95) -> 4.086956522 | D117: 1.818181818 | E117: 2.245901639 | F117: 1.893939394 | G117: 2.871794872 | H117: 2.545454545 | I117: 1.454545455 | J117: 2.575342466 | K117: 1.869565217 | L117: 2.333333333 | M117: 3.044117647 | N117: 2.868852459 | O117: 2.789473684 | P117: 2.746031746 | Q117: 2.38 | R117: 2 | S117: 3.303030303 | T117: 2.666666667 | U117: 1.80952381 | V117: 2.597222222 | W117: 3.305084746 | X117: 2.8125 | Y117: 2.171875 | Z117: 2.119402985 | AB117: =IF(AB73=0," ",AB73/AB95) -> 2.733333333 | AC117: 3.465517241 | AD117: 2.739726027 | AE117: 3.125 | AF117: 2.883333333 | AG117: 3.352941176 | AH117: 2.626865672 | AI117: 2.807017544 | AJ117: 2.73015873 | AK117: 2.196721311 | AL117: 1.930555556 | AM117: 1.733333333 | AN117: 2.547619048 | AO117: 2.84 | AP117: 3.308823529 | AQ117: 2.719298246 | AR117: 2.095238095 | AS117: 3.041666667 | AT117: 2.454545455 | AU117: 2.129032258 | AV117: 2.714285714 | AW117: 2.547619048 | AX117: 2.727272727 | AY117: 2.28 | AZ117: 2.045977011 | BA117: 3.475 | BB117: 1.920454545 | BC117: 2.92 | BD117: 3 | BE117: 2.6875 | BF117: 2.9875 | BG117: 3.148148148 | BH117: 3.131578947 | BI117: 3.142857143 | BJ117: 2.953488372 | BK117: 3.642857143 | BL117: 2.317460317 | BM117: 3.090909091 | BN117: 3.542372881 | BO117: 2.594594595 | BP117: 2.756756757 | BQ117: 2.555555556 | BR117: 2.742574257 | BS117: 2.936842105 | BU117: 5.111111111 | BV117: 1.625 | BW117: 2.879120879 | BX117: 2.525 | BY117: 2.328571429 | BZ117: 3.083333333 | CA117: 2.805194805 | CB117: 2.333333333 | CC117: 2.915789474 | CD117: 1.960784314 | CE117: 2.680555556 | CF117: 2.432432432 | CG117: 3.122807018 | CH117: 2.15 | CI117: 2.796610169 | CJ117: 2.015625 | CK117: 2.720588235 | CL117: 2.314814815 | CM117: 2.793103448 | CN117: 1.95 | CO117: 3.309090909 | CP117: 2.773584906 | CQ117: 2.24137931 | CR117: 2.317073171 | CS117: 3.888888889 | CT117: 7 | CU117: 7.285714286 | CV117: 2.625 | CW117: 2.833333333
B118: 11:00:00 | C118: =IF(C74=0," ",C74/C96) -> 2.666666667 | D118: 1.782608696 | E118: 2.196078431 | F118: 1.621212121 | G118: 2.24742268 | H118: 1.61038961 | I118: 1.90625 | J118: 2.064516129 | K118: 1.416666667 | L118: 1.7375 | M118: 2.024691358 | N118: 1.859375 | O118: 1.903225806 | P118: 1.808080808 | Q118: 2.761904762 | R118: 1.8 | S118: 2.144736842 | T118: 2.011904762 | U118: 2.357142857 | V118: 2.494505495 | W118: 2.071428571 | X118: 2.469879518 | Y118: 2.373134328 | Z118: 2.881355932 | AA118: 2 | AB118: =IF(AB74=0," ",AB74/AB96) -> 2.346153846 | AC118: 1.882352941 | AD118: 3.333333333 | AE118: 2.507462687 | AF118: 2.579710145 | AG118: 1.9 | AH118: 2.111111111 | AI118: 2.6 | AJ118: 2.615384615 | AK118: 2.1875 | AL118: 3.324324324 | AM118: 1.611111111 | AN118: 2.142857143 | AO118: 1.733333333 | AP118: 1.845070423 | AQ118: 2.208955224 | AR118: 2.25 | AS118: 1.944444444 | AT118: 2.4 | AU118: 2.111111111 | AV118: 2.323529412 | AW118: 2.279411765 | AX118: 2.360655738 | AY118: 1.941176471 | AZ118: 3.25974026 | BA118: 1.666666667 | BB118: 2.98630137 | BC118: 2.945205479 | BD118: 2.420454545 | BE118: 2.071428571 | BF118: 2.375 | BG118: 2.3 | BH118: 2.5 | BI118: 2.142857143 | BJ118: 2.407894737 | BK118: 2.173913043 | BL118: 2.647058824 | BM118: 2.5 | BN118: 2.036144578 | BO118: 2.113636364 | BP118: 3.1875 | BQ118: 2.333333333 | BR118: 2.348837209 | BS118: 2.831325301 | BT118: 54 | BU118: 5.357142857 | BV118: 2.090909091 | BW118: 2.2 | BX118: 1.846153846 | BY118: 2.053191489 | BZ118: 2.578125 | CA118: 3.618181818 | CB118: 2.523809524 | CC118: 2.525 | CD118: 1.692307692 | CE118: 2.037037037 | CF118: 1.885057471 | CG118: 2.253968254 | CH118: 2.029411765 | CI118: 2.701492537 | CJ118: 1.863636364 | CK118: 2.105263158 | CL118: 2.691176471 | CM118: 2.777777778 | CN118: 1.727272727 | CO118: 1.895833333 | CP118: 2.261904762 | CQ118: 1.604651163 | CR118: 2.416666667 | CS118: 1.583333333 | CT118: 13.33333333 | CU118: 3.7 | CV118: 28.22222222 | CW118: 2.6
B119: 12:00:00 | C119: =IF(C75=0," ",C75/C97) -> 2.451612903 | D119: 2.318181818 | E119: 2.066666667 | F119: 2 | G119: 1.590909091 | H119: 1.961538462 | I119: 2.34375 | J119: 1.826086957 | K119: 1.733333333 | L119: 1.725806452 | M119: 2.40625 | N119: 1.884210526 | O119: 2.757575758 | P119: 1.790123457 | Q119: 1.575 | R119: 2.414285714 | S119: 2.189873418 | T119: 1.56122449 | U119: 2.548387097 | V119: 2.164556962 | W119: 1.80952381 | X119: 1.877777778 | Y119: 2.6 | Z119: 1.746835443 | AA119: 3.058823529 | AB119: =IF(AB75=0," ",AB75/AB97) -> 2.153153153 | AC119: 1.638554217 | AD119: 1.75 | AE119: 2.13559322 | AF119: 2.094117647 | AG119: 2.565217391 | AH119: 1.55 | AI119: 2.154929577 | AJ119: 1.918918919 | AK119: 2.701754386 | AL119: 2.405063291 | AM119: 2.175 | AN119: 1.86 | AO119: 2.031746032 | AP119: 1.918918919 | AQ119: 2.981132075 | AR119: 2.196721311 | AS119: 3.75 | AT119: 2.037735849 | AU119: 2.161764706 | AV119: 1.84057971 | AW119: 2.1875 | AX119: 2 | AY119: 3.4375 | AZ119: 2.348837209 | BA119: 2.542372881 | BB119: 1.901234568 | BC119: 3.230769231 | BD119: 2.225 | BE119: 3.21875 | BF119: 2.322916667 | BG119: 2.279569892 | BH119: 2.141176471 | BI119: 2.753424658 | BJ119: 2.027027027 | BK119: 2.723404255 | BL119: 2.1 | BM119: 2.237288136 | BN119: 2.564102564 | BO119: 2.763636364 | BP119: 2.710526316 | BQ119: 3.577777778 | BR119: 2.427083333 | BS119: 2.472527473 | BT119: 3.337349398 | BU119: 3.722222222 | BV119: 2.8 | BW119: 1.792682927 | BX119: 2.494623656 | BY119: 1.931818182 | BZ119: 2.31372549 | CA119: 2.042857143 | CB119: 3.34375 | CC119: 2.104651163 | CD119: 2 | CE119: 1.927536232 | CF119: 2.647058824 | CG119: 2.128571429 | CH119: 2.905660377 | CI119: 2.564102564 | CJ119: 2.328767123 | CK119: 2.777777778 | CL119: =IF(CL75=0," ",CL75/CL97) -> 1.918367347 | CM119: 1.962962963 | CN119: 2.454545455 | CO119: 1.833333333 | CP119: 1.85106383 | CQ119: 2.589285714 | CR119: 1.925925926 | CS119: 2.730769231 | CT119: 5.666666667 | CU119: 3.428571429 | CV119: 2.142857143 | CW119: 3.5
B120: 13:00:00 | C120: =IF(C76=0," ",C76/C98) -> 1.971428571 | D120: 2.652173913 | E120: 1.666666667 | F120: 2.164705882 | G120: 1.707692308 | H120: 1.965116279 | I120: 2.555555556 | J120: 2.371428571 | K120: 2.08045977 | L120: 2.9 | M120: 1.985714286 | N120: 2.063063063 | O120: 1.638888889 | P120: 2.204819277 | Q120: 2.243243243 | R120: 2.166666667 | S120: 1.6125 | T120: 1.87654321 | U120: 2.518518519 | V120: 1.810810811 | W120: 2.855072464 | X120: 2.253968254 | Y120: 1.768115942 | Z120: 2.559139785 | AA120: 2.75 | AB120: =IF(AB76=0," ",AB76/AB98) -> 3.424657534 | AC120: 2.549295775 | AD120: 2.211764706 | AE120: 1.769230769 | AF120: 1.961538462 | AG120: 3 | AH120: 2.302631579 | AI120: 2.64516129 | AJ120: 2.680555556 | AK120: 2.15942029 | AL120: 2.240506329 | AM120: 2.9 | AN120: 2.693333333 | AO120: 1.925925926 | AP120: 2.323529412 | AQ120: 2.014492754 | AR120: 2.287671233 | AS120: 2.129032258 | AT120: 2.011904762 | AU120: 2.358024691 | AV120: 1.821428571 | AW120: 2.580645161 | AX120: 2.076923077 | AY120: 3.305555556 | AZ120: 2.482352941 | BA120: 2.238095238 | BB120: 2.350515464 | BC120: 2.720930233 | BD120: 2.821917808 | BE120: 2.772727273 | BF120: 2.434210526 | BG120: 2.360465116 | BH120: 2.114942529 | BI120: 1.883333333 | BJ120: 1.987951807 | BK120: 3.029411765 | BL120: 2.370967742 | BM120: 2.179104478 | BN120: 3.362318841 | BO120: 1.922077922 | BP120: 2.141304348 | BQ120: 2.75 | BR120: 2.597701149 | BS120: 2.9375 | BT120: 2.903225806 | BU120: 2.294117647 | BV120: 2.47826087 | BW120: 1.870588235 | BX120: 2.049019608 | BY120: 1.918367347 | BZ120: 2.916666667 | CA120: 2.308823529 | CB120: 2.787234043 | CC120: 2.702380952 | CD120: 2.215909091 | CE120: 2.418604651 | CF120: 2.279411765 | CG120: 2.010869565 | CH120: 2.760869565 | CI120: 1.938271605 | CJ120: 1.9375 | CK120: 2.876923077 | CL120: 2.9 | CM120: 2.654545455 | CN120: 1.972222222 | CO120: 1.955882353 | CP120: 3.078431373 | CQ120: 2.803571429 | CR120: 2.153846154 | CS120: 2.6 | CT120: 1.285714286 | CU120: 1.7 | CV120: 3.842105263 | CW120: 2.6
B121: 14:00:00 | C121: =IF(C77=0," ",C77/C99) -> 1.909090909 | D121: 2.12 | E121: 1.942028986 | F121: 1.64556962 | G121: 1.544117647 | H121: 2.05 | I121: 3.243243243 | J121: 1.965909091 | K121: 1.962962963 | L121: 2.369863014 | M121: 3.038961039 | N121: 1.840909091 | O121: 2.352941176 | P121: 2.317073171 | Q121: 2.128571429 | R121: 1.915662651 | S121: 1.871794872 | T121: 2.02247191 | U121: 2.515151515 | V121: 2.215189873 | W121: 2.765432099 | X121: 2.16 | Y121: 2.166666667 | Z121: 2.635135135 | AB121: =IF(AB77=0," ",AB77/AB99) -> 2.24137931 | AC121: 2.746666667 | AD121: 2.606557377 | AE121: 2.125 | AF121: 2.719101124 | AG121: 2.909090909 | AH121: 2.341463415 | AI121: 2.382022472 | AJ121: 1.875 | AK121: 2.485714286 | AL121: 2.183333333 | AM121: 2.865384615 | AN121: 2.027027027 | AO121: 3 | AP121: 2.246575342 | AQ121: 2.2125 | AR121: 2.246153846 | AS121: 3.142857143 | AT121: 2.2625 | AU121: 2.071428571 | AV121: 2.202702703 | AW121: 2.545454545 | AX121: 1.884057971 | AY121: 2.472222222 | AZ121: 2.481481481 | BA121: 3.112903226 | BB121: 2.333333333 | BC121: 2.104477612 | BD121: 2.901234568 | BE121: 2.5 | BF121: 2.927536232 | BG121: 2.21686747 | BH121: 2.280898876 | BI121: 2.112359551 | BJ121: 2.049019608 | BK121: 2.685714286 | BL121: 2.492957746 | BM121: 2.216216216 | BN121: 2.438202247 | BO121: 2.433333333 | BP121: 2.395604396 | BQ121: 2.967741935 | BR121: 2.157303371 | BS121: 2.447058824 | BT121: 4.567567568 | BU121: 2.055555556 | BV121: 2.25 | BW121: 2.459770115 | BX121: 2.298969072 | BY121: 1.9625 | BZ121: 2.125 | CA121: 2.88172043 | CB121: 2.723404255 | CC121: 2.637931034 | CD121: 2.461538462 | CE121: 2.10989011 | CF121: 2.932432432 | CG121: 2.385714286 | CH121: 2.705882353 | CI121: 2.473684211 | CJ121: 2.462264151 | CK121: 2.609375 | CL121: 2.123076923 | CM121: 2.431372549 | CN121: 2.177777778 | CO121: 1.984126984 | CP121: 1.739130435 | CQ121: 2.166666667 | CR121: 2.444444444 | CS121: 3.208333333 | CT121: 1.166666667 | CU121: 2.2 | CV121: 3.333333333 | CW121: 3.421052632
B122: 15:00:00 | C122: =IF(C78=0," ",C78/C100) -> 3.2 | D122: 4.16 | E122: 2.426966292 | F122: 2.21875 | G122: 1.896551724 | H122: 2.288135593 | I122: 2.303030303 | J122: 1.8125 | K122: 2.237623762 | L122: 1.857142857 | M122: 1.831325301 | N122: 2.364864865 | O122: 2.236842105 | P122: 1.96875 | Q122: 2.462686567 | R122: 2.291139241 | S122: 2.170731707 | T122: 2.793650794 | U122: 3.27027027 | V122: 2.024096386 | W122: 1.914634146 | X122: 2 | Y122: 2.15 | Z122: 2.032786885 | AA122: 1.333333333 | AB122: =IF(AB78=0," ",AB78/AB100) -> 2.175925926 | AC122: 2.357142857 | AD122: 2.072289157 | AE122: 2.284090909 | AF122: 2.12345679 | AG122: 2.65625 | AH122: 2.170731707 | AI122: 2.762376238 | AJ122: 2.425 | AK122: 2.578947368 | AL122: 2.257575758 | AM122: 4.074074074 | AN122: 2.518518519 | AO122: 2.43956044 | AP122: 2.627659574 | AQ122: 2.044776119 | AR122: 2.173333333 | AS122: 2.727272727 | AT122: 2.04 | AU122: 2.030927835 | AV122: 2.022727273 | AW122: 2.373333333 | AX122: 2.024096386 | AY122: 2.528301887 | AZ122: 2.178571429 | BA122: 3.3 | BB122: 2.217821782 | BC122: 2.341772152 | BD122: 2.355263158 | BE122: 3.292307692 | BF122: 2.456790123 | BG122: 2.235294118 | BH122: 2.226190476 | BI122: 2.987654321 | BJ122: 2.9125 | BK122: 3.150943396 | BL122: 2.227272727 | BM122: 2.866666667 | BN122: 2.558441558 | BO122: 2.710843373 | BP122: 2.8 | BQ122: 2.40625 | BR122: 2.75 | BS122: 2.581395349 | BT122: 4.583333333 | BU122: 3.2 | BV122: 3.095238095 | BW122: 2.4 | BX122: 2.62195122 | BY122: 2.265822785 | BZ122: 2.571428571 | CA122: 2.76 | CB122: 2.75 | CC122: 2.757894737 | CD122: 2.389473684 | CE122: 2.129032258 | CF122: 2.1125 | CG122: 2.984375 | CH122: 2.859649123 | CI122: 2.727272727 | CJ122: 2.278350515 | CK122: 2.302631579 | CL122: 2.326923077 | CM122: 2.818181818 | CN122: 2.371428571 | CO122: 2.405797101 | CP122: 2.595238095 | CQ122: 2.071428571 | CR122: 3.027027027 | CS122: 2.444444444 | CT122: 5.571428571 | CU122: 2.25 | CV122: 3.235294118 | CW122: 4.210526316
B123: 16:00:00 | C123: =IF(C79=0," ",C79/C101) -> 2 | D123: 2.5625 | E123: 3.113207547 | F123: 2.5 | G123: 2.08 | H123: 2.05 | I123: 3.185185185 | J123: 1.55 | K123: 1.884210526 | L123: 1.893333333 | M123: 2.04 | N123: 2.290322581 | O123: 2.756097561 | P123: 2.226190476 | Q123: 2.213483146 | R123: 1.571428571 | S123: 1.658823529 | T123: 2.618421053 | U123: 2.591836735 | V123: 2.155844156 | W123: 1.787234043 | X123: 2.1 | Y123: 1.912280702 | Z123: 2.672413793 | AA123: 3.166666667 | AB123: =IF(AB79=0," ",AB79/AB101) -> 2.65060241 | AC123: 2.146666667 | AD123: 2.08974359 | AE123: 2.880597015 | AF123: 2.098360656 | AG123: 3.095238095 | AH123: 2.602150538 | AI123: 2.216981132 | AJ123: 2.547619048 | AK123: 2.402985075 | AL123: 2.694444444 | AM123: 3.22 | AN123: 2.517241379 | AO123: 2.265822785 | AP123: 2.47826087 | AQ123: 2.193548387 | AR123: 2.509433962 | AS123: 2.185185185 | AT123: 2.291139241 | AU123: 2.407407407 | AV123: 2.616438356 | AW123: 2.728813559 | AX123: 2.362068966 | AY123: 2.646153846 | AZ123: 2.670588235 | BA123: 2.333333333 | BB123: 2.484536082 | BC123: 2.551282051 | BD123: 2.865853659 | BE123: 2.918367347 | BF123: 2.5 | BG123: 2.528089888 | BH123: 2.320987654 | BI123: 2.780821918 | BJ123: 2.779411765 | BK123: 2.384615385 | BL123: 2.40625 | BM123: 2.559139785 | BN123: 2.404040404 | BO123: 2.789473684 | BP123: 2.846153846 | BQ123: 4.568181818 | BR123: 3 | BS123: 2.967391304 | BT123: 2.90625 | BU123: 3.32 | BV123: 3.466666667 | BW123: 2.859649123 | BX123: 2.262626263 | BY123: 2.148648649 | BZ123: 2.135802469 | CA123: 2.878787879 | CB123: 2.491803279 | CC123: 2.602150538 | CD123: 2.390804598 | CE123: 2.244897959 | CF123: 2.602040816 | CG123: 2.942028986 | CH123: 2.903225806 | CI123: 2.605769231 | CJ123: 1.9375 | CK123: 2.611111111 | CL123: 2.209677419 | CM123: 2.74 | CN123: 2.428571429 | CO123: 1.943661972 | CP123: 3.125 | CQ123: 2.127659574 | CR123: 2.02173913 | CS123: 0.3103448276 | CT123: 5 | CU123: 4.363636364 | CV123: 3.153846154 | CW123: 4.631578947
B124: 17:00:00 | C124: =IF(C80=0," ",C80/C102) -> 2.638888889 | D124: 2.7 | E124: 2.033333333 | F124: 2 | G124: 1.835820896 | H124: 2.210526316 | I124: 1.863636364 | J124: 1.646341463 | K124: 1.931506849 | L124: 2.022988506 | M124: 2.157142857 | N124: 2.290909091 | O124: 2.552631579 | P124: 2.338709677 | Q124: 2.310344828 | R124: 2.38372093 | S124: 2.151515152 | T124: 2.367346939 | U124: 3.894736842 | V124: 1.814285714 | W124: 2.132352941 | X124: 2.013513514 | Y124: 2.466666667 | Z124: 2.219512195 | AA124: 3.421052632 | AB124: =IF(AB80=0," ",AB80/AB102) -> 2.266666667 | AC124: 2.425 | AD124: 2.456521739 | AE124: 2.228070175 | AF124: 2.086956522 | AG124: 2.804878049 | AH124: 2.3 | AI124: 2.028169014 | AJ124: 2.012195122 | AK124: 2.772727273 | AL124: 1.875 | AM124: 2.7 | AN124: 2.3125 | AO124: 1.966101695 | AP124: 2.388059701 | AQ124: 1.936507937 | AR124: 3.333333333 | AS124: 3.189189189 | AT124: 1.708333333 | AU124: 2.194444444 | AV124: 2.569620253 | AW124: 1.921875 | AX124: 2 | AY124: 3.404761905 | AZ124: 2.819444444 | BA124: 3.212765957 | BB124: 2.569444444 | BC124: 2.3 | BD124: 2.85 | BE124: 3.166666667 | BF124: 2.509433962 | BG124: 2.178082192 | BH124: 1.762711864 | BI124: 2.418181818 | BJ124: 2.192307692 | BK124: 3.351851852 | BL124: 2.62195122 | BM124: 2.095744681 | BN124: 2.457831325 | BO124: 2.647727273 | BP124: 2.816901408 | BQ124: 3.222222222 | BR124: 3.954022989 | BS124: 2.931506849 | BT124: 4.016949153 | BU124: 3.978723404 | BV124: 3.595238095 | BW124: 2.97752809 | BX124: 2.479452055 | BY124: 2.882352941 | BZ124: 2.543859649 | CA124: 2.928571429 | CB124: 3.133333333 | CC124: 2.314606742 | CD124: 2.25 | CE124: 2.820895522 | CF124: 2.524590164 | CG124: 2.736842105 | CH124: 2.579710145 | CI124: 3 | CJ124: 2.25 | CK124: 2.455882353 | CL124: 3.166666667 | CM124: 2.846153846 | CN124: 2.805555556 | CO124: 2.653846154 | CP124: 2.347826087 | CQ124: 2.176470588 | CR124: 2.403846154 | CS124: 5.588235294 | CT124: 4.5 | CU124: 2.928571429 | CV124: 3.533333333 | CW124: 4.125
B125: 18:00:00 | C125: =IF(C81=0," ",C81/C103) ->  | E125: 2.577777778 | F125: 2.523809524 | G125: 1.902439024 | H125: 3.696969697 | I125: 2.75 | J125: 2.106382979 | K125: 2.348837209 | L125: 2.204081633 | M125: 2.162790698 | N125: 2.230769231 | O125: 2.566666667 | P125: 2.081632653 | Q125: 1.525 | R125: 1.564516129 | S125: 2.444444444 | T125: 2.666666667 | U125: 3.666666667 | V125: 2.14893617 | W125: 2.8 | X125: 2.64516129 | Y125: 2.045454545 | Z125: 3.08 | AA125: 2.333333333 | AB125: =IF(AB81=0," ",AB81/AB103) -> 2 | AC125: 1.964912281 | AD125: 1.890909091 | AE125: 1.983050847 | AF125: 2.962962963 | AG125: 2.977272727 | AH125: 2.304347826 | AI125: 2.685185185 | AJ125: 2.125 | AK125: 2.285714286 | AL125: 2.1 | AM125: 2.564102564 | AN125: 2.078431373 | AO125: 2.083333333 | AP125: 2.321428571 | AQ125: 2.098039216 | AR125: 3.035714286 | AS125: 3.4 | AT125: 2.452830189 | AU125: 3.086956522 | AV125: 2.130434783 | AW125: 2.636363636 | AX125: 2.838709677 | AY125: 2.52 | AZ125: 2.527272727 | BA125: 2.12244898 | BB125: 2.807017544 | BC125: 2.431372549 | BD125: 2.228571429 | BE125: 3.878787879 | BF125: 2.378787879 | BG125: 2.116666667 | BH125: 2.037735849 | BI125: 2.428571429 | BJ125: 2.666666667 | BK125: =IF(BK81=0," ",BK81/BK103) -> 2.736842105 | BL125: 2.606060606 | BM125: 3.055555556 | BN125: 2.452830189 | BO125: 2.384615385 | BP125: 2.513513514 | BQ125: 3.848484848 | BR125: 3.436363636 | BS125: 3.745098039 | BW125: 3.3125 | BX125: 2.492307692 | BY125: 2.288461538 | BZ125: 2.142857143 | CA125: 2.047619048 | CB125: 3.073170732 | CC125: 3.042253521 | CD125: 2.651515152 | CE125: 2.723404255 | CF125: 2.872727273 | CG125: 2.257142857 | CH125: 3.057692308 | CI125: 2.181818182 | CJ125: 2.764705882 | CK125: 3.186046512 | CL125: 2.457142857 | CM125: 2.882352941 | CN125: 2.75 | CO125: 2.526315789 | CP125: 1.592592593 | CQ125: 1.419354839 | CR125: 3.4
B126: 19:00:00 | C126: =IF(C82=0," ",C82/C104) ->  | E126: 1.833333333 | F126: 1.617647059 | G126: 1.416666667 | H126: 1.642857143 | I126: 1.625 | J126: 1.5625 | K126: 1.979166667 | L126: 1.666666667 | M126: 2.634146341 | N126: 2.4 | O126: 2.958333333 | P126: 1.925925926 | Q126: 1.777777778 | R126: 2.65625 | S126: 2.222222222 | T126: 2.3 | U126: 3.217391304 | V126: 1.764705882 | W126: 1.9375 | X126: 2.090909091 | Y126: 2.076923077 | Z126: 3.333333333 | AA126: 3.222222222 | AB126: =IF(AB82=0," ",AB82/AB104) -> 2.609756098 | AC126: 2.083333333 | AD126: 1.780487805 | AE126: 1.885714286 | AF126: 1.85 | AG126: 2.409090909 | AH126: 2.543859649 | AI126: 1.923076923 | AJ126: 2 | AK126: 2.454545455 | AL126: 3.666666667 | AM126: 2.735294118 | AN126: 2.382352941 | AO126: 2.255319149 | AP126: 2.294117647 | AQ126: 2.75 | AR126: 3.636363636 | AS126: 4.2 | AT126: 2.135135135 | AU126: 2.487804878 | AV126: 3.133333333 | AW126: 2.733333333 | AX126: 2.928571429 | AY126: 2.689655172 | AZ126: 2.444444444 | BA126: 1.964285714 | BB126: 2.693877551 | BC126: 2.488888889 | BD126: 2.125 | BE126: 3.76 | BF126: 2.322580645 | BG126: 2.490909091 | BH126: 2.290909091 | BI126: 2.083333333 | BJ126: 2.9 | BK126: 3.421052632 | BL126: 2.928571429 | BM126: 2.830508475 | BN126: 1.594594595 | BO126: 2.869565217 | BP126: 2.117647059 | BQ126: 2.36 | BR126: 2.285714286 | BS126: 3.3125 | BW126: 2.783333333 | BX126: 2.5 | BY126: 2.905660377 | BZ126: 3.391304348 | CA126: 3.5 | CB126: 2.827586207 | CC126: 3.083333333 | CD126: 2.203125 | CE126: 2.710526316 | CF126: 2.266666667 | CG126: 2.5 | CH126: 5.193548387 | CI126: 2.03125 | CJ126: 2.508474576 | CK126: 2.051282051 | CL126: 2.551724138 | CM126: 2.75 | CN126: 2.333333333 | CO126: 2.147058824 | CP126: 1.9375 | CQ126: 2.058823529 | CR126: 3.5
B127: 20:00:00 | C127: =IF(C83=0," ",C83/C105) ->  | E127: 2.387096774 | F127: 1.666666667 | G127: 1.973684211 | H127: 2.2 | I127: 1.333333333 | J127: 1.407407407 | K127: 1.790697674 | L127: 2 | M127: 3.096774194 | N127: 1.375 | O127: 3.642857143 | P127: 2.333333333 | Q127: 2.710526316 | R127: 1.952380952 | S127: 2.576923077 | T127: 2.875 | U127: 2.529411765 | V127: 2.08 | W127: 2.764705882 | X127: 2.065217391 | Y127: 1.857142857 | Z127: 2.384615385 | AA127: 1.894736842 | AB127: =IF(AB83=0," ",AB83/AB105) -> 2 | AC127: 2.58974359 | AD127: 2.076923077 | AE127: 2.32 | AF127: 2.388888889 | AG127: 2.413793103 | AH127: 2.709677419 | AI127: 1.58490566 | AJ127: 1.844444444 | AK127: 2.193548387 | AL127: 2.933333333 | AM127: 2.55 | AN127: 2.633333333 | AO127: 2.372093023 | AP127: 2.666666667 | AQ127: 2.03125 | AR127: 3.5 | AS127: 2.052631579 | AT127: 2.842105263 | AU127: 2.847826087 | AV127: 2.25 | AW127: 2.366666667 | AX127: 1.882352941 | AY127: 4.19047619 | AZ127: 2.814814815 | BA127: 2 | BB127: 2.195121951 | BC127: 2.25 | BD127: 2.117647059 | BE127: 2.956521739 | BF127: 2.794871795 | BG127: 2.568627451 | BH127: 1.676470588 | BI127: 3.096774194 | BJ127: 2.785714286 | BK127: 3.787878788 | BL127: 3.333333333 | BM127: 3.29787234 | BN127: 2.357142857 | BO127: 2.775862069 | BP127: 3.636363636 | BQ127: 3.592592593 | BR127: 2.906976744 | BS127: 3.272727273 | BW127: 2.648648649 | BX127: 2.333333333 | BY127: 2.739130435 | BZ127: 2.738095238 | CA127: 3.470588235 | CB127: 3.923076923 | CC127: 2.783783784 | CD127: 2.717391304 | CE127: 2.636363636 | CF127: 2.285714286 | CG127: 2.466666667 | CH127: 2.75 | CI127: 2.326530612 | CJ127: 2.037735849 | CK127: 2.125 | CL127: 2.181818182 | CM127: 1.555555556 | CN127: 2.238095238 | CO127: 2.62962963 | CP127: 2.217391304 | CQ127: 1.666666667 | CR127: 2.133333333
B128: 21:00:00 | C128: =IF(C84=0," ",C84/C106) ->  | E128: 2.095238095 | F128: 1.541666667 | G128: 2.347826087 | H128: 3.538461538 | I128: 3.5 | J128: 2.054054054 | K128: 2.575757576 | L128: 2.555555556 | M128: 3.166666667 | N128: 2.4 | O128: 2.8125 | P128: 1.833333333 | Q128: 2.083333333 | R128: 2.447368421 | S128: 2.677419355 | T128: 1.461538462 | U128: 2.230769231 | V128: 2.322580645 | W128: 2.416666667 | X128: 1.869565217 | Y128: 1.75 | Z128: 3.222222222 | AA128: 2.117647059 | AB128: =IF(AB84=0," ",AB84/AB106) -> 2.357142857 | AC128: 1.865384615 | AD128: 2.604651163 | AE128: 3.433333333 | AF128: 3 | AG128: 2.65 | AH128: 2.379310345 | AI128: 2.052631579 | AJ128: 2.228571429 | AK128: 2.1 | AL128: 3.666666667 | AM128: 3.526315789 | AN128: 1.794871795 | AO128: 3.2 | AP128: 2.6875 | AQ128: 2.380952381 | AR128: 2.055555556 | AS128: 2.785714286 | AT128: 2.175 | AU128: 3.324324324 | AV128: 1.868421053 | AW128: 3.161290323 | AX128: 2.6 | AY128: 2.684210526 | AZ128: 3.533333333 | BA128: 2.923076923 | BB128: 2.023809524 | BC128: 2.571428571 | BD128: 2.684210526 | BE128: 2.8 | BF128: 2.771428571 | BG128: 1.867924528 | BH128: 2.916666667 | BI128: 3.038461538 | BJ128: 2.5 | BK128: 3.04 | BL128: 3.628571429 | BM128: 2.8 | BN128: 3.081632653 | BO128: 3.139534884 | BP128: 3.6875 | BQ128: 3.227272727 | BR128: 2.738095238 | BS128: 2.928571429 | BW128: 3.166666667 | BX128: 2.375 | BY128: 2.205128205 | BZ128: 2.666666667 | CA128: 3 | CB128: 3.238095238 | CC128: 2.634146341 | CD128: 2.569230769 | CE128: 3.142857143 | CF128: 2.34 | CG128: 2.65 | CH128: 3.897435897 | CI128: 3.081081081 | CJ128: 2.109090909 | CK128: 2.142857143 | CL128: 2.916666667 | CM128: 1.826086957 | CN128: 2.588235294 | CO128: 2.0625 | CP128: 2.236842105 | CQ128: 2.523809524 | CR128: 2.5
B129: 22:00:00 | C129: =IF(C85=0," ",C85/C107) ->  | E129: 2.4 | F129: 1.8125 | G129: 3.083333333 | H129: 3.125 | I129: 1.533333333 | J129: 2.230769231 | K129: 1.8125 | L129: 2.956521739 | M129: 2.578947368 | N129: 3.75 | O129: 2 | P129: 2.689655172 | Q129: 2.035714286 | R129: 2.225806452 | S129: 2.148148148 | T129: 3.818181818 | U129: 2.388888889 | V129: 1.909090909 | W129: 2.115384615 | X129: 2.411764706 | Y129: 2.941176471 | Z129: 3.571428571 | AA129: 3.294117647 | AB129: =IF(AB85=0," ",AB85/AB107) -> 1.954545455 | AC129: 1.913043478 | AD129: 3.09375 | AE129: 2.055555556 | AF129: 1.7 | AG129: 3.72 | AH129: 2.405405405 | AI129: 1.666666667 | AJ129: 2.6 | AK129: 1.769230769 | AL129: 5.166666667 | AM129: 2.176470588 | AN129: 3 | AO129: 2.394736842 | AP129: 2.689655172 | AQ129: 2 | AR129: 2.785714286 | AS129: 3.84 | AT129: 1.851851852 | AU129: 2.342857143 | AV129: 2.40625 | AW129: 2.166666667 | AX129: 1.727272727 | AY129: 2.642857143 | AZ129: 2.363636364 | BA129: 3.181818182 | BB129: 2.827586207 | BC129: 2.52 | BD129: 2.692307692 | BE129: 2.727272727 | BF129: 2.96875 | BG129: 2.612244898 | BH129: 3.166666667 | BI129: 3.071428571 | BJ129: 3.142857143 | BK129: 3.52 | BL129: 2.777777778 | BM129: 2.903225806 | BN129: 2.972972973 | BO129: 3.633333333 | BP129: 4 | BQ129: 2.173913043 | BR129: 2.75 | BS129: 3.733333333 | BW129: 2.725 | BX129: 2.185185185 | BY129: 3.048780488 | BZ129: 3.05 | CA129: 2.181818182 | CB129: 2.434782609 | CC129: 3.1 | CD129: 2.5 | CE129: 3 | CF129: 2.260869565 | CG129: 3.111111111 | CH129: 2.0625 | CI129: 1.7 | CJ129: 2.487179487 | CK129: 2.653846154 | CL129: 3 | CM129: 2.75 | CN129: 3.652173913 | CO129: 2.64 | CP129: 2.055555556 | CQ129: 2
B130: 23:00:00 | C130: =IF(C86=0," ",C86/C108) ->  | E130: 2 | F130: 2 | G130: 1 | H130: 3 | I130: 1 | J130: 3.363636364 | K130: 3.75 | L130: 3.466666667 | M130: 2.4 | N130: 1.333333333 | O130: 2.833333333 | P130: 3.071428571 | Q130: 2.416666667 | R130: 2 | S130: 2.666666667 | T130: 5.25 | U130: 2 | V130: 4.192307692 | W130: 2.181818182 | X130: 4.9375 | Y130: 2.846153846 | Z130: 3.142857143 | AA130: 4.25 | AB130: =IF(AB86=0," ",AB86/AB108) -> 2.733333333 | AC130: 3.214285714 | AD130: 3.083333333 | AE130: 2.266666667 | AF130: 3.071428571 | AG130: 1.5 | AH130: 3.045454545 | AI130: 2.777777778 | AJ130: 2.222222222 | AK130: 2.55 | AL130: 2.25 | AM130: 3.4 | AN130: 2.814814815 | AO130: 2.72 | AP130: 2.80952381 | AQ130: 2.727272727 | AR130: 3 | AS130: 2.869565217 | AT130: 1.5625 | AU130: 3.5 | AV130: 2.764705882 | AW130: 1.923076923 | AX130: 2.666666667 | AY130: 3 | AZ130: 2.80952381 | BA130: 1.5 | BB130: 2.789473684 | BC130: 2.214285714 | BD130: 2.818181818 | BE130: 7.2 | BF130: 3.448275862 | BG130: 2.518518519 | BH130: 2.909090909 | BI130: 2.5 | BJ130: 2.6 | BK130: 4.727272727 | BL130: 2.891891892 | BM130: 2.540540541 | BN130: 2.545454545 | BO130: 3.666666667 | BP130: 3.5 | BQ130: 3.307692308 | BR130: 2.882352941 | BS130: 3.384615385 | BW130: 3.605263158 | BX130: 3.166666667 | BY130: 2.409090909 | BZ130: 3.391304348 | CA130: 3.733333333 | CB130: 4.5 | CC130: 3 | CD130: 2.709677419 | CE130: =IF(CE86=0," ",CE86/CE108) -> 3.130434783 | CF130: 2.238095238 | CG130: 1.875 | CH130: 4.243243243 | CI130: 2.076923077 | CJ130: 3.03030303 | CK130: 3.16 | CL130: 2.0625 | CM130: 2.5 | CN130: 3.8 | CO130: 2.555555556 | CP130: 1.636363636 | CQ130: 2.25
B131: 1 | C131: =IF(C87=0," ",C87/C109) ->  | AB131: =IF(AB87=0," ",AB87/AB109) ->  | CC131: 3.777777778 | CD131: 3.909090909 | CE131: 3 | CF131: 3.583333333 | CG131: 2.833333333 | CJ131: 2.421052632 | CK131: 1.916666667 | CL131: 2.666666667 | CM131: 2 | CO131: 2.333333333 | CP131: 2.8 | CQ131: 2.714285714
B132: 1.041666667 | C132: =IF(C88=0," ",C88/C110) ->  | AB132: =IF(AB88=0," ",AB88/AB110) ->  | CC132: 4.25 | CD132: 1.875 | CE132: 2 | CF132: 3.428571429 | CG132: 3.166666667 | CJ132: 3.05 | CK132: 3.4 | CL132: 2 | CM132: 2.666666667 | CO132: 1.857142857 | CP132: 3.333333333 | CQ132: 3.4
B133: Average | C133: =IF(C89=0," ",C89/C111) -> 2.475083056 | D133: 2.515957447 | E133: 2.15225335 | F133: 2.127962085 | G133: 1.93757503 | H133: 2.192572215 | I133: 2.353846154 | J133: 1.923076923 | K133: 2.017201835 | L133: 2.123126338 | M133: 2.336930456 | N133: 2.101673102 | O133: 2.440506329 | P133: 2.082146769 | Q133: 2.170702179 | R133: 2.077336198 | S133: 2.143518519 | T133: 2.196891192 | U133: 2.673076923 | V133: 2.168171558 | W133: 2.290697674 | X133: 2.218609865 | Y133: 2.152892562 | Z133: 2.405007364 | AA133: 2.837837838 | AB133: =IF(AB89=0," ",AB89/AB111) -> 2.320773931 | AC133: 2.301822323 | AD133: 2.267316017 | AE133: 2.276299113 | AF133: 2.34051144 | AG133: 2.76426799 | AH133: 2.24975025 | AI133: 2.388261851 | AJ133: 2.237657865 | AK133: 2.314702309 | AL133: 2.448519041 | AM133: 2.868421053 | AN133: 2.296803653 | AO133: 2.383233533 | AP133: 2.333700441 | AQ133: 2.205920206 | AR133: 2.433770015 | AS133: 2.90080429 | AT133: 2.15795207 | AU133: 2.411149826 | AV133: 2.225736096 | AW133: 2.40025413 | AX133: 2.211815562 | AY133: 2.850230415 | AZ133: 2.442926829 | BA133: 2.717460317 | BB133: 2.399608227 | BC133: 2.456876457 | BD133: 2.594936709 | BE133: 3.109704641 | BF133: 2.504 | BG133: 2.388659794 | BH133: 2.290322581 | BI133: 2.540312876 | BJ133: 2.45443038 | BK133: 3.063424947 | BL133: 2.542355372 | BM133: 2.657397108 | BN133: 2.540932642 | BO133: 2.536659878 | BP133: 2.703917051 | BQ133: 3.127314815 | BR133: 2.67525299 | BS133: 2.868783069 | BT133: 3.888888889 | BU133: 3.55952381 | BV133: 2.953216374 | BW133: 2.58716392 | BX133: 2.443396226 | BY133: 2.247715736 | BZ133: 2.587144623 | CA133: 2.67578125 | CB133: 2.897746967 | CC133: 2.603825137 | CD133: 2.381454162 | CE133: 2.443991853 | CF133: 2.397826087 | CG133: 2.448322148 | CH133: 2.980830671 | CI133: 2.550898204 | CJ133: 2.290909091 | CK133: 2.470658683 | CL133: 2.361832061 | CM133: 2.542750929 | CN133: 2.436363636 | CO133: 2.219973009 | CP133: 2.353697749 | CQ133: 2.239460371 | CR133: 2.324731183 | CS133: 1.65915493 | CT133: 4.808510638 | CU133: 3.272727273 | CV133: 4.359281437 | CW133: 3.631578947

Sheet 2007
A1: Circulation | B1: Day | C1: Tue | D1: Wed | E1: Thu | F1: Fri | G1: Sat | H1: Mon | I1: Tue | J1: Wed | K1: Thu | L1: Fri | M1: Sat | N1: Mon | O1: Tue | P1: Wed | Q1: Thu | R1: Fri | S1: Sat | T1: Mon | U1: Tue | V1: Wed | W1: Thu | X1: Fri | Y1: Sat | Z1: Mon | AA1: Tue | AB1: Wed | AC1: Thu | AD1: Fri | AE1: Sat | AF1: Mon | AG1: Tue | AH1: Wed | AI1: Thu | AJ1: Fri | AK1: Sat | AL1: Mon | AM1: Tue | AN1: Wed | AO1: Thu | AP1: Fri | AQ1: Sat | AR1: Mon | AS1: Tue | AT1: Wed | AU1: Thu | AV1: Fri | AW1: Sat | AX1: Mon | AY1: Tue | AZ1: Wed | BA1: Thu | BB1: Fri | BC1: Sat | BD1: Mon | BE1: Tue | BF1: Wed | BG1: Thu | BH1: Fri | BI1: Sat | BJ1: Mon | BK1: Tue | BL1: Wed | BM1: Thu | BN1: Fri | BO1: Sat | BP1: Mon | BQ1: Tue | BR1: Wed | BS1: Thu | BT1: Fri | BU1: Sat | BV1: Mon | BW1: Tue | BX1: Wed | BY1: Thu | BZ1: Fri | CA1: Sat | CB1: Mon | CC1: Tue | CD1: Wed | CE1: Thu | CF1: Fri | CG1: Sat | CH1: Mon | CI1: Tue | CJ1: Wed | CK1: Thu | CL1: Fri | CM1: Sat | CN1: Mon | CO1: Tue | CP1: Wed | CQ1: Thu | CR1: Fri | CS1: Sat | CT1: Mon | CU1: Tue | CV1: Wed | CW1: Thu | CX1: Fri | CY1: Sat | CZ1: Mon | DA1: Tue | DB1: Wed | DC1: Thu | DD1: Fri | DE1: Sat | DF1: Sun | DG1: Mon | DH1: Tue | DI1: Wed | DJ1: Thu | DK1: Fri | DL1: Sat | DM1: Mon | DN1: Tue | DO1: Wed | DP1: Thu | DQ1: Fri | DR1: Sat | DS1: Mon | DT1: Tue | DU1: Wed | DV1: Thu | DW1: Fri | DX1: Sat | DY1: Mon | DZ1: Tue | EA1: Wed | EB1: Thu | EC1: Fri | ED1: Sat | EE1: Mon | EF1: Tue | EG1: Wed | EH1: Thu | EI1: Fri | EJ1: Sat | EK1: Mon | EL1: Tue | EM1: Wed | EN1: Thu | EO1: Fri | EP1: Sat | EQ1: Mon | ER1: Tue | ES1: Wed | ET1: Thu | EU1: Fri | EV1: Sat | EW1: Mon | EX1: Tue | EY1: Wed | EZ1: Thu | FA1: Fri | FB1: Sat | FC1: Mon | FD1: Tue | FE1: Wed | FF1: Thu | FG1: Fri | FH1: Sat | FI1: Mon | FJ1: Tue | FK1: Wed | FL1: Thu | FM1: Fri | FN1: Sat | FO1: Mon | FP1: Tue | FQ1: Wed | FR1: Thu | FS1: Fri | FT1: Sat | FU1: Mon | FV1: Tue | FW1: Wed | FX1: Thu | FY1: Fri | FZ1: Sat | GA1: Mon | GB1: Tue | GC1: Wed | GD1: Thu | GE1: Fri | GF1: Sat | GG1: Mon | GH1: Tue | GI1: Wed | GJ1: Thu | GK1: Fri | GL1: Sat | GM1: Mon | GN1: Tue | GO1: Wed | GP1: Thu | GQ1: Fri | GR1: Sat | GS1: Mon | GT1: Tue | GU1: Wed | GV1: Thu | GW1: Fri | GX1: Sat | GY1: Mon | GZ1: Tue | HA1: Wed | HB1: Thu | HC1: Fri
A2: Items | B2: Date | C2: 2007-01-02 | D2: 2007-01-03 | E2: 2007-01-04 | F2: 2007-01-05 | G2: 2007-01-06 | H2: 2007-01-08 | I2: 2007-01-09 | J2: 2007-01-10 | K2: 2007-01-11 | L2: 2007-01-12 | M2: 2007-01-13 | N2: 2007-01-15 | O2: 2007-01-16 | P2: 2007-01-17 | Q2: 2007-01-18 | R2: 2007-01-19 | S2: 2007-01-20 | T2: 2007-01-22 | U2: 2007-01-23 | V2: 2007-01-24 | W2: 2007-01-25 | X2: 2007-01-26 | Y2: 2007-01-27 | Z2: 2007-01-29 | AA2: 2007-01-30 | AB2: 2007-01-31 | AC2: 2007-02-01 | AD2: 2007-02-02 | AE2: 2007-02-03 | AF2: 2007-02-05 | AG2: 2007-02-06 | AH2: 2007-02-07 | AI2: 2007-02-08 | AJ2: 2007-02-09 | AK2: 2007-02-10 | AL2: 2007-02-12 | AM2: 2007-02-13 | AN2: 2007-02-14 | AO2: 2007-02-15 | AP2: 2007-02-16 | AQ2: 2007-02-17 | AR2: 2007-02-19 | AS2: 2007-02-20 | AT2: 2007-02-21 | AU2: 2007-02-22 | AV2: 2007-02-23 | AW2: 2007-02-24 | AX2: 2007-02-26 | AY2: 2007-02-27 | AZ2: 2007-02-28 | BA2: 2007-03-01 | BB2: 2007-03-02 | BC2: 2007-03-03 | BD2: 2007-03-05 | BE2: 2007-03-06 | BF2: 2007-03-07 | BG2: 2007-03-08 | BH2: 2007-03-09 | BI2: 2007-03-10 | BJ2: 2007-03-12 | BK2: 2007-03-13 | BL2: 2007-03-14 | BM2: 2007-03-15 | BN2: 2007-03-16 | BO2: 2007-03-17 | BP2: 2007-03-19 | BQ2: 2007-03-20 | BR2: 2007-03-21 | BS2: 2007-03-22 | BT2: 2007-03-23 | BU2: 2007-03-24 | BV2: 2007-03-26 | BW2: 2007-03-27 | BX2: 2007-03-28 | BY2: 2007-03-29 | BZ2: 2007-03-30 | CA2: 2007-03-31 | CB2: 2007-04-02 | CC2: 2007-04-03 | CD2: 2007-04-04 | CE2: 2007-04-05 | CF2: 2007-04-06 | CG2: 2007-04-07 | CH2: 2007-04-09 | CI2: 2007-04-10 | CJ2: 2007-04-11 | CK2: 2007-04-12 | CL2: 2007-04-13 | CM2: 2007-04-14 | CN2: 2007-04-16 | CO2: 2007-04-17 | CP2: 2007-04-18 | CQ2: 2007-04-19 | CR2: 2007-04-20 | CS2: 2007-04-21 | CT2: 2007-04-23 | CU2: 2007-04-24 | CV2: 2007-04-25 | CW2: 2007-04-26 | CX2: 2007-04-27 | CY2: 2007-04-28 | CZ2: 2007-04-30 | DA2: 2007-05-01 | DB2: 2007-05-02 | DC2: 2007-05-03 | DD2: 2007-05-04 | DE2: 2007-05-05 | DF2: 2007-05-06 | DG2: 2007-05-07 | DH2: 2007-05-08 | DI2: 2007-05-09 | DJ2: 2007-05-10 | DK2: 2007-05-11 | DL2: 2007-05-12 | DM2: 2007-05-14 | DN2: 2007-05-15 | DO2: 2007-05-16 | DP2: 2007-05-17 | DQ2: 2007-05-18 | DR2: 2007-05-19 | DS2: 2007-05-21 | DT2: 2007-05-22 | DU2: 2007-05-23 | DV2: 2007-05-24 | DW2: 2007-05-25 | DX2: 2007-05-26 | DY2: 2007-05-28 | DZ2: 2007-05-29 | EA2: 2007-05-30 | EB2: 2007-05-31 | EC2: 2007-06-01 | ED2: 2007-06-02 | EE2: 2007-06-04 | EF2: 2007-06-05 | EG2: 2007-06-06 | EH2: 2007-06-07 | EI2: 2007-06-08 | EJ2: 2007-06-09 | EK2: 2007-06-11 | EL2: 2007-06-12 | EM2: 2007-06-13 | EN2: 2007-06-14 | EO2: 2007-06-15 | EP2: 2007-06-16 | EQ2: 2007-06-18 | ER2: 2007-06-19 | ES2: 2007-06-20 | ET2: 2007-06-21 | EU2: 2007-06-22 | EV2: 2007-06-23 | EW2: 2007-06-25 | EX2: 2007-06-26 | EY2: 2007-06-27 | EZ2: 2007-06-28 | FA2: 2007-06-29 | FB2: 2007-06-30 | FC2: 2007-07-02 | FD2: 2007-07-03 | FE2: 2007-07-04 | FF2: 2007-07-05 | FG2: 2007-07-06 | FH2: 2007-07-07 | FI2: 2007-07-09 | FJ2: 2007-07-10 | FK2: 2007-07-11 | FL2: 2007-07-12 | FM2: 2007-07-13 | FN2: 2007-07-14 | FO2: 2007-07-16 | FP2: 2007-07-17 | FQ2: 2007-07-18 | FR2: 2007-07-19 | FS2: 2007-07-20 | FT2: 2007-07-21 | FU2: 2007-07-23 | FV2: 2007-07-24 | FW2: 2007-07-25 | FX2: 2007-07-26 | FY2: 2007-07-27 | FZ2: 2007-07-28 | GA2: 2007-07-30 | GB2: 2007-07-31 | GC2: 2007-08-01 | GD2: 2007-08-02 | GE2: 2007-08-03 | GF2: 2007-08-04 | GG2: 2007-08-06 | GH2: 2007-08-07 | GI2: 2007-08-08 | GJ2: 2007-08-09 | GK2: 2007-08-10 | GL2: 2007-08-11 | GM2: 2007-08-13 | GN2: 2007-08-14 | GO2: 2007-08-15 | GP2: 2007-08-16 | GQ2: 2007-08-17 | GR2: 2007-08-18 | GS2: 2007-08-20 | GT2: 2007-08-21 | GU2: 2007-08-22 | GV2: 2007-08-23 | GW2: 2007-08-24 | GX2: 2007-08-25 | GY2: 2007-08-27 | GZ2: 2007-08-28 | HA2: 2007-08-29 | HB2: 2007-08-30 | HC2: 2007-08-31
A3: Hour | B3: 07:00:00 | H3: 20 | I3: 19 | J3: 7 | K3: 6 | L3: 2 | O3: 7 | P3: 9 | Q3: 2 | R3: 3 | T3: 12 | U3: 11 | V3: 16 | W3: 8 | X3: 2 | Z3: 14 | AA3: 8 | AB3: 7 | AC3: 4 | AD3: 3 | AF3: 23 | AG3: 9 | AH3: 17 | AI3: 7 | AJ3: 3 | AL3: 10 | AM3: 13 | AN3: 11 | AO3: 10 | AP3: 19 | AS3: 22 | AT3: 9 | AU3: 4 | AV3: 11 | AX3: 10 | AY3: 6 | AZ3: 18 | BA3: 5 | BB3: 1 | BD3: 11 | BE3: 11 | BF3: 4 | BG3: 5 | BH3: 7 | BJ3: 17 | BK3: 3 | BL3: 4 | BM3: 10 | BN3: 7 | BP3: 20 | BQ3: 12 | BR3: 6 | BS3: 10 | BT3: 9 | BV3: 11 | BW3: 28 | BX3: 4 | BY3: 12 | BZ3: 3 | CB3: 19 | CC3: 11 | CD3: 11 | CE3: 28 | CF3: 18 | CG3: 12 | CH3: 17 | CI3: 16 | CJ3: 14 | CK3: 11 | CL3: 6 | CN3: 13 | CO3: 18 | CP3: 12 | CQ3: 4 | CR3: 7 | CS3: 2 | CT3: 4 | CU3: 13 | CV3: 3 | CW3: 1 | DB3: 2 | DD3: 3 | DJ3: 3 | DK3: 6 | DN3: 9 | DP3: 1 | DQ3: 3 | DR3: 5 | DS3: 16 | DT3: 3 | DU3: 5 | DV3: 3 | DW3: 14 | DX3: 3 | DZ3: 2 | EB3: 9 | EE3: 13 | EF3: 4 | EG3: 6 | EH3: 3 | EI3: 20 | EJ3: 3 | EK3: 10 | EL3: 3 | EM3: 8 | EN3: 7 | EO3: 2 | EQ3: 2 | ER3: 7 | ES3: 4 | ET3: 5 | EW3: 10 | EX3: 2 | EY3: 5 | EZ3: 5 | FA3: 4 | FC3: 17 | FD3: 2 | FE3: 8 | FF3: 9 | FG3: 3 | FH3: 3 | FI3: 20 | FJ3: 4 | FL3: 2 | FM3: 9 | FN3: 1 | FO3: 12 | FP3: 5 | FQ3: 3 | FR3: 2 | FS3: 12 | FT3: 5 | FU3: 1 | FV3: 16 | FW3: 1 | FX3: 2 | FY3: 2 | FZ3: 9 | GA3: 1 | GB3: 4 | GC3: 12 | GD3: 2 | GE3: 5 | GG3: 9 | GH3: 10 | GI3: 10 | GJ3: 7 | GK3: 6 | GL3: 11 | GM3: 9 | GN3: 7 | GO3: 10 | GP3: 3 | GW3: 3
B4: 08:00:00 | C4: 5 | D4: 2 | E4: 6 | F4: 49 | H4: 40 | I4: 98 | J4: 32 | K4: 35 | L4: 75 | O4: 53 | P4: 28 | Q4: 33 | R4: 87 | S4: 2 | T4: 47 | U4: 73 | V4: 58 | W4: 89 | X4: 40 | Y4: 4 | Z4: 32 | AA4: 57 | AB4: 45 | AC4: 98 | AD4: 119 | AE4: 1 | AF4: 60 | AG4: 27 | AH4: 88 | AI4: 111 | AJ4: 36 | AK4: 12 | AL4: 67 | AM4: 124 | AN4: 28 | AO4: 47 | AP4: 43 | AQ4: 1 | AS4: 59 | AT4: 38 | AU4: 34 | AV4: 98 | AW4: 3 | AX4: 36 | AY4: 116 | AZ4: 59 | BA4: 56 | BB4: 30 | BD4: 46 | BE4: 123 | BF4: 30 | BG4: 97 | BH4: 49 | BI4: 7 | BJ4: 51 | BK4: 126 | BL4: 126 | BM4: 52 | BN4: 44 | BO4: 12 | BP4: 56 | BQ4: 50 | BR4: 82 | BS4: 78 | BT4: 29 | BU4: 2 | BV4: 51 | BW4: 120 | BX4: 45 | BY4: 44 | BZ4: 35 | CA4: 17 | CB4: 40 | CC4: 30 | CD4: 64 | CE4: 30 | CF4: 84 | CG4: 10 | CH4: 109 | CI4: 57 | CJ4: 45 | CK4: 47 | CL4: 78 | CM4: 16 | CN4: 71 | CO4: 117 | CP4: 26 | CQ4: 32 | CR4: 44 | CS4: 20 | CT4: 47 | CU4: 19 | CV4: 27 | CW4: 91 | CX4: 10 | CY4: 12 | CZ4: 5 | DB4: 11 | DD4: 1 | DE4: 1 | DG4: 1 | DH4: 3 | DJ4: 8 | DK4: 17 | DM4: 5 | DN4: 2 | DO4: 9 | DP4: 19 | DQ4: 11 | DR4: 5 | DS4: 6 | DT4: 10 | DU4: 6 | DV4: 4 | DW4: 5 | DX4: 3 | DZ4: 9 | EB4: 6 | EC4: 53 | EE4: 19 | EF4: 10 | EG4: 13 | EH4: 10 | EI4: 8 | EJ4: 6 | EK4: 18 | EL4: 64 | EM4: 47 | EN4: 21 | EO4: 8 | EP4: 11 | EQ4: 17 | ER4: 54 | ES4: 65 | ET4: 10 | EU4: 62 | EV4: 2 | EW4: 32 | EX4: 12 | EY4: 50 | EZ4: 10 | FA4: 66 | FB4: 9 | FC4: 58 | FD4: 9 | FE4: 31 | FF4: 23 | FG4: 5 | FH4: 5 | FI4: 19 | FJ4: 5 | FK4: 15 | FL4: 38 | FM4: 13 | FN4: 4 | FO4: 26 | FP4: 18 | FQ4: 17 | FR4: 11 | FS4: 109 | FT4: 1 | FU4: 22 | FV4: 21 | FW4: 1 | FX4: 22 | FY4: 9 | FZ4: 29 | GA4: 32 | GB4: 16 | GC4: 12 | GD4: 23 | GE4: 14 | GG4: 14 | GH4: 31 | GI4: 14 | GJ4: 7 | GK4: 8 | GL4: 4 | GM4: 15 | GN4: 14 | GO4: 11 | GP4: 18 | GQ4: 11 | GS4: 14 | GT4: 13 | GU4: 16 | GV4: 4 | GW4: 21 | GX4: 8 | GY4: 14 | GZ4: 13 | HA4: 1 | HB4: 9 | HC4: 12
B5: 09:00:00 | C5: 59 | D5: 88 | E5: 66 | F5: 68 | G5: 6 | H5: 89 | I5: 166 | J5: 85 | K5: 110 | L5: 109 | M5: 8 | O5: 124 | P5: 107 | Q5: 176 | R5: 59 | S5: 12 | T5: 139 | U5: 104 | V5: 91 | W5: 96 | X5: 99 | Y5: 41 | Z5: 78 | AA5: 155 | AB5: 74 | AC5: 102 | AD5: 68 | AE5: 20 | AF5: 152 | AG5: 148 | AH5: 121 | AI5: 83 | AJ5: 78 | AK5: 5 | AL5: 119 | AM5: 125 | AN5: 92 | AO5: 110 | AP5: 91 | AQ5: 21 | AS5: 160 | AT5: 154 | AU5: 92 | AV5: 135 | AW5: 19 | AX5: 108 | AY5: 144 | AZ5: 97 | BA5: 93 | BB5: 68 | BC5: 10 | BD5: 61 | BE5: 110 | BF5: 120 | BG5: 99 | BH5: 92 | BI5: 20 | BJ5: 149 | BK5: 220 | BL5: 136 | BM5: 217 | BN5: 92 | BO5: 1 | BP5: 100 | BQ5: 79 | BR5: 91 | BS5: 74 | BT5: 95 | BU5: 10 | BV5: 90 | BW5: 102 | BX5: 107 | BY5: 133 | BZ5: 113 | CA5: 23 | CB5: 78 | CC5: 174 | CD5: 62 | CE5: 198 | CF5: 83 | CG5: 57 | CH5: 111 | CI5: 98 | CJ5: 78 | CK5: 169 | CL5: 73 | CM5: 10 | CN5: 60 | CO5: 47 | CP5: 71 | CQ5: 58 | CR5: 85 | CS5: 28 | CT5: 122 | CU5: 64 | CV5: 49 | CW5: 56 | CX5: 9 | CY5: 2 | CZ5: 25 | DA5: 4 | DB5: 7 | DC5: 3 | DD5: 7 | DE5: 3 | DG5: 5 | DH5: 3 | DI5: 3 | DJ5: 4 | DK5: 3 | DL5: 8 | DM5: 9 | DN5: 7 | DO5: 9 | DP5: 8 | DQ5: 7 | DR5: 5 | DS5: 26 | DT5: 2 | DU5: 15 | DV5: 23 | DW5: 15 | DX5: 2 | DZ5: 14 | EB5: 16 | EC5: 51 | ED5: 6 | EE5: 62 | EF5: 29 | EG5: 13 | EH5: 21 | EI5: 179 | EJ5: 19 | EK5: 45 | EL5: 44 | EM5: 51 | EN5: 35 | EO5: 27 | EP5: 6 | EQ5: 58 | ER5: 33 | ES5: 31 | ET5: 57 | EU5: 33 | EV5: 15 | EW5: 39 | EX5: 43 | EY5: 21 | EZ5: 74 | FA5: 26 | FB5: 8 | FC5: 38 | FD5: 38 | FE5: 76 | FF5: 32 | FG5: 1 | FH5: 1 | FI5: 20 | FJ5: 19 | FK5: 24 | FL5: 32 | FM5: 26 | FN5: 20 | FO5: 34 | FP5: 63 | FQ5: 42 | FR5: 13 | FS5: 147 | FT5: 11 | FU5: 6 | FV5: 86 | FW5: 12 | FX5: 42 | FY5: 41 | FZ5: 37 | GA5: 20 | GB5: 46 | GC5: 52 | GD5: 16 | GE5: 26 | GF5: 7 | GG5: 40 | GH5: 230 | GI5: 37 | GJ5: 28 | GK5: 36 | GL5: 11 | GM5: 36 | GN5: 15 | GO5: 43 | GP5: 39 | GQ5: 9 | GR5: 10 | GS5: 14 | GT5: 26 | GU5: 22 | GV5: 31 | GW5: 21 | GX5: 8 | GY5: 50 | GZ5: 58 | HA5: 12 | HB5: 30 | HC5: 26
B6: 10:00:00 | C6: 30 | D6: 51 | E6: 100 | F6: 42 | G6: 36 | H6: 218 | I6: 147 | J6: 221 | K6: 188 | L6: 100 | M6: 24 | N6: 17 | O6: 148 | P6: 189 | Q6: 198 | R6: 150 | S6: 50 | T6: 152 | U6: 144 | V6: 164 | W6: 183 | X6: 215 | Y6: 36 | Z6: 190 | AA6: 131 | AB6: 254 | AC6: 162 | AD6: 125 | AE6: 43 | AF6: 118 | AG6: 151 | AH6: 122 | AI6: 109 | AJ6: 155 | AK6: 36 | AL6: 228 | AM6: 116 | AN6: 210 | AO6: 173 | AP6: 139 | AQ6: 33 | AR6: 43 | AS6: 162 | AT6: 162 | AU6: 226 | AV6: 95 | AW6: 53 | AX6: 189 | AY6: 177 | AZ6: 124 | BA6: 227 | BB6: 219 | BC6: 75 | BD6: 185 | BE6: 174 | BF6: 258 | BG6: 235 | BH6: 171 | BI6: 74 | BJ6: 105 | BK6: 182 | BL6: 161 | BM6: 230 | BN6: 166 | BO6: 70 | BP6: 213 | BQ6: 179 | BR6: 176 | BS6: 232 | BT6: 219 | BU6: 30 | BV6: 216 | BW6: 155 | BX6: 211 | BY6: 215 | BZ6: 189 | CA6: 4 | CB6: 164 | CC6: 204 | CD6: 171 | CE6: 115 | CF6: 144 | CG6: 53 | CH6: 176 | CI6: 149 | CJ6: 173 | CK6: 104 | CL6: 147 | CM6: 62 | CN6: 137 | CO6: 132 | CP6: 141 | CQ6: 137 | CR6: 236 | CS6: 53 | CT6: 132 | CU6: 91 | CV6: 110 | CW6: 47 | CX6: 92 | CY6: 33 | CZ6: 64 | DA6: 3 | DB6: 15 | DC6: 4 | DD6: 5 | DE6: 4 | DG6: 18 | DH6: 5 | DI6: 15 | DJ6: 7 | DK6: 5 | DL6: 3 | DM6: 13 | DN6: 5 | DO6: 3 | DP6: 12 | DQ6: 19 | DR6: 24 | DS6: 17 | DT6: 8 | DU6: 2 | DV6: 17 | DW6: 36 | DX6: 6 | DY6: 11 | DZ6: 7 | EB6: 15 | EC6: 86 | ED6: 16 | EE6: 53 | EF6: 121 | EG6: 49 | EH6: 136 | EI6: 95 | EJ6: 23 | EK6: 49 | EL6: 71 | EM6: 59 | EN6: 87 | EO6: 42 | EP6: 21 | EQ6: 111 | ER6: 62 | ES6: 128 | ET6: 75 | EU6: 69 | EV6: 16 | EW6: 68 | EX6: 119 | EY6: 59 | EZ6: 108 | FA6: 69 | FB6: 8 | FC6: 76 | FD6: 113 | FE6: 89 | FF6: 173 | FG6: 52 | FH6: 52 | FI6: 90 | FJ6: 74 | FK6: 103 | FL6: 98 | FM6: 37 | FN6: 38 | FO6: 58 | FP6: 180 | FQ6: 72 | FR6: 70 | FS6: 100 | FT6: 15 | FU6: 37 | FV6: 68 | FW6: 37 | FX6: 90 | FY6: 53 | FZ6: 45 | GA6: 67 | GB6: 112 | GC6: 74 | GD6: 81 | GE6: 62 | GF6: 31 | GG6: 62 | GH6: 73 | GI6: 50 | GJ6: 45 | GK6: 66 | GL6: 36 | GM6: 122 | GN6: 61 | GO6: 63 | GP6: 68 | GQ6: 65 | GR6: 24 | GS6: 69 | GT6: 83 | GU6: 89 | GV6: 46 | GW6: 42 | GX6: 14 | GY6: 125 | GZ6: 78 | HA6: 9 | HB6: 70 | HC6: 133
B7: 11:00:00 | C7: 34 | D7: 95 | E7: 54 | F7: 73 | G7: 38 | H7: 186 | I7: 49 | J7: 188 | K7: 145 | L7: 212 | M7: 27 | N7: 45 | O7: 42 | P7: 120 | Q7: 171 | R7: 180 | S7: 57 | T7: 167 | U7: 52 | V7: 127 | W7: 234 | X7: 223 | Y7: 43 | Z7: 256 | AA7: 62 | AB7: 145 | AC7: 123 | AD7: 188 | AE7: 61 | AF7: 192 | AG7: 56 | AH7: 88 | AI7: 158 | AJ7: 231 | AK7: 65 | AL7: 187 | AM7: 30 | AN7: 146 | AO7: 145 | AP7: 169 | AQ7: 82 | AR7: 147 | AS7: 186 | AT7: 223 | AU7: 155 | AV7: 192 | AW7: 56 | AX7: 196 | AY7: 28 | AZ7: 182 | BA7: 198 | BB7: 168 | BC7: 92 | BD7: 178 | BE7: 47 | BF7: 200 | BG7: 148 | BH7: 159 | BI7: 86 | BJ7: 211 | BK7: 35 | BL7: 137 | BM7: 193 | BN7: 292 | BO7: 91 | BP7: 243 | BQ7: 39 | BR7: 170 | BS7: 188 | BT7: 253 | BU7: 83 | BV7: 189 | BW7: 42 | BX7: 144 | BY7: 169 | BZ7: 204 | CB7: 218 | CC7: 28 | CD7: 241 | CE7: 164 | CF7: 229 | CG7: 88 | CH7: 156 | CI7: 54 | CJ7: 154 | CK7: 235 | CL7: 149 | CM7: 34 | CN7: 127 | CO7: 174 | CP7: 183 | CQ7: 149 | CR7: 136 | CS7: 44 | CT7: 159 | CU7: 131 | CV7: 95 | CW7: 109 | CX7: 85 | CY7: 44 | CZ7: 136 | DA7: 17 | DB7: 1 | DC7: 4 | DD7: 6 | DE7: 9 | DG7: 19 | DH7: 15 | DI7: 9 | DJ7: 15 | DK7: 22 | DL7: 12 | DM7: 7 | DN7: 4 | DO7: 9 | DP7: 21 | DQ7: 9 | DR7: 14 | DS7: 8 | DT7: 13 | DU7: 15 | DV7: 10 | DW7: 19 | DX7: 12 | DY7: 2 | DZ7: 4 | EB7: 5 | EC7: 229 | ED7: 18 | EE7: 112 | EF7: 55 | EG7: 124 | EH7: 61 | EI7: 119 | EJ7: 97 | EK7: 127 | EL7: 55 | EM7: 87 | EN7: 83 | EO7: 107 | EP7: 18 | EQ7: 56 | ER7: 103 | ES7: 115 | ET7: 103 | EU7: 138 | EV7: 28 | EW7: 213 | EX7: 22 | EY7: 98 | EZ7: 103 | FA7: 87 | FB7: 41 | FC7: 90 | FD7: 86 | FE7: 92 | FF7: 104 | FG7: 49 | FH7: 49 | FI7: 100 | FJ7: 20 | FK7: 61 | FL7: 92 | FM7: 143 | FN7: 36 | FO7: 67 | FP7: 35 | FQ7: 49 | FR7: 100 | FS7: 50 | FT7: 39 | FU7: 63 | FV7: 32 | FW7: 53 | FX7: 80 | FY7: 156 | FZ7: 57 | GA7: 119 | GB7: 13 | GC7: 71 | GD7: 77 | GE7: 59 | GF7: 20 | GG7: 121 | GH7: 18 | GI7: 51 | GJ7: 135 | GK7: 71 | GL7: 22 | GM7: 83 | GN7: 99 | GO7: 123 | GP7: 44 | GQ7: 49 | GR7: 36 | GS7: 98 | GT7: 58 | GU7: 127 | GV7: 49 | GW7: 65 | GX7: 13 | GY7: 105 | GZ7: 48 | HA7: 84 | HB7: 48 | HC7: 104
B8: 12:00:00 | C8: 108 | D8: 69 | E8: 57 | F8: 51 | G8: 56 | H8: 148 | I8: 197 | J8: 142 | K8: 123 | L8: 162 | M8: 83 | N8: 79 | O8: 178 | P8: 158 | Q8: 127 | R8: 206 | S8: 59 | T8: 186 | U8: 158 | V8: 152 | W8: 230 | X8: 142 | Y8: 103 | Z8: 283 | AA8: 220 | AB8: 159 | AC8: 130 | AD8: 251 | AE8: 102 | AF8: 223 | AG8: 132 | AH8: 168 | AI8: 150 | AJ8: 118 | AK8: 74 | AL8: 196 | AM8: 166 | AN8: 160 | AO8: 115 | AP8: 198 | AQ8: 73 | AR8: 69 | AS8: 217 | AT8: 157 | AU8: 166 | AV8: 163 | AW8: 100 | AX8: 122 | AY8: 140 | AZ8: 181 | BA8: 213 | BB8: 154 | BC8: 75 | BD8: 151 | BE8: 195 | BF8: 209 | BG8: 111 | BH8: 190 | BI8: 94 | BJ8: 215 | BK8: 232 | BL8: 116 | BM8: 157 | BN8: 179 | BO8: 154 | BP8: 147 | BQ8: 183 | BR8: 185 | BS8: 337 | BT8: 220 | BU8: 133 | BV8: 170 | BW8: 232 | BX8: 204 | BY8: 157 | BZ8: 191 | CA8: 75 | CB8: 203 | CC8: 197 | CD8: 209 | CE8: 121 | CF8: 200 | CG8: 114 | CH8: 178 | CI8: 234 | CJ8: 155 | CK8: 154 | CL8: 145 | CM8: 59 | CN8: 220 | CO8: 102 | CP8: 209 | CQ8: 110 | CR8: 149 | CS8: 99 | CT8: 92 | CU8: 116 | CV8: 106 | CW8: 59 | CX8: 72 | CY8: 62 | CZ8: 146 | DA8: 5 | DB8: 17 | DC8: 20 | DD8: 12 | DE8: 4 | DG8: 8 | DH8: 18 | DI8: 18 | DJ8: 10 | DK8: 17 | DL8: 3 | DM8: 22 | DN8: 11 | DO8: 6 | DP8: 8 | DQ8: 15 | DR8: 9 | DS8: 11 | DT8: 7 | DU8: 21 | DV8: 3 | DW8: 14 | DX8: 8 | DY8: 1 | DZ8: 47 | EB8: 11 | EC8: 203 | ED8: 33 | EE8: 163 | EF8: 114 | EG8: 134 | EH8: 73 | EI8: 216 | EJ8: 65 | EK8: 205 | EL8: 123 | EM8: 133 | EN8: 95 | EO8: 155 | EP8: 57 | EQ8: 123 | ER8: 183 | ES8: 177 | ET8: 120 | EU8: 102 | EV8: 31 | EW8: 163 | EX8: 173 | EY8: 153 | EZ8: 96 | FA8: 121 | FB8: 21 | FC8: 184 | FD8: 104 | FE8: 171 | FF8: 255 | FG8: 88 | FH8: 88 | FI8: 188 | FJ8: 162 | FK8: 143 | FL8: 112 | FM8: 158 | FN8: 55 | FO8: 151 | FP8: 158 | FQ8: 166 | FR8: 122 | FS8: 117 | FT8: 16 | FU8: 103 | FV8: 26 | FW8: 141 | FX8: 132 | FY8: 131 | FZ8: 54 | GA8: 130 | GB8: 120 | GC8: 160 | GD8: 126 | GE8: 126 | GF8: 42 | GG8: 170 | GH8: 161 | GI8: 184 | GJ8: 125 | GK8: 188 | GL8: 28 | GM8: 151 | GN8: 67 | GO8: 190 | GP8: 137 | GQ8: 75 | GR8: 28 | GS8: 159 | GT8: 66 | GU8: 67 | GV8: 137 | GW8: 137 | GX8: 65 | GY8: 234 | GZ8: 139 | HA8: 47 | HB8: 39 | HC8: 74
B9: 13:00:00 | C9: 52 | D9: 73 | E9: 89 | F9: 93 | G9: 86 | H9: 191 | I9: 129 | J9: 136 | K9: 210 | L9: 215 | M9: 65 | N9: 67 | O9: 164 | P9: 208 | Q9: 186 | R9: 145 | S9: 101 | T9: 191 | U9: 150 | V9: 135 | W9: 181 | X9: 168 | Y9: 116 | Z9: 204 | AA9: 212 | AB9: 153 | AC9: 99 | AD9: 180 | AE9: 125 | AF9: 179 | AG9: 120 | AH9: 113 | AI9: 148 | AJ9: 166 | AK9: 107 | AL9: 171 | AM9: 146 | AN9: 109 | AO9: 136 | AP9: 135 | AQ9: 187 | AR9: 160 | AS9: 199 | AT9: 181 | AU9: 188 | AV9: 125 | AW9: 152 | AX9: 225 | AY9: 175 | AZ9: 112 | BA9: 126 | BB9: 161 | BC9: 110 | BD9: 264 | BE9: 159 | BF9: 181 | BG9: 153 | BH9: 201 | BI9: 105 | BJ9: 206 | BK9: 136 | BL9: 123 | BM9: 134 | BN9: 218 | BO9: 146 | BP9: 193 | BQ9: 198 | BR9: 141 | BS9: 215 | BT9: 190 | BU9: 129 | BV9: 192 | BW9: 215 | BX9: 223 | BY9: 198 | BZ9: 180 | CA9: 44 | CB9: 168 | CC9: 157 | CD9: 124 | CE9: 128 | CF9: 141 | CG9: 127 | CH9: 158 | CI9: 227 | CJ9: 154 | CK9: 162 | CL9: 116 | CM9: 164 | CN9: 124 | CO9: 104 | CP9: 92 | CQ9: 137 | CR9: 104 | CS9: 122 | CT9: 189 | CU9: 131 | CV9: 120 | CW9: 54 | CX9: 103 | CY9: 42 | CZ9: 90 | DA9: 5 | DB9: 7 | DC9: 12 | DD9: 2 | DE9: 9 | DG9: 11 | DH9: 18 | DI9: 13 | DJ9: 11 | DK9: 12 | DL9: 3 | DM9: 10 | DN9: 18 | DO9: 6 | DP9: 10 | DQ9: 17 | DR9: 11 | DS9: 25 | DT9: 13 | DU9: 12 | DV9: 5 | DW9: 17 | DX9: 16 | DY9: 1 | DZ9: 20 | EB9: 6 | EC9: 91 | ED9: 69 | EE9: 122 | EF9: 81 | EG9: 135 | EH9: 128 | EI9: 94 | EJ9: 52 | EK9: 119 | EL9: 154 | EM9: 103 | EN9: 96 | EO9: 67 | EP9: 41 | EQ9: 82 | ER9: 86 | ES9: 62 | ET9: 64 | EU9: 67 | EV9: 59 | EW9: 135 | EX9: 87 | EY9: 73 | EZ9: 97 | FA9: 124 | FB9: 40 | FC9: 161 | FD9: 149 | FE9: 136 | FF9: 78 | FG9: 55 | FH9: 55 | FI9: 119 | FJ9: 119 | FK9: 156 | FL9: 120 | FM9: 116 | FN9: 70 | FO9: 55 | FP9: 84 | FQ9: 67 | FR9: 74 | FS9: 74 | FT9: 35 | FU9: 173 | FV9: 14 | FW9: 153 | FX9: 54 | FY9: 91 | FZ9: 46 | GA9: 87 | GB9: 113 | GC9: 128 | GD9: 119 | GE9: 125 | GF9: 54 | GG9: 128 | GH9: 88 | GI9: 78 | GJ9: 61 | GK9: 73 | GL9: 39 | GM9: 61 | GN9: 130 | GO9: 178 | GP9: 90 | GQ9: 129 | GR9: 24 | GS9: 161 | GT9: 157 | GU9: 140 | GV9: 74 | GW9: 54 | GX9: 9 | GY9: 105 | GZ9: 156 | HA9: 149 | HB9: 125 | HC9: 123
B10: 14:00:00 | C10: 142 | D10: 66 | E10: 62 | F10: 105 | G10: 57 | H10: 215 | I10: 154 | J10: 186 | K10: 186 | L10: 200 | M10: 92 | N10: 101 | O10: 135 | P10: 138 | Q10: 91 | R10: 160 | S10: 98 | T10: 134 | U10: 153 | V10: 116 | W10: 218 | X10: 224 | Y10: 144 | Z10: 235 | AA10: 201 | AB10: 156 | AC10: 144 | AD10: 238 | AE10: 148 | AF10: 141 | AG10: 158 | AH10: 137 | AI10: 128 | AJ10: 205 | AK10: 100 | AL10: 229 | AM10: 209 | AN10: 144 | AO10: 178 | AP10: 277 | AQ10: 92 | AR10: 103 | AS10: 196 | AT10: 203 | AU10: 154 | AV10: 214 | AW10: 155 | AX10: 190 | AY10: 198 | AZ10: 191 | BA10: 162 | BB10: 123 | BC10: 102 | BD10: 227 | BE10: 220 | BF10: 147 | BG10: 214 | BH10: 258 | BI10: 127 | BJ10: 186 | BK10: 282 | BL10: 158 | BM10: 219 | BN10: 223 | BO10: 143 | BP10: 176 | BQ10: 181 | BR10: 184 | BS10: 166 | BT10: 302 | BU10: 115 | BV10: 237 | BW10: 180 | BX10: 172 | BY10: 279 | BZ10: 151 | CB10: 161 | CC10: 126 | CD10: 125 | CE10: 233 | CF10: 158 | CG10: 137 | CH10: 265 | CI10: 210 | CJ10: 156 | CK10: 206 | CL10: 172 | CM10: 164 | CN10: 130 | CO10: 157 | CP10: 113 | CQ10: 139 | CR10: 116 | CS10: 57 | CT10: 114 | CU10: 139 | CV10: 104 | CW10: 41 | CX10: 41 | CY10: 30 | CZ10: 104 | DA10: 5 | DB10: 13 | DC10: 21 | DD10: 6 | DE10: 8 | DG10: 25 | DH10: 22 | DI10: 12 | DJ10: 13 | DK10: 9 | DL10: 14 | DM10: 5 | DN10: 21 | DO10: 13 | DP10: 4 | DQ10: 4 | DR10: 4 | DS10: 9 | DT10: 13 | DU10: 3 | DV10: 19 | DW10: 10 | DX10: 16 | DY10: 10 | DZ10: 29 | EB10: 15 | EC10: 105 | ED10: 65 | EE10: 105 | EF10: 75 | EG10: 141 | EH10: 81 | EI10: 104 | EJ10: 62 | EK10: 130 | EL10: 86 | EM10: 216 | EN10: 73 | EO10: 72 | EP10: 92 | EQ10: 147 | ER10: 103 | ES10: 59 | ET10: 192 | EU10: 64 | EV10: 32 | EW10: 97 | EX10: 84 | EY10: 48 | EZ10: 115 | FA10: 95 | FB10: 26 | FC10: 80 | FD10: 90 | FE10: 85 | FF10: 60 | FG10: 70 | FH10: 70 | FI10: 107 | FJ10: 100 | FK10: 101 | FL10: 91 | FM10: 65 | FN10: 48 | FO10: 57 | FP10: 91 | FQ10: 78 | FR10: 74 | FS10: 118 | FT10: 50 | FU10: 60 | FV10: 61 | FW10: 146 | FX10: 65 | FY10: 58 | FZ10: 98 | GA10: 139 | GB10: 75 | GC10: 57 | GD10: 66 | GE10: 83 | GF10: 38 | GG10: 111 | GH10: 99 | GI10: 92 | GJ10: 112 | GK10: 77 | GL10: 16 | GM10: 64 | GN10: 83 | GO10: 100 | GP10: 83 | GQ10: 101 | GR10: 47 | GS10: 47 | GT10: 76 | GU10: 97 | GV10: 25 | GW10: 65 | GX10: 13 | GY10: 66 | GZ10: 87 | HA10: 84 | HB10: 76 | HC10: 88
B11: 15:00:00 | C11: 78 | D11: 96 | E11: 81 | F11: 72 | G11: 123 | H11: 355 | I11: 147 | J11: 231 | K11: 142 | L11: 193 | M11: 108 | N11: 72 | O11: 195 | P11: 122 | Q11: 146 | R11: 195 | S11: 140 | T11: 223 | U11: 146 | V11: 175 | W11: 182 | X11: 199 | Y11: 120 | Z11: 232 | AA11: 173 | AB11: 236 | AC11: 148 | AD11: 182 | AE11: 109 | AF11: 132 | AG11: 257 | AH11: 177 | AI11: 163 | AJ11: 155 | AK11: 101 | AL11: 173 | AM11: 211 | AN11: 224 | AO11: 208 | AP11: 251 | AQ11: 100 | AR11: 82 | AS11: 169 | AT11: 166 | AU11: 175 | AV11: 217 | AW11: 169 | AX11: 304 | AY11: 273 | AZ11: 165 | BA11: 210 | BB11: 188 | BC11: 135 | BD11: 289 | BE11: 235 | BF11: 162 | BG11: 196 | BH11: 218 | BI11: 96 | BJ11: 255 | BK11: 420 | BL11: 139 | BM11: 230 | BN11: 200 | BO11: 185 | BP11: 319 | BQ11: 224 | BR11: 216 | BS11: 194 | BT11: 233 | BU11: 153 | BV11: 273 | BW11: 297 | BX11: 201 | BY11: 198 | BZ11: 209 | CB11: 267 | CC11: 239 | CD11: 183 | CE11: 139 | CF11: 107 | CG11: 116 | CH11: 285 | CI11: 251 | CJ11: 141 | CK11: 153 | CL11: 203 | CM11: 153 | CN11: 175 | CO11: 149 | CP11: 139 | CQ11: 119 | CR11: 138 | CS11: 97 | CT11: 157 | CU11: 109 | CV11: 71 | CW11: 17 | CX11: 51 | CY11: 53 | CZ11: 86 | DA11: 1 | DB11: 15 | DC11: 7 | DD11: 12 | DE11: 2 | DG11: 14 | DH11: 21 | DI11: 30 | DJ11: 6 | DK11: 22 | DL11: 12 | DM11: 26 | DN11: 5 | DO11: 15 | DP11: 17 | DQ11: 13 | DR11: 9 | DS11: 10 | DT11: 7 | DU11: 14 | DV11: 5 | DW11: 2 | DX11: 16 | DY11: 4 | EB11: 9 | EC11: 151 | ED11: 85 | EE11: 184 | EF11: 148 | EG11: 174 | EH11: 90 | EI11: 114 | EJ11: 74 | EK11: 104 | EL11: 77 | EM11: 89 | EN11: 81 | EO11: 118 | EP11: 60 | EQ11: 78 | ER11: 140 | ES11: 88 | ET11: 93 | EU11: 56 | EV11: 19 | EW11: 129 | EX11: 108 | EY11: 111 | EZ11: 87 | FA11: 64 | FB11: 36 | FC11: 141 | FD11: 130 | FE11: 151 | FF11: 104 | FG11: 38 | FH11: 38 | FI11: 86 | FJ11: 78 | FK11: 108 | FL11: 84 | FM11: 79 | FN11: 66 | FO11: 129 | FP11: 161 | FQ11: 85 | FR11: 74 | FS11: 95 | FT11: 50 | FU11: 139 | FV11: 34 | FW11: 72 | FX11: 125 | FY11: 75 | FZ11: 61 | GA11: 119 | GB11: 71 | GC11: 80 | GD11: 122 | GE11: 75 | GF11: 69 | GG11: 139 | GH11: 66 | GI11: 108 | GJ11: 79 | GK11: 73 | GL11: 33 | GM11: 164 | GN11: 75 | GO11: 61 | GP11: 57 | GQ11: 62 | GR11: 55 | GS11: 83 | GT11: 33 | GU11: 85 | GV11: 57 | GW11: 36 | GX11: 71 | GY11: 52 | GZ11: 108 | HA11: 64 | HB11: 44 | HC11: 68
B12: 16:00:00 | C12: 101 | D12: 102 | E12: 71 | F12: 78 | G12: 107 | H12: 224 | I12: 128 | J12: 222 | K12: 144 | L12: 204 | M12: 101 | N12: 85 | O12: 183 | P12: 110 | Q12: 135 | R12: 179 | S12: 144 | T12: 201 | U12: 187 | V12: 184 | W12: 124 | X12: 166 | Y12: 123 | Z12: 198 | AA12: 257 | AB12: 195 | AC12: 153 | AD12: 171 | AE12: 131 | AF12: 192 | AG12: 222 | AH12: 181 | AI12: 154 | AJ12: 119 | AK12: 115 | AL12: 236 | AM12: 144 | AN12: 130 | AO12: 148 | AP12: 160 | AQ12: 157 | AR12: 128 | AS12: 199 | AT12: 163 | AU12: 156 | AV12: 222 | AW12: 203 | AX12: 206 | AY12: 293 | AZ12: 218 | BA12: 176 | BB12: 179 | BC12: 126 | BD12: 189 | BE12: 224 | BF12: 149 | BG12: 183 | BH12: 162 | BI12: 219 | BJ12: 291 | BK12: 299 | BL12: 380 | BM12: 238 | BN12: 180 | BO12: 163 | BP12: 245 | BQ12: 233 | BR12: 167 | BS12: 192 | BT12: 225 | BU12: 170 | BV12: 232 | BW12: 246 | BX12: 233 | BY12: 263 | BZ12: 148 | CA12: 56 | CB12: 278 | CC12: 254 | CD12: 172 | CE12: 145 | CF12: 151 | CG12: 128 | CH12: 263 | CI12: 200 | CJ12: 204 | CK12: 135 | CL12: 159 | CM12: 167 | CN12: 143 | CO12: 128 | CP12: 139 | CQ12: 146 | CR12: 153 | CS12: 133 | CT12: 124 | CU12: 144 | CV12: 104 | CW12: 52 | CX12: 65 | CY12: 26 | CZ12: 90 | DA12: 13 | DB12: 4 | DC12: 11 | DD12: 26 | DE12: 7 | DG12: 5 | DH12: 8 | DI12: 9 | DJ12: 13 | DK12: 6 | DL12: 8 | DM12: 7 | DN12: 14 | DO12: 15 | DP12: 3 | DQ12: 15 | DR12: 5 | DS12: 13 | DT12: 8 | DU12: 3 | DV12: 5 | DW12: 15 | DX12: 5 | DY12: 5 | EB12: 6 | EC12: 102 | ED12: 48 | EE12: 113 | EF12: 80 | EG12: 85 | EH12: 122 | EI12: 108 | EJ12: 85 | EK12: 105 | EL12: 96 | EM12: 125 | EN12: 78 | EO12: 138 | EP12: 57 | EQ12: 92 | ER12: 81 | ES12: 96 | ET12: 76 | EU12: 73 | EV12: 37 | EW12: 94 | EX12: 82 | EY12: 36 | EZ12: 127 | FA12: 82 | FB12: 57 | FC12: 108 | FD12: 93 | FE12: 119 | FF12: 89 | FG12: 34 | FH12: 34 | FI12: 142 | FJ12: 129 | FK12: 70 | FL12: 112 | FM12: 95 | FN12: 89 | FO12: 127 | FP12: 49 | FQ12: 109 | FR12: 104 | FS12: 152 | FT12: 22 | FU12: 75 | FV12: 13 | FW12: 139 | FX12: 68 | FY12: 69 | FZ12: 58 | GA12: 97 | GB12: 152 | GC12: 78 | GD12: 118 | GE12: 79 | GF12: 99 | GG12: 72 | GH12: 107 | GI12: 56 | GJ12: 64 | GK12: 78 | GL12: 119 | GM12: 59 | GN12: 98 | GO12: 47 | GP12: 32 | GQ12: 67 | GR12: 93 | GS12: 84 | GT12: 47 | GU12: 61 | GV12: 67 | GW12: 85 | GX12: 49 | GY12: 91 | GZ12: 115 | HA12: 96 | HB12: 58 | HC12: 123
B13: 17:00:00 | C13: 93 | D13: 87 | E13: 73 | F13: 121 | G13: 124 | H13: 195 | I13: 136 | J13: 130 | K13: 93 | L13: 125 | M13: 110 | N13: 53 | O13: 215 | P13: 174 | Q13: 124 | R13: 128 | S13: 106 | T13: 143 | U13: 169 | V13: 165 | W13: 127 | X13: 136 | Y13: 119 | Z13: 193 | AA13: 202 | AB13: 126 | AC13: 117 | AD13: 137 | AE13: 130 | AF13: 175 | AG13: 174 | AH13: 118 | AI13: 102 | AJ13: 157 | AK13: 168 | AL13: 213 | AM13: 124 | AN13: 139 | AO13: 140 | AP13: 125 | AQ13: 167 | AR13: 120 | AS13: 208 | AT13: 150 | AU13: 207 | AV13: 181 | AW13: 194 | AX13: 171 | AY13: 157 | AZ13: 177 | BA13: 121 | BB13: 168 | BC13: 158 | BD13: 200 | BE13: 155 | BF13: 153 | BG13: 180 | BH13: 104 | BI13: 104 | BJ13: 411 | BK13: 177 | BL13: 206 | BM13: 274 | BN13: 151 | BO13: 125 | BP13: 276 | BQ13: 209 | BR13: 197 | BS13: 185 | BT13: 164 | BU13: 164 | BV13: 290 | BW13: 290 | BX13: 182 | BY13: 179 | BZ13: 226 | CA13: 37 | CB13: 212 | CC13: 299 | CD13: 169 | CE13: 125 | CF13: 179 | CG13: 110 | CH13: 177 | CI13: 161 | CJ13: 150 | CK13: 136 | CL13: 168 | CM13: 155 | CN13: 157 | CO13: 108 | CP13: 118 | CQ13: 110 | CR13: 139 | CS13: 73 | CT13: 120 | CU13: 96 | CV13: 100 | CW13: 28 | CX13: 98 | CY13: 89 | CZ13: 78 | DA13: 6 | DB13: 4 | DC13: 17 | DD13: 10 | DE13: 5 | DG13: 37 | DH13: 7 | DI13: 10 | DJ13: 2 | DK13: 5 | DL13: 8 | DM13: 10 | DN13: 8 | DO13: 7 | DP13: 16 | DQ13: 8 | DR13: 2 | DS13: 13 | DT13: 5 | DU13: 8 | DV13: 13 | DW13: 9 | DX13: 3 | DY13: 6 | EA13: 4 | EB13: 14 | EC13: 101 | ED13: 64 | EE13: 113 | EF13: 92 | EG13: 72 | EH13: 90 | EI13: 125 | EJ13: 82 | EK13: 127 | EL13: 129 | EM13: 157 | EN13: 126 | EO13: 101 | EP13: 54 | EQ13: 105 | ER13: 52 | ES13: 45 | ET13: 69 | EU13: 57 | EV13: 56 | EW13: 81 | EX13: 42 | EY13: 97 | EZ13: 94 | FA13: 67 | FB13: 52 | FC13: 54 | FD13: 72 | FE13: 66 | FF13: 80 | FG13: 58 | FH13: 58 | FI13: 162 | FJ13: 65 | FK13: 99 | FL13: 106 | FM13: 111 | FN13: 55 | FO13: 111 | FP13: 75 | FQ13: 114 | FR13: 82 | FS13: 89 | FT13: 41 | FU13: 127 | FV13: 8 | FW13: 72 | FX13: 65 | FY13: 58 | FZ13: 17 | GA13: 104 | GB13: 72 | GC13: 94 | GD13: 82 | GE13: 69 | GF13: 104 | GG13: 110 | GH13: 58 | GI13: 93 | GJ13: 31 | GK13: 93 | GL13: 33 | GM13: 66 | GN13: 52 | GO13: 64 | GP13: 39 | GQ13: 50 | GR13: 35 | GS13: 94 | GT13: 99 | GU13: 74 | GV13: 72 | GW13: 65 | GX13: 68 | GY13: 68 | GZ13: 140 | HA13: 140 | HB13: 100 | HC13: 144
B14: 18:00:00 | H14: 128 | I14: 95 | J14: 80 | K14: 76 | L14: 43 | M14: 60 | N14: 48 | O14: 134 | P14: 127 | Q14: 106 | R14: 93 | S14: 93 | T14: 142 | U14: 129 | V14: 103 | W14: 70 | X14: 53 | Y14: 77 | Z14: 127 | AA14: 135 | AB14: 79 | AC14: 115 | AD14: 46 | AE14: 93 | AF14: 146 | AG14: 76 | AH14: 127 | AI14: 92 | AJ14: 99 | AK14: 159 | AL14: 127 | AM14: 115 | AN14: 89 | AO14: 123 | AP14: 45 | AQ14: 61 | AR14: 102 | AS14: 178 | AT14: 100 | AU14: 117 | AV14: 81 | AW14: 85 | AX14: 213 | AY14: 165 | AZ14: 125 | BA14: 66 | BB14: 55 | BC14: 141 | BD14: 154 | BE14: 102 | BF14: 124 | BG14: 135 | BH14: 107 | BI14: 156 | BJ14: 262 | BK14: 117 | BL14: 156 | BM14: 146 | BN14: 109 | BO14: 140 | BP14: 180 | BQ14: 172 | BR14: 105 | BS14: 145 | BT14: 69 | BU14: 154 | BV14: 205 | BW14: 169 | BX14: 144 | BY14: 199 | BZ14: 94 | CA14: 35 | CB14: 218 | CC14: 163 | CD14: 161 | CE14: 126 | CF14: 68 | CG14: 80 | CH14: 141 | CI14: 121 | CJ14: 157 | CK14: 64 | CL14: 58 | CM14: 114 | CN14: 152 | CO14: 71 | CP14: 104 | CQ14: 89 | CR14: 94 | CS14: 104 | CT14: 99 | CU14: 63 | CV14: 52 | CW14: 16 | DA14: 1 | DB14: 12 | DC14: 9 | DD14: 7 | DE14: 1 | DG14: 9 | DH14: 1 | DI14: 1 | DJ14: 17 | DK14: 12 | DL14: 4 | DM14: 19 | DN14: 5 | DO14: 14 | DP14: 14 | DQ14: 5 | DR14: 3 | DS14: 6 | DT14: 7 | DU14: 9 | DV14: 8 | DW14: 5 | DX14: 2 | DY14: 4 | EA14: 105 | EB14: 4 | EC14: 66 | ED14: 115 | EE14: 128 | EF14: 57 | EG14: 102 | EH14: 55 | EI14: 62 | EJ14: 46 | EK14: 85 | EL14: 41 | EM14: 96 | EN14: 63 | EO14: 72 | EP14: 48 | EQ14: 97 | ER14: 54 | ES14: 45 | ET14: 36 | EW14: 53 | EX14: 30 | EY14: 62 | EZ14: 41 | FA14: 48 | FB14: 31 | FC14: 77 | FD14: 59 | FE14: 70 | FF14: 55 | FG14: 20 | FH14: 20 | FI14: 105 | FJ14: 62 | FK14: 27 | FL14: 43 | FM14: 47 | FN14: 47 | FO14: 104 | FP14: 76 | FQ14: 82 | FR14: 64 | FS14: 36 | FT14: 25 | FU14: 129 | FV14: 2 | FW14: 131 | FX14: 37 | FY14: 45 | FZ14: 28 | GA14: 56 | GB14: 38 | GC14: 62 | GD14: 41 | GE14: 26 | GF14: 42 | GG14: 90 | GH14: 69 | GI14: 60 | GJ14: 57 | GK14: 43 | GL14: 33 | GM14: 28 | GN14: 43 | GO14: 36 | GP14: 28 | GT14: 36 | GU14: 52 | GV14: 27 | HA14: 109
B15: 19:00:00 | H15: 56 | I15: 80 | J15: 95 | K15: 89 | L15: 20 | M15: 38 | N15: 18 | O15: 72 | P15: 56 | Q15: 83 | R15: 69 | S15: 54 | T15: 79 | U15: 96 | V15: 90 | W15: 68 | X15: 26 | Y15: 84 | Z15: 127 | AA15: 81 | AB15: 78 | AC15: 49 | AD15: 35 | AE15: 50 | AF15: 101 | AG15: 142 | AH15: 55 | AI15: 58 | AJ15: 55 | AK15: 87 | AL15: 105 | AM15: 91 | AN15: 30 | AO15: 77 | AP15: 68 | AQ15: 91 | AR15: 71 | AS15: 100 | AT15: 68 | AU15: 76 | AV15: 31 | AW15: 107 | AX15: 99 | AY15: 97 | AZ15: 72 | BA15: 77 | BB15: 65 | BC15: 77 | BD15: 114 | BE15: 107 | BF15: 87 | BG15: 98 | BH15: 65 | BI15: 60 | BJ15: 138 | BK15: 117 | BL15: 103 | BM15: 89 | BN15: 73 | BO15: 113 | BP15: 128 | BQ15: 141 | BR15: 103 | BS15: 139 | BT15: 85 | BU15: 116 | BV15: 143 | BW15: 169 | BX15: 185 | BY15: 129 | BZ15: 31 | CA15: 42 | CB15: 138 | CC15: 143 | CD15: 109 | CE15: 103 | CF15: 49 | CG15: 99 | CH15: 146 | CI15: 153 | CJ15: 75 | CK15: 100 | CL15: 54 | CM15: 97 | CN15: 88 | CO15: 56 | CP15: 87 | CQ15: 37 | CR15: 42 | CS15: 73 | CT15: 67 | CU15: 68 | CV15: 38 | CW15: 21 | DA15: 7 | DB15: 4 | DC15: 1 | DD15: 1 | DG15: 2 | DH15: 10 | DI15: 5 | DJ15: 7 | DK15: 1 | DL15: 4 | DM15: 6 | DN15: 5 | DO15: 6 | DP15: 10 | DQ15: 3 | DR15: 9 | DS15: 5 | DT15: 22 | DU15: 1 | DV15: 5 | DW15: 1 | EA15: 8 | EB15: 4 | EC15: 19 | ED15: 66 | EE15: 95 | EF15: 49 | EG15: 54 | EH15: 38 | EI15: 6 | EJ15: 13 | EK15: 41 | EL15: 49 | EM15: 67 | EN15: 56 | EO15: 37 | EP15: 25 | EQ15: 38 | ER15: 58 | ES15: 24 | ET15: 34 | EW15: 25 | EX15: 29 | EY15: 63 | EZ15: 42 | FA15: 34 | FB15: 15 | FC15: 66 | FD15: 31 | FE15: 23 | FF15: 33 | FG15: 30 | FH15: 30 | FI15: 64 | FJ15: 41 | FK15: 30 | FL15: 38 | FM15: 31 | FN15: 42 | FO15: 40 | FP15: 50 | FQ15: 46 | FR15: 60 | FS15: 27 | FT15: 22 | FU15: 82 | FW15: 30 | FX15: 60 | FY15: 31 | FZ15: 28 | GA15: 16 | GB15: 47 | GC15: 49 | GD15: 51 | GE15: 31 | GF15: 24 | GG15: 67 | GH15: 45 | GI15: 45 | GJ15: 46 | GK15: 16 | GL15: 18 | GM15: 25 | GN15: 35 | GO15: 18 | GP15: 16 | GT15: 27 | GU15: 19 | GV15: 13
B16: 20:00:00 | H16: 26 | I16: 54 | J16: 42 | K16: 54 | L16: 35 | M16: 36 | N16: 13 | O16: 95 | P16: 88 | Q16: 55 | R16: 35 | S16: 55 | T16: 80 | U16: 57 | V16: 61 | W16: 59 | X16: 34 | Y16: 40 | Z16: 58 | AA16: 87 | AB16: 87 | AC16: 48 | AD16: 18 | AE16: 49 | AF16: 71 | AG16: 75 | AH16: 95 | AI16: 71 | AJ16: 28 | AK16: 33 | AL16: 82 | AM16: 89 | AN16: 62 | AO16: 48 | AP16: 32 | AQ16: 61 | AR16: 35 | AS16: 95 | AT16: 64 | AU16: 57 | AV16: 55 | AW16: 46 | AX16: 96 | AY16: 75 | AZ16: 66 | BA16: 78 | BB16: 53 | BC16: 43 | BD16: 79 | BE16: 148 | BF16: 89 | BG16: 98 | BH16: 46 | BI16: 52 | BJ16: 97 | BK16: 85 | BL16: 109 | BM16: 90 | BN16: 62 | BO16: 87 | BP16: 137 | BQ16: 125 | BR16: 96 | BS16: 104 | BT16: 68 | BU16: 105 | BV16: 75 | BW16: 136 | BX16: 135 | BY16: 124 | BZ16: 73 | CA16: 61 | CB16: 109 | CC16: 100 | CD16: 98 | CE16: 76 | CF16: 41 | CG16: 42 | CH16: 144 | CI16: 130 | CJ16: 100 | CK16: 107 | CL16: 47 | CM16: 91 | CN16: 75 | CO16: 52 | CP16: 53 | CQ16: 98 | CR16: 58 | CS16: 71 | CT16: 43 | CU16: 31 | CV16: 47 | DA16: 5 | DB16: 8 | DC16: 5 | DD16: 8 | DG16: 8 | DH16: 9 | DI16: 4 | DJ16: 3 | DK16: 6 | DL16: 3 | DM16: 7 | DN16: 6 | DO16: 6 | DP16: 2 | DQ16: 6 | DR16: 2 | DS16: 8 | DU16: 5 | DV16: 10 | DW16: 4 | EA16: 1 | EB16: 11 | EC16: 66 | ED16: 24 | EE16: 59 | EF16: 49 | EG16: 36 | EH16: 97 | EI16: 15 | EJ16: 33 | EK16: 56 | EL16: 38 | EM16: 43 | EN16: 24 | EO16: 6 | EP16: 40 | EQ16: 45 | ER16: 54 | ES16: 29 | ET16: 23 | EW16: 37 | EX16: 31 | EY16: 51 | EZ16: 44 | FA16: 9 | FB16: 51 | FC16: 33 | FD16: 36 | FE16: 28 | FF16: 16 | FG16: 37 | FH16: 37 | FI16: 54 | FJ16: 69 | FK16: 82 | FL16: 55 | FM16: 10 | FN16: 27 | FO16: 48 | FP16: 60 | FQ16: 21 | FR16: 27 | FS16: 37 | FT16: 6 | FU16: 55 | FW16: 13 | FX16: 44 | FY16: 32 | FZ16: 18 | GA16: 46 | GB16: 47 | GC16: 63 | GD16: 45 | GE16: 13 | GF16: 62 | GG16: 40 | GH16: 27 | GI16: 36 | GJ16: 28 | GK16: 40 | GL16: 37 | GM16: 50 | GN16: 35 | GO16: 20 | GT16: 62 | GU16: 30 | GV16: 43
B17: 21:00:00 | H17: 59 | I17: 53 | J17: 61 | K17: 51 | L17: 30 | M17: 23 | N17: 11 | O17: 70 | P17: 42 | Q17: 61 | R17: 23 | S17: 56 | T17: 60 | U17: 52 | V17: 74 | W17: 129 | X17: 14 | Y17: 54 | Z17: 112 | AA17: 111 | AB17: 81 | AC17: 45 | AD17: 8 | AE17: 53 | AF17: 82 | AG17: 64 | AH17: 110 | AI17: 91 | AJ17: 47 | AK17: 59 | AL17: 35 | AM17: 97 | AN17: 70 | AO17: 75 | AP17: 31 | AQ17: 85 | AR17: 76 | AS17: 128 | AT17: 112 | AU17: 114 | AV17: 40 | AW17: 68 | AX17: 91 | AY17: 117 | AZ17: 83 | BA17: 51 | BB17: 42 | BC17: 68 | BD17: 82 | BE17: 119 | BF17: 76 | BG17: 96 | BH17: 21 | BI17: 41 | BJ17: 177 | BK17: 158 | BL17: 109 | BM17: 105 | BN17: 50 | BO17: 89 | BP17: 147 | BQ17: 201 | BR17: 101 | BS17: 77 | BT17: 40 | BU17: 101 | BV17: 186 | BW17: 175 | BX17: 145 | BY17: 125 | BZ17: 93 | CA17: 74 | CB17: 166 | CC17: 171 | CD17: 100 | CE17: 106 | CF17: 89 | CG17: 172 | CH17: 155 | CI17: 143 | CJ17: 136 | CK17: 69 | CL17: 78 | CM17: 101 | CN17: 89 | CO17: 59 | CP17: 55 | CQ17: 70 | CR17: 54 | CS17: 78 | CT17: 62 | CU17: 51 | CV17: 75 | DB17: 1 | DD17: 5 | DG17: 1 | DH17: 1 | DJ17: 1 | DK17: 2 | DL17: 23 | DM17: 7 | DN17: 5 | DO17: 4 | DP17: 8 | DQ17: 3 | DS17: 13 | DU17: 4 | DV17: 13 | DW17: 1 | EA17: 2 | EB17: 8 | EC17: 20 | ED17: 23 | EE17: 55 | EF17: 31 | EG17: 57 | EH17: 39 | EI17: 16 | EJ17: 23 | EK17: 25 | EL17: 98 | EM17: 49 | EN17: 25 | EO17: 33 | EP17: 95 | EQ17: 24 | ER17: 42 | ES17: 38 | ET17: 44 | EW17: 17 | EX17: 28 | EY17: 29 | EZ17: 28 | FA17: 13 | FB17: 43 | FC17: 45 | FD17: 39 | FE17: 65 | FF17: 8 | FG17: 34 | FH17: 34 | FI17: 56 | FJ17: 35 | FK17: 40 | FL17: 18 | FM17: 4 | FN17: 26 | FO17: 39 | FP17: 48 | FQ17: 72 | FR17: 21 | FS17: 3 | FT17: 9 | FU17: 51 | FW17: 37 | FX17: 30 | FY17: 30 | FZ17: 1 | GA17: 48 | GB17: 28 | GC17: 36 | GD17: 57 | GE17: 11 | GF17: 39 | GG17: 31 | GH17: 85 | GI17: 37 | GJ17: 29 | GK17: 19 | GL17: 10 | GM17: 30 | GN17: 35 | GO17: 11 | GT17: 34 | GU17: 29 | GV17: 27
B18: 22:00:00 | H18: 55 | I18: 27 | J18: 41 | K18: 36 | L18: 22 | M18: 26 | O18: 51 | P18: 57 | Q18: 38 | R18: 9 | S18: 39 | T18: 70 | U18: 72 | V18: 45 | W18: 56 | X18: 13 | Y18: 79 | Z18: 75 | AA18: 122 | AB18: 85 | AC18: 64 | AD18: 41 | AE18: 76 | AF18: 56 | AG18: 66 | AH18: 87 | AI18: 48 | AJ18: 49 | AK18: 71 | AL18: 106 | AM18: 69 | AN18: 40 | AO18: 89 | AP18: 53 | AQ18: 43 | AS18: 88 | AT18: 109 | AU18: 103 | AV18: 81 | AW18: 69 | AX18: 139 | AY18: 140 | AZ18: 80 | BA18: 63 | BB18: 49 | BC18: 51 | BD18: 115 | BE18: 132 | BF18: 160 | BG18: 166 | BH18: 51 | BI18: 76 | BJ18: 145 | BK18: 254 | BL18: 130 | BM18: 48 | BN18: 53 | BO18: 167 | BP18: 208 | BQ18: 183 | BR18: 98 | BS18: 99 | BT18: 93 | BU18: 185 | BV18: 207 | BW18: 194 | BX18: 237 | BY18: 114 | BZ18: 63 | CA18: 95 | CB18: 212 | CC18: 248 | CD18: 89 | CE18: 83 | CF18: 72 | CG18: 1 | CH18: 164 | CI18: 156 | CJ18: 186 | CK18: 65 | CL18: 68 | CM18: 144 | CN18: 241 | CO18: 99 | CP18: 80 | CQ18: 82 | CR18: 42 | CS18: 112 | CT18: 52 | CU18: 91 | DB18: 3 | DD18: 1 | DG18: 1 | DJ18: 3 | DM18: 14 | DN18: 5 | DO18: 16 | DP18: 2 | EA18: 3 | EC18: 11 | ED18: 59 | EE18: 42 | EF18: 41 | EG18: 18 | EH18: 57 | EI18: 33 | EK18: 67 | EL18: 60 | EM18: 61 | EN18: 30 | EO18: 61 | EP18: 57 | EQ18: 49 | ER18: 61 | ES18: 47 | EW18: 31 | EX18: 27 | EY18: 28 | EZ18: 32 | FA18: 10 | FB18: 39 | FC18: 41 | FD18: 47 | FE18: 25 | FF18: 20 | FI18: 30 | FJ18: 70 | FK18: 24 | FL18: 23 | FM18: 35 | FN18: 1 | FO18: 37 | FP18: 44 | FQ18: 62 | FR18: 45 | FS18: 23 | FT18: 40 | FU18: 17 | FW18: 28 | FX18: 38 | FY18: 9 | GA18: 29 | GB18: 46 | GC18: 42 | GD18: 12 | GE18: 8 | GF18: 93 | GG18: 50 | GH18: 41 | GI18: 44 | GJ18: 20 | GK18: 13 | GL18: 8 | GM18: 20 | GN18: 25 | GO18: 4
B19: 23:00:00 | H19: 1 | I19: 12 | K19: 5 | O19: 4 | Q19: 9 | S19: 7 | T19: 1 | U19: 1 | W19: 1 | Y19: 9 | Z19: 3 | AA19: 5 | AB19: 5 | AD19: 3 | AE19: 4 | AF19: 2 | AH19: 3 | AI19: 7 | AK19: 4 | AL19: 3 | AP19: 8 | AQ19: 1 | AS19: 3 | AT19: 4 | AU19: 2 | AW19: 1 | AX19: 2 | AY19: 1 | AZ19: 7 | BC19: 6 | BD19: 1 | BE19: 8 | BF19: 2 | BG19: 1 | BH19: 7 | BI19: 2 | BJ19: 11 | BK19: 18 | BL19: 1 | BN19: 4 | BO19: 6 | BP19: 4 | BQ19: 4 | BS19: 1 | BU19: 1 | BW19: 7 | BX19: 10 | BY19: 9 | CA19: 7 | CB19: 29 | CC19: 2 | CD19: 16 | CE19: 9 | CF19: 9 | CH19: 32 | CI19: 10 | CJ19: 7 | CK19: 10 | CL19: 2 | CM19: 10 | CN19: 14 | CO19: 18 | CP19: 1 | CQ19: 7 | CR19: 3 | CS19: 19 | CT19: 8 | CU19: 2 | DO19: 4 | EC19: 4 | EF19: 6 | EH19: 2 | EI19: 1 | EK19: 6 | EL19: 5 | EO19: 6 | EQ19: 5 | ES19: 1 | EW19: 2 | EY19: 4 | FB19: 1 | FC19: 4 | FD19: 1 | FF19: 3 | FI19: 1 | FJ19: 1 | FL19: 6 | FQ19: 1 | FU19: 29 | FW19: 42 | FY19: 1 | GC19: 1 | GE19: 4 | GF19: 1 | GG19: 1 | GK19: 5 | GM19: 2 | GN19: 3 | GO19: 8
B20: 1 | CJ20: 2 | CO20: 1 | CR20: 1 | CV20: 1 | FU20: 1
B21: 1.041666667 | CO21: 1
B22: Total | C22: =SUM(C3:C21) -> 702 | D22: 729 | E22: 659 | F22: 752 | G22: 633 | H22: 2206 | I22: 1691 | J22: 1899 | K22: 1693 | L22: 1747 | M22: 801 | N22: 609 | O22: 1870 | P22: 1733 | Q22: 1741 | R22: 1721 | S22: 1073 | T22: 2027 | U22: 1754 | V22: 1756 | W22: 2055 | X22: 1754 | Y22: 1192 | Z22: 2417 | AA22: 2219 | AB22: 1965 | AC22: 1601 | AD22: 1813 | AE22: 1195 | AF22: 2045 | AG22: 1877 | AH22: 1807 | AI22: 1680 | AJ22: 1701 | AK22: 1196 | AL22: 2287 | AM22: 1869 | AN22: 1684 | AO22: 1822 | AP22: 1844 | AQ22: 1255 | AR22: 1136 | AS22: 2369 | AT22: 2063 | AU22: 2026 | AV22: 1941 | AW22: 1480 | AX22: 2397 | AY22: 2302 | AZ22: 1957 | BA22: 1922 | BB22: 1723 | BC22: 1269 | BD22: 2346 | BE22: 2269 | BF22: 2151 | BG22: 2215 | BH22: 1908 | BI22: 1319 | BJ22: 2927 | BK22: 2861 | BL22: 2294 | BM22: 2432 | BN22: 2103 | BO22: =SUM(BO3:BO21) -> 1692 | BP22: 2792 | BQ22: 2413 | BR22: 2118 | BS22: 2436 | BT22: 2294 | BU22: 1651 | BV22: 2767 | BW22: 2757 | BX22: 2582 | BY22: 2547 | BZ22: 2003 | CA22: 570 | CB22: 2680 | CC22: 2546 | CD22: 2104 | CE22: 1929 | CF22: 1822 | CG22: 1346 | CH22: 2677 | CI22: 2370 | CJ22: 2087 | CK22: 1927 | CL22: 1723 | CM22: 1541 | CN22: 2016 | CO22: 1593 | CP22: 1623 | CQ22: 1524 | CR22: 1601 | CS22: 1185 | CT22: 1591 | CU22: 1359 | CV22: 1102 | CW22: 592 | CX22: 626 | CY22: 393 | CZ22: 824 | DA22: 72 | DB22: 124 | DC22: 114 | DD22: 112 | DE22: 53 | DF22: 0 | DG22: 164 | DH22: 141 | DI22: 129 | DJ22: 123 | DK22: 145 | DL22: 105 | DM22: 167 | DN22: 130 | DO22: 142 | DP22: 155 | DQ22: 138 | DR22: 107 | DS22: 186 | DT22: 118 | DU22: 123 | DV22: 143 | DW22: 167 | DX22: =SUM(DX3:DX21) -> 92 | DY22: 44 | DZ22: 132 | EA22: 123 | EB22: 139 | EC22: 1358 | ED22: 691 | EE22: 1438 | EF22: 1042 | EG22: 1213 | EH22: 1103 | EI22: 1315 | EJ22: 683 | EK22: 1319 | EL22: 1193 | EM22: 1391 | EN22: 980 | EO22: 1052 | EP22: 682 | EQ22: 1129 | ER22: 1173 | ES22: 1054 | ET22: 1001 | EU22: 721 | EV22: 295 | EW22: 1226 | EX22: 919 | EY22: 988 | EZ22: 1103 | FA22: 919 | FB22: 478 | FC22: 1273 | FD22: 1099 | FE22: 1235 | FF22: 1142 | FG22: 574 | FH22: 574 | FI22: 1363 | FJ22: 1053 | FK22: 1083 | FL22: 1070 | FM22: 979 | FN22: 625 | FO22: 1095 | FP22: 1197 | FQ22: 1086 | FR22: 943 | FS22: 1189 | FT22: 387 | FU22: 1170 | FV22: =SUM(FV3:FV21) -> 381 | FW22: 1108 | FX22: 954 | FY22: 891 | FZ22: 586 | GA22: 1110 | GB22: 1000 | GC22: 1071 | GD22: 1038 | GE22: 816 | GF22: 725 | GG22: 1255 | GH22: 1208 | GI22: 995 | GJ22: 874 | GK22: 905 | GL22: 458 | GM22: 985 | GN22: 877 | GO22: 987 | GP22: 654 | GQ22: 618 | GR22: 352 | GS22: 823 | GT22: 817 | GU22: 908 | GV22: 672 | GW22: 594 | GX22: 318 | GY22: 910 | GZ22: 942 | HA22: 795 | HB22: 599 | HC22: 895
A24: Patrons | EX24: .
A25: Hour | B25: 07:00:00 | H25: 11 | I25: 7 | J25: 6 | K25: 6 | L25: 2 | O25: 6 | P25: 6 | Q25: 2 | R25: 3 | T25: 7 | U25: 7 | V25: 4 | W25: 7 | X25: 2 | Z25: 9 | AA25: 8 | AB25: 6 | AC25: 4 | AD25: 3 | AF25: 13 | AG25: 8 | AH25: 7 | AI25: 7 | AJ25: 3 | AL25: 8 | AM25: 8 | AN25: 6 | AO25: 8 | AP25: 10 | AS25: 9 | AT25: 8 | AU25: 4 | AV25: 5 | AX25: 7 | AY25: 4 | AZ25: 7 | BA25: 5 | BB25: 1 | BD25: 9 | BE25: 5 | BF25: 4 | BG25: 5 | BH25: 4 | BJ25: 11 | BK25: 3 | BL25: 4 | BM25: 5 | BN25: 5 | BP25: 11 | BQ25: 6 | BR25: 4 | BS25: 8 | BT25: 4 | BV25: 7 | BW25: 12 | BX25: 4 | BY25: 7 | BZ25: 2 | CB25: 8 | CC25: 10 | CD25: 11 | CE25: 5 | CF25: 6 | CG25: 7 | CH25: 7 | CI25: 6 | CJ25: 6 | CK25: 5 | CL25: 3 | CN25: 12 | CO25: 10 | CP25: 6 | CQ25: 4 | CR25: 4 | CS25: 1 | CT25: 4 | CU25: 9 | CV25: 2 | CW25: 1 | DB25: 1 | DD25: 2 | DJ25: 1 | DN25: 1 | DP25: 1 | DQ25: 1 | DR25: 3 | DU25: 2 | DV25: 1 | DZ25: 1 | EB25: 2 | EE25: 4 | EF25: 3 | EG25: 3 | EH25: 3 | EI25: 6 | EJ25: 2 | EK25: 5 | EL25: 1 | EM25: 6 | EN25: 2 | EO25: 1 | EQ25: 2 | ER25: 4 | ES25: 3 | ET25: 3 | EW25: 4 | EX25: 2 | EY25: 4 | EZ25: 4 | FA25: 3 | FC25: 6 | FD25: 1 | FE25: 5 | FF25: 5 | FG25: 3 | FH25: 3 | FI25: 9 | FJ25: 4 | FL25: 2 | FM25: 5 | FO25: 7 | FP25: 4 | FQ25: 3 | FR25: 1 | FS25: 2 | FT25: 2 | FU25: 1 | FV25: 8 | FW25: 1 | FX25: 2 | FY25: 1 | FZ25: 3 | GA25: 1 | GB25: 3 | GC25: 5 | GD25: 1 | GE25: 5 | GG25: 5 | GH25: 5 | GI25: 6 | GJ25: 7 | GK25: 2 | GL25: 4 | GM25: 4 | GN25: 5 | GO25: 9 | GP25: 3 | GW25: 1
B26: 08:00:00 | C26: 5 | D26: 2 | E26: 3 | F26: 3 | H26: 24 | I26: 26 | J26: 16 | K26: 21 | L26: 19 | O26: 28 | P26: 23 | Q26: 19 | R26: 20 | S26: 1 | T26: 34 | U26: 33 | V26: 26 | W26: 15 | X26: 24 | Y26: 3 | Z26: 22 | AA26: 20 | AB26: 26 | AC26: 19 | AD26: 23 | AE26: 1 | AF26: 31 | AG26: 17 | AH26: 19 | AI26: 22 | AJ26: 27 | AK26: 8 | AL26: 29 | AM26: 22 | AN26: 17 | AO26: 17 | AP26: 24 | AQ26: 1 | AS26: 34 | AT26: 27 | AU26: 22 | AV26: 24 | AW26: 3 | AX26: 23 | AY26: 25 | AZ26: 19 | BA26: 11 | BB26: 20 | BD26: 26 | BE26: 21 | BF26: 18 | BG26: 23 | BH26: 30 | BI26: 4 | BJ26: 29 | BK26: 27 | BL26: 24 | BM26: 15 | BN26: 23 | BO26: 6 | BP26: 34 | BQ26: 24 | BR26: 23 | BS26: 21 | BT26: 17 | BU26: 2 | BV26: 30 | BW26: 26 | BX26: 24 | BY26: 24 | BZ26: 13 | CA26: 5 | CB26: 21 | CC26: 20 | CD26: 21 | CE26: 17 | CF26: 20 | CG26: 6 | CH26: 29 | CI26: 21 | CJ26: 24 | CK26: 17 | CL26: 20 | CM26: 6 | CN26: 26 | CO26: 31 | CP26: 13 | CQ26: 21 | CR26: 32 | CS26: 12 | CT26: 28 | CU26: 16 | CV26: 16 | CW26: 13 | CX26: 5 | CY26: 7 | CZ26: 4 | DB26: 8 | DD26: 1 | DE26: 1 | DG26: 1 | DH26: 2 | DJ26: 4 | DK26: 2 | DM26: 3 | DN26: 1 | DO26: 2 | DP26: 6 | DQ26: 3 | DR26: 4 | DS26: 6 | DT26: 1 | DU26: 5 | DV26: 2 | DW26: 6 | DX26: 1 | DZ26: 5 | EB26: 2 | EC26: 11 | EE26: 13 | EF26: 7 | EG26: 6 | EH26: 7 | EI26: 2 | EJ26: 4 | EK26: 11 | EL26: 11 | EM26: 9 | EN26: 8 | EO26: 8 | EP26: 2 | EQ26: 11 | ER26: 11 | ES26: 14 | ET26: 8 | EU26: 7 | EV26: 2 | EW26: 13 | EX26: 8 | EY26: 17 | EZ26: 66 | FA26: 8 | FB26: 2 | FC26: 18 | FD26: 6 | FE26: 10 | FF26: 6 | FG26: 3 | FH26: 3 | FI26: 12 | FJ26: 4 | FK26: 7 | FL26: 17 | FM26: 4 | FN26: 1 | FO26: 13 | FP26: 8 | FQ26: 10 | FR26: 8 | FS26: 7 | FT26: 1 | FU26: 7 | FV26: 10 | FW26: 1 | FX26: 10 | FY26: 6 | FZ26: 7 | GA26: 13 | GB26: 9 | GC26: 7 | GD26: 12 | GE26: 3 | GG26: 8 | GH26: 4 | GI26: 9 | GJ26: 5 | GK26: 6 | GL26: 3 | GM26: 11 | GN26: 9 | GO26: 7 | GP26: 9 | GQ26: 9 | GS26: 4 | GT26: 8 | GU26: 5 | GV26: 3 | GW26: 9 | GX26: 2 | GY26: 7 | GZ26: 5 | HA26: 1 | HB26: 6 | HC26: 9
B27: 09:00:00 | C27: 10 | D27: 5 | E27: 26 | F27: 11 | G27: 2 | H27: 43 | I27: 62 | J27: 50 | K27: 38 | L27: 49 | M27: 5 | O27: 60 | P27: 46 | Q27: 35 | R27: 36 | S27: 7 | T27: 45 | U27: 46 | V27: 43 | W27: 40 | X27: 46 | Y27: 9 | Z27: 58 | AA27: 46 | AB27: 40 | AC27: 49 | AD27: 33 | AE27: 10 | AF27: 59 | AG27: 48 | AH27: 35 | AI27: 46 | AJ27: 35 | AK27: 4 | AL27: 63 | AM27: 45 | AN27: 50 | AO27: 45 | AP27: 44 | AQ27: 9 | AS27: 51 | AT27: 46 | AU27: 44 | AV27: 59 | AW27: 5 | AX27: 45 | AY27: 48 | AZ27: 35 | BA27: 35 | BB27: 42 | BC27: 8 | BD27: 41 | BE27: 45 | BF27: 42 | BG27: 45 | BH27: 44 | BI27: 9 | BJ27: 51 | BK27: 62 | BL27: 37 | BM27: 49 | BN27: 50 | BO27: 1 | BP27: 45 | BQ27: 45 | BR27: 48 | BS27: 38 | BT27: 50 | BU27: 6 | BV27: 40 | BW27: 46 | BX27: 35 | BY27: 48 | BZ27: 54 | CA27: 6 | CB27: 41 | CC27: 57 | CD27: 42 | CE27: 53 | CF27: 44 | CG27: 24 | CH27: 40 | CI27: 34 | CJ27: 42 | CK27: 48 | CL27: 34 | CM27: 5 | CN27: 41 | CO27: 34 | CP27: 22 | CQ27: 31 | CR27: 33 | CS27: 18 | CT27: 42 | CU27: 22 | CV27: 25 | CW27: 20 | CX27: 4 | CY27: 1 | CZ27: 9 | DA27: 2 | DB27: 5 | DC27: 2 | DD27: 2 | DE27: 1 | DG27: 3 | DH27: 2 | DI27: 2 | DJ27: 2 | DK27: 7 | DL27: 3 | DM27: 5 | DN27: 3 | DO27: 5 | DP27: 5 | DQ27: 4 | DR27: 2 | DS27: 3 | DT27: 4 | DU27: 5 | DV27: 7 | DW27: 4 | DX27: 2 | DZ27: 6 | EB27: 5 | EC27: 17 | ED27: 4 | EE27: 25 | EF27: 22 | EG27: 10 | EH27: 12 | EI27: 20 | EJ27: 8 | EK27: 27 | EL27: 19 | EM27: 19 | EN27: 16 | EO27: 17 | EP27: 3 | EQ27: 27 | ER27: 21 | ES27: 15 | ET27: 19 | EU27: 12 | EV27: 6 | EW27: 18 | EX27: 21 | EY27: 12 | EZ27: 26 | FA27: 14 | FB27: 3 | FC27: 22 | FD27: 19 | FE27: 15 | FF27: 15 | FG27: 1 | FH27: 1 | FI27: 17 | FJ27: 12 | FK27: 13 | FL27: 15 | FM27: 16 | FN27: 2 | FO27: 21 | FP27: 21 | FQ27: 17 | FR27: 13 | FS27: 14 | FT27: 3 | FU27: 4 | FV27: 15 | FW27: 8 | FX27: 17 | FY27: 21 | FZ27: 10 | GA27: 14 | GB27: 17 | GC27: 15 | GD27: 12 | GE27: 18 | GF27: 5 | GG27: 22 | GH27: 23 | GI27: 17 | GJ27: 9 | GK27: 20 | GL27: 9 | GM27: 23 | GN27: 7 | GO27: 12 | GP27: 17 | GQ27: 4 | GR27: 5 | GS27: 5 | GT27: 12 | GU27: 8 | GV27: 17 | GW27: 7 | GX27: 2 | GY27: 14 | GZ27: 26 | HA27: 7 | HB27: 19 | HC27: 8
B28: 10:00:00 | C28: 14 | D28: 15 | E28: 12 | F28: 13 | G28: 10 | H28: 86 | I28: 72 | J28: 75 | K28: 84 | L28: 70 | M28: 15 | N28: 12 | O28: 64 | P28: 65 | Q28: 89 | R28: 74 | S28: 17 | T28: 57 | U28: 66 | V28: 76 | W28: 86 | X28: 69 | Y28: 12 | Z28: 70 | AA28: 72 | AB28: 80 | AC28: 84 | AD28: 66 | AE28: 24 | AF28: 63 | AG28: 62 | AH28: 64 | AI28: 53 | AJ28: 63 | AK28: 20 | AL28: 71 | AM28: 55 | AN28: 61 | AO28: 91 | AP28: 66 | AQ28: 12 | AR28: 15 | AS28: 65 | AT28: 75 | AU28: 83 | AV28: 55 | AW28: 20 | AX28: 66 | AY28: 76 | AZ28: 42 | BA28: 92 | BB28: 72 | BC28: 23 | BD28: 56 | BE28: 86 | BF28: 89 | BG28: 88 | BH28: 57 | BI28: 32 | BJ28: 54 | BK28: 75 | BL28: 66 | BM28: 85 | BN28: 54 | BO28: 27 | BP28: 87 | BQ28: 63 | BR28: 68 | BS28: 64 | BT28: 58 | BU28: 14 | BV28: 77 | BW28: 66 | BX28: 64 | BY28: 80 | BZ28: 68 | CA28: 2 | CB28: 65 | CC28: 80 | CD28: 68 | CE28: 63 | CF28: 56 | CG28: 22 | CH28: 65 | CI28: 70 | CJ28: 68 | CK28: 54 | CL28: 69 | CM28: 29 | CN28: 63 | CO28: 61 | CP28: 42 | CQ28: 51 | CR28: 71 | CS28: 31 | CT28: 71 | CU28: 55 | CV28: 43 | CW28: 24 | CX28: 31 | CY28: 12 | CZ28: 30 | DA28: 2 | DB28: 5 | DC28: 2 | DD28: 2 | DE28: 3 | DG28: 11 | DH28: 3 | DI28: 9 | DJ28: 3 | DK28: 1 | DL28: 2 | DM28: 6 | DN28: 4 | DO28: 1 | DP28: 5 | DQ28: 11 | DR28: 8 | DS28: 7 | DT28: 2 | DU28: 1 | DV28: 7 | DW28: 8 | DX28: 1 | DY28: 5 | DZ28: 3 | EB28: 8 | EC28: 18 | ED28: 8 | EE28: 26 | EF28: 34 | EG28: 27 | EH28: 38 | EI28: 27 | EJ28: 7 | EK28: 25 | EL28: 37 | EM28: 27 | EN28: 26 | EO28: 28 | EP28: 13 | EQ28: 42 | ER28: 39 | ES28: 47 | ET28: 35 | EU28: 12 | EV28: 7 | EW28: 35 | EX28: 50 | EY28: 27 | EZ28: 69 | FA28: 26 | FB28: 5 | FC28: 40 | FD28: 39 | FE28: 35 | FF28: 44 | FG28: 15 | FH28: 15 | FI28: 34 | FJ28: 39 | FK28: 26 | FL28: 44 | FM28: 19 | FN28: 6 | FO28: 30 | FP28: 55 | FQ28: 32 | FR28: 35 | FS28: 36 | FT28: 7 | FU28: 21 | FV28: 11 | FW28: 16 | FX28: 40 | FY28: 21 | FZ28: 17 | GA28: 23 | GB28: 43 | GC28: 28 | GD28: 35 | GE28: 30 | GF28: 15 | GG28: 33 | GH28: 32 | GI28: 22 | GJ28: 18 | GK28: 19 | GL28: 13 | GM28: 52 | GN28: 21 | GO28: 29 | GP28: 36 | GQ28: 31 | GR28: 6 | GS28: 23 | GT28: 34 | GU28: 31 | GV28: 21 | GW28: 21 | GX28: 10 | GY28: 25 | GZ28: 22 | HA28: 7 | HB28: 31 | HC28: 19
B29: 11:00:00 | C29: 15 | D29: 25 | E29: 20 | F29: 32 | G29: 14 | H29: 81 | I29: 21 | J29: 79 | K29: 79 | L29: 93 | M29: 11 | N29: 20 | O29: 25 | P29: 72 | Q29: 83 | R29: 92 | S29: 26 | T29: 88 | U29: 32 | V29: 74 | W29: 95 | X29: 100 | Y29: 26 | Z29: 102 | AA29: 38 | AB29: 91 | AC29: 71 | AD29: 82 | AE29: 26 | AF29: 85 | AG29: 28 | AH29: 51 | AI29: 73 | AJ29: 101 | AK29: 29 | AL29: 89 | AM29: 17 | AN29: 76 | AO29: 81 | AP29: 90 | AQ29: 21 | AR29: 22 | AS29: 87 | AT29: 88 | AU29: 83 | AV29: 71 | AW29: 28 | AX29: 96 | AY29: 17 | AZ29: 81 | BA29: 75 | BB29: 73 | BC29: 26 | BD29: 82 | BE29: 19 | BF29: 91 | BG29: 80 | BH29: 85 | BI29: 28 | BJ29: 95 | BK29: 19 | BL29: 63 | BM29: 90 | BN29: 82 | BO29: 32 | BP29: 99 | BQ29: 17 | BR29: 80 | BS29: 82 | BT29: 96 | BU29: 32 | BV29: 105 | BW29: 18 | BX29: 83 | BY29: 75 | BZ29: 73 | CB29: 75 | CC29: 11 | CD29: 87 | CE29: 69 | CF29: 96 | CG29: 32 | CH29: 84 | CI29: 26 | CJ29: 80 | CK29: 83 | CL29: 69 | CM29: 17 | CN29: 72 | CO29: 61 | CP29: 44 | CQ29: 61 | CR29: 46 | CS29: 27 | CT29: 66 | CU29: 38 | CV29: 50 | CW29: 45 | CX29: 29 | CY29: 13 | CZ29: 33 | DA29: 8 | DB29: 1 | DC29: 4 | DD29: 4 | DE29: 5 | DG29: 10 | DH29: 8 | DI29: 8 | DJ29: 7 | DK29: 2 | DL29: 6 | DM29: 5 | DN29: 3 | DO29: 4 | DP29: 10 | DQ29: 5 | DR29: 8 | DS29: 9 | DT29: 4 | DU29: 4 | DV29: 5 | DW29: 11 | DX29: 3 | DY29: 1 | DZ29: 2 | EB29: 3 | EC29: 46 | ED29: 10 | EE29: 50 | EF29: 16 | EG29: 50 | EH29: 27 | EI29: 46 | EJ29: 25 | EK29: 58 | EL29: 25 | EM29: 33 | EN29: 38 | EO29: 35 | EP29: 10 | EQ29: 31 | ER29: 43 | ES29: 46 | ET29: 32 | EU29: 48 | EV29: 12 | EW29: 66 | EX29: 13 | EY29: 50 | EZ29: 87 | FA29: 47 | FB29: 17 | FC29: 42 | FD29: 43 | FE29: 38 | FF29: 37 | FG29: 15 | FH29: 15 | FI29: 46 | FJ29: 8 | FK29: 32 | FL29: 49 | FM29: 50 | FN29: 12 | FO29: 32 | FP29: 6 | FQ29: 36 | FR29: 33 | FS29: 23 | FT29: 12 | FU29: 23 | FV29: 12 | FW29: 20 | FX29: 25 | FY29: 50 | FZ29: 16 | GA29: 54 | GB29: 7 | GC29: 33 | GD29: 28 | GE29: 34 | GF29: 11 | GG29: 53 | GH29: 8 | GI29: 20 | GJ29: 56 | GK29: 32 | GL29: 11 | GM29: 32 | GN29: 50 | GO29: 47 | GP29: 28 | GQ29: 23 | GR29: 12 | GS29: 33 | GT29: 18 | GU29: 27 | GV29: 30 | GW29: 17 | GX29: 7 | GY29: 46 | GZ29: 26 | HA29: 37 | HB29: 24 | HC29: 50
B30: 12:00:00 | C30: 36 | D30: 17 | E30: 27 | F30: 24 | G30: 15 | H30: 76 | I30: 84 | J30: 89 | K30: 65 | L30: 88 | M30: 25 | N30: 47 | O30: 94 | P30: 94 | Q30: 79 | R30: 87 | S30: 30 | T30: 97 | U30: 79 | V30: 91 | W30: 55 | X30: 68 | Y30: 36 | Z30: 118 | AA30: 97 | AB30: 84 | AC30: 64 | AD30: 94 | AE30: 29 | AF30: 99 | AG30: 74 | AH30: 85 | AI30: 66 | AJ30: 60 | AK30: 30 | AL30: 96 | AM30: 73 | AN30: 82 | AO30: 50 | AP30: 72 | AQ30: 22 | AR30: 25 | AS30: 115 | AT30: 75 | AU30: 77 | AV30: 84 | AW30: 40 | AX30: 59 | AY30: 79 | AZ30: 89 | BA30: 82 | BB30: 61 | BC30: 30 | BD30: 77 | BE30: 80 | BF30: 85 | BG30: 50 | BH30: 86 | BI30: 37 | BJ30: 91 | BK30: 87 | BL30: 68 | BM30: 64 | BN30: 86 | BO30: 37 | BP30: 77 | BQ30: 85 | BR30: 72 | BS30: 88 | BT30: 85 | BU30: 40 | BV30: 80 | BW30: 92 | BX30: 93 | BY30: 81 | BZ30: 66 | CA30: 22 | CB30: 114 | CC30: 70 | CD30: 92 | CE30: 55 | CF30: 69 | CG30: 39 | CH30: 84 | CI30: 80 | CJ30: 80 | CK30: 74 | CL30: 77 | CM30: 26 | CN30: 96 | CO30: 56 | CP30: 66 | CQ30: 47 | CR30: 64 | CS30: 41 | CT30: 54 | CU30: 59 | CV30: 46 | CW30: 29 | CX30: 28 | CY30: 21 | CZ30: 41 | DA30: 2 | DB30: 8 | DC30: 7 | DD30: 8 | DE30: 3 | DG30: 6 | DH30: 11 | DI30: 8 | DJ30: 6 | DK30: 9 | DL30: 2 | DM30: 14 | DN30: 7 | DO30: 4 | DP30: 4 | DQ30: 7 | DR30: 4 | DS30: 6 | DT30: 6 | DU30: 7 | DV30: 2 | DW30: 7 | DX30: 2 | DY30: 1 | DZ30: 9 | EB30: 5 | EC30: 48 | ED30: 15 | EE30: 40 | EF30: 48 | EG30: 30 | EH30: 32 | EI30: 52 | EJ30: 20 | EK30: 43 | EL30: 41 | EM30: 38 | EN30: 34 | EO30: 38 | EP30: 13 | EQ30: 31 | ER30: 41 | ES30: 46 | ET30: 37 | EU30: 32 | EV30: 13 | EW30: 43 | EX30: 53 | EY30: 41 | EZ30: 121 | FA30: 41 | FB30: 10 | FC30: 53 | FD30: 30 | FE30: 35 | FF30: 43 | FG30: 22 | FH30: 22 | FI30: 52 | FJ30: 52 | FK30: 36 | FL30: 36 | FM30: 40 | FN30: 16 | FO30: 36 | FP30: 41 | FQ30: 41 | FR30: 27 | FS30: 32 | FT30: 5 | FU30: 57 | FV30: 10 | FW30: 59 | FX30: 40 | FY30: 38 | FZ30: 21 | GA30: 35 | GB30: 35 | GC30: 46 | GD30: 35 | GE30: 27 | GF30: 19 | GG30: 38 | GH30: 43 | GI30: 46 | GJ30: 18 | GK30: 55 | GL30: 17 | GM30: 31 | GN30: 30 | GO30: 27 | GP30: 34 | GQ30: 30 | GR30: 11 | GS30: 28 | GT30: 22 | GU30: 33 | GV30: 27 | GW30: 32 | GX30: 14 | GY30: 46 | GZ30: 51 | HA30: 18 | HB30: 16 | HC30: 37
B31: 13:00:00 | C31: 22 | D31: 27 | E31: 35 | F31: 33 | G31: 20 | H31: 96 | I31: 64 | J31: 68 | K31: 108 | L31: 95 | M31: 28 | N31: 30 | O31: 96 | P31: 100 | Q31: 74 | R31: 76 | S31: 43 | T31: 101 | U31: 95 | V31: 78 | W31: 75 | X31: 84 | Y31: 43 | Z31: 85 | AA31: 88 | AB31: 75 | AC31: 58 | AD31: 80 | AE31: 45 | AF31: 83 | AG31: 67 | AH31: 63 | AI31: 70 | AJ31: 74 | AK31: 38 | AL31: 77 | AM31: 84 | AN31: 57 | AO31: 57 | AP31: 76 | AQ31: 41 | AR31: 42 | AS31: 96 | AT31: 91 | AU31: 70 | AV31: 58 | AW31: 52 | AX31: 108 | AY31: 81 | AZ31: 65 | BA31: 54 | BB31: 65 | BC31: 40 | BD31: 91 | BE31: 75 | BF31: 76 | BG31: 85 | BH31: 71 | BI31: 40 | BJ31: 98 | BK31: 68 | BL31: 67 | BM31: 61 | BN31: 83 | BO31: 44 | BP31: 85 | BQ31: 69 | BR31: 70 | BS31: 76 | BT31: 81 | BU31: 38 | BV31: 90 | BW31: 87 | BX31: 88 | BY31: 93 | BZ31: 70 | CA31: 16 | CB31: 77 | CC31: 77 | CD31: 71 | CE31: 66 | CF31: 62 | CG31: 37 | CH31: 66 | CI31: 77 | CJ31: 77 | CK31: 72 | CL31: 49 | CM31: 51 | CN31: 59 | CO31: 50 | CP31: 47 | CQ31: 54 | CR31: 46 | CS31: 45 | CT31: 64 | CU31: 58 | CV31: 51 | CW31: 21 | CX31: 30 | CY31: 16 | CZ31: 41 | DA31: 4 | DB31: 5 | DC31: 7 | DD31: 2 | DE31: 5 | DG31: 6 | DH31: 8 | DI31: 6 | DJ31: 6 | DK31: 6 | DL31: 3 | DM31: 6 | DN31: 7 | DO31: 4 | DP31: 5 | DQ31: 8 | DR31: 6 | DS31: 5 | DT31: 4 | DU31: 10 | DV31: 2 | DW31: 5 | DX31: 5 | DY31: 1 | DZ31: 10 | EB31: 3 | EC31: 33 | ED31: 18 | EE31: 45 | EF31: 37 | EG31: 48 | EH31: 52 | EI31: 25 | EJ31: 24 | EK31: 39 | EL31: 40 | EM31: 43 | EN31: 48 | EO31: 33 | EP31: 14 | EQ31: 48 | ER31: 43 | ES31: 28 | ET31: 29 | EU31: 32 | EV31: 16 | EW31: 55 | EX31: 20 | EY31: 33 | EZ31: 124 | FA31: 49 | FB31: 13 | FC31: 41 | FD31: 36 | FE31: 31 | FF31: 28 | FG31: 17 | FH31: 17 | FI31: 41 | FJ31: 30 | FK31: 38 | FL31: 23 | FM31: 41 | FN31: 15 | FO31: 25 | FP31: 32 | FQ31: 36 | FR31: 33 | FS31: 35 | FT31: 9 | FU31: 42 | FV31: 7 | FW31: 36 | FX31: 30 | FY31: 35 | FZ31: 18 | GA31: 31 | GB31: 41 | GC31: 28 | GD31: 37 | GE31: 37 | GF31: 16 | GG31: 44 | GH31: 42 | GI31: 40 | GJ31: 29 | GK31: 29 | GL31: 19 | GM31: 30 | GN31: 26 | GO31: 23 | GP31: 29 | GQ31: 26 | GR31: 13 | GS31: 21 | GT31: 33 | GU31: 34 | GV31: 25 | GW31: 38 | GX31: 6 | GY31: 36 | GZ31: 23 | HA31: 37 | HB31: 34 | HC31: 33
B32: 14:00:00 | C32: 28 | D32: 33 | E32: 23 | F32: 41 | G32: 24 | H32: 90 | I32: 75 | J32: 77 | K32: 97 | L32: 95 | M32: 37 | N32: 40 | O32: 71 | P32: 71 | Q32: 49 | R32: 64 | S32: 33 | T32: 67 | U32: 76 | V32: 66 | W32: 68 | X32: 79 | Y32: 46 | Z32: 80 | AA32: 88 | AB32: 72 | AC32: 64 | AD32: 80 | AE32: 49 | AF32: 81 | AG32: 86 | AH32: 72 | AI32: 58 | AJ32: 85 | AK32: 39 | AL32: 98 | AM32: 77 | AN32: 63 | AO32: 79 | AP32: 73 | AQ32: 41 | AR32: 42 | AS32: 92 | AT32: 72 | AU32: 82 | AV32: 74 | AW32: 51 | AX32: 83 | AY32: 92 | AZ32: 79 | BA32: 64 | BB32: 57 | BC32: 41 | BD32: 85 | BE32: 88 | BF32: 77 | BG32: 80 | BH32: 94 | BI32: 43 | BJ32: 86 | BK32: 81 | BL32: 71 | BM32: 85 | BN32: 91 | BO32: 49 | BP32: 78 | BQ32: 91 | BR32: 85 | BS32: 73 | BT32: 97 | BU32: 43 | BV32: 75 | BW32: 91 | BX32: 52 | BY32: 95 | BZ32: 65 | CB32: 76 | CC32: 62 | CD32: 59 | CE32: 70 | CF32: 57 | CG32: 44 | CH32: 83 | CI32: 93 | CJ32: 73 | CK32: 66 | CL32: 73 | CM32: 49 | CN32: 63 | CO32: 75 | CP32: 58 | CQ32: 57 | CR32: 61 | CS32: 31 | CT32: 51 | CU32: 57 | CV32: 47 | CW32: 15 | CX32: 15 | CY32: 12 | CZ32: 37 | DA32: 2 | DB32: 7 | DC32: 8 | DD32: 4 | DE32: 7 | DG32: 7 | DH32: 13 | DI32: 8 | DJ32: 8 | DK32: 6 | DL32: 4 | DM32: 3 | DN32: 11 | DO32: 6 | DP32: 3 | DQ32: 3 | DR32: 2 | DS32: 9 | DT32: 7 | DU32: 2 | DV32: 6 | DW32: 7 | DX32: 6 | DY32: 6 | DZ32: 10 | EB32: 8 | EC32: 37 | ED32: 20 | EE32: 50 | EF32: 34 | EG32: 37 | EH32: 46 | EI32: 38 | EJ32: 22 | EK32: 41 | EL32: 41 | EM32: 59 | EN32: 34 | EO32: 32 | EP32: 26 | EQ32: 42 | ER32: 38 | ES32: 35 | ET32: 33 | EU32: 25 | EV32: 18 | EW32: 48 | EX32: 40 | EY32: 28 | EZ32: 95 | FA32: 42 | FB32: 15 | FC32: 33 | FD32: 34 | FE32: 39 | FF32: 30 | FG32: 24 | FH32: 24 | FI32: 45 | FJ32: 33 | FK32: 35 | FL32: 33 | FM32: 27 | FN32: 25 | FO32: 30 | FP32: 38 | FQ32: 34 | FR32: 32 | FS32: 31 | FT32: 20 | FU32: 23 | FV32: 13 | FW32: 45 | FX32: 26 | FY32: 29 | FZ32: 26 | GA32: 55 | GB32: 31 | GC32: 28 | GD32: 28 | GE32: 37 | GF32: 13 | GG32: 39 | GH32: 47 | GI32: 33 | GJ32: 26 | GK32: 32 | GL32: 10 | GM32: 31 | GN32: 36 | GO32: 34 | GP32: 30 | GQ32: 23 | GR32: 11 | GS32: 24 | GT32: 27 | GU32: 19 | GV32: 12 | GW32: 29 | GX32: 7 | GY32: 29 | GZ32: 27 | HA32: 30 | HB32: 31 | HC32: 36
B33: 15:00:00 | C33: 25 | D33: 29 | E33: 21 | F33: 27 | G33: 18 | H33: 128 | I33: 74 | J33: 97 | K33: 64 | L33: 77 | M33: 42 | N33: 34 | O33: 91 | P33: 70 | Q33: 79 | R33: 85 | S33: 51 | T33: 99 | U33: 76 | V33: 80 | W33: 90 | X33: 69 | Y33: 29 | Z33: 103 | AA33: 86 | AB33: 86 | AC33: 78 | AD33: 79 | AE33: 42 | AF33: 79 | AG33: 109 | AH33: 86 | AI33: 81 | AJ33: 80 | AK33: 40 | AL33: 88 | AM33: 102 | AN33: 61 | AO33: 79 | AP33: 78 | AQ33: 35 | AR33: 33 | AS33: 85 | AT33: 78 | AU33: 75 | AV33: 69 | AW33: 51 | AX33: 108 | AY33: 127 | AZ33: 70 | BA33: 82 | BB33: 64 | BC33: 38 | BD33: 89 | BE33: 82 | BF33: 71 | BG33: 61 | BH33: 73 | BI33: 44 | BJ33: 104 | BK33: 89 | BL33: 74 | BM33: 73 | BN33: 89 | BO33: 59 | BP33: 125 | BQ33: 99 | BR33: 89 | BS33: 81 | BT33: 84 | BU33: 50 | BV33: 98 | BW33: 116 | BX33: 85 | BY33: 76 | BZ33: 71 | CB33: 112 | CC33: 93 | CD33: 81 | CE33: 62 | CF33: 51 | CG33: 45 | CH33: 108 | CI33: 97 | CJ33: 68 | CK33: 70 | CL33: 86 | CM33: 52 | CN33: 78 | CO33: 72 | CP33: 52 | CQ33: 52 | CR33: 56 | CS33: 44 | CT33: 65 | CU33: 58 | CV33: 42 | CW33: 10 | CX33: 15 | CY33: 14 | CZ33: 34 | DA33: 1 | DB33: 8 | DC33: 4 | DD33: 6 | DE33: 1 | DG33: 6 | DH33: 8 | DI33: 10 | DJ33: 3 | DK33: 2 | DL33: 6 | DM33: 9 | DN33: 3 | DO33: 10 | DP33: 8 | DQ33: 7 | DR33: 5 | DS33: 4 | DT33: 6 | DU33: 4 | DV33: 4 | DW33: 6 | DX33: 8 | DY33: 2 | EB33: 6 | EC33: 40 | ED33: 31 | EE33: 58 | EF33: 52 | EG33: 46 | EH33: 34 | EI33: 44 | EJ33: 29 | EK33: 44 | EL33: 39 | EM33: 38 | EN33: 30 | EO33: 34 | EP33: 28 | EQ33: 42 | ER33: 39 | ES33: 41 | ET33: 37 | EU33: 22 | EV33: 10 | EW33: 48 | EX33: 49 | EY33: 47 | EZ33: 64 | FA33: 24 | FB33: 19 | FC33: 38 | FD33: 37 | FE33: 41 | FF33: 25 | FG33: 23 | FH33: 23 | FI33: 41 | FJ33: 37 | FK33: 31 | FL33: 42 | FM33: 34 | FN33: 15 | FO33: 45 | FP33: 51 | FQ33: 30 | FR33: 31 | FS33: 26 | FT33: 23 | FU33: 44 | FV33: 11 | FW33: 30 | FX33: 32 | FY33: 27 | FZ33: 17 | GA33: 39 | GB33: 27 | GC33: 34 | GD33: 41 | GE33: 30 | GF33: 16 | GG33: 55 | GH33: 33 | GI33: 41 | GJ33: 28 | GK33: 31 | GL33: 17 | GM33: 52 | GN33: 29 | GO33: 29 | GP33: 27 | GQ33: 25 | GR33: 19 | GS33: 32 | GT33: 22 | GU33: 28 | GV33: 29 | GW33: 19 | GX33: 22 | GY33: 27 | GZ33: 38 | HA33: 30 | HB33: 22 | HC33: 29
B34: 16:00:00 | C34: 29 | D34: 38 | E34: 24 | F34: 32 | G34: 27 | H34: 83 | I34: 86 | J34: 88 | K34: 67 | L34: 85 | M34: 38 | N34: 39 | O34: 104 | P34: 64 | Q34: 68 | R34: 79 | S34: 47 | T34: 78 | U34: 88 | V34: 76 | W34: 61 | X34: 69 | Y34: 40 | Z34: 90 | AA34: 100 | AB34: 76 | AC34: 66 | AD34: 69 | AE34: 46 | AF34: 89 | AG34: 91 | AH34: 77 | AI34: 78 | AJ34: 57 | AK34: 50 | AL34: 93 | AM34: 72 | AN34: 61 | AO34: 69 | AP34: 69 | AQ34: 38 | AR34: 47 | AS34: 85 | AT34: 72 | AU34: 59 | AV34: 79 | AW34: 66 | AX34: 87 | AY34: 99 | AZ34: 80 | BA34: 74 | BB34: 76 | BC34: 38 | BD34: 89 | BE34: 88 | BF34: 72 | BG34: 81 | BH34: 59 | BI34: 66 | BJ34: 114 | BK34: 96 | BL34: 76 | BM34: 98 | BN34: 64 | BO34: 53 | BP34: 111 | BQ34: 93 | BR34: 83 | BS34: 85 | BT34: 81 | BU34: 53 | BV34: 95 | BW34: 108 | BX34: 92 | BY34: 94 | BZ34: 57 | CA34: 22 | CB34: 107 | CC34: 96 | CD34: 87 | CE34: 71 | CF34: 60 | CG34: 37 | CH34: 88 | CI34: 74 | CJ34: 88 | CK34: 65 | CL34: 67 | CM34: 53 | CN34: 58 | CO34: 54 | CP34: 50 | CQ34: 76 | CR34: 63 | CS34: 45 | CT34: 58 | CU34: 67 | CV34: 44 | CW34: 14 | CX34: 24 | CY34: 10 | CZ34: 35 | DA34: 6 | DB34: 3 | DC34: 7 | DD34: 10 | DE34: 4 | DG34: 3 | DH34: 7 | DI34: 4 | DJ34: 8 | DK34: 6 | DL34: 3 | DM34: 4 | DN34: 7 | DO34: 8 | DP34: 1 | DQ34: 9 | DR34: 3 | DS34: 6 | DT34: 2 | DU34: 3 | DV34: 4 | DW34: 2 | DX34: 7 | DY34: 2 | EB34: 4 | EC34: 36 | ED34: 25 | EE34: 48 | EF34: 36 | EG34: 34 | EH34: 45 | EI34: 47 | EJ34: 31 | EK34: 43 | EL34: 49 | EM34: 45 | EN34: 29 | EO34: 50 | EP34: 25 | EQ34: 42 | ER34: 35 | ES34: 42 | ET34: 33 | EU34: 26 | EV34: 14 | EW34: 43 | EX34: 40 | EY34: 20 | EZ34: 82 | FA34: 33 | FB34: 20 | FC34: 41 | FD34: 35 | FE34: 36 | FF34: 34 | FG34: 24 | FH34: 24 | FI34: 44 | FJ34: 35 | FK34: 34 | FL34: 29 | FM34: 37 | FN34: 22 | FO34: 42 | FP34: 26 | FQ34: 49 | FR34: 35 | FS34: 33 | FT34: 12 | FU34: 35 | FV34: 5 | FW34: 46 | FX34: 30 | FY34: 34 | FZ34: 15 | GA34: 45 | GB34: 46 | GC34: 34 | GD34: 39 | GE34: 33 | GF34: 26 | GG34: 35 | GH34: 31 | GI34: 25 | GJ34: 25 | GK34: 37 | GL34: 18 | GM34: 26 | GN34: 33 | GO34: 25 | GP34: 17 | GQ34: 18 | GR34: 19 | GS34: 29 | GT34: 27 | GU34: 19 | GV34: 18 | GW34: 28 | GX34: 14 | GY34: 32 | GZ34: 41 | HA34: 36 | HB34: 26 | HC34: 44
B35: 17:00:00 | C35: 28 | D35: 30 | E35: 29 | F35: 39 | G35: 21 | H35: 75 | I35: 72 | J35: 59 | K35: 48 | L35: 45 | M35: 32 | N35: 32 | O35: 86 | P35: 78 | Q35: 59 | R35: 64 | S35: 37 | T35: 68 | U35: 79 | V35: 62 | W35: 62 | X35: 55 | Y35: 47 | Z35: 82 | AA35: 76 | AB35: 62 | AC35: 67 | AD35: 49 | AE35: 39 | AF35: 79 | AG35: 70 | AH35: 55 | AI35: 58 | AJ35: 52 | AK35: 47 | AL35: 98 | AM35: 60 | AN35: 63 | AO35: 56 | AP35: 52 | AQ35: 41 | AR35: 42 | AS35: 91 | AT35: 70 | AU35: 72 | AV35: 79 | AW35: 51 | AX35: 74 | AY35: 71 | AZ35: 68 | BA35: 62 | BB35: 62 | BC35: 45 | BD35: 88 | BE35: 61 | BF35: 67 | BG35: 73 | BH35: 50 | BI35: 40 | BJ35: 90 | BK35: 75 | BL35: 80 | BM35: 70 | BN35: 67 | BO35: 43 | BP35: 93 | BQ35: 80 | BR35: 86 | BS35: 63 | BT35: 58 | BU35: 51 | BV35: 111 | BW35: 101 | BX35: 73 | BY35: 54 | BZ35: 60 | CA35: 15 | CB35: 86 | CC35: 103 | CD35: 62 | CE35: 62 | CF35: 57 | CG35: 42 | CH35: 75 | CI35: 64 | CJ35: 75 | CK35: 51 | CL35: 61 | CM35: 46 | CN35: 66 | CO35: 48 | CP35: 50 | CQ35: 56 | CR35: 50 | CS35: 32 | CT35: 59 | CU35: 52 | CV35: 46 | CW35: 9 | CX35: 31 | CY35: 18 | CZ35: 27 | DA35: 3 | DB35: 3 | DC35: 7 | DD35: 7 | DE35: 3 | DG35: 12 | DH35: 4 | DI35: 6 | DJ35: 2 | DK35: 3 | DL35: 3 | DM35: 4 | DN35: 4 | DO35: 4 | DP35: 4 | DQ35: 5 | DR35: 2 | DS35: 7 | DT35: 4 | DU35: 4 | DV35: 4 | DW35: 7 | DX35: 4 | DY35: 2 | EA35: 3 | EB35: 5 | EC35: 32 | ED35: 18 | EE35: 39 | EF35: 31 | EG35: 24 | EH35: 31 | EI35: 35 | EJ35: 24 | EK35: 48 | EL35: 48 | EM35: 45 | EN35: 35 | EO35: 35 | EP35: 22 | EQ35: 51 | ER35: 33 | ES35: 23 | ET35: 26 | EU35: 24 | EV35: 22 | EW35: 28 | EX35: 31 | EY35: 27 | EZ35: 67 | FA35: 26 | FB35: 17 | FC35: 27 | FD35: 28 | FE35: 29 | FF35: 33 | FG35: 15 | FH35: 15 | FI35: 49 | FJ35: 32 | FK35: 36 | FL35: 30 | FM35: 28 | FN35: 13 | FO35: 42 | FP35: 32 | FQ35: 36 | FR35: 29 | FS35: 27 | FT35: 18 | FU35: 35 | FV35: 4 | FW35: 24 | FX35: 32 | FY35: 27 | FZ35: 8 | GA35: 34 | GB35: 28 | GC35: 25 | GD35: 31 | GE35: 32 | GF35: 23 | GG35: 42 | GH35: 27 | GI35: 32 | GJ35: 20 | GK35: 31 | GL35: 14 | GM35: 34 | GN35: 24 | GO35: 37 | GP35: 13 | GQ35: 20 | GR35: 12 | GS35: 37 | GT35: 28 | GU35: 35 | GV35: 29 | GW35: 27 | GX35: 15 | GY35: 37 | GZ35: 46 | HA35: 38 | HB35: 46 | HC35: 48
B36: 18:00:00 | H36: 43 | I36: 49 | J36: 48 | K36: 39 | L36: 17 | M36: 18 | N36: 19 | O36: 59 | P36: 48 | Q36: 41 | R36: 25 | S36: 25 | T36: 69 | U36: 63 | V36: 58 | W36: 35 | X36: 26 | Y36: 26 | Z36: 53 | AA36: 58 | AB36: 41 | AC36: 50 | AD36: 21 | AE36: 35 | AF36: 76 | AG36: 46 | AH36: 67 | AI36: 40 | AJ36: 40 | AK36: 33 | AL36: 57 | AM36: 48 | AN36: 41 | AO36: 40 | AP36: 23 | AQ36: 27 | AR36: 31 | AS36: 73 | AT36: 47 | AU36: 53 | AV36: 38 | AW36: 32 | AX36: 76 | AY36: 54 | AZ36: 47 | BA36: 30 | BB36: 26 | BC36: 38 | BD36: 59 | BE36: 45 | BF36: 41 | BG36: 46 | BH36: 33 | BI36: 39 | BJ36: 73 | BK36: 54 | BL36: 61 | BM36: 53 | BN36: 32 | BO36: 36 | BP36: 63 | BQ36: 69 | BR36: 48 | BS36: 53 | BT36: 35 | BU36: 34 | BV36: 69 | BW36: 62 | BX36: 52 | BY36: 60 | BZ36: 35 | CA36: 12 | CB36: 70 | CC36: 53 | CD36: 57 | CE36: 44 | CF36: 29 | CG36: 26 | CH36: 54 | CI36: 55 | CJ36: 62 | CK36: 37 | CL36: 23 | CM36: 38 | CN36: 54 | CO36: 30 | CP36: 42 | CQ36: 47 | CR36: 35 | CS36: 28 | CT36: 46 | CU36: 35 | CV36: 20 | CW36: 8 | DA36: 1 | DB36: 6 | DC36: 3 | DD36: 4 | DE36: 1 | DG36: 4 | DH36: 1 | DI36: 1 | DJ36: 9 | DK36: 3 | DL36: 3 | DM36: 10 | DN36: 3 | DO36: 6 | DP36: 6 | DQ36: 3 | DR36: 3 | DS36: 6 | DT36: 3 | DU36: 6 | DV36: 3 | DW36: 6 | DX36: 2 | DY36: 2 | EA36: 38 | EB36: 4 | EC36: 24 | ED36: 22 | EE36: 46 | EF36: 23 | EG36: 28 | EH36: 20 | EI36: 19 | EJ36: 14 | EK36: 26 | EL36: 22 | EM36: 31 | EN36: 23 | EO36: 23 | EP36: 18 | EQ36: 24 | ER36: 22 | ES36: 20 | ET36: 20 | EW36: 28 | EX36: 15 | EY36: 23 | EZ36: 48 | FA36: 16 | FB36: 13 | FC36: 27 | FD36: 22 | FE36: 30 | FF36: 22 | FG36: 11 | FH36: 11 | FI36: 37 | FJ36: 27 | FK36: 14 | FL36: 19 | FM36: 19 | FN36: 14 | FO36: 31 | FP36: 27 | FQ36: 22 | FR36: 23 | FS36: 15 | FT36: 11 | FU36: 42 | FV36: 2 | FW36: 42 | FX36: 24 | FY36: 20 | FZ36: 9 | GA36: 23 | GB36: 14 | GC36: 21 | GD36: 23 | GE36: 12 | GF36: 16 | GG36: 35 | GH36: 32 | GI36: 21 | GJ36: 29 | GK36: 15 | GL36: 13 | GM36: 16 | GN36: 23 | GO36: 21 | GP36: 9 | GT36: 11 | GU36: 20 | GV36: 16 | HA36: 42
B37: 19:00:00 | H37: 24 | I37: 43 | J37: 42 | K37: 37 | L37: 12 | M37: 11 | N37: 9 | O37: 32 | P37: 35 | Q37: 38 | R37: 14 | S37: 20 | T37: 32 | U37: 41 | V37: 38 | W37: 32 | X37: 17 | Y37: 27 | Z37: 40 | AA37: 40 | AB37: 42 | AC37: 24 | AD37: 13 | AE37: 25 | AF37: 42 | AG37: 36 | AH37: 30 | AI37: 30 | AJ37: 20 | AK37: 31 | AL37: 40 | AM37: 39 | AN37: 15 | AO37: 28 | AP37: 20 | AQ37: 26 | AR37: 24 | AS37: 37 | AT37: 32 | AU37: 39 | AV37: 18 | AW37: 29 | AX37: 33 | AY37: 37 | AZ37: 31 | BA37: 32 | BB37: 17 | BC37: 24 | BD37: 43 | BE37: 55 | BF37: 37 | BG37: 35 | BH37: 24 | BI37: 26 | BJ37: 57 | BK37: 47 | BL37: 45 | BM37: 39 | BN37: 22 | BO37: 29 | BP37: 54 | BQ37: 51 | BR37: 41 | BS37: 50 | BT37: 28 | BU37: 38 | BV37: 52 | BW37: 60 | BX37: 52 | BY37: 49 | BZ37: 14 | CA37: 13 | CB37: 45 | CC37: 64 | CD37: 51 | CE37: 41 | CF37: 20 | CG37: 27 | CH37: 46 | CI37: 53 | CJ37: 41 | CK37: 34 | CL37: 19 | CM37: 36 | CN37: 39 | CO37: 33 | CP37: 32 | CQ37: 18 | CR37: 16 | CS37: 23 | CT37: 39 | CU37: 36 | CV37: 17 | CW37: 10 | DA37: 3 | DB37: 2 | DC37: 1 | DD37: 1 | DG37: 2 | DH37: 8 | DI37: 2 | DJ37: 4 | DK37: 5 | DL37: 2 | DM37: 4 | DN37: 4 | DO37: 4 | DP37: 5 | DQ37: 1 | DR37: 2 | DS37: 2 | DT37: 3 | DU37: 1 | DV37: 3 | DW37: 3 | DX37: 2 | EA37: 5 | EB37: 2 | EC37: 11 | ED37: 15 | EE37: 24 | EF37: 19 | EG37: 19 | EH37: 14 | EI37: 4 | EJ37: 10 | EK37: 16 | EL37: 19 | EM37: 29 | EN37: 18 | EO37: 15 | EP37: 11 | EQ37: 13 | ER37: 24 | ES37: 13 | ET37: 13 | EW37: 16 | EX37: 13 | EY37: 21 | EZ37: 34 | FA37: 11 | FB37: 6 | FC37: 15 | FD37: 13 | FE37: 16 | FF37: 8 | FG37: 13 | FH37: 13 | FI37: 23 | FJ37: 17 | FK37: 16 | FL37: 14 | FM37: 17 | FN37: 15 | FO37: 15 | FP37: 25 | FQ37: 14 | FR37: 12 | FS37: 9 | FT37: 6 | FU37: 23 | FW37: 14 | FX37: 26 | FY37: 11 | FZ37: 10 | GA37: 6 | GB37: 20 | GC37: 18 | GD37: 25 | GE37: 11 | GF37: 10 | GG37: 22 | GH37: 17 | GI37: 25 | GJ37: 13 | GK37: 10 | GL37: 10 | GM37: 17 | GN37: 11 | GO37: 13 | GP37: 5 | GT37: 9 | GU37: 12 | GV37: 6
B38: 20:00:00 | H38: 12 | I38: 27 | J38: 25 | K38: 27 | L38: 16 | M38: 17 | N38: 9 | O38: 43 | P38: 35 | Q38: 28 | R38: 14 | S38: 26 | T38: 34 | U38: 24 | V38: 19 | W38: 24 | X38: 16 | Y38: 18 | Z38: 26 | AA38: 33 | AB38: 31 | AC38: 23 | AD38: 5 | AE38: 16 | AF38: 33 | AG38: 41 | AH38: 35 | AI38: 33 | AJ38: 11 | AK38: 15 | AL38: 39 | AM38: 38 | AN38: 23 | AO38: 24 | AP38: 12 | AQ38: 21 | AR38: 12 | AS38: 42 | AT38: 30 | AU38: 25 | AV38: 15 | AW38: 14 | AX38: 32 | AY38: 39 | AZ38: 27 | BA38: 26 | BB38: 15 | BC38: 19 | BD38: 31 | BE38: 45 | BF38: 37 | BG38: 35 | BH38: 11 | BI38: 19 | BJ38: 45 | BK38: 35 | BL38: 41 | BM38: 38 | BN38: 16 | BO38: 32 | BP38: 46 | BQ38: 48 | BR38: 24 | BS38: 34 | BT38: 18 | BU38: 28 | BV38: 34 | BW38: 38 | BX38: 51 | BY38: 35 | BZ38: 20 | CA38: 18 | CB38: 38 | CC38: 46 | CD38: 44 | CE38: 33 | CF38: 16 | CG38: 23 | CH38: 48 | CI38: 55 | CJ38: 37 | CK38: 38 | CL38: 24 | CM38: 29 | CN38: 43 | CO38: 28 | CP38: 26 | CQ38: 41 | CR38: 21 | CS38: 19 | CT38: 23 | CU38: 23 | CV38: 17 | DA38: 1 | DB38: 3 | DC38: 2 | DD38: 4 | DG38: 5 | DH38: 5 | DI38: 2 | DJ38: 2 | DK38: 1 | DL38: 2 | DM38: 5 | DN38: 4 | DO38: 2 | DP38: 2 | DQ38: 1 | DR38: 1 | DS38: 3 | DT38: 9 | DU38: 3 | DV38: 4 | DW38: 1 | EA38: 1 | EB38: 3 | EC38: 15 | ED38: 11 | EE38: 17 | EF38: 18 | EG38: 18 | EH38: 16 | EI38: 10 | EJ38: 7 | EK38: 15 | EL38: 13 | EM38: 21 | EN38: 12 | EO38: 3 | EP38: 11 | EQ38: 16 | ER38: 28 | ES38: 12 | ET38: 8 | EW38: 11 | EX38: 15 | EY38: 18 | EZ38: 9 | FA38: 6 | FB38: 10 | FC38: 15 | FD38: 10 | FE38: 13 | FF38: 10 | FG38: 14 | FH38: 14 | FI38: 19 | FJ38: 26 | FK38: 21 | FL38: 17 | FM38: 6 | FN38: 10 | FO38: 14 | FP38: 25 | FQ38: 16 | FR38: 13 | FS38: 10 | FT38: 5 | FU38: 16 | FW38: 9 | FX38: 13 | FY38: 6 | FZ38: 8 | GA38: 15 | GB38: 20 | GC38: 22 | GD38: 12 | GE38: 5 | GF38: 19 | GG38: 15 | GH38: 11 | GI38: 12 | GJ38: 13 | GK38: 13 | GL38: 11 | GM38: 17 | GN38: 15 | GO38: 9 | GT38: 12 | GU38: 8 | GV38: 11
B39: 21:00:00 | H39: 13 | I39: 30 | J39: 25 | K39: 24 | L39: 8 | M39: 12 | N39: 9 | O39: 31 | P39: 19 | Q39: 21 | R39: 9 | S39: 15 | T39: 27 | U39: 32 | V39: 28 | W39: 27 | X39: 9 | Y39: 20 | Z39: 37 | AA39: 43 | AB39: 36 | AC39: 22 | AD39: 7 | AE39: 18 | AF39: 37 | AG39: 27 | AH39: 42 | AI39: 25 | AJ39: 20 | AK39: 21 | AL39: 21 | AM39: 40 | AN39: 27 | AO39: 39 | AP39: 13 | AQ39: 23 | AR39: 28 | AS39: 49 | AT39: 48 | AU39: 38 | AV39: 19 | AW39: 25 | AX39: 43 | AY39: 41 | AZ39: 25 | BA39: 21 | BB39: 13 | BC39: 20 | BD39: 32 | BE39: 45 | BF39: 31 | BG39: 40 | BH39: 10 | BI39: 20 | BJ39: 54 | BK39: 58 | BL39: 51 | BM39: 32 | BN39: 20 | BO39: 31 | BP39: 46 | BQ39: 62 | BR39: 44 | BS39: 39 | BT39: 16 | BU39: 38 | BV39: 49 | BW39: 49 | BX39: 51 | BY39: 50 | BZ39: 22 | CA39: 19 | CB39: 41 | CC39: 61 | CD39: 35 | CE39: 47 | CF39: 22 | CG39: 35 | CH39: 54 | CI39: 53 | CJ39: 48 | CK39: 36 | CL39: 34 | CM39: 32 | CN39: 55 | CO39: 38 | CP39: 30 | CQ39: 31 | CR39: 33 | CS39: 24 | CT39: 21 | CU39: 30 | CV39: 26 | DB39: 1 | DD39: 4 | DG39: 1 | DH39: 1 | DJ39: 1 | DK39: 4 | DL39: 5 | DM39: 3 | DN39: 5 | DO39: 3 | DP39: 4 | DQ39: 2 | DS39: 3 | DU39: 3 | DV39: 3 | DW39: 1 | EA39: 2 | EB39: 4 | EC39: 10 | ED39: 11 | EE39: 19 | EF39: 22 | EG39: 21 | EH39: 13 | EI39: 9 | EJ39: 11 | EK39: 9 | EL39: 31 | EM39: 24 | EN39: 15 | EO39: 16 | EP39: 13 | EQ39: 16 | ER39: 26 | ES39: 21 | ET39: 10 | EW39: 9 | EX39: 14 | EY39: 14 | EZ39: 13 | FA39: 5 | FB39: 13 | FC39: 17 | FD39: 13 | FE39: 27 | FF39: 5 | FG39: 15 | FH39: 15 | FI39: 16 | FJ39: 16 | FK39: 18 | FL39: 10 | FM39: 3 | FN39: 9 | FO39: 22 | FP39: 18 | FQ39: 21 | FR39: 9 | FS39: 3 | FT39: 5 | FU39: 19 | FW39: 17 | FX39: 14 | FY39: 6 | FZ39: 1 | GA39: 18 | GB39: 11 | GC39: 11 | GD39: 20 | GE39: 5 | GF39: 12 | GG39: 14 | GH39: 25 | GI39: 16 | GJ39: 10 | GK39: 7 | GL39: 7 | GM39: 15 | GN39: 18 | GO39: 6 | GT39: 9 | GU39: 12 | GV39: 8
B40: 22:00:00 | H40: 18 | I40: 15 | J40: 19 | K40: 13 | L40: 10 | M40: 8 | O40: 19 | P40: 20 | Q40: 15 | R40: 6 | S40: 19 | T40: 31 | U40: 26 | V40: 19 | W40: 18 | X40: 6 | Y40: 17 | Z40: 31 | AA40: 39 | AB40: 31 | AC40: 22 | AD40: 15 | AE40: 23 | AF40: 28 | AG40: 17 | AH40: 29 | AI40: 23 | AJ40: 17 | AK40: 27 | AL40: 40 | AM40: 28 | AN40: 13 | AO40: 20 | AP40: 14 | AQ40: 16 | AS40: 37 | AT40: 36 | AU40: 28 | AV40: 16 | AW40: 24 | AX40: 45 | AY40: 38 | AZ40: 30 | BA40: 23 | BB40: 17 | BC40: 20 | BD40: 43 | BE40: 46 | BF40: 45 | BG40: 42 | BH40: 15 | BI40: 31 | BJ40: 45 | BK40: 53 | BL40: 50 | BM40: 21 | BN40: 19 | BO40: 40 | BP40: 52 | BQ40: 50 | BR40: 39 | BS40: 31 | BT40: 20 | BU40: 44 | BV40: 64 | BW40: 55 | BX40: 68 | BY40: 36 | BZ40: 17 | CA40: 26 | CB40: 56 | CC40: 68 | CD40: 34 | CE40: 30 | CF40: 22 | CG40: 1 | CH40: 64 | CI40: 63 | CJ40: 52 | CK40: 19 | CL40: 20 | CM40: 46 | CN40: 65 | CO40: 28 | CP40: 30 | CQ40: 34 | CR40: 19 | CS40: 33 | CT40: 32 | CU40: 32 | DB40: 1 | DD40: 1 | DG40: 1 | DJ40: 1 | DK40: 2 | DM40: 3 | DN40: 2 | DO40: 3 | DP40: 2 | DS40: 3 | DW40: 1 | EA40: 2 | EC40: 6 | ED40: 18 | EE40: 18 | EF40: 12 | EG40: 8 | EH40: 18 | EI40: 13 | EK40: 23 | EL40: 19 | EM40: 25 | EN40: 9 | EO40: 14 | EP40: 15 | EQ40: 14 | ER40: 17 | ES40: 13 | EW40: 12 | EX40: 8 | EY40: 10 | EZ40: 10 | FA40: 6 | FB40: 8 | FC40: 21 | FD40: 13 | FE40: 8 | FF40: 4 | FI40: 16 | FJ40: 16 | FK40: 9 | FL40: 12 | FM40: 8 | FN40: 10 | FO40: 9 | FP40: 11 | FQ40: 17 | FR40: 12 | FS40: 5 | FT40: 11 | FU40: 12 | FW40: 13 | FX40: 15 | FY40: 6 | GA40: 18 | GB40: 13 | GC40: 10 | GD40: 5 | GE40: 5 | GF40: 20 | GG40: 15 | GH40: 10 | GI40: 16 | GJ40: 10 | GK40: 6 | GL40: 4 | GM40: 8 | GN40: 13 | GO40: 3
B41: 23:00:00 | H41: 1 | I41: 1 | K41: 2 | O41: 3 | Q41: 2 | S41: 2 | T41: 1 | U41: 1 | W41: 1 | Y41: 2 | Z41: 3 | AA41: 2 | AB41: 2 | AD41: 1 | AE41: 2 | AF41: 2 | AH41: 2 | AI41: 1 | AK41: 3 | AL41: 1 | AP41: 3 | AQ41: 1 | AS41: 3 | AT41: 2 | AU41: 1 | AW41: 1 | AX41: 2 | AY41: 1 | AZ41: 1 | BC41: 1 | BD41: 1 | BE41: 2 | BF41: 2 | BG41: 1 | BH41: 1 | BI41: 2 | BJ41: 1 | BK41: 6 | BL41: 1 | BN41: 1 | BO41: 3 | BP41: 3 | BQ41: 1 | BS41: 1 | BU41: 1 | BW41: 2 | BX41: 2 | BY41: 3 | CA41: 3 | CB41: 6 | CC41: 1 | CD41: 7 | CE41: 3 | CF41: 2 | CH41: 7 | CI41: 6 | CJ41: 2 | CK41: 4 | CL41: 2 | CM41: 3 | CN41: 8 | CO41: 5 | CP41: 1 | CQ41: 2 | CR41: 2 | CS41: 5 | CT41: 2 | CU41: 1 | DO41: 2 | EC41: 2 | EF41: 1 | EH41: 2 | EI41: 1 | EK41: 4 | EL41: 2 | EO41: 2 | EQ41: 1 | ES41: 1 | EW41: 1 | EY41: 1 | FB41: 1 | FC41: 1 | FD41: 1 | FF41: 2 | FI41: 1 | FJ41: 1 | FL41: 2 | FN41: 1 | FQ41: 1 | FU41: 11 | FW41: 11 | FY41: 1 | GC41: 1 | GE41: 1 | GF41: 1 | GG41: 1 | GK41: 2 | GM41: 2 | GN41: 2 | GO41: 3
B42: 1 | CJ42: 2 | CO42: 1 | CR42: 1 | CV42: 1 | FU42: 1
B43: 1.041666667 | CO43: 1
B44: Total | C44: =SUM(C25:C43) -> 212 | D44: 221 | E44: 220 | F44: 255 | G44: 151 | H44: 904 | I44: 808 | J44: 863 | K44: 819 | L44: 781 | M44: 299 | N44: 300 | O44: 912 | P44: 846 | Q44: 781 | R44: 748 | S44: 399 | T44: 935 | U44: 864 | V44: 838 | W44: 791 | X44: 739 | Y44: 401 | Z44: 1009 | AA44: 934 | AB44: 881 | AC44: 765 | AD44: 720 | AE44: 430 | AF44: 979 | AG44: 827 | AH44: 819 | AI44: 764 | AJ44: 745 | AK44: 435 | AL44: 1008 | AM44: 808 | AN44: 716 | AO44: 783 | AP44: 739 | AQ44: 375 | AR44: 363 | AS44: 1051 | AT44: 897 | AU44: 855 | AV44: 763 | AW44: 492 | AX44: 987 | AY44: 929 | AZ44: 796 | BA44: 768 | BB44: 681 | BC44: 411 | BD44: 942 | BE44: 888 | BF44: 885 | BG44: 870 | BH44: 747 | BI44: 480 | BJ44: 1098 | BK44: 935 | BL44: 879 | BM44: 878 | BN44: 804 | BO44: =SUM(BO25:BO43) -> 522 | BP44: 1109 | BQ44: 953 | BR44: 904 | BS44: 887 | BT44: 828 | BU44: 512 | BV44: 1076 | BW44: 1029 | BX44: 969 | BY44: 960 | BZ44: 707 | CA44: 179 | CB44: 1038 | CC44: 972 | CD44: 909 | CE44: 791 | CF44: 689 | CG44: 447 | CH44: 1002 | CI44: 927 | CJ44: 925 | CK44: 773 | CL44: 730 | CM44: 518 | CN44: 898 | CO44: 716 | CP44: 611 | CQ44: 683 | CR44: 653 | CS44: 459 | CT44: 725 | CU44: 648 | CV44: 493 | CW44: 219 | CX44: 212 | CY44: 124 | CZ44: 291 | DA44: 35 | DB44: 67 | DC44: 54 | DD44: 62 | DE44: 34 | DF44: 0 | DG44: 78 | DH44: 81 | DI44: 66 | DJ44: 67 | DK44: 59 | DL44: 44 | DM44: 84 | DN44: 69 | DO44: 68 | DP44: 71 | DQ44: 70 | DR44: 53 | DS44: 79 | DT44: 55 | DU44: 60 | DV44: 57 | DW44: 75 | DX44: =SUM(DX25:DX43) -> 43 | DY44: 22 | DZ44: 46 | EA44: 51 | EB44: 64 | EC44: 386 | ED44: 226 | EE44: 522 | EF44: 415 | EG44: 409 | EH44: 410 | EI44: 398 | EJ44: 238 | EK44: 477 | EL44: 457 | EM44: 492 | EN44: 377 | EO44: 384 | EP44: 224 | EQ44: 453 | ER44: 464 | ES44: 420 | ET44: 343 | EU44: 240 | EV44: 120 | EW44: 478 | EX44: 392 | EY44: 393 | EZ44: 919 | FA44: 357 | FB44: 172 | FC44: 457 | FD44: 380 | FE44: 408 | FF44: 351 | FG44: 215 | FH44: 215 | FI44: 502 | FJ44: 389 | FK44: 366 | FL44: 394 | FM44: 354 | FN44: 186 | FO44: 414 | FP44: 420 | FQ44: 415 | FR44: 346 | FS44: 308 | FT44: 150 | FU44: 416 | FV44: =SUM(FV25:FV43) -> 108 | FW44: 392 | FX44: 376 | FY44: 339 | FZ44: 186 | GA44: 424 | GB44: =SUM(GB25:GB43) -> 365 | GC44: 366 | GD44: 384 | GE44: 325 | GF44: 222 | GG44: 476 | GH44: 390 | GI44: 381 | GJ44: 316 | GK44: 347 | GL44: 180 | GM44: 401 | GN44: 352 | GO44: 334 | GP44: 257 | GQ44: 209 | GR44: 108 | GS44: 236 | GT44: 272 | GU44: 291 | GV44: 252 | GW44: 228 | GX44: 99 | GY44: 299 | GZ44: 305 | HA44: 283 | HB44: 255 | HC44: 313
A46: Items/Patron
